{"text_format":"1","workbook":"xlsx","n_sheets":23,"sheets":["HOME","1.0","1.1.a","1.1.b","2.1","2.2","3.1.a","3.1.b","3.1.c","3.2","3.3","3.4","3.5","3.6","RESULTS","Scoring","Hazards-Components","Haz-Comp_User","Property Components","Business Costs","Property Costs","Human Hazards","ResetValues"],"not_rendered":{"charts":1,"images":2,"macros":1,"external_links":0,"defined_names":63,"comments":0,"pivot_tables":0},"unopened":[],"bounds":{"document_bytes":16777216,"sheet_cells":100000,"rows_first":2000,"rows_last":500,"rows_between":2000,"halvings":0,"cell_chars":16384,"cell_head_chars":4096},"cells_cut":0,"cells_raw":0,"read":"whole","date_system":"1900"}

{"sheet":"HOME","index":0,"n_rows":24,"n_cols":9,"rows_kept":24,"cut":false,"hidden":false,"merged":[]}
[]
[]
[]
[]
[]
[]
[null,null,null,null,null,null,null,null,"Healthcare and Public Health Sector"]
[null,null,null,null,null,null,null,null,"Rapid Infrastructure Survey Tool"]
[null,null,null,null,null,null,null,null,"Consequence and Criticality Module"]
[]
[]
[null,null,null,null,null,null,null,null,"Version 1.1"]
[null,null,null,null,null,null,null,null,"Release Date: Feb. 3, 2017"]
[]
[]
[]
[]
[]
[]
[null,null,null,null,null,null,null,null,"Click button to begin."]
[]
[]
[null,null,null,null,null,null,null,null,"This tool is the property of the U.S. Department of Health and Human Services."]
[null,null,null,null,null,null,null,null,"Comments and questions can be directed to the Critical Infrastructure Protection (CIP) Office at cip@hhs.gov"]

{"sheet":"1.0","index":1,"n_rows":18,"n_cols":4,"rows_kept":18,"cut":false,"hidden":true,"merged":[[7,3,7,6]]}
[]
[]
[]
[null,"1.0",null,"Subsector Identification"]
[]
[]
[null,"1.0.1    ",{"$f":"D8","v":0},"Which of the following best characterizes the facility’s HPH subsector affiliation?"]
[]
[null,null,null,"Direct Patient Care"]
[null,null,null,"Laboratories"]
[null,null,null,"Blood"]
[null,null,null,"Pharmaceuticals"]
[null,null,null,"Medical Materials"]
[null,null,null,"Health Information Technology (IT)"]
[null,null,null,"Health Plans and Payers"]
[null,null,null,"Mass Fatality Management Services"]
[null,null,null,"Public Health"]
[null,null,null,"Federal Response and Program Offices"]

{"sheet":"1.1.a","index":2,"n_rows":34,"n_cols":6,"rows_kept":34,"cut":false,"hidden":true,"merged":[[10,5,10,9],[16,5,16,9],[29,3,29,14],[19,3,19,14],[23,5,23,9]]}
[]
[1,"Sector Criticality"]
[]
[null,1.1000000000000001,null,"General Criticality Profile (1 of 2)"]
[]
[]
[null,"1.1.1    ",0,"Does the facility use a standardized methodology to determine facility criticality?"]
[]
[]
[null,null,null,null,null,"If yes, specify the methodology used below."]
[]
[]
[null,"1.1.2",0,"Does the facility use a standardized methodology to determine consequence of loss or disruption?"]
[]
[]
[null,null,null,null,null,"If yes, specify the methodology used below."]
[]
[]
[null,"1.1.3",0,"Does the facility or any of its satellite operations provide a unique capability within the Healthcare and Public Health Sector? "]
[null,null,null,"For example: level 1 trauma center, radiological burn treatment center, major regional hospital, high volume pharmaceutical production center or blood storage facility, etc."]
[]
[]
[null,null,null,null,null,"If yes, specify the unique capabilities below."]
[]
[]
[null,"1.1.4",0,"Is the facility or any of its satellite operations considered a unique asset at a regional or major urban area level?"]
[]
[]
[]
[null,"1.1.5",0,"If the facility or any of its satellite operations experiences an unplanned service interruption, what are the impacts or consequences for customers, the public, or other suppliers in the subsector/segment?"]
[null,null,null,"Critical impact"]
[null,null,null,"Significant impact"]
[null,null,null,"Minor impact"]
[null,null,null,"No impact"]

{"sheet":"1.1.b","index":3,"n_rows":33,"n_cols":4,"rows_kept":33,"cut":false,"hidden":true,"merged":[[6,3,6,14],[10,3,10,14],[17,3,17,14],[32,3,32,14],[28,3,28,14],[24,3,24,14]]}
[]
[1,"Sector Criticality"]
[]
[null,1.1000000000000001,null,"General Criticality Profile (2 of 2)"]
[]
[]
[null,"1.1.6 ",0,"Can other facilities within the HPH Sector provide similar services or products in the event of a facility or key satellite function disruption without major service impacts or delivery delays?"]
[]
[]
[]
[null,"1.1.7",0,"In the event of a local incident, how quickly could another facility/facilities assume responsibility for the services provided by the impacted facility or satellite function? "]
[null,null,null,"Immediately"]
[null,null,null,"Within 24 - 48 hours"]
[null,null,null,"Within 96 hours"]
[null,null,null,"Within one week"]
[null,null,null,"More than one week"]
[]
[null,"1.1.8",0,"In the event of a regional incident, how quickly could another facility/facilities assume responsibility for the services provided by the impacted facility or satellite function? "]
[null,null,null,"Immediately"]
[null,null,null,"Within 24 - 48 hours"]
[null,null,null,"Within 96 hours"]
[null,null,null,"Within one week"]
[null,null,null,"More than one week"]
[]
[null,"1.1.9",0,"Is the facility or any of its satellite operations considered critical to immediate emergency response in the context of a major regional disaster or all-hazards emergency?"]
[]
[]
[]
[null,"1.1.10",0,"Is the facility or any of its satellite operations considered critical to long-term community recovery in the context of a major regional disaster?"]
[]
[]
[]
[null,"1.1.11",0,"Is the facility or any of its satellite operations considered critical to the national or regional response to the outbreak of an emergent infectious disease?"]

{"sheet":"2.1","index":4,"n_rows":61,"n_cols":5,"rows_kept":61,"cut":false,"hidden":true,"merged":[[61,3,61,7],[37,3,37,7],[41,3,41,7],[45,3,45,7],[53,4,53,8],[57,4,57,8],[39,3,39,14],[6,3,6,14],[23,3,23,14],[27,3,27,14],[12,3,12,14],[25,3,25,7]]}
[]
[2,"Consequence of Loss or Disruption"]
[]
[null,2.1,null,"General Consequence Profile"]
[]
[]
[null,"2.1.1",{"$f":"COUNTIF(C9:C11,\"TRUE\")","v":0},"Does the facility or any of its satellite operations store or handle the following hazardous materials? "]
[null,null,null,"Check all that apply."]
[null,null,false,"Chemical hazardous materials"]
[null,null,false,"Biological hazardous materials"]
[null,null,false,"Radiological hazardous materials"]
[]
[null,"2.1.2",0,"Would an incident at the facility or any of its satellite locations cause an immediate mass evacuation of the facility and a large population (over 20,000 people) within the surrounding area?"]
[]
[]
[]
[null,"2.1.3",0,"What would be the economic cost to the local community per day if the facility or key satellite location were inoperable? "]
[null,null,null,"$ 10,000,000 or less"]
[null,null,null,"$ 10,000,001 to 100,000,000"]
[null,null,null,"$ 100,000,001 to 500,000,000"]
[null,null,null,"$ 500,000,001 to 1,000,000,000"]
[null,null,null,"Greater than $ 1,000,000,000"]
[]
[null,"2.1.4",{"$f":"D26","v":0},"What is the typical facility population at any one time, including employees, contractors, patients and visitors? "]
[null,null,null,"Specify the value below."]
[]
[]
[null,"2.1.5",0,"What is the maximum offsite population that could be impacted by a reasonable worst case scenario at the facility or any of its satellite locations (i.e., human impact such as death or injury, not economic impact)?"]
[null,null,null,"100 people or fewer"]
[null,null,null,"101 - 1,000 people"]
[null,null,null,"1,001 - 10,000 people"]
[null,null,null,"10,001 - 100,000 people"]
[null,null,null,"100,001 - 1 million people"]
[null,null,null,"Greater than 1 million people"]
[]
[null,"2.1.6",{"$f":"D38","v":0},"What is the estimated facility or key satellite location replacement value?"]
[null,null,null,"Specify the value below."]
[]
[]
[null,"2.1.7",{"$f":"D42","v":0},"What is the estimated cost to set up a temporary replacement facility if the primary facility is destroyed or permanently\n disrupted? "]
[null,null,null,"Specify the value below."]
[]
[]
[null,"2.1.8",{"$f":"D46","v":0},"What would be the business interruption cost per day if the facility or key satellite location were inoperable? "]
[null,null,null,"Specify the value below."]
[]
[]
[null,"2.1.9",0,"Should the facility be unable to perform its key functions, would any contractual agreements be violated? "]
[]
[]
[]
[null,null,{"$f":"E54","v":0},"2.1.9.1","What is the total value of fines, penalties, or citations due to breach of contract?"]
[null,null,null,null,"Specify the value below."]
[]
[]
[null,null,{"$f":"E58","v":0},"2.1.9.2","What is the estimated cost in lost business and canceled contracts?"]
[null,null,null,null,"Specify the value below."]
[]
[]
[null,"2.1.10",{"$f":"D62","v":0},"Should the facility be unable to perform its key functions, what would be the total cost of regulatory fines and legal costs?"]
[null,null,null,"Specify the value below."]

{"sheet":"2.2","index":5,"n_rows":17,"n_cols":4,"rows_kept":17,"cut":false,"hidden":true,"merged":[[17,3,17,7],[7,3,7,14],[9,3,9,7],[6,3,6,14],[11,3,11,14],[13,3,13,7]]}
[]
[2,"Consequence of Loss or Disruption"]
[]
[null,2.2000000000000002,null,"Staffing and Critical Supply Disruption Costs"]
[]
[]
[null,"2.2.1",{"$f":"D10","v":0},"What is the additional cost associated with obtaining critical supplies from an alternate vendor/supplier/source should the primary supply chain be disrupted?"]
[null,null,null,"For this value estimate the difference in cost (above normal expenditures) associated with obtaining critical supplies (e.g., pharmaceuticals, medical supplies, manufacturing chemicals, etc.) from an alternate source. Alternate sources of a critical supply can be retail stores, alternate distributors, or manufacturers. "]
[null,null,null,"Specify the value below."]
[]
[]
[null,"2.2.2",{"$f":"D14","v":0},"What is the total cost to replace on-site critical supplies in the event of loss?"]
[null,null,null,"Specify the value below."]
[]
[]
[null,"2.2.3",{"$f":"D18","v":0},"What is the cost per day associated with insufficient staffing?"]
[null,null,null,"Specify the value below."]

{"sheet":"3.1.a","index":6,"n_rows":58,"n_cols":4,"rows_kept":58,"cut":false,"hidden":true,"merged":[]}
[]
[3,"Subsector-Specific Consequence and Criticality"]
[]
[null,3.1,null,"Direct Patient Care (1 of 3)"]
[]
[]
[null,"3.1.1",0,"Is the facility a Level 1 or Level 2 trauma center?"]
[]
[]
[]
[null,"3.1.2",0,"Is the facility the only general acute care or emergency hospital in a 25-mile radius?"]
[]
[]
[]
[null,"3.1.3",0,"Does the facility meet CMS Critical Access Hospital criteria?"]
[]
[]
[]
[null,"3.1.4",0,"How many acute-care beds are in the facility?"]
[null,null,null,"1 to 50 beds"]
[null,null,null,"51 to 100 beds"]
[null,null,null,"101 to 300 beds"]
[null,null,null,"301 to 500 beds"]
[null,null,null,"Greater than 500 beds"]
[null,null,null,"N/A"]
[]
[null,"3.1.5",0,"How many acute-care beds are staffed?"]
[null,null,null,"1 to 50 beds"]
[null,null,null,"51 to 100 beds"]
[null,null,null,"101 to 300 beds"]
[null,null,null,"301 to 500 beds"]
[null,null,null,"Greater than 500 beds"]
[null,null,null,"N/A"]
[]
[null,"3.1.6",0,"How many annual emergency room visits does the facility experience?"]
[null,null,null,"100 visits or fewer"]
[null,null,null,"101 to 1,000 visits"]
[null,null,null,"1,001 to 10,000 visits"]
[null,null,null,"10,001 to 100,000 visits"]
[null,null,null,"Greater than 100,000 visits"]
[null,null,null,"N/A"]
[]
[null,"3.1.7",0,"What volume of patients does the facility see per year (including outpatient)? "]
[null,null,null,"100 visits or fewer"]
[null,null,null,"101 to 1,000 visits"]
[null,null,null,"1,001 to 10,000 visits"]
[null,null,null,"10,001 to 100,000 visits"]
[null,null,null,"100,001 to 1,000,000 visits"]
[null,null,null,"Greater than 1,000,000 visits"]
[null,null,null,"N/A"]
[]
[null,"3.1.8",0,"How many patients does the facility admit per year?"]
[null,null,null,"Fewer than 100 admissions"]
[null,null,null,"101 to 1,000 admissions"]
[null,null,null,"1,001 to 5,000 admissions"]
[null,null,null,"5,001 to 10,000 admissions"]
[null,null,null,"Greater than 10,000 admissions"]
[null,null,null,"N/A"]

{"sheet":"3.1.b","index":7,"n_rows":49,"n_cols":12,"rows_kept":49,"cut":false,"hidden":true,"merged":[]}
[]
[3,"Subsector-Specific Consequence and Criticality"]
[]
[null,3.1,null,"Direct Patient Care (2 of 3)"]
[]
[]
[null,"3.1.9",null,"How many patients receive services annually in each of the following units or capability areas within the facility?"]
[]
[null,null,null,null,null,null,null,"N/A","1 to 10","11 to 50","51 to 100","Greater than 100"]
[null,null,0,null,"Isolation beds"]
[null,null,0,null,"Negative pressure rooms"]
[null,null,0,null,"Recognized burn center"]
[null,null,0,null,"Pediatric ICU"]
[null,null,0,null,"Neonatal ICU"]
[null,null,0,null,"Medical and Surgical ICU"]
[null,null,0,null,"Transplant unit"]
[null,null,0,null,"Air Medevac capabilities"]
[null,null,0,null,"Ground Medevac capabilities"]
[null,null,0,null,"Inpatient behavioral health unit"]
[]
[]
[]
[]
[]
[]
[]
[]
[]
[]
[]
[]
[]
[]
[]
[]
[]
[]
[]
[]
[]
[]
[]
[]
[]
[]
[]
[]
[]
[null,null,1]

{"sheet":"3.1.c","index":8,"n_rows":55,"n_cols":4,"rows_kept":55,"cut":false,"hidden":true,"merged":[[6,3,6,14],[11,3,11,14],[15,3,15,14],[19,3,19,14],[25,3,25,7],[21,3,21,7],[9,3,9,7],[7,3,7,15],[13,3,13,7],[17,3,17,7]]}
[]
[3,"Subsector-Specific Consequence and Criticality"]
[]
[null,3.1,null,"Direct Patient Care (3 of 3)"]
[]
[]
[null,"3.1.10",{"$f":"D10","v":0},"On average, how many patients daily are dependent on electricity for treatment of an acute or chronic life-threatening condition?"]
[null,null,null,"Electricity-dependent patients include those undergoing or utilizing mechanical ventilation, bilevel positive airway pressure, IV infusion pumps, suction pumps, dialysis, oxygen concentrator equipment, etc."]
[null,null,null,"Specify the value below."]
[]
[]
[null,"3.1.11",{"$f":"D14","v":0},"On average, how many patients daily are dependent on water for treatment of an acute or chronic life-threatening condition?"]
[null,null,null,"Specify the value below."]
[]
[]
[null,"3.1.12",{"$f":"D18","v":0},"On average, how many patients daily are dependent on web-enabled devices for treatment of an acute or chronic life-threatening condition?"]
[null,null,null,"Specify the value below."]
[]
[]
[null,"3.1.13",{"$f":"D22","v":0},"On average, how many patients daily are dependent on medical gases for treatment of an acute or chronic life-threatening condition?"]
[null,null,null,"Specify the value below."]
[]
[]
[null,"3.1.14",{"$f":"D26","v":0},"On average, how many patients daily are present at the hospital, including both outpatients and admitted patients?"]
[null,null,null,"Specify the value below."]
[]
[]
[]
[]
[]
[]
[]
[]
[]
[]
[]
[]
[]
[]
[]
[]
[]
[]
[]
[]
[]
[]
[]
[]
[]
[]
[]
[]
[]
[null,null,1]

{"sheet":"3.2","index":9,"n_rows":19,"n_cols":4,"rows_kept":19,"cut":false,"hidden":true,"merged":[]}
[]
[3,"Subsector-Specific Consequence and Criticality"]
[]
[null,3.2,null,"Healthcare Information Technology (IT)"]
[]
[]
[null,"3.2.1",{"$f":"COUNTIF(C9:C12,\"TRUE\")","v":0},"Do the facility’s networks, systems, or servers manage any of the following?"]
[null,null,null,"Check all that apply."]
[null,null,false,"Protected Health Information (PHI)"]
[null,null,false,"Sensitive financial data"]
[null,null,false,"Internal organization processes"]
[null,null,false,"Telemedicine providers"]
[]
[]
[null,"3.2.2",0,"How many healthcare/healthcare-related facilities does the asset manage or interact with? "]
[null,null,null,"1 healthcare facility"]
[null,null,null,"2 to 5 healthcare facilities"]
[null,null,null,"6 to 10 healthcare facilities"]
[null,null,null,"Greater than 10 healthcare facilities"]

{"sheet":"3.3","index":10,"n_rows":25,"n_cols":5,"rows_kept":25,"cut":false,"hidden":true,"merged":[]}
[]
[3,"Subsector-Specific Consequence and Criticality"]
[]
[null,3.3,null,"Laboratories"]
[]
[]
[null,"3.3.1",0,"Is the facility part of the CDC Response Lab Network (LRN)?"]
[null,null,null,"National lab"]
[null,null,null,"Reference lab"]
[null,null,null,"Sentinel lab"]
[null,null,null,"Not in the LRN"]
[]
[null,"3.3.2",0,"Can critical testing be relocated or accomplished elsewhere? "]
[]
[]
[]
[null,null,0,"3.3.2.1","If so, are agreements in place to do so?"]
[]
[]
[]
[null,"3.3.3",0,"How many healthcare facilities does the facility service?"]
[null,null,null,"1 healthcare facility"]
[null,null,null,"2 to 10 healthcare facilities"]
[null,null,null,"11 to 50 healthcare facilities"]
[null,null,null,"Greater than 50 healthcare facilities"]

{"sheet":"3.4","index":11,"n_rows":21,"n_cols":4,"rows_kept":21,"cut":false,"hidden":true,"merged":[]}
[]
[3,"Subsector-Specific Consequence and Criticality"]
[]
[null,3.4,null,"Blood"]
[]
[]
[null,"3.4.1",0,"How much blood does the facility collect/distribute per year? "]
[null,null,null,"Less than 1,000 units"]
[null,null,null,"1,001 to 10,000 units"]
[null,null,null,"10,001 to 100,000 units"]
[null,null,null,"100,001 to 1 million units"]
[]
[null,"3.4.2",0,"Is the facility a major Red Cross distribution center?"]
[]
[]
[]
[null,"3.4.3",0,"How much blood does the facility test per year? "]
[null,null,null,"Less than 1,000 units"]
[null,null,null,"1,001 to 10,000 units"]
[null,null,null,"10,001 to 100,000 units"]
[null,null,null,"100,001 to 1 million units"]

{"sheet":"3.5","index":12,"n_rows":60,"n_cols":5,"rows_kept":60,"cut":false,"hidden":true,"merged":[[26,3,26,13]]}
[]
[3,"Subsector-Specific Consequence and Criticality"]
[]
[null,3.5,null,"Pharmaceuticals"]
[]
[]
[null,"3.5.1",0,"Does the facility produce, store, or distribute any critical pharmaceuticals? "]
[null,null,null,"Critical pharmaceuticals are those identified in the following references:"]
[null,null,null,"•  WHO Essential Medicines List"]
[null,null,null,"•  Project BioShield Acquisitions"]
[]
[]
[]
[null,"3.5.2",0,"Is the facility the sole producer/distributor of any pharmaceuticals? "]
[]
[]
[]
[null,"3.5.3",0,"Is the facility a producer of any limited source pharmaceuticals? "]
[]
[]
[]
[null,"3.5.4",0,"Does the facility produce, store, or distribute any unique confirmation tests/test results? "]
[null,null,null,"For example, identification of biological/chemical terror agents or emerging infectious diseases"]
[]
[]
[]
[null,"3.5.5",0,"Can critical pharmaceutical production/storage/distribution be relocated or accomplished elsewhere in the event of facility loss or disruption? "]
[]
[]
[]
[null,null,0,"3.5.5.1","If yes, are agreements in place to do so?"]
[]
[]
[]
[null,"3.5.6",0,"How many doses of acute-care therapeutics does the facility produce, store, or distribute annually? "]
[null,null,null,"1,000 doses or fewer"]
[null,null,null,"1,001 to 5,000 doses"]
[null,null,null,"5,001 to 10,000 doses"]
[null,null,null,"10,001 to 50,000 doses"]
[null,null,null,"50,001 to 100,000 doses"]
[null,null,null,"100,001 to 1 million doses"]
[null,null,null,"Greater than 1 million doses"]
[]
[null,"3.5.7",0,"How many doses of chronic therapeutics does the facility produce, store, or distribute annually? "]
[null,null,null,"1,000 doses or fewer"]
[null,null,null,"1,001 to 5,000 doses"]
[null,null,null,"5,001 to 10,000 doses"]
[null,null,null,"10,001 to 50,000 doses"]
[null,null,null,"50,001 to 100,000 doses"]
[null,null,null,"100,001 to 1 million doses"]
[null,null,null,"Greater than 1 million doses"]
[]
[null,"3.5.8",0,"How many doses of prophylaxes does the facility produce, store, or distribute annually? "]
[null,null,null,"1,000 doses or fewer"]
[null,null,null,"1,001 to 5,000 doses"]
[null,null,null,"5,001 to 10,000 doses"]
[null,null,null,"10,001 to 50,000 doses"]
[null,null,null,"50,001 to 100,000 doses"]
[null,null,null,"100,001 to 1 million doses"]
[null,null,null,"Greater than 1 million doses"]

{"sheet":"3.6","index":13,"n_rows":30,"n_cols":4,"rows_kept":30,"cut":false,"hidden":true,"merged":[]}
[]
[3,"Subsector-Specific Consequence and Criticality"]
[]
[null,3.6,null,"Medical Materials"]
[]
[]
[null,"3.6.1",0,"Does the facility produce, store, or distribute any critical medical materials? "]
[null,null,null,"Critical pharmaceuticals are those identified in the following references:"]
[null,null,null,"•  Current Emergency Use Authorization Medical Materials "]
[null,null,null,"•  Critical Medical Materials list "]
[]
[]
[]
[null,"3.6.2",0,"Is the facility the sole producer/distributor of any medical materials? "]
[]
[]
[]
[null,"3.6.3",0,"Is the facility a producer of any limited source medical materials? "]
[]
[]
[]
[null,"3.6.4",0,"Does the facility serve as a cache supply point for major regional emergencies? "]
[]
[]
[]
[null,"3.6.5",0,"How many healthcare facilities does the facility provide medical materials to or provide storage for? "]
[null,null,null,"1 healthcare facility"]
[null,null,null,"2 to 10 healthcare facilities"]
[null,null,null,"11 to 50 healthcare facilities"]
[null,null,null,"Greater than 50 healthcare facilities"]

{"sheet":"RESULTS","index":14,"n_rows":49,"n_cols":17,"rows_kept":49,"cut":false,"hidden":true,"merged":[[31,3,31,5],[41,3,41,5],[16,6,16,10],[4,1,4,13],[18,3,18,10]]}
[]
[]
[null,"Results"]
[]
[null,"The responses entered into this assessment tool are tabulated into the following Sector Criticality score and three Facility-Specific Consequence Outputs: Human Impact, Property Impact, and Business Impact. \n\nThe Sector Criticality score provides an indication of the level of impact to the Healthcare and Public Health Sector that could be expected due to the loss of function of the facility or asset being assessed. The score ranges from zero to 100, with a score closer to 100 indicating a greater impact to the sector (i.e., high criticality of the asset or facility). \n\nThe Facility-Specific Consequence outputs detail the types and amounts of impacts to the facility and its patients and staff that could be expected to occur given a specific threat or hazard:\n     Human Impact - number of potential injuries or lives lost \n     Property Impact - cost in dollars due to damage or destruction of equipment and property\n     Business Impact - cost in dollars due to loss or disruption and subsequent inability to provide services  \n\nTo return to any specific section of the RIST, click the Show All Sections button to the right, then select the desired section from the tabs at the bottom of the page. To clear all answers and start at the beginning, press the Start Over button at the bottom of the page."]
[]
[]
[]
[null,null,null,null,"Sector Criticality Score",null,null,null,null,null,null,null,null,null,null,null,{"$f":"Scoring!F43","v":0}]
[null,null,null,null,null,null,null,null,null,null,null,null,null,null,null,null,{"$f":"1-Q9","v":1}]
[null,null,null,null,{"$f":"Q9","v":0}]
[]
[]
[]
[]
[null,null,"Facility Consequences"]
[null,null,null,null,null,"Select Threat/Hazard:"]
[]
[null,null,null,"The data in the tables below can be modified to better characterize the threat or hazard. Select the \"Reset Values\" button to return to default values for the current threat or hazard, or after selecting a new Threat/Hazard if values were modified."]
[]
[null,null,"Human Impact"]
[null,null,null,null,null,null,null,null,null,null,"System Impacted","Duration of Event Effect (h)","Effected Population"]
[null,null,null,null,null,null,null,"Power",null,null,{"$f":"IF(INDEX(HAZ_COMP[],MATCH(HAZARD,HAZ_COMP[Threat/Hazard],0),MATCH(RESULTS!H23,HAZ_COMP[#Headers],0))>0, \"Yes\", \"No\")","v":{"$error":"#N/A"}},{"$f":"IF(RESULTS!K23=\"Yes\",INDEX(HAZ_COMP[],MATCH(HAZARD,HAZ_COMP[Threat/Hazard],0),MATCH(RESULTS!H23,HAZ_COMP[#Headers],0)),0)","v":{"$error":"#N/A"}},{"$f":"IF(K23=\"No\", 0, Scoring!M52)","v":{"$error":"#N/A"}}]
[null,null,null,null,{"$f":"Scoring!M57","v":{"$error":"#N/A"}},null,null,"Water",null,null,{"$f":"IF(INDEX(HAZ_COMP[],MATCH(HAZARD,HAZ_COMP[Threat/Hazard],0),MATCH(RESULTS!H24,HAZ_COMP[#Headers],0))>0, \"Yes\", \"No\")","v":{"$error":"#N/A"}},{"$f":"IF(RESULTS!K24=\"Yes\",INDEX(HAZ_COMP[],MATCH(HAZARD,HAZ_COMP[Threat/Hazard],0),MATCH(RESULTS!H24,HAZ_COMP[#Headers],0)),0)","v":{"$error":"#N/A"}},{"$f":"IF(K24=\"No\", 0, Scoring!M53)","v":{"$error":"#N/A"}}]
[null,null,null,null,"potential injuries or lives lost",null,null,"Data and information management",null,null,{"$f":"IF(INDEX(HAZ_COMP[],MATCH(HAZARD,HAZ_COMP[Threat/Hazard],0),MATCH(RESULTS!H25,HAZ_COMP[#Headers],0))>0, \"Yes\", \"No\")","v":{"$error":"#N/A"}},{"$f":"IF(RESULTS!K25=\"Yes\",INDEX(HAZ_COMP[],MATCH(HAZARD,HAZ_COMP[Threat/Hazard],0),MATCH(RESULTS!H25,HAZ_COMP[#Headers],0)),0)","v":{"$error":"#N/A"}},{"$f":"IF(K25=\"No\", 0, Scoring!M54)","v":{"$error":"#N/A"}}]
[null,null,null,null,null,null,null,"Staffing",null,null,{"$f":"IF(INDEX(HAZ_COMP[],MATCH(HAZARD,HAZ_COMP[Threat/Hazard],0),MATCH(RESULTS!H26,HAZ_COMP[#Headers],0))>0, \"Yes\", \"No\")","v":{"$error":"#N/A"}},{"$f":"IF(RESULTS!K26=\"Yes\",INDEX(HAZ_COMP[],MATCH(HAZARD,HAZ_COMP[Threat/Hazard],0),MATCH(RESULTS!H26,HAZ_COMP[#Headers],0)),0)","v":{"$error":"#N/A"}},{"$f":"IF(K26=\"No\", 0, Scoring!M56)","v":{"$error":"#N/A"}}]
[null,null,null,null,null,null,null,"Medical gases",null,null,{"$f":"IF(INDEX(HAZ_COMP[],MATCH(HAZARD,HAZ_COMP[Threat/Hazard],0),MATCH(RESULTS!H27,HAZ_COMP[#Headers],0))>0, \"Yes\", \"No\")","v":{"$error":"#N/A"}},{"$f":"IF(RESULTS!K27=\"Yes\",INDEX(HAZ_COMP[],MATCH(HAZARD,HAZ_COMP[Threat/Hazard],0),MATCH(RESULTS!H27,HAZ_COMP[#Headers],0)),0)","v":{"$error":"#N/A"}},{"$f":"IF(K27=\"No\", 0, Scoring!M55)","v":{"$error":"#N/A"}}]
[]
[]
[null,null,"Property Impact"]
[null,null,null,null,null,null,null,null,null,"Total Facility Value","Percent Damage",null,"Incurred Cost"]
[null,null,null,{"$f":"Scoring!M47","v":{"$error":"#N/A"}},null,null,null,"Facility/Equipment Damage",null,{"$f":"Scoring!M45","v":0},{"$f":"INDEX(PROPERTY[],MATCH(HAZARD,PROPERTY[Threat/Hazard],0),MATCH(\"Cost to Replace Facility\",PROPERTY[#Headers],0))","v":{"$error":"#N/A"}},null,{"$f":"'Property Costs'!C19","v":{"$error":"#N/A"}}]
[null,null,null,null,"approximate cost"]
[null,null,null,null,null,null,null,null,null,"Total Cost","Temporary Facility Required",null,"Incurred Cost"]
[null,null,null,null,null,null,null,"Temporary Facility Cost",null,{"$f":"Scoring!M46","v":0},{"$f":"INDEX(PROPERTY[],MATCH(HAZARD,PROPERTY[Threat/Hazard],0),MATCH(\"Cost for Temp Facility\",PROPERTY[#Headers],0))","v":{"$error":"#N/A"}},null,{"$f":"'Property Costs'!C20","v":{"$error":"#N/A"}}]
[]
[]
[null,null,"Business Impact"]
[null,null,null,null,null,null,null,null,null,"Event Duration (days)","Daily Business Interruption Cost",null,"Incurred Cost"]
[null,null,null,null,null,null,null,"Business Interruption Costs",null,{"$f":"MAX(ResetValues!I22:I26)/24","v":{"$error":"#N/A"}},{"$f":"Scoring!M36","v":0},null,{"$f":"'Business Costs'!P9","v":{"$error":"#N/A"}}]
[]
[null,null,null,{"$f":"Scoring!M43","v":{"$error":"#N/A"}},null,null,null,null,null,"Supply Chain Disruption","Area of Effect",null,"Incurred Cost"]
[null,null,null,null,"approximate cost",null,null,"Critical Supply Loss Cost",null,{"$f":"IF(INDEX(HAZ_COMP[],MATCH(HAZARD,HAZ_COMP[Threat/Hazard],0),MATCH(ResetValues!D27,HAZ_COMP[#Headers],0))>0, \"Yes\", \"No\")","v":{"$error":"#N/A"}},{"$f":"IF(RESULTS!J43=\"No\", \"N/A\", INDEX(HAZ_COMP[],MATCH(HAZARD,HAZ_COMP[Threat/Hazard],0),14))","v":{"$error":"#N/A"}},{"$f":"IF(RESULTS!J43=\"Yes\",48,0)","v":{"$error":"#N/A"}},{"$f":"'Business Costs'!C9","v":{"$error":"#N/A"}}]
[]
[null,null,null,null,null,null,null,null,null,null,null,null,"Incurred Cost"]
[null,null,null,null,null,null,null,"Insufficient Staffing Cost",null,null,null,null,{"$f":"'Business Costs'!C10","v":{"$error":"#N/A"}}]
[null,null,null,null,null,null,null,"Contract Fines",null,null,null,null,{"$f":"'Business Costs'!P10","v":{"$error":"#N/A"}}]
[null,null,null,null,null,null,null,"Lost Contract Business",null,null,null,null,{"$f":"'Business Costs'!P11","v":{"$error":"#N/A"}}]
[null,null,null,null,null,null,null,"Regulatory Fines",null,null,null,null,{"$f":"'Business Costs'!P12","v":{"$error":"#N/A"}}]

{"sheet":"Scoring","index":15,"n_rows":57,"n_cols":64,"rows_kept":57,"cut":false,"hidden":true,"merged":[[56,8,56,11],[42,8,42,11],[33,0,33,5],[33,7,33,12],[42,1,42,4],[46,8,46,11]]}
["Subsector:"]
[{"$f":"SUBSECTOR","v":0}]
[]
[1,"Sector Criticality",null,null,null,null,null,2,"Consequence of Loss or Disruption",null,null,null,null,null,null,null,3.1,"Direct Patient Care",null,null,null,null,null,null,null,3.2,"Health Information Technology (IT)",null,null,null,null,null,null,3.3,"Laboratories",null,null,null,null,null,null,3.4,"Blood",null,null,null,null,null,null,3.5,"Pharmaceuticals",null,null,null,null,null,null,3.6,"Medical Materials"]
["Count",null,null,null,"Max Subtotal","Subtotal",null,"Count",null,null,null,"Max Subtotal","Sector Subtotal","Facility Subtotal",null,null,"Count",null,null,null,null,"Max Subtotal","Sector Subtotal","Facility Subtotal",null,"Count",null,null,null,"Max Subtotal","Sector Subtotal",null,null,"Count",null,null,null,"Max Subtotal","Sector Subtotal",null,null,"Count",null,null,null,"Max Subtotal","Sector Subtotal",null,null,"Count",null,null,null,"Max Subtotal","Sector Subtotal",null,null,"Count",null,null,null,"Max Subtotal","Sector Subtotal"]
[{"$f":"COUNTA(A8:A32)","v":11},null,null,null,{"$f":"SUM(E8:E32)","v":9},{"$f":"SUM(F8:F32)","v":0},null,{"$f":"COUNTA(H8:H32)","v":15},null,null,null,{"$f":"SUM(L8:L32)","v":8},{"$f":"SUM(M8:M32)","v":0},{"$f":"SUM(N8:N32)","v":0},null,null,{"$f":"COUNTA(Q8:Q29)","v":22},null,null,null,null,{"$f":"SUM(V8:V29)","v":16},{"$f":"SUM(W8:W29)","v":0},{"$f":"SUM(X8:X29)","v":0},null,{"$f":"COUNTA(Z8:Z32)","v":2},null,null,null,{"$f":"SUM(AD8:AD32)","v":2},{"$f":"SUM(AE8:AE32)","v":0},null,null,{"$f":"COUNTA(AH8:AH32)","v":4},null,null,null,{"$f":"SUM(AL8:AL32)","v":4},{"$f":"SUM(AM8:AM32)","v":0},null,null,{"$f":"COUNTA(AP8:AP32)","v":3},null,null,null,{"$f":"SUM(AT8:AT32)","v":3},{"$f":"SUM(AU8:AU32)","v":0},null,null,{"$f":"COUNTA(AX8:AX32)","v":9},null,null,null,{"$f":"SUM(BB8:BB32)","v":9},{"$f":"SUM(BC8:BC32)","v":0},null,null,{"$f":"COUNTA(BF8:BF32)","v":5},null,null,null,{"$f":"SUM(BJ8:BJ32)","v":5},{"$f":"SUM(BK8:BK32)","v":0}]
["Question","Response","Type","Max Response","Max Score","Sector Score",null,"Question","Response","Type","Max Response","Max Score","Sector Score","Facility Score","Impact Type",null,"Question","Response","Type","Max Response","N/A","Max Score","Sector Score","Facility Score",null,"Question","Response","Type","Max Response","Max Score","Sector Score","Facility Score",null,"Question","Response","Type","Max Response","Max Score","Sector Score","Facility Score",null,"Question","Response","Type","Max Response","Max Score","Sector Score","Facility Score",null,"Question","Response","Type","Max Response","Max Score","Sector Score","Facility Score",null,"Question","Response","Type","Max Response","Max Score","Sector Score","Facility Score"]
[{"$f":"'1.1.a'!B7","v":"1.1.1    "},{"$f":"'1.1.a'!C7","v":0},"YN",null,null,null,null,{"$f":"'2.1'!B$7","v":"2.1.1"},{"$f":"'2.1'!C$7","v":0},"CB",3,1,{"$f":"I8/K8","v":0},null,null,null,{"$f":"'3.1.a'!B7","v":"3.1.1"},{"$f":"'3.1.a'!C7","v":0},"YN",null,null,1,{"$f":"IF(R8=2,1,0)","v":0},null,null,{"$f":"'3.2'!B7","v":"3.2.1"},{"$f":"'3.2'!C7","v":0},"CB",4,1,{"$f":"AA8/AC8","v":0},null,null,{"$f":"'3.3'!B7","v":"3.3.1"},{"$f":"'3.3'!C7","v":0},"MC",4,1,{"$f":"IF(AI8=0,0,(AI8-1)/(AK8-1))","v":0},null,null,{"$f":"'3.4'!B7","v":"3.4.1"},{"$f":"'3.4'!C7","v":0},"MC",4,1,{"$f":"IF(AQ8=0,0,(AQ8-1)/(AS8-1))","v":0},null,null,{"$f":"'3.5'!B7","v":"3.5.1"},{"$f":"'3.5'!C7","v":0},"YN",null,1,{"$f":"IF(AY8=2,1,0)","v":0},null,null,{"$f":"'3.6'!B7","v":"3.6.1"},{"$f":"'3.6'!C7","v":0},"YN",null,1,{"$f":"IF(BG8=2,1,0)","v":0}]
[{"$f":"'1.1.a'!B13","v":"1.1.2"},{"$f":"'1.1.a'!C13","v":0},"YN",null,null,null,null,{"$f":"'2.1'!B$13","v":"2.1.2"},{"$f":"'2.1'!C$13","v":0},"YN",null,1,{"$f":"IF(I9=2,1,0)","v":0},null,null,null,{"$f":"'3.1.a'!B11","v":"3.1.2"},{"$f":"'3.1.a'!C11","v":0},"YN",null,null,1,{"$f":"IF(R9=2,1,0)","v":0},null,null,{"$f":"'3.2'!B15","v":"3.2.2"},{"$f":"'3.2'!C15","v":0},"MC",4,1,{"$f":"IF(AA9=0,0,(AA9-1)/(AC9-1))","v":0},null,null,{"$f":"'3.3'!B13","v":"3.3.2"},{"$f":"'3.3'!C13","v":0},"YN",null,1,{"$f":"IF(AI9=2,1,0)","v":0},null,null,{"$f":"'3.4'!B13","v":"3.4.2"},{"$f":"'3.4'!C13","v":0},"YN",null,1,{"$f":"IF(AQ9=2,1,0)","v":0},null,null,{"$f":"'3.5'!B14","v":"3.5.2"},{"$f":"'3.5'!C14","v":0},"YN",null,1,0,null,null,{"$f":"'3.6'!B14","v":"3.6.2"},{"$f":"'3.6'!C14","v":0},"YN",null,1,{"$f":"IF(BG9=2,1,0)","v":0}]
[{"$f":"'1.1.a'!B19","v":"1.1.3"},{"$f":"'1.1.a'!C19","v":0},"YN",null,1,{"$f":"IF(B10=2,1,0)","v":0},null,{"$f":"'2.1'!B$17","v":"2.1.3"},{"$f":"'2.1'!C$17","v":0},"MC",5,5,{"$f":"'2.1'!C17","v":0},null,null,null,{"$f":"'3.1.a'!B15","v":"3.1.3"},{"$f":"'3.1.a'!$C$15","v":0},"YN",null,null,1,{"$f":"IF(R10=2,1,0)","v":0},null,null,null,null,null,null,null,null,null,null,{"$f":"'3.3'!D17","v":"3.3.2.1"},{"$f":"IF(A19=0,0,\n    IF(AI9=1,'3.3'!C17,2))","v":0},"YN",null,1,{"$f":"IF(AI10=2,1,0)","v":0},null,null,{"$f":"'3.4'!B17","v":"3.4.3"},{"$f":"'3.4'!C17","v":0},"MC",4,1,{"$f":"IF(AQ10=0,0,(AQ10-1)/(AS10-1))","v":0},null,null,{"$f":"'3.5'!B18","v":"3.5.3"},{"$f":"'3.5'!C18","v":0},"YN",null,1,0,null,null,{"$f":"'3.6'!B18","v":"3.6.3"},{"$f":"'3.6'!C18","v":0},"YN",null,1,{"$f":"IF(BG10=2,1,0)","v":0}]
[{"$f":"'1.1.a'!B26","v":"1.1.4"},{"$f":"'1.1.a'!C26","v":0},"YN",null,1,{"$f":"IF(B11=2,1,0)","v":0},null,{"$f":"'2.1'!B$24","v":"2.1.4"},{"$f":"'2.1'!C$24","v":0},"MC",5,null,null,{"$f":"I11","v":0},"H",null,{"$f":"'3.1.a'!B19","v":"3.1.4"},{"$f":"'3.1.a'!C19","v":0},"MC",5,6,null,null,null,null,null,null,null,null,null,null,null,null,{"$f":"'3.3'!B21","v":"3.3.3"},{"$f":"'3.3'!C21","v":0},"MC",4,1,{"$f":"IF(AI11=0,0,(AI11-1)/(AK11-1))","v":0},null,null,null,null,null,null,null,null,null,null,{"$f":"'3.5'!B22","v":"3.5.4"},{"$f":"'3.5'!C22","v":0},"YN",null,1,0,null,null,{"$f":"'3.6'!B22","v":"3.6.4"},{"$f":"'3.6'!C22","v":0},"YN",null,1,{"$f":"IF(BG11=2,1,0)","v":0}]
[{"$f":"'1.1.a'!B30","v":"1.1.5"},{"$f":"'1.1.a'!C30","v":0},"MC",4,1,{"$f":"IF(B12=0,0,(B12-1)/(D12-1))","v":0},null,{"$f":"'2.1'!B28","v":"2.1.5"},{"$f":"'2.1'!C$28","v":0},"MC",6,1,{"$f":"IF(I12=0,0,(I12-1)/(K12-1))","v":0},null,null,null,{"$f":"'3.1.a'!B27","v":"3.1.5"},{"$f":"'3.1.a'!C27","v":0},"MC",5,6,null,null,null,null,null,null,null,null,null,null,null,null,null,null,null,null,null,null,null,null,null,null,null,null,null,null,null,null,{"$f":"'3.5'!B27","v":"3.5.5"},{"$f":"'3.5'!C27","v":0},"YN",null,1,0,null,null,{"$f":"'3.6'!B26","v":"3.6.5"},{"$f":"'3.6'!C26","v":0},"MC",4,1,{"$f":"IF(BG12=0,0,(BG12-1)/(BI12-1))","v":0}]
[{"$f":"'1.1.b'!B7","v":"1.1.6 "},{"$f":"'1.1.b'!C7","v":0},"YN",null,1,{"$f":"IF(B13=2,1,0)","v":0},null,{"$f":"'2.1'!B36","v":"2.1.6"},{"$f":"'2.1'!C$36","v":0},"MC",5,null,null,{"$f":"I13","v":0},"P",null,{"$f":"'3.1.a'!B35","v":"3.1.6"},{"$f":"'3.1.a'!C35","v":0},"MC",5,6,1,{"$f":"IF(OR(R13=U13,R13=0),0,(R13-1)/(T13-1))","v":0},null,null,null,null,null,null,null,null,null,null,null,null,null,null,null,null,null,null,null,null,null,null,null,null,null,null,{"$f":"'3.5'!$D$31","v":"3.5.5.1"},{"$f":"IF(AY12=0,0,\n    IF(AY12=1,'3.5'!C31,2))","v":0},"YN",null,1,0]
[{"$f":"'1.1.b'!B11","v":"1.1.7"},{"$f":"'1.1.b'!C11","v":0},"MC",5,1,{"$f":"IF(B14=0,0,(B14-1)/(D14-1))","v":0},null,{"$f":"'2.1'!B40","v":"2.1.7"},{"$f":"'2.1'!C$40","v":0},"MC",5,null,null,0,"P",null,{"$f":"'3.1.a'!B43","v":"3.1.7"},{"$f":"'3.1.a'!C43","v":0},"MC",6,7,1,{"$f":"IF(OR(R14=U14,R14=0),0,(R14-1)/(T14-1))","v":0},null,null,null,null,null,null,null,null,null,null,null,null,null,null,null,null,null,null,null,null,null,null,null,null,null,null,{"$f":"'3.5'!B35","v":"3.5.6"},{"$f":"'3.5'!C35","v":0},"MC",7,1,{"$f":"IF(AY14=0,0,(AY14-1)/(BA14-1))","v":0}]
[{"$f":"'1.1.b'!B18","v":"1.1.8"},{"$f":"'1.1.b'!C18","v":0},"MC",5,1,0,null,{"$f":"'2.1'!B44","v":"2.1.8"},{"$f":"'2.1'!C$44","v":0},"MC",5,null,null,0,"B",null,{"$f":"'3.1.a'!B52","v":"3.1.8"},{"$f":"'3.1.a'!C52","v":0},"MC",5,6,1,0,null,null,null,null,null,null,null,null,null,null,null,null,null,null,null,null,null,null,null,null,null,null,null,null,null,null,{"$f":"'3.5'!B44","v":"3.5.7"},{"$f":"'3.5'!C44","v":0},"MC",7,1,0]
[{"$f":"'1.1.b'!B25","v":"1.1.9"},{"$f":"'1.1.b'!C25","v":0},"YN",null,1,{"$f":"IF(B16=2,1,0)","v":0},null,{"$f":"'2.1'!B48","v":"2.1.9"},{"$f":"'2.1'!C$48","v":0},"YN",null,null,null,null,null,null,"3.1.9.1",{"$f":"'3.1.b'!C10","v":0},"MC",5,1,1,0,null,null,null,null,null,null,null,null,null,null,null,null,null,null,null,null,null,null,null,null,null,null,null,null,null,null,{"$f":"'3.5'!B53","v":"3.5.8"},{"$f":"'3.5'!C53","v":0},"MC",7,1,0]
[{"$f":"'1.1.b'!B29","v":"1.1.10"},{"$f":"'1.1.b'!C29","v":0},"YN",null,1,{"$f":"IF(B17=2,1,0)","v":0},null,{"$f":"'2.1'!D52","v":"2.1.9.1"},{"$f":"'2.1'!C$52","v":0},"MC",5,null,null,{"$f":"I17","v":0},"B",null,"3.1.9.2",{"$f":"'3.1.b'!C11","v":0},"MC",5,1,1,0]
[{"$f":"'1.1.b'!B33","v":"1.1.11"},{"$f":"'1.1.b'!C33","v":0},"YN",null,1,{"$f":"IF(B18=2,1,0)","v":0},null,{"$f":"'2.1'!D56","v":"2.1.9.2"},{"$f":"'2.1'!C$56","v":0},"MC",5,null,null,0,"B",null,"3.1.9.3",{"$f":"'3.1.b'!C12","v":0},"MC",5,1,1,0]
[null,null,null,null,null,null,null,{"$f":"'2.1'!B60","v":"2.1.10"},{"$f":"'2.1'!C$60","v":0},"MC",5,null,null,0,"B",null,"3.1.9.4",{"$f":"'3.1.b'!C13","v":0},"MC",5,1,1,0]
[null,null,null,null,null,null,null,{"$f":"'2.2'!B7","v":"2.2.1"},{"$f":"'2.2'!C7","v":0},null,null,null,null,{"$f":"I20","v":0},null,null,"3.1.9.5",{"$f":"'3.1.b'!C14","v":0},"MC",5,1,1,0]
[null,null,null,null,null,null,null,{"$f":"'2.2'!B12","v":"2.2.2"},{"$f":"'2.2'!C12","v":0},null,null,null,null,{"$f":"I21","v":0},null,null,"3.1.9.6",{"$f":"'3.1.b'!C15","v":0},"MC",5,1,1,0]
[null,null,null,null,null,null,null,"2.3.3",{"$f":"'2.2'!C16","v":0},null,null,null,null,{"$f":"I22","v":0},null,null,"3.1.9.7",{"$f":"'3.1.b'!C16","v":0},"MC",5,1,1,0]
[null,null,null,null,null,null,null,null,null,null,null,null,null,null,null,null,"3.1.9.8",{"$f":"'3.1.b'!C17","v":0},"MC",5,1,1,0]
[null,null,null,null,null,null,null,null,null,null,null,null,null,null,null,null,"3.1.9.9",{"$f":"'3.1.b'!C18","v":0},"MC",5,1,1,0]
[null,null,null,null,null,null,null,null,null,null,null,null,null,null,null,null,"3.1.9.10",{"$f":"'3.1.b'!C19","v":0},"MC",5,1,1,0]
[null,null,null,null,null,null,null,null,null,null,null,null,null,null,null,null,{"$f":"'3.1.c'!$B$7","v":"3.1.10"},{"$f":"'3.1.c'!$C$7","v":0},"MC",null,null,null,null,{"$f":"R26","v":0}]
[null,null,null,null,null,null,null,null,null,null,null,null,null,null,null,null,{"$f":"'3.1.c'!$B$12","v":"3.1.11"},{"$f":"'3.1.c'!$C$12","v":0},"MC",null,null,null,null,{"$f":"R27","v":0}]
[null,null,null,null,null,null,null,null,null,null,null,null,null,null,null,null,{"$f":"'3.1.c'!$B$16","v":"3.1.12"},{"$f":"'3.1.c'!$C$16","v":0},"MC",null,null,null,null,{"$f":"R28","v":0}]
[null,null,null,null,null,null,null,null,null,null,null,null,null,null,null,null,{"$f":"'3.1.c'!$B$20","v":"3.1.13"},{"$f":"'3.1.c'!$C$20","v":0},"MC",null,null,null,null,{"$f":"R29","v":0}]
[null,null,null,null,null,null,null,null,null,null,null,null,null,null,null,null,"3.1.14",{"$f":"'3.1.c'!$C$24","v":0},"MC",null,null,null,null,{"$f":"R30","v":0}]
[]
[]
[]
["Sector Criticality Score",null,null,null,null,null,null,"Facility Consequence Scores"]
[1,"Sector Criticality",null,null,null,{"$f":"F6/E6","v":0},null,null,"Business Impact"]
[2,"Consequence of Loss or Disruption",null,null,null,{"$f":"M6/L6","v":0},null,"2.1.9","Business interruption cost/day",null,null,null,{"$f":"N15","v":0},null,null,"Yes","Local"]
[3.1,"Direct Patient Care",null,null,null,{"$f":"W6/V6","v":0},null,"2.1.10.1","Fine Cost",null,null,null,{"$f":"N17","v":0},null,null,"No","Regional"]
[3.2,"Health Information Technology (IT)",null,null,null,{"$f":"AE6/AD6","v":0},null,"2.1.10.2","Lost Contract Business",null,null,null,{"$f":"N18","v":0},null,null,null,"N/A"]
[3.3,"Laboratories",null,null,null,{"$f":"AM6/AL6","v":0},null,"2.1.11","Regulatory Fines",null,null,null,{"$f":"N19","v":0}]
[3.4,"Blood",null,null,null,{"$f":"AU6/AT6","v":0},null,"2.3.1","Regional Supply Chain Costs",null,null,null,{"$f":"N20","v":0}]
[3.5,"Pharmaceuticals",null,null,null,{"$f":"BC6/BB6","v":0},null,"2.3.2","Local Supply Chain Costs",null,null,null,{"$f":"N21","v":0}]
[3.6,"Medical Materials",null,null,null,{"$f":"BK6/BJ6","v":0},null,"2.3.3","Staffing Costs",null,null,null,0]
[null,"Total Sector Criticality Score",null,null,null,{"$f":"IF(A2=\"Direct Patient Care\",SUM(F6,M6,W6)/SUM(E6,L6,V6), IF(A2=\"Health Information Technology (IT)\", SUM(F6,M6,AE6)/SUM(E6,L6,AD6), IF(A2=\"Laboratories\", SUM(F6,M6,AM6)/SUM(AL6,E6,L6), IF(A2=\"Blood\",SUM(F6,M6,AU6)/SUM(AT6,E6,L6),IF(A2=\"Pharmaceuticals\",SUM(F6,M6,BC6)/SUM(BB6,L6,E6), IF(A2=\"Medical Materials\", SUM(F6,M6,BK6)/SUM(BJ6,L6,E6), SUM(F6,M6)/SUM(L6,E6)))))))","v":0},null,null,"Total Value",null,null,null,{"$f":"'Business Costs'!P14","v":{"$error":"#N/A"}}]
[null,null,null,null,null,null,null,null,"Property Impact"]
[null,null,null,null,null,null,null,"2.1.7","Facility Replacement cost",null,null,null,{"$f":"N13","v":0}]
[null,null,null,null,null,null,null,"2.1.8","Temp Facility Set up cost",null,null,null,{"$f":"N14","v":0}]
[null,null,null,null,null,null,null,null,"Total Value",null,null,null,{"$f":"'Property Costs'!C21","v":{"$error":"#N/A"}}]
[null,null,null,null,null,null,null,null,"Human Impact"]
[null,null,null,null,null,null,null,"2.1.5","Total Typical Facility Population",null,null,null,{"$f":"N11","v":0}]
[]
[null,null,null,null,null,null,null,null,"Direct Patient Care"]
[null,null,null,null,null,null,null,"3.1.10","# Power Depedent",null,null,null,{"$f":"X26","v":0}]
[null,null,null,null,null,null,null,"3.1.11","# Water Dependent",null,null,null,{"$f":"X27","v":0}]
[null,null,null,null,null,null,null,"3.1.12","# Web Dependent",null,null,null,{"$f":"X28","v":0}]
[null,null,null,null,null,null,null,"3.1.13","# Med Gas Dependent",null,null,null,{"$f":"X29","v":0}]
[null,null,null,null,null,null,null,"3.1.14","# Staff Dependent",null,null,null,{"$f":"X30","v":0}]
[null,null,null,null,null,null,null,null,"Total Deaths",null,null,null,{"$f":"'Human Hazards'!A15","v":{"$error":"#N/A"}}]

{"sheet":"Hazards-Components","index":16,"n_rows":67,"n_cols":14,"rows_kept":67,"cut":false,"hidden":true,"merged":[]}
["Order","Threat/Hazard","Power","Water","Sanitation/waste stream","Heating, ventilation, and air conditioning (HVAC)","Elevators","Communications","Data and information management","Staffing","Steam","Medical gases","Critical Supplies","Regional/Internal"]
[1,"Information Theft",0,0,0,0,0,0,48,0,0,0,0,"Local"]
[2,"Terrorism",48,48,48,48,48,48,48,48,48,48,48,"Regional"]
[3,"Active shooter",0,0,0,0,0,0,0,48,0,0,0,"Local"]
[4,"Cyber",0,0,0,0,0,48,48,0,0,0,0,"Local"]
[5,"Violent Crime",0,0,0,0,0,0,0,48,0,0,0,"Local"]
[6,"Property Crime",0,0,0,0,0,0,0,48,0,0,0,"Local"]
[7,"Earthquake",48,48,48,0,0,0,0,48,48,0,0,"Regional"]
[8,"Tsunami",48,48,48,0,0,0,0,48,48,0,0,"Regional"]
[9,"Landslide",48,48,48,0,0,0,0,48,48,0,0,"Local"]
[10,"Subsidence (Sinkhole)",48,48,48,0,0,0,0,48,48,0,0,"Local"]
[11,"Volcano",48,48,48,0,0,0,0,48,48,0,0,"Regional"]
[12,"Damaging Winds",48,0,0,0,0,48,48,48,0,0,0,"Regional"]
[13,"Drought",0,48,48,48,0,0,0,48,0,48,0,"Regional"]
[14,"Flash Flood",48,48,48,0,0,0,0,48,48,0,0,"Regional"]
[15,"Flood",48,48,48,0,0,0,0,48,48,0,0,"Regional"]
[16,"Hail",48,0,0,0,0,0,0,48,0,0,0,"Regional"]
[17,"Ice Storm",48,48,48,0,0,48,48,48,48,0,0,"Regional"]
[18,"Snow Fall/Blizzard",48,48,48,0,0,48,48,48,48,0,0,"Regional"]
[19,"Storm Surge",48,48,48,0,0,0,0,48,48,0,0,"Regional"]
[20,"Tornado",48,48,48,0,0,48,48,48,48,0,0,"Local"]
[21,"Wildfire",48,48,48,0,0,0,0,48,48,0,0,"Regional"]
[22,"Extreme Heat",48,48,0,0,0,0,0,0,0,0,0,"Regional"]
[23,"Extreme Cold",48,48,0,0,0,0,0,0,0,0,0,"Regional"]
[24,"Hurricane and Tropical Storm",48,48,48,0,0,48,48,48,48,0,0,"Regional"]
[25,"Space Weather",48,0,0,0,0,48,48,0,0,0,0,"Regional"]
[26,"Thunderstorm (Lightning)",48,0,0,0,0,48,48,0,0,0,0,"Local"]
[27,"Annual Influenza Epidemic",0,0,0,0,0,0,0,48,0,0,0,"Regional"]
[28,"Aircraft Crash at Facility/Asset",48,48,48,0,0,0,0,48,48,0,0,"Local"]
[29,"External Chemical HAZMAT Exposure, Facilities",0,48,0,0,0,0,0,48,48,0,0,"Regional"]
[30,"External Chemical HAZMAT Exposure, Highway",0,48,0,0,0,0,0,48,48,0,0,"Regional"]
[31,"External Chemical HAZMAT Exposure, Maritime",0,48,0,0,0,0,0,48,48,0,0,"Regional"]
[32,"External Chemical HAZMAT Exposure, Railway",0,48,0,0,0,0,0,0,48,0,0,"Regional"]
[33,"External Chemical HAZMAT Exposure, Pipeline",0,48,0,0,0,0,0,48,48,0,0,"Regional"]
[34,"Radiologic Exposure, External",0,48,48,0,0,0,0,48,48,0,0,"Regional"]
[35,"Electrical Failure",48,0,0,0,0,0,0,0,0,0,0,"Local"]
[36,"Generator Failure ",48,0,0,0,0,0,0,0,0,0,0,"Local"]
[37,"Transportation Failure",0,0,0,0,0,0,0,48,48,0,0,"Local"]
[38,"Fuel Shortage",48,0,0,0,0,0,0,0,48,48,0,"Local"]
[39,"Natural Gas Failure",0,0,0,0,0,0,0,0,0,48,0,"Local"]
[40,"Water Failure",0,48,0,0,0,0,0,0,0,0,0,"Local"]
[41,"Sewer Failure",0,0,48,0,0,0,0,0,0,0,0,"Local"]
[42,"Steam Failure",0,0,0,0,0,0,0,0,0,48,0,"Local"]
[43,"Fire Alarm Failure",0,0,0,0,0,0,0,0,0,0,0,"Local"]
[44,"Communications Failure",0,0,0,0,0,48,0,0,0,0,0,"Local"]
[45,"Medical Gas Failure",0,0,0,0,0,0,0,0,0,0,48,"Local"]
[46,"Medical Vacuum Failure",0,0,0,0,0,0,0,0,0,0,48,"Local"]
[47,"HVAC Failure",0,0,0,48,0,0,0,0,0,0,0,"Local"]
[48,"Information Systems Failure",0,0,0,0,0,0,48,0,0,0,0,"Local"]
[49,"Fire, Internal",48,0,0,0,0,48,48,0,0,0,0,"Local"]
[50,"Flood, Internal",0,0,0,0,0,0,0,0,0,0,0,"Local"]
[51,"Supply Shortage",0,0,0,0,0,0,0,0,48,0,48,"Local"]
[52,"Structural Damage",48,48,48,48,48,48,48,0,0,48,48,"Local"]
[53,"Heliport Accident",0,0,0,0,0,0,0,0,0,0,0,"Local"]
[54,"Dam Inundation",48,48,48,0,0,0,0,48,48,0,0,"Local"]
[55,"VIP Situation",0,0,0,0,0,0,0,0,0,0,0,"Local"]
[56,"Infant Abduction",0,0,0,0,0,0,0,0,0,0,0,"Local"]
[57,"Hostage Situation",0,0,0,0,0,0,0,0,0,0,0,"Local"]
[58,"Civil Disturbance",0,0,0,0,0,0,0,48,48,0,0,"Local"]
[59,"Labor Action",0,0,0,0,0,0,0,48,0,0,0,"Local"]
[60,"Forensic Admission",0,0,0,0,0,0,0,0,0,0,0,"Local"]
[61,"Bomb threat",0,0,0,0,0,0,0,48,0,0,0,"Local"]
[62,"Violent Patient",0,0,0,0,0,0,0,0,0,0,0,"Local"]
[63,"Hazardous Chemical Theft ",0,0,0,0,0,0,0,0,0,0,0,"Local"]
[64,"Chemical HAZMAT Exposure, Internal",0,0,0,0,0,0,0,0,0,0,0,"Local"]
[65,"Radiological Exposure, Internal",0,0,0,0,0,0,0,48,0,0,0,"Local"]
[66,"Biological Exposure, Internal",0,0,0,0,0,0,0,48,0,0,0,"Local"]

{"sheet":"Haz-Comp_User","index":17,"n_rows":67,"n_cols":9,"rows_kept":67,"cut":false,"hidden":true,"merged":[]}
["Order","Threat/Hazard","Power","Water","Data and information management","Staffing","Medical gases","Critical Supplies","Regional/ Internal"]
[1,"Information Theft",{"$f":"IF(HAZARD=USER_HAZ_COMP[[#This Row],[Threat/Hazard]], IF(RESULTS!$K$23=\"Yes\", 14, \"0\"), HAZ_COMP[[#This Row],[Power]])","v":0},{"$f":"IF(HAZARD=USER_HAZ_COMP[[#This Row],[Threat/Hazard]], IF(RESULTS!$K$24=\"Yes\", 14, 0),HAZ_COMP[[#This Row],[Water]])","v":0},{"$f":"IF(HAZARD=USER_HAZ_COMP[[#This Row],[Threat/Hazard]], IF(RESULTS!$K$25=\"Yes\", 14, 0),HAZ_COMP[[#This Row],[Data and information management]])","v":48},{"$f":"IF(HAZARD=USER_HAZ_COMP[[#This Row],[Threat/Hazard]], IF(RESULTS!$K$26=\"Yes\", 14, 0),HAZ_COMP[[#This Row],[Staffing]])","v":0},{"$f":"IF(HAZARD=USER_HAZ_COMP[[#This Row],[Threat/Hazard]], IF(RESULTS!$K$27=\"Yes\", 14, \"No\"),HAZ_COMP[[#This Row],[Medical gases]])","v":0},{"$f":"IF(HAZARD=USER_HAZ_COMP[[#This Row],[Threat/Hazard]], IF(RESULTS!$J$43=\"Yes\", 14,0),HAZ_COMP[[#This Row],[Critical Supplies]])","v":0},{"$f":"IF(HAZARD=USER_HAZ_COMP[[#This Row],[Threat/Hazard]], RESULTS!$K$43, HAZ_COMP[[#This Row],[Regional/Internal]])","v":"Local"}]
[2,"Terrorism",{"$f":"IF(HAZARD=USER_HAZ_COMP[[#This Row],[Threat/Hazard]], IF(RESULTS!$K$23=\"Yes\", 14, \"0\"), HAZ_COMP[[#This Row],[Power]])","v":48},{"$f":"IF(HAZARD=USER_HAZ_COMP[[#This Row],[Threat/Hazard]], IF(RESULTS!$K$24=\"Yes\", 14, 0),HAZ_COMP[[#This Row],[Water]])","v":48},{"$f":"IF(HAZARD=USER_HAZ_COMP[[#This Row],[Threat/Hazard]], IF(RESULTS!$K$25=\"Yes\", 14, 0),HAZ_COMP[[#This Row],[Data and information management]])","v":48},{"$f":"IF(HAZARD=USER_HAZ_COMP[[#This Row],[Threat/Hazard]], IF(RESULTS!$K$26=\"Yes\", 14, 0),HAZ_COMP[[#This Row],[Staffing]])","v":48},{"$f":"IF(HAZARD=USER_HAZ_COMP[[#This Row],[Threat/Hazard]], IF(RESULTS!$K$27=\"Yes\", 14, \"No\"),HAZ_COMP[[#This Row],[Medical gases]])","v":48},{"$f":"IF(HAZARD=USER_HAZ_COMP[[#This Row],[Threat/Hazard]], IF(RESULTS!$J$43=\"Yes\", 14,0),HAZ_COMP[[#This Row],[Critical Supplies]])","v":48},{"$f":"IF(HAZARD=USER_HAZ_COMP[[#This Row],[Threat/Hazard]], RESULTS!$K$43, HAZ_COMP[[#This Row],[Regional/Internal]])","v":"Regional"}]
[3,"Active shooter",{"$f":"IF(HAZARD=USER_HAZ_COMP[[#This Row],[Threat/Hazard]], IF(RESULTS!$K$23=\"Yes\", 14, \"0\"), HAZ_COMP[[#This Row],[Power]])","v":0},{"$f":"IF(HAZARD=USER_HAZ_COMP[[#This Row],[Threat/Hazard]], IF(RESULTS!$K$24=\"Yes\", 14, 0),HAZ_COMP[[#This Row],[Water]])","v":0},{"$f":"IF(HAZARD=USER_HAZ_COMP[[#This Row],[Threat/Hazard]], IF(RESULTS!$K$25=\"Yes\", 14, 0),HAZ_COMP[[#This Row],[Data and information management]])","v":0},{"$f":"IF(HAZARD=USER_HAZ_COMP[[#This Row],[Threat/Hazard]], IF(RESULTS!$K$26=\"Yes\", 14, 0),HAZ_COMP[[#This Row],[Staffing]])","v":48},{"$f":"IF(HAZARD=USER_HAZ_COMP[[#This Row],[Threat/Hazard]], IF(RESULTS!$K$27=\"Yes\", 14, \"No\"),HAZ_COMP[[#This Row],[Medical gases]])","v":0},{"$f":"IF(HAZARD=USER_HAZ_COMP[[#This Row],[Threat/Hazard]], IF(RESULTS!$J$43=\"Yes\", 14,0),HAZ_COMP[[#This Row],[Critical Supplies]])","v":0},{"$f":"IF(HAZARD=USER_HAZ_COMP[[#This Row],[Threat/Hazard]], RESULTS!$K$43, HAZ_COMP[[#This Row],[Regional/Internal]])","v":"Local"}]
[4,"Cyber",{"$f":"IF(HAZARD=USER_HAZ_COMP[[#This Row],[Threat/Hazard]], IF(RESULTS!$K$23=\"Yes\", 14, \"0\"), HAZ_COMP[[#This Row],[Power]])","v":0},{"$f":"IF(HAZARD=USER_HAZ_COMP[[#This Row],[Threat/Hazard]], IF(RESULTS!$K$24=\"Yes\", 14, 0),HAZ_COMP[[#This Row],[Water]])","v":0},{"$f":"IF(HAZARD=USER_HAZ_COMP[[#This Row],[Threat/Hazard]], IF(RESULTS!$K$25=\"Yes\", 14, 0),HAZ_COMP[[#This Row],[Data and information management]])","v":48},{"$f":"IF(HAZARD=USER_HAZ_COMP[[#This Row],[Threat/Hazard]], IF(RESULTS!$K$26=\"Yes\", 14, 0),HAZ_COMP[[#This Row],[Staffing]])","v":0},{"$f":"IF(HAZARD=USER_HAZ_COMP[[#This Row],[Threat/Hazard]], IF(RESULTS!$K$27=\"Yes\", 14, \"No\"),HAZ_COMP[[#This Row],[Medical gases]])","v":0},{"$f":"IF(HAZARD=USER_HAZ_COMP[[#This Row],[Threat/Hazard]], IF(RESULTS!$J$43=\"Yes\", 14,0),HAZ_COMP[[#This Row],[Critical Supplies]])","v":0},{"$f":"IF(HAZARD=USER_HAZ_COMP[[#This Row],[Threat/Hazard]], RESULTS!$K$43, HAZ_COMP[[#This Row],[Regional/Internal]])","v":"Local"}]
[5,"Violent Crime",{"$f":"IF(HAZARD=USER_HAZ_COMP[[#This Row],[Threat/Hazard]], IF(RESULTS!$K$23=\"Yes\", 14, \"0\"), HAZ_COMP[[#This Row],[Power]])","v":0},{"$f":"IF(HAZARD=USER_HAZ_COMP[[#This Row],[Threat/Hazard]], IF(RESULTS!$K$24=\"Yes\", 14, 0),HAZ_COMP[[#This Row],[Water]])","v":0},{"$f":"IF(HAZARD=USER_HAZ_COMP[[#This Row],[Threat/Hazard]], IF(RESULTS!$K$25=\"Yes\", 14, 0),HAZ_COMP[[#This Row],[Data and information management]])","v":0},{"$f":"IF(HAZARD=USER_HAZ_COMP[[#This Row],[Threat/Hazard]], IF(RESULTS!$K$26=\"Yes\", 14, 0),HAZ_COMP[[#This Row],[Staffing]])","v":48},{"$f":"IF(HAZARD=USER_HAZ_COMP[[#This Row],[Threat/Hazard]], IF(RESULTS!$K$27=\"Yes\", 14, \"No\"),HAZ_COMP[[#This Row],[Medical gases]])","v":0},{"$f":"IF(HAZARD=USER_HAZ_COMP[[#This Row],[Threat/Hazard]], IF(RESULTS!$J$43=\"Yes\", 14,0),HAZ_COMP[[#This Row],[Critical Supplies]])","v":0},{"$f":"IF(HAZARD=USER_HAZ_COMP[[#This Row],[Threat/Hazard]], RESULTS!$K$43, HAZ_COMP[[#This Row],[Regional/Internal]])","v":"Local"}]
[6,"Property Crime",{"$f":"IF(HAZARD=USER_HAZ_COMP[[#This Row],[Threat/Hazard]], IF(RESULTS!$K$23=\"Yes\", 14, \"0\"), HAZ_COMP[[#This Row],[Power]])","v":0},{"$f":"IF(HAZARD=USER_HAZ_COMP[[#This Row],[Threat/Hazard]], IF(RESULTS!$K$24=\"Yes\", 14, 0),HAZ_COMP[[#This Row],[Water]])","v":0},{"$f":"IF(HAZARD=USER_HAZ_COMP[[#This Row],[Threat/Hazard]], IF(RESULTS!$K$25=\"Yes\", 14, 0),HAZ_COMP[[#This Row],[Data and information management]])","v":0},{"$f":"IF(HAZARD=USER_HAZ_COMP[[#This Row],[Threat/Hazard]], IF(RESULTS!$K$26=\"Yes\", 14, 0),HAZ_COMP[[#This Row],[Staffing]])","v":48},{"$f":"IF(HAZARD=USER_HAZ_COMP[[#This Row],[Threat/Hazard]], IF(RESULTS!$K$27=\"Yes\", 14, \"No\"),HAZ_COMP[[#This Row],[Medical gases]])","v":0},{"$f":"IF(HAZARD=USER_HAZ_COMP[[#This Row],[Threat/Hazard]], IF(RESULTS!$J$43=\"Yes\", 14,0),HAZ_COMP[[#This Row],[Critical Supplies]])","v":0},{"$f":"IF(HAZARD=USER_HAZ_COMP[[#This Row],[Threat/Hazard]], RESULTS!$K$43, HAZ_COMP[[#This Row],[Regional/Internal]])","v":"Local"}]
[7,"Earthquake",{"$f":"IF(HAZARD=USER_HAZ_COMP[[#This Row],[Threat/Hazard]], IF(RESULTS!$K$23=\"Yes\", 14, \"0\"), HAZ_COMP[[#This Row],[Power]])","v":48},{"$f":"IF(HAZARD=USER_HAZ_COMP[[#This Row],[Threat/Hazard]], IF(RESULTS!$K$24=\"Yes\", 14, 0),HAZ_COMP[[#This Row],[Water]])","v":48},{"$f":"IF(HAZARD=USER_HAZ_COMP[[#This Row],[Threat/Hazard]], IF(RESULTS!$K$25=\"Yes\", 14, 0),HAZ_COMP[[#This Row],[Data and information management]])","v":0},{"$f":"IF(HAZARD=USER_HAZ_COMP[[#This Row],[Threat/Hazard]], IF(RESULTS!$K$26=\"Yes\", 14, 0),HAZ_COMP[[#This Row],[Staffing]])","v":48},{"$f":"IF(HAZARD=USER_HAZ_COMP[[#This Row],[Threat/Hazard]], IF(RESULTS!$K$27=\"Yes\", 14, \"No\"),HAZ_COMP[[#This Row],[Medical gases]])","v":0},{"$f":"IF(HAZARD=USER_HAZ_COMP[[#This Row],[Threat/Hazard]], IF(RESULTS!$J$43=\"Yes\", 14,0),HAZ_COMP[[#This Row],[Critical Supplies]])","v":0},{"$f":"IF(HAZARD=USER_HAZ_COMP[[#This Row],[Threat/Hazard]], RESULTS!$K$43, HAZ_COMP[[#This Row],[Regional/Internal]])","v":"Regional"}]
[8,"Tsunami",{"$f":"IF(HAZARD=USER_HAZ_COMP[[#This Row],[Threat/Hazard]], IF(RESULTS!$K$23=\"Yes\", 14, \"0\"), HAZ_COMP[[#This Row],[Power]])","v":48},{"$f":"IF(HAZARD=USER_HAZ_COMP[[#This Row],[Threat/Hazard]], IF(RESULTS!$K$24=\"Yes\", 14, 0),HAZ_COMP[[#This Row],[Water]])","v":48},{"$f":"IF(HAZARD=USER_HAZ_COMP[[#This Row],[Threat/Hazard]], IF(RESULTS!$K$25=\"Yes\", 14, 0),HAZ_COMP[[#This Row],[Data and information management]])","v":0},{"$f":"IF(HAZARD=USER_HAZ_COMP[[#This Row],[Threat/Hazard]], IF(RESULTS!$K$26=\"Yes\", 14, 0),HAZ_COMP[[#This Row],[Staffing]])","v":48},{"$f":"IF(HAZARD=USER_HAZ_COMP[[#This Row],[Threat/Hazard]], IF(RESULTS!$K$27=\"Yes\", 14, \"No\"),HAZ_COMP[[#This Row],[Medical gases]])","v":0},{"$f":"IF(HAZARD=USER_HAZ_COMP[[#This Row],[Threat/Hazard]], IF(RESULTS!$J$43=\"Yes\", 14,0),HAZ_COMP[[#This Row],[Critical Supplies]])","v":0},{"$f":"IF(HAZARD=USER_HAZ_COMP[[#This Row],[Threat/Hazard]], RESULTS!$K$43, HAZ_COMP[[#This Row],[Regional/Internal]])","v":"Regional"}]
[9,"Landslide",{"$f":"IF(HAZARD=USER_HAZ_COMP[[#This Row],[Threat/Hazard]], IF(RESULTS!$K$23=\"Yes\", 14, \"0\"), HAZ_COMP[[#This Row],[Power]])","v":48},{"$f":"IF(HAZARD=USER_HAZ_COMP[[#This Row],[Threat/Hazard]], IF(RESULTS!$K$24=\"Yes\", 14, 0),HAZ_COMP[[#This Row],[Water]])","v":48},{"$f":"IF(HAZARD=USER_HAZ_COMP[[#This Row],[Threat/Hazard]], IF(RESULTS!$K$25=\"Yes\", 14, 0),HAZ_COMP[[#This Row],[Data and information management]])","v":0},{"$f":"IF(HAZARD=USER_HAZ_COMP[[#This Row],[Threat/Hazard]], IF(RESULTS!$K$26=\"Yes\", 14, 0),HAZ_COMP[[#This Row],[Staffing]])","v":48},{"$f":"IF(HAZARD=USER_HAZ_COMP[[#This Row],[Threat/Hazard]], IF(RESULTS!$K$27=\"Yes\", 14, \"No\"),HAZ_COMP[[#This Row],[Medical gases]])","v":0},{"$f":"IF(HAZARD=USER_HAZ_COMP[[#This Row],[Threat/Hazard]], IF(RESULTS!$J$43=\"Yes\", 14,0),HAZ_COMP[[#This Row],[Critical Supplies]])","v":0},{"$f":"IF(HAZARD=USER_HAZ_COMP[[#This Row],[Threat/Hazard]], RESULTS!$K$43, HAZ_COMP[[#This Row],[Regional/Internal]])","v":"Local"}]
[10,"Subsidence (Sinkhole)",{"$f":"IF(HAZARD=USER_HAZ_COMP[[#This Row],[Threat/Hazard]], IF(RESULTS!$K$23=\"Yes\", 14, \"0\"), HAZ_COMP[[#This Row],[Power]])","v":48},{"$f":"IF(HAZARD=USER_HAZ_COMP[[#This Row],[Threat/Hazard]], IF(RESULTS!$K$24=\"Yes\", 14, 0),HAZ_COMP[[#This Row],[Water]])","v":48},{"$f":"IF(HAZARD=USER_HAZ_COMP[[#This Row],[Threat/Hazard]], IF(RESULTS!$K$25=\"Yes\", 14, 0),HAZ_COMP[[#This Row],[Data and information management]])","v":0},{"$f":"IF(HAZARD=USER_HAZ_COMP[[#This Row],[Threat/Hazard]], IF(RESULTS!$K$26=\"Yes\", 14, 0),HAZ_COMP[[#This Row],[Staffing]])","v":48},{"$f":"IF(HAZARD=USER_HAZ_COMP[[#This Row],[Threat/Hazard]], IF(RESULTS!$K$27=\"Yes\", 14, \"No\"),HAZ_COMP[[#This Row],[Medical gases]])","v":0},{"$f":"IF(HAZARD=USER_HAZ_COMP[[#This Row],[Threat/Hazard]], IF(RESULTS!$J$43=\"Yes\", 14,0),HAZ_COMP[[#This Row],[Critical Supplies]])","v":0},{"$f":"IF(HAZARD=USER_HAZ_COMP[[#This Row],[Threat/Hazard]], RESULTS!$K$43, HAZ_COMP[[#This Row],[Regional/Internal]])","v":"Local"}]
[11,"Volcano",{"$f":"IF(HAZARD=USER_HAZ_COMP[[#This Row],[Threat/Hazard]], IF(RESULTS!$K$23=\"Yes\", 14, \"0\"), HAZ_COMP[[#This Row],[Power]])","v":48},{"$f":"IF(HAZARD=USER_HAZ_COMP[[#This Row],[Threat/Hazard]], IF(RESULTS!$K$24=\"Yes\", 14, 0),HAZ_COMP[[#This Row],[Water]])","v":48},{"$f":"IF(HAZARD=USER_HAZ_COMP[[#This Row],[Threat/Hazard]], IF(RESULTS!$K$25=\"Yes\", 14, 0),HAZ_COMP[[#This Row],[Data and information management]])","v":0},{"$f":"IF(HAZARD=USER_HAZ_COMP[[#This Row],[Threat/Hazard]], IF(RESULTS!$K$26=\"Yes\", 14, 0),HAZ_COMP[[#This Row],[Staffing]])","v":48},{"$f":"IF(HAZARD=USER_HAZ_COMP[[#This Row],[Threat/Hazard]], IF(RESULTS!$K$27=\"Yes\", 14, \"No\"),HAZ_COMP[[#This Row],[Medical gases]])","v":0},{"$f":"IF(HAZARD=USER_HAZ_COMP[[#This Row],[Threat/Hazard]], IF(RESULTS!$J$43=\"Yes\", 14,0),HAZ_COMP[[#This Row],[Critical Supplies]])","v":0},{"$f":"IF(HAZARD=USER_HAZ_COMP[[#This Row],[Threat/Hazard]], RESULTS!$K$43, HAZ_COMP[[#This Row],[Regional/Internal]])","v":"Regional"}]
[12,"Damaging Winds",{"$f":"IF(HAZARD=USER_HAZ_COMP[[#This Row],[Threat/Hazard]], IF(RESULTS!$K$23=\"Yes\", 14, \"0\"), HAZ_COMP[[#This Row],[Power]])","v":48},{"$f":"IF(HAZARD=USER_HAZ_COMP[[#This Row],[Threat/Hazard]], IF(RESULTS!$K$24=\"Yes\", 14, 0),HAZ_COMP[[#This Row],[Water]])","v":0},{"$f":"IF(HAZARD=USER_HAZ_COMP[[#This Row],[Threat/Hazard]], IF(RESULTS!$K$25=\"Yes\", 14, 0),HAZ_COMP[[#This Row],[Data and information management]])","v":48},{"$f":"IF(HAZARD=USER_HAZ_COMP[[#This Row],[Threat/Hazard]], IF(RESULTS!$K$26=\"Yes\", 14, 0),HAZ_COMP[[#This Row],[Staffing]])","v":48},{"$f":"IF(HAZARD=USER_HAZ_COMP[[#This Row],[Threat/Hazard]], IF(RESULTS!$K$27=\"Yes\", 14, \"No\"),HAZ_COMP[[#This Row],[Medical gases]])","v":0},{"$f":"IF(HAZARD=USER_HAZ_COMP[[#This Row],[Threat/Hazard]], IF(RESULTS!$J$43=\"Yes\", 14,0),HAZ_COMP[[#This Row],[Critical Supplies]])","v":0},{"$f":"IF(HAZARD=USER_HAZ_COMP[[#This Row],[Threat/Hazard]], RESULTS!$K$43, HAZ_COMP[[#This Row],[Regional/Internal]])","v":"Regional"}]
[13,"Drought",{"$f":"IF(HAZARD=USER_HAZ_COMP[[#This Row],[Threat/Hazard]], IF(RESULTS!$K$23=\"Yes\", 14, \"0\"), HAZ_COMP[[#This Row],[Power]])","v":0},{"$f":"IF(HAZARD=USER_HAZ_COMP[[#This Row],[Threat/Hazard]], IF(RESULTS!$K$24=\"Yes\", 14, 0),HAZ_COMP[[#This Row],[Water]])","v":48},{"$f":"IF(HAZARD=USER_HAZ_COMP[[#This Row],[Threat/Hazard]], IF(RESULTS!$K$25=\"Yes\", 14, 0),HAZ_COMP[[#This Row],[Data and information management]])","v":0},{"$f":"IF(HAZARD=USER_HAZ_COMP[[#This Row],[Threat/Hazard]], IF(RESULTS!$K$26=\"Yes\", 14, 0),HAZ_COMP[[#This Row],[Staffing]])","v":48},{"$f":"IF(HAZARD=USER_HAZ_COMP[[#This Row],[Threat/Hazard]], IF(RESULTS!$K$27=\"Yes\", 14, \"No\"),HAZ_COMP[[#This Row],[Medical gases]])","v":48},{"$f":"IF(HAZARD=USER_HAZ_COMP[[#This Row],[Threat/Hazard]], IF(RESULTS!$J$43=\"Yes\", 14,0),HAZ_COMP[[#This Row],[Critical Supplies]])","v":0},{"$f":"IF(HAZARD=USER_HAZ_COMP[[#This Row],[Threat/Hazard]], RESULTS!$K$43, HAZ_COMP[[#This Row],[Regional/Internal]])","v":"Regional"}]
[14,"Flash Flood",{"$f":"IF(HAZARD=USER_HAZ_COMP[[#This Row],[Threat/Hazard]], IF(RESULTS!$K$23=\"Yes\", 14, \"0\"), HAZ_COMP[[#This Row],[Power]])","v":48},{"$f":"IF(HAZARD=USER_HAZ_COMP[[#This Row],[Threat/Hazard]], IF(RESULTS!$K$24=\"Yes\", 14, 0),HAZ_COMP[[#This Row],[Water]])","v":48},{"$f":"IF(HAZARD=USER_HAZ_COMP[[#This Row],[Threat/Hazard]], IF(RESULTS!$K$25=\"Yes\", 14, 0),HAZ_COMP[[#This Row],[Data and information management]])","v":0},{"$f":"IF(HAZARD=USER_HAZ_COMP[[#This Row],[Threat/Hazard]], IF(RESULTS!$K$26=\"Yes\", 14, 0),HAZ_COMP[[#This Row],[Staffing]])","v":48},{"$f":"IF(HAZARD=USER_HAZ_COMP[[#This Row],[Threat/Hazard]], IF(RESULTS!$K$27=\"Yes\", 14, \"No\"),HAZ_COMP[[#This Row],[Medical gases]])","v":0},{"$f":"IF(HAZARD=USER_HAZ_COMP[[#This Row],[Threat/Hazard]], IF(RESULTS!$J$43=\"Yes\", 14,0),HAZ_COMP[[#This Row],[Critical Supplies]])","v":0},{"$f":"IF(HAZARD=USER_HAZ_COMP[[#This Row],[Threat/Hazard]], RESULTS!$K$43, HAZ_COMP[[#This Row],[Regional/Internal]])","v":"Regional"}]
[15,"Flood",{"$f":"IF(HAZARD=USER_HAZ_COMP[[#This Row],[Threat/Hazard]], IF(RESULTS!$K$23=\"Yes\", 14, \"0\"), HAZ_COMP[[#This Row],[Power]])","v":48},{"$f":"IF(HAZARD=USER_HAZ_COMP[[#This Row],[Threat/Hazard]], IF(RESULTS!$K$24=\"Yes\", 14, 0),HAZ_COMP[[#This Row],[Water]])","v":48},{"$f":"IF(HAZARD=USER_HAZ_COMP[[#This Row],[Threat/Hazard]], IF(RESULTS!$K$25=\"Yes\", 14, 0),HAZ_COMP[[#This Row],[Data and information management]])","v":0},{"$f":"IF(HAZARD=USER_HAZ_COMP[[#This Row],[Threat/Hazard]], IF(RESULTS!$K$26=\"Yes\", 14, 0),HAZ_COMP[[#This Row],[Staffing]])","v":48},{"$f":"IF(HAZARD=USER_HAZ_COMP[[#This Row],[Threat/Hazard]], IF(RESULTS!$K$27=\"Yes\", 14, \"No\"),HAZ_COMP[[#This Row],[Medical gases]])","v":0},{"$f":"IF(HAZARD=USER_HAZ_COMP[[#This Row],[Threat/Hazard]], IF(RESULTS!$J$43=\"Yes\", 14,0),HAZ_COMP[[#This Row],[Critical Supplies]])","v":0},{"$f":"IF(HAZARD=USER_HAZ_COMP[[#This Row],[Threat/Hazard]], RESULTS!$K$43, HAZ_COMP[[#This Row],[Regional/Internal]])","v":"Regional"}]
[16,"Hail",{"$f":"IF(HAZARD=USER_HAZ_COMP[[#This Row],[Threat/Hazard]], IF(RESULTS!$K$23=\"Yes\", 14, \"0\"), HAZ_COMP[[#This Row],[Power]])","v":48},{"$f":"IF(HAZARD=USER_HAZ_COMP[[#This Row],[Threat/Hazard]], IF(RESULTS!$K$24=\"Yes\", 14, 0),HAZ_COMP[[#This Row],[Water]])","v":0},{"$f":"IF(HAZARD=USER_HAZ_COMP[[#This Row],[Threat/Hazard]], IF(RESULTS!$K$25=\"Yes\", 14, 0),HAZ_COMP[[#This Row],[Data and information management]])","v":0},{"$f":"IF(HAZARD=USER_HAZ_COMP[[#This Row],[Threat/Hazard]], IF(RESULTS!$K$26=\"Yes\", 14, 0),HAZ_COMP[[#This Row],[Staffing]])","v":48},{"$f":"IF(HAZARD=USER_HAZ_COMP[[#This Row],[Threat/Hazard]], IF(RESULTS!$K$27=\"Yes\", 14, \"No\"),HAZ_COMP[[#This Row],[Medical gases]])","v":0},{"$f":"IF(HAZARD=USER_HAZ_COMP[[#This Row],[Threat/Hazard]], IF(RESULTS!$J$43=\"Yes\", 14,0),HAZ_COMP[[#This Row],[Critical Supplies]])","v":0},{"$f":"IF(HAZARD=USER_HAZ_COMP[[#This Row],[Threat/Hazard]], RESULTS!$K$43, HAZ_COMP[[#This Row],[Regional/Internal]])","v":"Regional"}]
[17,"Ice Storm",{"$f":"IF(HAZARD=USER_HAZ_COMP[[#This Row],[Threat/Hazard]], IF(RESULTS!$K$23=\"Yes\", 14, \"0\"), HAZ_COMP[[#This Row],[Power]])","v":48},{"$f":"IF(HAZARD=USER_HAZ_COMP[[#This Row],[Threat/Hazard]], IF(RESULTS!$K$24=\"Yes\", 14, 0),HAZ_COMP[[#This Row],[Water]])","v":48},{"$f":"IF(HAZARD=USER_HAZ_COMP[[#This Row],[Threat/Hazard]], IF(RESULTS!$K$25=\"Yes\", 14, 0),HAZ_COMP[[#This Row],[Data and information management]])","v":48},{"$f":"IF(HAZARD=USER_HAZ_COMP[[#This Row],[Threat/Hazard]], IF(RESULTS!$K$26=\"Yes\", 14, 0),HAZ_COMP[[#This Row],[Staffing]])","v":48},{"$f":"IF(HAZARD=USER_HAZ_COMP[[#This Row],[Threat/Hazard]], IF(RESULTS!$K$27=\"Yes\", 14, \"No\"),HAZ_COMP[[#This Row],[Medical gases]])","v":0},{"$f":"IF(HAZARD=USER_HAZ_COMP[[#This Row],[Threat/Hazard]], IF(RESULTS!$J$43=\"Yes\", 14,0),HAZ_COMP[[#This Row],[Critical Supplies]])","v":0},{"$f":"IF(HAZARD=USER_HAZ_COMP[[#This Row],[Threat/Hazard]], RESULTS!$K$43, HAZ_COMP[[#This Row],[Regional/Internal]])","v":"Regional"}]
[18,"Snow Fall/Blizzard",{"$f":"IF(HAZARD=USER_HAZ_COMP[[#This Row],[Threat/Hazard]], IF(RESULTS!$K$23=\"Yes\", 14, \"0\"), HAZ_COMP[[#This Row],[Power]])","v":48},{"$f":"IF(HAZARD=USER_HAZ_COMP[[#This Row],[Threat/Hazard]], IF(RESULTS!$K$24=\"Yes\", 14, 0),HAZ_COMP[[#This Row],[Water]])","v":48},{"$f":"IF(HAZARD=USER_HAZ_COMP[[#This Row],[Threat/Hazard]], IF(RESULTS!$K$25=\"Yes\", 14, 0),HAZ_COMP[[#This Row],[Data and information management]])","v":48},{"$f":"IF(HAZARD=USER_HAZ_COMP[[#This Row],[Threat/Hazard]], IF(RESULTS!$K$26=\"Yes\", 14, 0),HAZ_COMP[[#This Row],[Staffing]])","v":48},{"$f":"IF(HAZARD=USER_HAZ_COMP[[#This Row],[Threat/Hazard]], IF(RESULTS!$K$27=\"Yes\", 14, \"No\"),HAZ_COMP[[#This Row],[Medical gases]])","v":0},{"$f":"IF(HAZARD=USER_HAZ_COMP[[#This Row],[Threat/Hazard]], IF(RESULTS!$J$43=\"Yes\", 14,0),HAZ_COMP[[#This Row],[Critical Supplies]])","v":0},{"$f":"IF(HAZARD=USER_HAZ_COMP[[#This Row],[Threat/Hazard]], RESULTS!$K$43, HAZ_COMP[[#This Row],[Regional/Internal]])","v":"Regional"}]
[19,"Storm Surge",{"$f":"IF(HAZARD=USER_HAZ_COMP[[#This Row],[Threat/Hazard]], IF(RESULTS!$K$23=\"Yes\", 14, \"0\"), HAZ_COMP[[#This Row],[Power]])","v":48},{"$f":"IF(HAZARD=USER_HAZ_COMP[[#This Row],[Threat/Hazard]], IF(RESULTS!$K$24=\"Yes\", 14, 0),HAZ_COMP[[#This Row],[Water]])","v":48},{"$f":"IF(HAZARD=USER_HAZ_COMP[[#This Row],[Threat/Hazard]], IF(RESULTS!$K$25=\"Yes\", 14, 0),HAZ_COMP[[#This Row],[Data and information management]])","v":0},{"$f":"IF(HAZARD=USER_HAZ_COMP[[#This Row],[Threat/Hazard]], IF(RESULTS!$K$26=\"Yes\", 14, 0),HAZ_COMP[[#This Row],[Staffing]])","v":48},{"$f":"IF(HAZARD=USER_HAZ_COMP[[#This Row],[Threat/Hazard]], IF(RESULTS!$K$27=\"Yes\", 14, \"No\"),HAZ_COMP[[#This Row],[Medical gases]])","v":0},{"$f":"IF(HAZARD=USER_HAZ_COMP[[#This Row],[Threat/Hazard]], IF(RESULTS!$J$43=\"Yes\", 14,0),HAZ_COMP[[#This Row],[Critical Supplies]])","v":0},{"$f":"IF(HAZARD=USER_HAZ_COMP[[#This Row],[Threat/Hazard]], RESULTS!$K$43, HAZ_COMP[[#This Row],[Regional/Internal]])","v":"Regional"}]
[20,"Tornado",{"$f":"IF(HAZARD=USER_HAZ_COMP[[#This Row],[Threat/Hazard]], IF(RESULTS!$K$23=\"Yes\", 14, \"0\"), HAZ_COMP[[#This Row],[Power]])","v":48},{"$f":"IF(HAZARD=USER_HAZ_COMP[[#This Row],[Threat/Hazard]], IF(RESULTS!$K$24=\"Yes\", 14, 0),HAZ_COMP[[#This Row],[Water]])","v":48},{"$f":"IF(HAZARD=USER_HAZ_COMP[[#This Row],[Threat/Hazard]], IF(RESULTS!$K$25=\"Yes\", 14, 0),HAZ_COMP[[#This Row],[Data and information management]])","v":48},{"$f":"IF(HAZARD=USER_HAZ_COMP[[#This Row],[Threat/Hazard]], IF(RESULTS!$K$26=\"Yes\", 14, 0),HAZ_COMP[[#This Row],[Staffing]])","v":48},{"$f":"IF(HAZARD=USER_HAZ_COMP[[#This Row],[Threat/Hazard]], IF(RESULTS!$K$27=\"Yes\", 14, \"No\"),HAZ_COMP[[#This Row],[Medical gases]])","v":0},{"$f":"IF(HAZARD=USER_HAZ_COMP[[#This Row],[Threat/Hazard]], IF(RESULTS!$J$43=\"Yes\", 14,0),HAZ_COMP[[#This Row],[Critical Supplies]])","v":0},{"$f":"IF(HAZARD=USER_HAZ_COMP[[#This Row],[Threat/Hazard]], RESULTS!$K$43, HAZ_COMP[[#This Row],[Regional/Internal]])","v":"Local"}]
[21,"Wildfire",{"$f":"IF(HAZARD=USER_HAZ_COMP[[#This Row],[Threat/Hazard]], IF(RESULTS!$K$23=\"Yes\", 14, \"0\"), HAZ_COMP[[#This Row],[Power]])","v":48},{"$f":"IF(HAZARD=USER_HAZ_COMP[[#This Row],[Threat/Hazard]], IF(RESULTS!$K$24=\"Yes\", 14, 0),HAZ_COMP[[#This Row],[Water]])","v":48},{"$f":"IF(HAZARD=USER_HAZ_COMP[[#This Row],[Threat/Hazard]], IF(RESULTS!$K$25=\"Yes\", 14, 0),HAZ_COMP[[#This Row],[Data and information management]])","v":0},{"$f":"IF(HAZARD=USER_HAZ_COMP[[#This Row],[Threat/Hazard]], IF(RESULTS!$K$26=\"Yes\", 14, 0),HAZ_COMP[[#This Row],[Staffing]])","v":48},{"$f":"IF(HAZARD=USER_HAZ_COMP[[#This Row],[Threat/Hazard]], IF(RESULTS!$K$27=\"Yes\", 14, \"No\"),HAZ_COMP[[#This Row],[Medical gases]])","v":0},{"$f":"IF(HAZARD=USER_HAZ_COMP[[#This Row],[Threat/Hazard]], IF(RESULTS!$J$43=\"Yes\", 14,0),HAZ_COMP[[#This Row],[Critical Supplies]])","v":0},{"$f":"IF(HAZARD=USER_HAZ_COMP[[#This Row],[Threat/Hazard]], RESULTS!$K$43, HAZ_COMP[[#This Row],[Regional/Internal]])","v":"Regional"}]
[22,"Extreme Heat",{"$f":"IF(HAZARD=USER_HAZ_COMP[[#This Row],[Threat/Hazard]], IF(RESULTS!$K$23=\"Yes\", 14, \"0\"), HAZ_COMP[[#This Row],[Power]])","v":48},{"$f":"IF(HAZARD=USER_HAZ_COMP[[#This Row],[Threat/Hazard]], IF(RESULTS!$K$24=\"Yes\", 14, 0),HAZ_COMP[[#This Row],[Water]])","v":48},{"$f":"IF(HAZARD=USER_HAZ_COMP[[#This Row],[Threat/Hazard]], IF(RESULTS!$K$25=\"Yes\", 14, 0),HAZ_COMP[[#This Row],[Data and information management]])","v":0},{"$f":"IF(HAZARD=USER_HAZ_COMP[[#This Row],[Threat/Hazard]], IF(RESULTS!$K$26=\"Yes\", 14, 0),HAZ_COMP[[#This Row],[Staffing]])","v":0},{"$f":"IF(HAZARD=USER_HAZ_COMP[[#This Row],[Threat/Hazard]], IF(RESULTS!$K$27=\"Yes\", 14, \"No\"),HAZ_COMP[[#This Row],[Medical gases]])","v":0},{"$f":"IF(HAZARD=USER_HAZ_COMP[[#This Row],[Threat/Hazard]], IF(RESULTS!$J$43=\"Yes\", 14,0),HAZ_COMP[[#This Row],[Critical Supplies]])","v":0},{"$f":"IF(HAZARD=USER_HAZ_COMP[[#This Row],[Threat/Hazard]], RESULTS!$K$43, HAZ_COMP[[#This Row],[Regional/Internal]])","v":"Regional"}]
[23,"Extreme Cold",{"$f":"IF(HAZARD=USER_HAZ_COMP[[#This Row],[Threat/Hazard]], IF(RESULTS!$K$23=\"Yes\", 14, \"0\"), HAZ_COMP[[#This Row],[Power]])","v":48},{"$f":"IF(HAZARD=USER_HAZ_COMP[[#This Row],[Threat/Hazard]], IF(RESULTS!$K$24=\"Yes\", 14, 0),HAZ_COMP[[#This Row],[Water]])","v":48},{"$f":"IF(HAZARD=USER_HAZ_COMP[[#This Row],[Threat/Hazard]], IF(RESULTS!$K$25=\"Yes\", 14, 0),HAZ_COMP[[#This Row],[Data and information management]])","v":0},{"$f":"IF(HAZARD=USER_HAZ_COMP[[#This Row],[Threat/Hazard]], IF(RESULTS!$K$26=\"Yes\", 14, 0),HAZ_COMP[[#This Row],[Staffing]])","v":0},{"$f":"IF(HAZARD=USER_HAZ_COMP[[#This Row],[Threat/Hazard]], IF(RESULTS!$K$27=\"Yes\", 14, \"No\"),HAZ_COMP[[#This Row],[Medical gases]])","v":0},{"$f":"IF(HAZARD=USER_HAZ_COMP[[#This Row],[Threat/Hazard]], IF(RESULTS!$J$43=\"Yes\", 14,0),HAZ_COMP[[#This Row],[Critical Supplies]])","v":0},{"$f":"IF(HAZARD=USER_HAZ_COMP[[#This Row],[Threat/Hazard]], RESULTS!$K$43, HAZ_COMP[[#This Row],[Regional/Internal]])","v":"Regional"}]
[24,"Hurricane and Tropical Storm",{"$f":"IF(HAZARD=USER_HAZ_COMP[[#This Row],[Threat/Hazard]], IF(RESULTS!$K$23=\"Yes\", 14, \"0\"), HAZ_COMP[[#This Row],[Power]])","v":48},{"$f":"IF(HAZARD=USER_HAZ_COMP[[#This Row],[Threat/Hazard]], IF(RESULTS!$K$24=\"Yes\", 14, 0),HAZ_COMP[[#This Row],[Water]])","v":48},{"$f":"IF(HAZARD=USER_HAZ_COMP[[#This Row],[Threat/Hazard]], IF(RESULTS!$K$25=\"Yes\", 14, 0),HAZ_COMP[[#This Row],[Data and information management]])","v":48},{"$f":"IF(HAZARD=USER_HAZ_COMP[[#This Row],[Threat/Hazard]], IF(RESULTS!$K$26=\"Yes\", 14, 0),HAZ_COMP[[#This Row],[Staffing]])","v":48},{"$f":"IF(HAZARD=USER_HAZ_COMP[[#This Row],[Threat/Hazard]], IF(RESULTS!$K$27=\"Yes\", 14, \"No\"),HAZ_COMP[[#This Row],[Medical gases]])","v":0},{"$f":"IF(HAZARD=USER_HAZ_COMP[[#This Row],[Threat/Hazard]], IF(RESULTS!$J$43=\"Yes\", 14,0),HAZ_COMP[[#This Row],[Critical Supplies]])","v":0},{"$f":"IF(HAZARD=USER_HAZ_COMP[[#This Row],[Threat/Hazard]], RESULTS!$K$43, HAZ_COMP[[#This Row],[Regional/Internal]])","v":"Regional"}]
[25,"Space Weather",{"$f":"IF(HAZARD=USER_HAZ_COMP[[#This Row],[Threat/Hazard]], IF(RESULTS!$K$23=\"Yes\", 14, \"0\"), HAZ_COMP[[#This Row],[Power]])","v":48},{"$f":"IF(HAZARD=USER_HAZ_COMP[[#This Row],[Threat/Hazard]], IF(RESULTS!$K$24=\"Yes\", 14, 0),HAZ_COMP[[#This Row],[Water]])","v":0},{"$f":"IF(HAZARD=USER_HAZ_COMP[[#This Row],[Threat/Hazard]], IF(RESULTS!$K$25=\"Yes\", 14, 0),HAZ_COMP[[#This Row],[Data and information management]])","v":48},{"$f":"IF(HAZARD=USER_HAZ_COMP[[#This Row],[Threat/Hazard]], IF(RESULTS!$K$26=\"Yes\", 14, 0),HAZ_COMP[[#This Row],[Staffing]])","v":0},{"$f":"IF(HAZARD=USER_HAZ_COMP[[#This Row],[Threat/Hazard]], IF(RESULTS!$K$27=\"Yes\", 14, \"No\"),HAZ_COMP[[#This Row],[Medical gases]])","v":0},{"$f":"IF(HAZARD=USER_HAZ_COMP[[#This Row],[Threat/Hazard]], IF(RESULTS!$J$43=\"Yes\", 14,0),HAZ_COMP[[#This Row],[Critical Supplies]])","v":0},{"$f":"IF(HAZARD=USER_HAZ_COMP[[#This Row],[Threat/Hazard]], RESULTS!$K$43, HAZ_COMP[[#This Row],[Regional/Internal]])","v":"Regional"}]
[26,"Thunderstorm (Lightning)",{"$f":"IF(HAZARD=USER_HAZ_COMP[[#This Row],[Threat/Hazard]], IF(RESULTS!$K$23=\"Yes\", 14, \"0\"), HAZ_COMP[[#This Row],[Power]])","v":48},{"$f":"IF(HAZARD=USER_HAZ_COMP[[#This Row],[Threat/Hazard]], IF(RESULTS!$K$24=\"Yes\", 14, 0),HAZ_COMP[[#This Row],[Water]])","v":0},{"$f":"IF(HAZARD=USER_HAZ_COMP[[#This Row],[Threat/Hazard]], IF(RESULTS!$K$25=\"Yes\", 14, 0),HAZ_COMP[[#This Row],[Data and information management]])","v":48},{"$f":"IF(HAZARD=USER_HAZ_COMP[[#This Row],[Threat/Hazard]], IF(RESULTS!$K$26=\"Yes\", 14, 0),HAZ_COMP[[#This Row],[Staffing]])","v":0},{"$f":"IF(HAZARD=USER_HAZ_COMP[[#This Row],[Threat/Hazard]], IF(RESULTS!$K$27=\"Yes\", 14, \"No\"),HAZ_COMP[[#This Row],[Medical gases]])","v":0},{"$f":"IF(HAZARD=USER_HAZ_COMP[[#This Row],[Threat/Hazard]], IF(RESULTS!$J$43=\"Yes\", 14,0),HAZ_COMP[[#This Row],[Critical Supplies]])","v":0},{"$f":"IF(HAZARD=USER_HAZ_COMP[[#This Row],[Threat/Hazard]], RESULTS!$K$43, HAZ_COMP[[#This Row],[Regional/Internal]])","v":"Local"}]
[27,"Annual Influenza Epidemic",{"$f":"IF(HAZARD=USER_HAZ_COMP[[#This Row],[Threat/Hazard]], IF(RESULTS!$K$23=\"Yes\", 14, \"0\"), HAZ_COMP[[#This Row],[Power]])","v":0},{"$f":"IF(HAZARD=USER_HAZ_COMP[[#This Row],[Threat/Hazard]], IF(RESULTS!$K$24=\"Yes\", 14, 0),HAZ_COMP[[#This Row],[Water]])","v":0},{"$f":"IF(HAZARD=USER_HAZ_COMP[[#This Row],[Threat/Hazard]], IF(RESULTS!$K$25=\"Yes\", 14, 0),HAZ_COMP[[#This Row],[Data and information management]])","v":0},{"$f":"IF(HAZARD=USER_HAZ_COMP[[#This Row],[Threat/Hazard]], IF(RESULTS!$K$26=\"Yes\", 14, 0),HAZ_COMP[[#This Row],[Staffing]])","v":48},{"$f":"IF(HAZARD=USER_HAZ_COMP[[#This Row],[Threat/Hazard]], IF(RESULTS!$K$27=\"Yes\", 14, \"No\"),HAZ_COMP[[#This Row],[Medical gases]])","v":0},{"$f":"IF(HAZARD=USER_HAZ_COMP[[#This Row],[Threat/Hazard]], IF(RESULTS!$J$43=\"Yes\", 14,0),HAZ_COMP[[#This Row],[Critical Supplies]])","v":0},{"$f":"IF(HAZARD=USER_HAZ_COMP[[#This Row],[Threat/Hazard]], RESULTS!$K$43, HAZ_COMP[[#This Row],[Regional/Internal]])","v":"Regional"}]
[28,"Aircraft Crash at Facility/Asset",{"$f":"IF(HAZARD=USER_HAZ_COMP[[#This Row],[Threat/Hazard]], IF(RESULTS!$K$23=\"Yes\", 14, \"0\"), HAZ_COMP[[#This Row],[Power]])","v":48},{"$f":"IF(HAZARD=USER_HAZ_COMP[[#This Row],[Threat/Hazard]], IF(RESULTS!$K$24=\"Yes\", 14, 0),HAZ_COMP[[#This Row],[Water]])","v":48},{"$f":"IF(HAZARD=USER_HAZ_COMP[[#This Row],[Threat/Hazard]], IF(RESULTS!$K$25=\"Yes\", 14, 0),HAZ_COMP[[#This Row],[Data and information management]])","v":0},{"$f":"IF(HAZARD=USER_HAZ_COMP[[#This Row],[Threat/Hazard]], IF(RESULTS!$K$26=\"Yes\", 14, 0),HAZ_COMP[[#This Row],[Staffing]])","v":48},{"$f":"IF(HAZARD=USER_HAZ_COMP[[#This Row],[Threat/Hazard]], IF(RESULTS!$K$27=\"Yes\", 14, \"No\"),HAZ_COMP[[#This Row],[Medical gases]])","v":0},{"$f":"IF(HAZARD=USER_HAZ_COMP[[#This Row],[Threat/Hazard]], IF(RESULTS!$J$43=\"Yes\", 14,0),HAZ_COMP[[#This Row],[Critical Supplies]])","v":0},{"$f":"IF(HAZARD=USER_HAZ_COMP[[#This Row],[Threat/Hazard]], RESULTS!$K$43, HAZ_COMP[[#This Row],[Regional/Internal]])","v":"Local"}]
[29,"External Chemical HAZMAT Exposure, Facilities",{"$f":"IF(HAZARD=USER_HAZ_COMP[[#This Row],[Threat/Hazard]], IF(RESULTS!$K$23=\"Yes\", 14, \"0\"), HAZ_COMP[[#This Row],[Power]])","v":0},{"$f":"IF(HAZARD=USER_HAZ_COMP[[#This Row],[Threat/Hazard]], IF(RESULTS!$K$24=\"Yes\", 14, 0),HAZ_COMP[[#This Row],[Water]])","v":48},{"$f":"IF(HAZARD=USER_HAZ_COMP[[#This Row],[Threat/Hazard]], IF(RESULTS!$K$25=\"Yes\", 14, 0),HAZ_COMP[[#This Row],[Data and information management]])","v":0},{"$f":"IF(HAZARD=USER_HAZ_COMP[[#This Row],[Threat/Hazard]], IF(RESULTS!$K$26=\"Yes\", 14, 0),HAZ_COMP[[#This Row],[Staffing]])","v":48},{"$f":"IF(HAZARD=USER_HAZ_COMP[[#This Row],[Threat/Hazard]], IF(RESULTS!$K$27=\"Yes\", 14, \"No\"),HAZ_COMP[[#This Row],[Medical gases]])","v":0},{"$f":"IF(HAZARD=USER_HAZ_COMP[[#This Row],[Threat/Hazard]], IF(RESULTS!$J$43=\"Yes\", 14,0),HAZ_COMP[[#This Row],[Critical Supplies]])","v":0},{"$f":"IF(HAZARD=USER_HAZ_COMP[[#This Row],[Threat/Hazard]], RESULTS!$K$43, HAZ_COMP[[#This Row],[Regional/Internal]])","v":"Regional"}]
[30,"External Chemical HAZMAT Exposure, Highway",{"$f":"IF(HAZARD=USER_HAZ_COMP[[#This Row],[Threat/Hazard]], IF(RESULTS!$K$23=\"Yes\", 14, \"0\"), HAZ_COMP[[#This Row],[Power]])","v":0},{"$f":"IF(HAZARD=USER_HAZ_COMP[[#This Row],[Threat/Hazard]], IF(RESULTS!$K$24=\"Yes\", 14, 0),HAZ_COMP[[#This Row],[Water]])","v":48},{"$f":"IF(HAZARD=USER_HAZ_COMP[[#This Row],[Threat/Hazard]], IF(RESULTS!$K$25=\"Yes\", 14, 0),HAZ_COMP[[#This Row],[Data and information management]])","v":0},{"$f":"IF(HAZARD=USER_HAZ_COMP[[#This Row],[Threat/Hazard]], IF(RESULTS!$K$26=\"Yes\", 14, 0),HAZ_COMP[[#This Row],[Staffing]])","v":48},{"$f":"IF(HAZARD=USER_HAZ_COMP[[#This Row],[Threat/Hazard]], IF(RESULTS!$K$27=\"Yes\", 14, \"No\"),HAZ_COMP[[#This Row],[Medical gases]])","v":0},{"$f":"IF(HAZARD=USER_HAZ_COMP[[#This Row],[Threat/Hazard]], IF(RESULTS!$J$43=\"Yes\", 14,0),HAZ_COMP[[#This Row],[Critical Supplies]])","v":0},{"$f":"IF(HAZARD=USER_HAZ_COMP[[#This Row],[Threat/Hazard]], RESULTS!$K$43, HAZ_COMP[[#This Row],[Regional/Internal]])","v":"Regional"}]
[31,"External Chemical HAZMAT Exposure, Maritime",{"$f":"IF(HAZARD=USER_HAZ_COMP[[#This Row],[Threat/Hazard]], IF(RESULTS!$K$23=\"Yes\", 14, \"0\"), HAZ_COMP[[#This Row],[Power]])","v":0},{"$f":"IF(HAZARD=USER_HAZ_COMP[[#This Row],[Threat/Hazard]], IF(RESULTS!$K$24=\"Yes\", 14, 0),HAZ_COMP[[#This Row],[Water]])","v":48},{"$f":"IF(HAZARD=USER_HAZ_COMP[[#This Row],[Threat/Hazard]], IF(RESULTS!$K$25=\"Yes\", 14, 0),HAZ_COMP[[#This Row],[Data and information management]])","v":0},{"$f":"IF(HAZARD=USER_HAZ_COMP[[#This Row],[Threat/Hazard]], IF(RESULTS!$K$26=\"Yes\", 14, 0),HAZ_COMP[[#This Row],[Staffing]])","v":48},{"$f":"IF(HAZARD=USER_HAZ_COMP[[#This Row],[Threat/Hazard]], IF(RESULTS!$K$27=\"Yes\", 14, \"No\"),HAZ_COMP[[#This Row],[Medical gases]])","v":0},{"$f":"IF(HAZARD=USER_HAZ_COMP[[#This Row],[Threat/Hazard]], IF(RESULTS!$J$43=\"Yes\", 14,0),HAZ_COMP[[#This Row],[Critical Supplies]])","v":0},{"$f":"IF(HAZARD=USER_HAZ_COMP[[#This Row],[Threat/Hazard]], RESULTS!$K$43, HAZ_COMP[[#This Row],[Regional/Internal]])","v":"Regional"}]
[32,"External Chemical HAZMAT Exposure, Railway",{"$f":"IF(HAZARD=USER_HAZ_COMP[[#This Row],[Threat/Hazard]], IF(RESULTS!$K$23=\"Yes\", 14, \"0\"), HAZ_COMP[[#This Row],[Power]])","v":0},{"$f":"IF(HAZARD=USER_HAZ_COMP[[#This Row],[Threat/Hazard]], IF(RESULTS!$K$24=\"Yes\", 14, 0),HAZ_COMP[[#This Row],[Water]])","v":48},{"$f":"IF(HAZARD=USER_HAZ_COMP[[#This Row],[Threat/Hazard]], IF(RESULTS!$K$25=\"Yes\", 14, 0),HAZ_COMP[[#This Row],[Data and information management]])","v":0},{"$f":"IF(HAZARD=USER_HAZ_COMP[[#This Row],[Threat/Hazard]], IF(RESULTS!$K$26=\"Yes\", 14, 0),HAZ_COMP[[#This Row],[Staffing]])","v":0},{"$f":"IF(HAZARD=USER_HAZ_COMP[[#This Row],[Threat/Hazard]], IF(RESULTS!$K$27=\"Yes\", 14, \"No\"),HAZ_COMP[[#This Row],[Medical gases]])","v":0},{"$f":"IF(HAZARD=USER_HAZ_COMP[[#This Row],[Threat/Hazard]], IF(RESULTS!$J$43=\"Yes\", 14,0),HAZ_COMP[[#This Row],[Critical Supplies]])","v":0},{"$f":"IF(HAZARD=USER_HAZ_COMP[[#This Row],[Threat/Hazard]], RESULTS!$K$43, HAZ_COMP[[#This Row],[Regional/Internal]])","v":"Regional"}]
[33,"External Chemical HAZMAT Exposure, Pipeline",{"$f":"IF(HAZARD=USER_HAZ_COMP[[#This Row],[Threat/Hazard]], IF(RESULTS!$K$23=\"Yes\", 14, \"0\"), HAZ_COMP[[#This Row],[Power]])","v":0},{"$f":"IF(HAZARD=USER_HAZ_COMP[[#This Row],[Threat/Hazard]], IF(RESULTS!$K$24=\"Yes\", 14, 0),HAZ_COMP[[#This Row],[Water]])","v":48},{"$f":"IF(HAZARD=USER_HAZ_COMP[[#This Row],[Threat/Hazard]], IF(RESULTS!$K$25=\"Yes\", 14, 0),HAZ_COMP[[#This Row],[Data and information management]])","v":0},{"$f":"IF(HAZARD=USER_HAZ_COMP[[#This Row],[Threat/Hazard]], IF(RESULTS!$K$26=\"Yes\", 14, 0),HAZ_COMP[[#This Row],[Staffing]])","v":48},{"$f":"IF(HAZARD=USER_HAZ_COMP[[#This Row],[Threat/Hazard]], IF(RESULTS!$K$27=\"Yes\", 14, \"No\"),HAZ_COMP[[#This Row],[Medical gases]])","v":0},{"$f":"IF(HAZARD=USER_HAZ_COMP[[#This Row],[Threat/Hazard]], IF(RESULTS!$J$43=\"Yes\", 14,0),HAZ_COMP[[#This Row],[Critical Supplies]])","v":0},{"$f":"IF(HAZARD=USER_HAZ_COMP[[#This Row],[Threat/Hazard]], RESULTS!$K$43, HAZ_COMP[[#This Row],[Regional/Internal]])","v":"Regional"}]
[34,"Radiologic Exposure, External",{"$f":"IF(HAZARD=USER_HAZ_COMP[[#This Row],[Threat/Hazard]], IF(RESULTS!$K$23=\"Yes\", 14, \"0\"), HAZ_COMP[[#This Row],[Power]])","v":0},{"$f":"IF(HAZARD=USER_HAZ_COMP[[#This Row],[Threat/Hazard]], IF(RESULTS!$K$24=\"Yes\", 14, 0),HAZ_COMP[[#This Row],[Water]])","v":48},{"$f":"IF(HAZARD=USER_HAZ_COMP[[#This Row],[Threat/Hazard]], IF(RESULTS!$K$25=\"Yes\", 14, 0),HAZ_COMP[[#This Row],[Data and information management]])","v":0},{"$f":"IF(HAZARD=USER_HAZ_COMP[[#This Row],[Threat/Hazard]], IF(RESULTS!$K$26=\"Yes\", 14, 0),HAZ_COMP[[#This Row],[Staffing]])","v":48},{"$f":"IF(HAZARD=USER_HAZ_COMP[[#This Row],[Threat/Hazard]], IF(RESULTS!$K$27=\"Yes\", 14, \"No\"),HAZ_COMP[[#This Row],[Medical gases]])","v":0},{"$f":"IF(HAZARD=USER_HAZ_COMP[[#This Row],[Threat/Hazard]], IF(RESULTS!$J$43=\"Yes\", 14,0),HAZ_COMP[[#This Row],[Critical Supplies]])","v":0},{"$f":"IF(HAZARD=USER_HAZ_COMP[[#This Row],[Threat/Hazard]], RESULTS!$K$43, HAZ_COMP[[#This Row],[Regional/Internal]])","v":"Regional"}]
[35,"Electrical Failure",{"$f":"IF(HAZARD=USER_HAZ_COMP[[#This Row],[Threat/Hazard]], IF(RESULTS!$K$23=\"Yes\", 14, \"0\"), HAZ_COMP[[#This Row],[Power]])","v":48},{"$f":"IF(HAZARD=USER_HAZ_COMP[[#This Row],[Threat/Hazard]], IF(RESULTS!$K$24=\"Yes\", 14, 0),HAZ_COMP[[#This Row],[Water]])","v":0},{"$f":"IF(HAZARD=USER_HAZ_COMP[[#This Row],[Threat/Hazard]], IF(RESULTS!$K$25=\"Yes\", 14, 0),HAZ_COMP[[#This Row],[Data and information management]])","v":0},{"$f":"IF(HAZARD=USER_HAZ_COMP[[#This Row],[Threat/Hazard]], IF(RESULTS!$K$26=\"Yes\", 14, 0),HAZ_COMP[[#This Row],[Staffing]])","v":0},{"$f":"IF(HAZARD=USER_HAZ_COMP[[#This Row],[Threat/Hazard]], IF(RESULTS!$K$27=\"Yes\", 14, \"No\"),HAZ_COMP[[#This Row],[Medical gases]])","v":0},{"$f":"IF(HAZARD=USER_HAZ_COMP[[#This Row],[Threat/Hazard]], IF(RESULTS!$J$43=\"Yes\", 14,0),HAZ_COMP[[#This Row],[Critical Supplies]])","v":0},{"$f":"IF(HAZARD=USER_HAZ_COMP[[#This Row],[Threat/Hazard]], RESULTS!$K$43, HAZ_COMP[[#This Row],[Regional/Internal]])","v":"Local"}]
[36,"Generator Failure ",{"$f":"IF(HAZARD=USER_HAZ_COMP[[#This Row],[Threat/Hazard]], IF(RESULTS!$K$23=\"Yes\", 14, \"0\"), HAZ_COMP[[#This Row],[Power]])","v":48},{"$f":"IF(HAZARD=USER_HAZ_COMP[[#This Row],[Threat/Hazard]], IF(RESULTS!$K$24=\"Yes\", 14, 0),HAZ_COMP[[#This Row],[Water]])","v":0},{"$f":"IF(HAZARD=USER_HAZ_COMP[[#This Row],[Threat/Hazard]], IF(RESULTS!$K$25=\"Yes\", 14, 0),HAZ_COMP[[#This Row],[Data and information management]])","v":0},{"$f":"IF(HAZARD=USER_HAZ_COMP[[#This Row],[Threat/Hazard]], IF(RESULTS!$K$26=\"Yes\", 14, 0),HAZ_COMP[[#This Row],[Staffing]])","v":0},{"$f":"IF(HAZARD=USER_HAZ_COMP[[#This Row],[Threat/Hazard]], IF(RESULTS!$K$27=\"Yes\", 14, \"No\"),HAZ_COMP[[#This Row],[Medical gases]])","v":0},{"$f":"IF(HAZARD=USER_HAZ_COMP[[#This Row],[Threat/Hazard]], IF(RESULTS!$J$43=\"Yes\", 14,0),HAZ_COMP[[#This Row],[Critical Supplies]])","v":0},{"$f":"IF(HAZARD=USER_HAZ_COMP[[#This Row],[Threat/Hazard]], RESULTS!$K$43, HAZ_COMP[[#This Row],[Regional/Internal]])","v":"Local"}]
[37,"Transportation Failure",{"$f":"IF(HAZARD=USER_HAZ_COMP[[#This Row],[Threat/Hazard]], IF(RESULTS!$K$23=\"Yes\", 14, \"0\"), HAZ_COMP[[#This Row],[Power]])","v":0},{"$f":"IF(HAZARD=USER_HAZ_COMP[[#This Row],[Threat/Hazard]], IF(RESULTS!$K$24=\"Yes\", 14, 0),HAZ_COMP[[#This Row],[Water]])","v":0},{"$f":"IF(HAZARD=USER_HAZ_COMP[[#This Row],[Threat/Hazard]], IF(RESULTS!$K$25=\"Yes\", 14, 0),HAZ_COMP[[#This Row],[Data and information management]])","v":0},{"$f":"IF(HAZARD=USER_HAZ_COMP[[#This Row],[Threat/Hazard]], IF(RESULTS!$K$26=\"Yes\", 14, 0),HAZ_COMP[[#This Row],[Staffing]])","v":48},{"$f":"IF(HAZARD=USER_HAZ_COMP[[#This Row],[Threat/Hazard]], IF(RESULTS!$K$27=\"Yes\", 14, \"No\"),HAZ_COMP[[#This Row],[Medical gases]])","v":0},{"$f":"IF(HAZARD=USER_HAZ_COMP[[#This Row],[Threat/Hazard]], IF(RESULTS!$J$43=\"Yes\", 14,0),HAZ_COMP[[#This Row],[Critical Supplies]])","v":0},{"$f":"IF(HAZARD=USER_HAZ_COMP[[#This Row],[Threat/Hazard]], RESULTS!$K$43, HAZ_COMP[[#This Row],[Regional/Internal]])","v":"Local"}]
[38,"Fuel Shortage",{"$f":"IF(HAZARD=USER_HAZ_COMP[[#This Row],[Threat/Hazard]], IF(RESULTS!$K$23=\"Yes\", 14, \"0\"), HAZ_COMP[[#This Row],[Power]])","v":48},{"$f":"IF(HAZARD=USER_HAZ_COMP[[#This Row],[Threat/Hazard]], IF(RESULTS!$K$24=\"Yes\", 14, 0),HAZ_COMP[[#This Row],[Water]])","v":0},{"$f":"IF(HAZARD=USER_HAZ_COMP[[#This Row],[Threat/Hazard]], IF(RESULTS!$K$25=\"Yes\", 14, 0),HAZ_COMP[[#This Row],[Data and information management]])","v":0},{"$f":"IF(HAZARD=USER_HAZ_COMP[[#This Row],[Threat/Hazard]], IF(RESULTS!$K$26=\"Yes\", 14, 0),HAZ_COMP[[#This Row],[Staffing]])","v":0},{"$f":"IF(HAZARD=USER_HAZ_COMP[[#This Row],[Threat/Hazard]], IF(RESULTS!$K$27=\"Yes\", 14, \"No\"),HAZ_COMP[[#This Row],[Medical gases]])","v":48},{"$f":"IF(HAZARD=USER_HAZ_COMP[[#This Row],[Threat/Hazard]], IF(RESULTS!$J$43=\"Yes\", 14,0),HAZ_COMP[[#This Row],[Critical Supplies]])","v":0},{"$f":"IF(HAZARD=USER_HAZ_COMP[[#This Row],[Threat/Hazard]], RESULTS!$K$43, HAZ_COMP[[#This Row],[Regional/Internal]])","v":"Local"}]
[39,"Natural Gas Failure",{"$f":"IF(HAZARD=USER_HAZ_COMP[[#This Row],[Threat/Hazard]], IF(RESULTS!$K$23=\"Yes\", 14, \"0\"), HAZ_COMP[[#This Row],[Power]])","v":0},{"$f":"IF(HAZARD=USER_HAZ_COMP[[#This Row],[Threat/Hazard]], IF(RESULTS!$K$24=\"Yes\", 14, 0),HAZ_COMP[[#This Row],[Water]])","v":0},{"$f":"IF(HAZARD=USER_HAZ_COMP[[#This Row],[Threat/Hazard]], IF(RESULTS!$K$25=\"Yes\", 14, 0),HAZ_COMP[[#This Row],[Data and information management]])","v":0},{"$f":"IF(HAZARD=USER_HAZ_COMP[[#This Row],[Threat/Hazard]], IF(RESULTS!$K$26=\"Yes\", 14, 0),HAZ_COMP[[#This Row],[Staffing]])","v":0},{"$f":"IF(HAZARD=USER_HAZ_COMP[[#This Row],[Threat/Hazard]], IF(RESULTS!$K$27=\"Yes\", 14, \"No\"),HAZ_COMP[[#This Row],[Medical gases]])","v":48},{"$f":"IF(HAZARD=USER_HAZ_COMP[[#This Row],[Threat/Hazard]], IF(RESULTS!$J$43=\"Yes\", 14,0),HAZ_COMP[[#This Row],[Critical Supplies]])","v":0},{"$f":"IF(HAZARD=USER_HAZ_COMP[[#This Row],[Threat/Hazard]], RESULTS!$K$43, HAZ_COMP[[#This Row],[Regional/Internal]])","v":"Local"}]
[40,"Water Failure",{"$f":"IF(HAZARD=USER_HAZ_COMP[[#This Row],[Threat/Hazard]], IF(RESULTS!$K$23=\"Yes\", 14, \"0\"), HAZ_COMP[[#This Row],[Power]])","v":0},{"$f":"IF(HAZARD=USER_HAZ_COMP[[#This Row],[Threat/Hazard]], IF(RESULTS!$K$24=\"Yes\", 14, 0),HAZ_COMP[[#This Row],[Water]])","v":48},{"$f":"IF(HAZARD=USER_HAZ_COMP[[#This Row],[Threat/Hazard]], IF(RESULTS!$K$25=\"Yes\", 14, 0),HAZ_COMP[[#This Row],[Data and information management]])","v":0},{"$f":"IF(HAZARD=USER_HAZ_COMP[[#This Row],[Threat/Hazard]], IF(RESULTS!$K$26=\"Yes\", 14, 0),HAZ_COMP[[#This Row],[Staffing]])","v":0},{"$f":"IF(HAZARD=USER_HAZ_COMP[[#This Row],[Threat/Hazard]], IF(RESULTS!$K$27=\"Yes\", 14, \"No\"),HAZ_COMP[[#This Row],[Medical gases]])","v":0},{"$f":"IF(HAZARD=USER_HAZ_COMP[[#This Row],[Threat/Hazard]], IF(RESULTS!$J$43=\"Yes\", 14,0),HAZ_COMP[[#This Row],[Critical Supplies]])","v":0},{"$f":"IF(HAZARD=USER_HAZ_COMP[[#This Row],[Threat/Hazard]], RESULTS!$K$43, HAZ_COMP[[#This Row],[Regional/Internal]])","v":"Local"}]
[41,"Sewer Failure",{"$f":"IF(HAZARD=USER_HAZ_COMP[[#This Row],[Threat/Hazard]], IF(RESULTS!$K$23=\"Yes\", 14, \"0\"), HAZ_COMP[[#This Row],[Power]])","v":0},{"$f":"IF(HAZARD=USER_HAZ_COMP[[#This Row],[Threat/Hazard]], IF(RESULTS!$K$24=\"Yes\", 14, 0),HAZ_COMP[[#This Row],[Water]])","v":0},{"$f":"IF(HAZARD=USER_HAZ_COMP[[#This Row],[Threat/Hazard]], IF(RESULTS!$K$25=\"Yes\", 14, 0),HAZ_COMP[[#This Row],[Data and information management]])","v":0},{"$f":"IF(HAZARD=USER_HAZ_COMP[[#This Row],[Threat/Hazard]], IF(RESULTS!$K$26=\"Yes\", 14, 0),HAZ_COMP[[#This Row],[Staffing]])","v":0},{"$f":"IF(HAZARD=USER_HAZ_COMP[[#This Row],[Threat/Hazard]], IF(RESULTS!$K$27=\"Yes\", 14, \"No\"),HAZ_COMP[[#This Row],[Medical gases]])","v":0},{"$f":"IF(HAZARD=USER_HAZ_COMP[[#This Row],[Threat/Hazard]], IF(RESULTS!$J$43=\"Yes\", 14,0),HAZ_COMP[[#This Row],[Critical Supplies]])","v":0},{"$f":"IF(HAZARD=USER_HAZ_COMP[[#This Row],[Threat/Hazard]], RESULTS!$K$43, HAZ_COMP[[#This Row],[Regional/Internal]])","v":"Local"}]
[42,"Steam Failure",{"$f":"IF(HAZARD=USER_HAZ_COMP[[#This Row],[Threat/Hazard]], IF(RESULTS!$K$23=\"Yes\", 14, \"0\"), HAZ_COMP[[#This Row],[Power]])","v":0},{"$f":"IF(HAZARD=USER_HAZ_COMP[[#This Row],[Threat/Hazard]], IF(RESULTS!$K$24=\"Yes\", 14, 0),HAZ_COMP[[#This Row],[Water]])","v":0},{"$f":"IF(HAZARD=USER_HAZ_COMP[[#This Row],[Threat/Hazard]], IF(RESULTS!$K$25=\"Yes\", 14, 0),HAZ_COMP[[#This Row],[Data and information management]])","v":0},{"$f":"IF(HAZARD=USER_HAZ_COMP[[#This Row],[Threat/Hazard]], IF(RESULTS!$K$26=\"Yes\", 14, 0),HAZ_COMP[[#This Row],[Staffing]])","v":0},{"$f":"IF(HAZARD=USER_HAZ_COMP[[#This Row],[Threat/Hazard]], IF(RESULTS!$K$27=\"Yes\", 14, \"No\"),HAZ_COMP[[#This Row],[Medical gases]])","v":48},{"$f":"IF(HAZARD=USER_HAZ_COMP[[#This Row],[Threat/Hazard]], IF(RESULTS!$J$43=\"Yes\", 14,0),HAZ_COMP[[#This Row],[Critical Supplies]])","v":0},{"$f":"IF(HAZARD=USER_HAZ_COMP[[#This Row],[Threat/Hazard]], RESULTS!$K$43, HAZ_COMP[[#This Row],[Regional/Internal]])","v":"Local"}]
[43,"Fire Alarm Failure",{"$f":"IF(HAZARD=USER_HAZ_COMP[[#This Row],[Threat/Hazard]], IF(RESULTS!$K$23=\"Yes\", 14, \"0\"), HAZ_COMP[[#This Row],[Power]])","v":0},{"$f":"IF(HAZARD=USER_HAZ_COMP[[#This Row],[Threat/Hazard]], IF(RESULTS!$K$24=\"Yes\", 14, 0),HAZ_COMP[[#This Row],[Water]])","v":0},{"$f":"IF(HAZARD=USER_HAZ_COMP[[#This Row],[Threat/Hazard]], IF(RESULTS!$K$25=\"Yes\", 14, 0),HAZ_COMP[[#This Row],[Data and information management]])","v":0},{"$f":"IF(HAZARD=USER_HAZ_COMP[[#This Row],[Threat/Hazard]], IF(RESULTS!$K$26=\"Yes\", 14, 0),HAZ_COMP[[#This Row],[Staffing]])","v":0},{"$f":"IF(HAZARD=USER_HAZ_COMP[[#This Row],[Threat/Hazard]], IF(RESULTS!$K$27=\"Yes\", 14, \"No\"),HAZ_COMP[[#This Row],[Medical gases]])","v":0},{"$f":"IF(HAZARD=USER_HAZ_COMP[[#This Row],[Threat/Hazard]], IF(RESULTS!$J$43=\"Yes\", 14,0),HAZ_COMP[[#This Row],[Critical Supplies]])","v":0},{"$f":"IF(HAZARD=USER_HAZ_COMP[[#This Row],[Threat/Hazard]], RESULTS!$K$43, HAZ_COMP[[#This Row],[Regional/Internal]])","v":"Local"}]
[44,"Communications Failure",{"$f":"IF(HAZARD=USER_HAZ_COMP[[#This Row],[Threat/Hazard]], IF(RESULTS!$K$23=\"Yes\", 14, \"0\"), HAZ_COMP[[#This Row],[Power]])","v":0},{"$f":"IF(HAZARD=USER_HAZ_COMP[[#This Row],[Threat/Hazard]], IF(RESULTS!$K$24=\"Yes\", 14, 0),HAZ_COMP[[#This Row],[Water]])","v":0},{"$f":"IF(HAZARD=USER_HAZ_COMP[[#This Row],[Threat/Hazard]], IF(RESULTS!$K$25=\"Yes\", 14, 0),HAZ_COMP[[#This Row],[Data and information management]])","v":0},{"$f":"IF(HAZARD=USER_HAZ_COMP[[#This Row],[Threat/Hazard]], IF(RESULTS!$K$26=\"Yes\", 14, 0),HAZ_COMP[[#This Row],[Staffing]])","v":0},{"$f":"IF(HAZARD=USER_HAZ_COMP[[#This Row],[Threat/Hazard]], IF(RESULTS!$K$27=\"Yes\", 14, \"No\"),HAZ_COMP[[#This Row],[Medical gases]])","v":0},{"$f":"IF(HAZARD=USER_HAZ_COMP[[#This Row],[Threat/Hazard]], IF(RESULTS!$J$43=\"Yes\", 14,0),HAZ_COMP[[#This Row],[Critical Supplies]])","v":0},{"$f":"IF(HAZARD=USER_HAZ_COMP[[#This Row],[Threat/Hazard]], RESULTS!$K$43, HAZ_COMP[[#This Row],[Regional/Internal]])","v":"Local"}]
[45,"Medical Gas Failure",{"$f":"IF(HAZARD=USER_HAZ_COMP[[#This Row],[Threat/Hazard]], IF(RESULTS!$K$23=\"Yes\", 14, \"0\"), HAZ_COMP[[#This Row],[Power]])","v":0},{"$f":"IF(HAZARD=USER_HAZ_COMP[[#This Row],[Threat/Hazard]], IF(RESULTS!$K$24=\"Yes\", 14, 0),HAZ_COMP[[#This Row],[Water]])","v":0},{"$f":"IF(HAZARD=USER_HAZ_COMP[[#This Row],[Threat/Hazard]], IF(RESULTS!$K$25=\"Yes\", 14, 0),HAZ_COMP[[#This Row],[Data and information management]])","v":0},{"$f":"IF(HAZARD=USER_HAZ_COMP[[#This Row],[Threat/Hazard]], IF(RESULTS!$K$26=\"Yes\", 14, 0),HAZ_COMP[[#This Row],[Staffing]])","v":0},{"$f":"IF(HAZARD=USER_HAZ_COMP[[#This Row],[Threat/Hazard]], IF(RESULTS!$K$27=\"Yes\", 14, \"No\"),HAZ_COMP[[#This Row],[Medical gases]])","v":0},{"$f":"IF(HAZARD=USER_HAZ_COMP[[#This Row],[Threat/Hazard]], IF(RESULTS!$J$43=\"Yes\", 14,0),HAZ_COMP[[#This Row],[Critical Supplies]])","v":48},{"$f":"IF(HAZARD=USER_HAZ_COMP[[#This Row],[Threat/Hazard]], RESULTS!$K$43, HAZ_COMP[[#This Row],[Regional/Internal]])","v":"Local"}]
[46,"Medical Vacuum Failure",{"$f":"IF(HAZARD=USER_HAZ_COMP[[#This Row],[Threat/Hazard]], IF(RESULTS!$K$23=\"Yes\", 14, \"0\"), HAZ_COMP[[#This Row],[Power]])","v":0},{"$f":"IF(HAZARD=USER_HAZ_COMP[[#This Row],[Threat/Hazard]], IF(RESULTS!$K$24=\"Yes\", 14, 0),HAZ_COMP[[#This Row],[Water]])","v":0},{"$f":"IF(HAZARD=USER_HAZ_COMP[[#This Row],[Threat/Hazard]], IF(RESULTS!$K$25=\"Yes\", 14, 0),HAZ_COMP[[#This Row],[Data and information management]])","v":0},{"$f":"IF(HAZARD=USER_HAZ_COMP[[#This Row],[Threat/Hazard]], IF(RESULTS!$K$26=\"Yes\", 14, 0),HAZ_COMP[[#This Row],[Staffing]])","v":0},{"$f":"IF(HAZARD=USER_HAZ_COMP[[#This Row],[Threat/Hazard]], IF(RESULTS!$K$27=\"Yes\", 14, \"No\"),HAZ_COMP[[#This Row],[Medical gases]])","v":0},{"$f":"IF(HAZARD=USER_HAZ_COMP[[#This Row],[Threat/Hazard]], IF(RESULTS!$J$43=\"Yes\", 14,0),HAZ_COMP[[#This Row],[Critical Supplies]])","v":48},{"$f":"IF(HAZARD=USER_HAZ_COMP[[#This Row],[Threat/Hazard]], RESULTS!$K$43, HAZ_COMP[[#This Row],[Regional/Internal]])","v":"Local"}]
[47,"HVAC Failure",{"$f":"IF(HAZARD=USER_HAZ_COMP[[#This Row],[Threat/Hazard]], IF(RESULTS!$K$23=\"Yes\", 14, \"0\"), HAZ_COMP[[#This Row],[Power]])","v":0},{"$f":"IF(HAZARD=USER_HAZ_COMP[[#This Row],[Threat/Hazard]], IF(RESULTS!$K$24=\"Yes\", 14, 0),HAZ_COMP[[#This Row],[Water]])","v":0},{"$f":"IF(HAZARD=USER_HAZ_COMP[[#This Row],[Threat/Hazard]], IF(RESULTS!$K$25=\"Yes\", 14, 0),HAZ_COMP[[#This Row],[Data and information management]])","v":0},{"$f":"IF(HAZARD=USER_HAZ_COMP[[#This Row],[Threat/Hazard]], IF(RESULTS!$K$26=\"Yes\", 14, 0),HAZ_COMP[[#This Row],[Staffing]])","v":0},{"$f":"IF(HAZARD=USER_HAZ_COMP[[#This Row],[Threat/Hazard]], IF(RESULTS!$K$27=\"Yes\", 14, \"No\"),HAZ_COMP[[#This Row],[Medical gases]])","v":0},{"$f":"IF(HAZARD=USER_HAZ_COMP[[#This Row],[Threat/Hazard]], IF(RESULTS!$J$43=\"Yes\", 14,0),HAZ_COMP[[#This Row],[Critical Supplies]])","v":0},{"$f":"IF(HAZARD=USER_HAZ_COMP[[#This Row],[Threat/Hazard]], RESULTS!$K$43, HAZ_COMP[[#This Row],[Regional/Internal]])","v":"Local"}]
[48,"Information Systems Failure",{"$f":"IF(HAZARD=USER_HAZ_COMP[[#This Row],[Threat/Hazard]], IF(RESULTS!$K$23=\"Yes\", 14, \"0\"), HAZ_COMP[[#This Row],[Power]])","v":0},{"$f":"IF(HAZARD=USER_HAZ_COMP[[#This Row],[Threat/Hazard]], IF(RESULTS!$K$24=\"Yes\", 14, 0),HAZ_COMP[[#This Row],[Water]])","v":0},{"$f":"IF(HAZARD=USER_HAZ_COMP[[#This Row],[Threat/Hazard]], IF(RESULTS!$K$25=\"Yes\", 14, 0),HAZ_COMP[[#This Row],[Data and information management]])","v":48},{"$f":"IF(HAZARD=USER_HAZ_COMP[[#This Row],[Threat/Hazard]], IF(RESULTS!$K$26=\"Yes\", 14, 0),HAZ_COMP[[#This Row],[Staffing]])","v":0},{"$f":"IF(HAZARD=USER_HAZ_COMP[[#This Row],[Threat/Hazard]], IF(RESULTS!$K$27=\"Yes\", 14, \"No\"),HAZ_COMP[[#This Row],[Medical gases]])","v":0},{"$f":"IF(HAZARD=USER_HAZ_COMP[[#This Row],[Threat/Hazard]], IF(RESULTS!$J$43=\"Yes\", 14,0),HAZ_COMP[[#This Row],[Critical Supplies]])","v":0},{"$f":"IF(HAZARD=USER_HAZ_COMP[[#This Row],[Threat/Hazard]], RESULTS!$K$43, HAZ_COMP[[#This Row],[Regional/Internal]])","v":"Local"}]
[49,"Fire, Internal",{"$f":"IF(HAZARD=USER_HAZ_COMP[[#This Row],[Threat/Hazard]], IF(RESULTS!$K$23=\"Yes\", 14, \"0\"), HAZ_COMP[[#This Row],[Power]])","v":48},{"$f":"IF(HAZARD=USER_HAZ_COMP[[#This Row],[Threat/Hazard]], IF(RESULTS!$K$24=\"Yes\", 14, 0),HAZ_COMP[[#This Row],[Water]])","v":0},{"$f":"IF(HAZARD=USER_HAZ_COMP[[#This Row],[Threat/Hazard]], IF(RESULTS!$K$25=\"Yes\", 14, 0),HAZ_COMP[[#This Row],[Data and information management]])","v":48},{"$f":"IF(HAZARD=USER_HAZ_COMP[[#This Row],[Threat/Hazard]], IF(RESULTS!$K$26=\"Yes\", 14, 0),HAZ_COMP[[#This Row],[Staffing]])","v":0},{"$f":"IF(HAZARD=USER_HAZ_COMP[[#This Row],[Threat/Hazard]], IF(RESULTS!$K$27=\"Yes\", 14, \"No\"),HAZ_COMP[[#This Row],[Medical gases]])","v":0},{"$f":"IF(HAZARD=USER_HAZ_COMP[[#This Row],[Threat/Hazard]], IF(RESULTS!$J$43=\"Yes\", 14,0),HAZ_COMP[[#This Row],[Critical Supplies]])","v":0},{"$f":"IF(HAZARD=USER_HAZ_COMP[[#This Row],[Threat/Hazard]], RESULTS!$K$43, HAZ_COMP[[#This Row],[Regional/Internal]])","v":"Local"}]
[50,"Flood, Internal",{"$f":"IF(HAZARD=USER_HAZ_COMP[[#This Row],[Threat/Hazard]], IF(RESULTS!$K$23=\"Yes\", 14, \"0\"), HAZ_COMP[[#This Row],[Power]])","v":0},{"$f":"IF(HAZARD=USER_HAZ_COMP[[#This Row],[Threat/Hazard]], IF(RESULTS!$K$24=\"Yes\", 14, 0),HAZ_COMP[[#This Row],[Water]])","v":0},{"$f":"IF(HAZARD=USER_HAZ_COMP[[#This Row],[Threat/Hazard]], IF(RESULTS!$K$25=\"Yes\", 14, 0),HAZ_COMP[[#This Row],[Data and information management]])","v":0},{"$f":"IF(HAZARD=USER_HAZ_COMP[[#This Row],[Threat/Hazard]], IF(RESULTS!$K$26=\"Yes\", 14, 0),HAZ_COMP[[#This Row],[Staffing]])","v":0},{"$f":"IF(HAZARD=USER_HAZ_COMP[[#This Row],[Threat/Hazard]], IF(RESULTS!$K$27=\"Yes\", 14, \"No\"),HAZ_COMP[[#This Row],[Medical gases]])","v":0},{"$f":"IF(HAZARD=USER_HAZ_COMP[[#This Row],[Threat/Hazard]], IF(RESULTS!$J$43=\"Yes\", 14,0),HAZ_COMP[[#This Row],[Critical Supplies]])","v":0},{"$f":"IF(HAZARD=USER_HAZ_COMP[[#This Row],[Threat/Hazard]], RESULTS!$K$43, HAZ_COMP[[#This Row],[Regional/Internal]])","v":"Local"}]
[51,"Supply Shortage",{"$f":"IF(HAZARD=USER_HAZ_COMP[[#This Row],[Threat/Hazard]], IF(RESULTS!$K$23=\"Yes\", 14, \"0\"), HAZ_COMP[[#This Row],[Power]])","v":0},{"$f":"IF(HAZARD=USER_HAZ_COMP[[#This Row],[Threat/Hazard]], IF(RESULTS!$K$24=\"Yes\", 14, 0),HAZ_COMP[[#This Row],[Water]])","v":0},{"$f":"IF(HAZARD=USER_HAZ_COMP[[#This Row],[Threat/Hazard]], IF(RESULTS!$K$25=\"Yes\", 14, 0),HAZ_COMP[[#This Row],[Data and information management]])","v":0},{"$f":"IF(HAZARD=USER_HAZ_COMP[[#This Row],[Threat/Hazard]], IF(RESULTS!$K$26=\"Yes\", 14, 0),HAZ_COMP[[#This Row],[Staffing]])","v":0},{"$f":"IF(HAZARD=USER_HAZ_COMP[[#This Row],[Threat/Hazard]], IF(RESULTS!$K$27=\"Yes\", 14, \"No\"),HAZ_COMP[[#This Row],[Medical gases]])","v":0},{"$f":"IF(HAZARD=USER_HAZ_COMP[[#This Row],[Threat/Hazard]], IF(RESULTS!$J$43=\"Yes\", 14,0),HAZ_COMP[[#This Row],[Critical Supplies]])","v":48},{"$f":"IF(HAZARD=USER_HAZ_COMP[[#This Row],[Threat/Hazard]], RESULTS!$K$43, HAZ_COMP[[#This Row],[Regional/Internal]])","v":"Local"}]
[52,"Structural Damage",{"$f":"IF(HAZARD=USER_HAZ_COMP[[#This Row],[Threat/Hazard]], IF(RESULTS!$K$23=\"Yes\", 14, \"0\"), HAZ_COMP[[#This Row],[Power]])","v":48},{"$f":"IF(HAZARD=USER_HAZ_COMP[[#This Row],[Threat/Hazard]], IF(RESULTS!$K$24=\"Yes\", 14, 0),HAZ_COMP[[#This Row],[Water]])","v":48},{"$f":"IF(HAZARD=USER_HAZ_COMP[[#This Row],[Threat/Hazard]], IF(RESULTS!$K$25=\"Yes\", 14, 0),HAZ_COMP[[#This Row],[Data and information management]])","v":48},{"$f":"IF(HAZARD=USER_HAZ_COMP[[#This Row],[Threat/Hazard]], IF(RESULTS!$K$26=\"Yes\", 14, 0),HAZ_COMP[[#This Row],[Staffing]])","v":0},{"$f":"IF(HAZARD=USER_HAZ_COMP[[#This Row],[Threat/Hazard]], IF(RESULTS!$K$27=\"Yes\", 14, \"No\"),HAZ_COMP[[#This Row],[Medical gases]])","v":48},{"$f":"IF(HAZARD=USER_HAZ_COMP[[#This Row],[Threat/Hazard]], IF(RESULTS!$J$43=\"Yes\", 14,0),HAZ_COMP[[#This Row],[Critical Supplies]])","v":48},{"$f":"IF(HAZARD=USER_HAZ_COMP[[#This Row],[Threat/Hazard]], RESULTS!$K$43, HAZ_COMP[[#This Row],[Regional/Internal]])","v":"Local"}]
[53,"Heliport Accident",{"$f":"IF(HAZARD=USER_HAZ_COMP[[#This Row],[Threat/Hazard]], IF(RESULTS!$K$23=\"Yes\", 14, \"0\"), HAZ_COMP[[#This Row],[Power]])","v":0},{"$f":"IF(HAZARD=USER_HAZ_COMP[[#This Row],[Threat/Hazard]], IF(RESULTS!$K$24=\"Yes\", 14, 0),HAZ_COMP[[#This Row],[Water]])","v":0},{"$f":"IF(HAZARD=USER_HAZ_COMP[[#This Row],[Threat/Hazard]], IF(RESULTS!$K$25=\"Yes\", 14, 0),HAZ_COMP[[#This Row],[Data and information management]])","v":0},{"$f":"IF(HAZARD=USER_HAZ_COMP[[#This Row],[Threat/Hazard]], IF(RESULTS!$K$26=\"Yes\", 14, 0),HAZ_COMP[[#This Row],[Staffing]])","v":0},{"$f":"IF(HAZARD=USER_HAZ_COMP[[#This Row],[Threat/Hazard]], IF(RESULTS!$K$27=\"Yes\", 14, \"No\"),HAZ_COMP[[#This Row],[Medical gases]])","v":0},{"$f":"IF(HAZARD=USER_HAZ_COMP[[#This Row],[Threat/Hazard]], IF(RESULTS!$J$43=\"Yes\", 14,0),HAZ_COMP[[#This Row],[Critical Supplies]])","v":0},{"$f":"IF(HAZARD=USER_HAZ_COMP[[#This Row],[Threat/Hazard]], RESULTS!$K$43, HAZ_COMP[[#This Row],[Regional/Internal]])","v":"Local"}]
[54,"Dam Inundation",{"$f":"IF(HAZARD=USER_HAZ_COMP[[#This Row],[Threat/Hazard]], IF(RESULTS!$K$23=\"Yes\", 14, \"0\"), HAZ_COMP[[#This Row],[Power]])","v":48},{"$f":"IF(HAZARD=USER_HAZ_COMP[[#This Row],[Threat/Hazard]], IF(RESULTS!$K$24=\"Yes\", 14, 0),HAZ_COMP[[#This Row],[Water]])","v":48},{"$f":"IF(HAZARD=USER_HAZ_COMP[[#This Row],[Threat/Hazard]], IF(RESULTS!$K$25=\"Yes\", 14, 0),HAZ_COMP[[#This Row],[Data and information management]])","v":0},{"$f":"IF(HAZARD=USER_HAZ_COMP[[#This Row],[Threat/Hazard]], IF(RESULTS!$K$26=\"Yes\", 14, 0),HAZ_COMP[[#This Row],[Staffing]])","v":48},{"$f":"IF(HAZARD=USER_HAZ_COMP[[#This Row],[Threat/Hazard]], IF(RESULTS!$K$27=\"Yes\", 14, \"No\"),HAZ_COMP[[#This Row],[Medical gases]])","v":0},{"$f":"IF(HAZARD=USER_HAZ_COMP[[#This Row],[Threat/Hazard]], IF(RESULTS!$J$43=\"Yes\", 14,0),HAZ_COMP[[#This Row],[Critical Supplies]])","v":0},{"$f":"IF(HAZARD=USER_HAZ_COMP[[#This Row],[Threat/Hazard]], RESULTS!$K$43, HAZ_COMP[[#This Row],[Regional/Internal]])","v":"Local"}]
[55,"VIP Situation",{"$f":"IF(HAZARD=USER_HAZ_COMP[[#This Row],[Threat/Hazard]], IF(RESULTS!$K$23=\"Yes\", 14, \"0\"), HAZ_COMP[[#This Row],[Power]])","v":0},{"$f":"IF(HAZARD=USER_HAZ_COMP[[#This Row],[Threat/Hazard]], IF(RESULTS!$K$24=\"Yes\", 14, 0),HAZ_COMP[[#This Row],[Water]])","v":0},{"$f":"IF(HAZARD=USER_HAZ_COMP[[#This Row],[Threat/Hazard]], IF(RESULTS!$K$25=\"Yes\", 14, 0),HAZ_COMP[[#This Row],[Data and information management]])","v":0},{"$f":"IF(HAZARD=USER_HAZ_COMP[[#This Row],[Threat/Hazard]], IF(RESULTS!$K$26=\"Yes\", 14, 0),HAZ_COMP[[#This Row],[Staffing]])","v":0},{"$f":"IF(HAZARD=USER_HAZ_COMP[[#This Row],[Threat/Hazard]], IF(RESULTS!$K$27=\"Yes\", 14, \"No\"),HAZ_COMP[[#This Row],[Medical gases]])","v":0},{"$f":"IF(HAZARD=USER_HAZ_COMP[[#This Row],[Threat/Hazard]], IF(RESULTS!$J$43=\"Yes\", 14,0),HAZ_COMP[[#This Row],[Critical Supplies]])","v":0},{"$f":"IF(HAZARD=USER_HAZ_COMP[[#This Row],[Threat/Hazard]], RESULTS!$K$43, HAZ_COMP[[#This Row],[Regional/Internal]])","v":"Local"}]
[56,"Infant Abduction",{"$f":"IF(HAZARD=USER_HAZ_COMP[[#This Row],[Threat/Hazard]], IF(RESULTS!$K$23=\"Yes\", 14, \"0\"), HAZ_COMP[[#This Row],[Power]])","v":0},{"$f":"IF(HAZARD=USER_HAZ_COMP[[#This Row],[Threat/Hazard]], IF(RESULTS!$K$24=\"Yes\", 14, 0),HAZ_COMP[[#This Row],[Water]])","v":0},{"$f":"IF(HAZARD=USER_HAZ_COMP[[#This Row],[Threat/Hazard]], IF(RESULTS!$K$25=\"Yes\", 14, 0),HAZ_COMP[[#This Row],[Data and information management]])","v":0},{"$f":"IF(HAZARD=USER_HAZ_COMP[[#This Row],[Threat/Hazard]], IF(RESULTS!$K$26=\"Yes\", 14, 0),HAZ_COMP[[#This Row],[Staffing]])","v":0},{"$f":"IF(HAZARD=USER_HAZ_COMP[[#This Row],[Threat/Hazard]], IF(RESULTS!$K$27=\"Yes\", 14, \"No\"),HAZ_COMP[[#This Row],[Medical gases]])","v":0},{"$f":"IF(HAZARD=USER_HAZ_COMP[[#This Row],[Threat/Hazard]], IF(RESULTS!$J$43=\"Yes\", 14,0),HAZ_COMP[[#This Row],[Critical Supplies]])","v":0},{"$f":"IF(HAZARD=USER_HAZ_COMP[[#This Row],[Threat/Hazard]], RESULTS!$K$43, HAZ_COMP[[#This Row],[Regional/Internal]])","v":"Local"}]
[57,"Hostage Situation",{"$f":"IF(HAZARD=USER_HAZ_COMP[[#This Row],[Threat/Hazard]], IF(RESULTS!$K$23=\"Yes\", 14, \"0\"), HAZ_COMP[[#This Row],[Power]])","v":0},{"$f":"IF(HAZARD=USER_HAZ_COMP[[#This Row],[Threat/Hazard]], IF(RESULTS!$K$24=\"Yes\", 14, 0),HAZ_COMP[[#This Row],[Water]])","v":0},{"$f":"IF(HAZARD=USER_HAZ_COMP[[#This Row],[Threat/Hazard]], IF(RESULTS!$K$25=\"Yes\", 14, 0),HAZ_COMP[[#This Row],[Data and information management]])","v":0},{"$f":"IF(HAZARD=USER_HAZ_COMP[[#This Row],[Threat/Hazard]], IF(RESULTS!$K$26=\"Yes\", 14, 0),HAZ_COMP[[#This Row],[Staffing]])","v":0},{"$f":"IF(HAZARD=USER_HAZ_COMP[[#This Row],[Threat/Hazard]], IF(RESULTS!$K$27=\"Yes\", 14, \"No\"),HAZ_COMP[[#This Row],[Medical gases]])","v":0},{"$f":"IF(HAZARD=USER_HAZ_COMP[[#This Row],[Threat/Hazard]], IF(RESULTS!$J$43=\"Yes\", 14,0),HAZ_COMP[[#This Row],[Critical Supplies]])","v":0},{"$f":"IF(HAZARD=USER_HAZ_COMP[[#This Row],[Threat/Hazard]], RESULTS!$K$43, HAZ_COMP[[#This Row],[Regional/Internal]])","v":"Local"}]
[58,"Civil Disturbance",{"$f":"IF(HAZARD=USER_HAZ_COMP[[#This Row],[Threat/Hazard]], IF(RESULTS!$K$23=\"Yes\", 14, \"0\"), HAZ_COMP[[#This Row],[Power]])","v":0},{"$f":"IF(HAZARD=USER_HAZ_COMP[[#This Row],[Threat/Hazard]], IF(RESULTS!$K$24=\"Yes\", 14, 0),HAZ_COMP[[#This Row],[Water]])","v":0},{"$f":"IF(HAZARD=USER_HAZ_COMP[[#This Row],[Threat/Hazard]], IF(RESULTS!$K$25=\"Yes\", 14, 0),HAZ_COMP[[#This Row],[Data and information management]])","v":0},{"$f":"IF(HAZARD=USER_HAZ_COMP[[#This Row],[Threat/Hazard]], IF(RESULTS!$K$26=\"Yes\", 14, 0),HAZ_COMP[[#This Row],[Staffing]])","v":48},{"$f":"IF(HAZARD=USER_HAZ_COMP[[#This Row],[Threat/Hazard]], IF(RESULTS!$K$27=\"Yes\", 14, \"No\"),HAZ_COMP[[#This Row],[Medical gases]])","v":0},{"$f":"IF(HAZARD=USER_HAZ_COMP[[#This Row],[Threat/Hazard]], IF(RESULTS!$J$43=\"Yes\", 14,0),HAZ_COMP[[#This Row],[Critical Supplies]])","v":0},{"$f":"IF(HAZARD=USER_HAZ_COMP[[#This Row],[Threat/Hazard]], RESULTS!$K$43, HAZ_COMP[[#This Row],[Regional/Internal]])","v":"Local"}]
[59,"Labor Action",{"$f":"IF(HAZARD=USER_HAZ_COMP[[#This Row],[Threat/Hazard]], IF(RESULTS!$K$23=\"Yes\", 14, \"0\"), HAZ_COMP[[#This Row],[Power]])","v":0},{"$f":"IF(HAZARD=USER_HAZ_COMP[[#This Row],[Threat/Hazard]], IF(RESULTS!$K$24=\"Yes\", 14, 0),HAZ_COMP[[#This Row],[Water]])","v":0},{"$f":"IF(HAZARD=USER_HAZ_COMP[[#This Row],[Threat/Hazard]], IF(RESULTS!$K$25=\"Yes\", 14, 0),HAZ_COMP[[#This Row],[Data and information management]])","v":0},{"$f":"IF(HAZARD=USER_HAZ_COMP[[#This Row],[Threat/Hazard]], IF(RESULTS!$K$26=\"Yes\", 14, 0),HAZ_COMP[[#This Row],[Staffing]])","v":48},{"$f":"IF(HAZARD=USER_HAZ_COMP[[#This Row],[Threat/Hazard]], IF(RESULTS!$K$27=\"Yes\", 14, \"No\"),HAZ_COMP[[#This Row],[Medical gases]])","v":0},{"$f":"IF(HAZARD=USER_HAZ_COMP[[#This Row],[Threat/Hazard]], IF(RESULTS!$J$43=\"Yes\", 14,0),HAZ_COMP[[#This Row],[Critical Supplies]])","v":0},{"$f":"IF(HAZARD=USER_HAZ_COMP[[#This Row],[Threat/Hazard]], RESULTS!$K$43, HAZ_COMP[[#This Row],[Regional/Internal]])","v":"Local"}]
[60,"Forensic Admission",{"$f":"IF(HAZARD=USER_HAZ_COMP[[#This Row],[Threat/Hazard]], IF(RESULTS!$K$23=\"Yes\", 14, \"0\"), HAZ_COMP[[#This Row],[Power]])","v":0},{"$f":"IF(HAZARD=USER_HAZ_COMP[[#This Row],[Threat/Hazard]], IF(RESULTS!$K$24=\"Yes\", 14, 0),HAZ_COMP[[#This Row],[Water]])","v":0},{"$f":"IF(HAZARD=USER_HAZ_COMP[[#This Row],[Threat/Hazard]], IF(RESULTS!$K$25=\"Yes\", 14, 0),HAZ_COMP[[#This Row],[Data and information management]])","v":0},{"$f":"IF(HAZARD=USER_HAZ_COMP[[#This Row],[Threat/Hazard]], IF(RESULTS!$K$26=\"Yes\", 14, 0),HAZ_COMP[[#This Row],[Staffing]])","v":0},{"$f":"IF(HAZARD=USER_HAZ_COMP[[#This Row],[Threat/Hazard]], IF(RESULTS!$K$27=\"Yes\", 14, \"No\"),HAZ_COMP[[#This Row],[Medical gases]])","v":0},{"$f":"IF(HAZARD=USER_HAZ_COMP[[#This Row],[Threat/Hazard]], IF(RESULTS!$J$43=\"Yes\", 14,0),HAZ_COMP[[#This Row],[Critical Supplies]])","v":0},{"$f":"IF(HAZARD=USER_HAZ_COMP[[#This Row],[Threat/Hazard]], RESULTS!$K$43, HAZ_COMP[[#This Row],[Regional/Internal]])","v":"Local"}]
[61,"Bomb threat",{"$f":"IF(HAZARD=USER_HAZ_COMP[[#This Row],[Threat/Hazard]], IF(RESULTS!$K$23=\"Yes\", 14, \"0\"), HAZ_COMP[[#This Row],[Power]])","v":0},{"$f":"IF(HAZARD=USER_HAZ_COMP[[#This Row],[Threat/Hazard]], IF(RESULTS!$K$24=\"Yes\", 14, 0),HAZ_COMP[[#This Row],[Water]])","v":0},{"$f":"IF(HAZARD=USER_HAZ_COMP[[#This Row],[Threat/Hazard]], IF(RESULTS!$K$25=\"Yes\", 14, 0),HAZ_COMP[[#This Row],[Data and information management]])","v":0},{"$f":"IF(HAZARD=USER_HAZ_COMP[[#This Row],[Threat/Hazard]], IF(RESULTS!$K$26=\"Yes\", 14, 0),HAZ_COMP[[#This Row],[Staffing]])","v":48},{"$f":"IF(HAZARD=USER_HAZ_COMP[[#This Row],[Threat/Hazard]], IF(RESULTS!$K$27=\"Yes\", 14, \"No\"),HAZ_COMP[[#This Row],[Medical gases]])","v":0},{"$f":"IF(HAZARD=USER_HAZ_COMP[[#This Row],[Threat/Hazard]], IF(RESULTS!$J$43=\"Yes\", 14,0),HAZ_COMP[[#This Row],[Critical Supplies]])","v":0},{"$f":"IF(HAZARD=USER_HAZ_COMP[[#This Row],[Threat/Hazard]], RESULTS!$K$43, HAZ_COMP[[#This Row],[Regional/Internal]])","v":"Local"}]
[62,"Violent Patient",{"$f":"IF(HAZARD=USER_HAZ_COMP[[#This Row],[Threat/Hazard]], IF(RESULTS!$K$23=\"Yes\", 14, \"0\"), HAZ_COMP[[#This Row],[Power]])","v":0},{"$f":"IF(HAZARD=USER_HAZ_COMP[[#This Row],[Threat/Hazard]], IF(RESULTS!$K$24=\"Yes\", 14, 0),HAZ_COMP[[#This Row],[Water]])","v":0},{"$f":"IF(HAZARD=USER_HAZ_COMP[[#This Row],[Threat/Hazard]], IF(RESULTS!$K$25=\"Yes\", 14, 0),HAZ_COMP[[#This Row],[Data and information management]])","v":0},{"$f":"IF(HAZARD=USER_HAZ_COMP[[#This Row],[Threat/Hazard]], IF(RESULTS!$K$26=\"Yes\", 14, 0),HAZ_COMP[[#This Row],[Staffing]])","v":0},{"$f":"IF(HAZARD=USER_HAZ_COMP[[#This Row],[Threat/Hazard]], IF(RESULTS!$K$27=\"Yes\", 14, \"No\"),HAZ_COMP[[#This Row],[Medical gases]])","v":0},{"$f":"IF(HAZARD=USER_HAZ_COMP[[#This Row],[Threat/Hazard]], IF(RESULTS!$J$43=\"Yes\", 14,0),HAZ_COMP[[#This Row],[Critical Supplies]])","v":0},{"$f":"IF(HAZARD=USER_HAZ_COMP[[#This Row],[Threat/Hazard]], RESULTS!$K$43, HAZ_COMP[[#This Row],[Regional/Internal]])","v":"Local"}]
[63,"Hazardous Chemical Theft ",{"$f":"IF(HAZARD=USER_HAZ_COMP[[#This Row],[Threat/Hazard]], IF(RESULTS!$K$23=\"Yes\", 14, \"0\"), HAZ_COMP[[#This Row],[Power]])","v":0},{"$f":"IF(HAZARD=USER_HAZ_COMP[[#This Row],[Threat/Hazard]], IF(RESULTS!$K$24=\"Yes\", 14, 0),HAZ_COMP[[#This Row],[Water]])","v":0},{"$f":"IF(HAZARD=USER_HAZ_COMP[[#This Row],[Threat/Hazard]], IF(RESULTS!$K$25=\"Yes\", 14, 0),HAZ_COMP[[#This Row],[Data and information management]])","v":0},{"$f":"IF(HAZARD=USER_HAZ_COMP[[#This Row],[Threat/Hazard]], IF(RESULTS!$K$26=\"Yes\", 14, 0),HAZ_COMP[[#This Row],[Staffing]])","v":0},{"$f":"IF(HAZARD=USER_HAZ_COMP[[#This Row],[Threat/Hazard]], IF(RESULTS!$K$27=\"Yes\", 14, \"No\"),HAZ_COMP[[#This Row],[Medical gases]])","v":0},{"$f":"IF(HAZARD=USER_HAZ_COMP[[#This Row],[Threat/Hazard]], IF(RESULTS!$J$43=\"Yes\", 14,0),HAZ_COMP[[#This Row],[Critical Supplies]])","v":0},{"$f":"IF(HAZARD=USER_HAZ_COMP[[#This Row],[Threat/Hazard]], RESULTS!$K$43, HAZ_COMP[[#This Row],[Regional/Internal]])","v":"Local"}]
[64,"Chemical HAZMAT Exposure, Internal",{"$f":"IF(HAZARD=USER_HAZ_COMP[[#This Row],[Threat/Hazard]], IF(RESULTS!$K$23=\"Yes\", 14, \"0\"), HAZ_COMP[[#This Row],[Power]])","v":0},{"$f":"IF(HAZARD=USER_HAZ_COMP[[#This Row],[Threat/Hazard]], IF(RESULTS!$K$24=\"Yes\", 14, 0),HAZ_COMP[[#This Row],[Water]])","v":0},{"$f":"IF(HAZARD=USER_HAZ_COMP[[#This Row],[Threat/Hazard]], IF(RESULTS!$K$25=\"Yes\", 14, 0),HAZ_COMP[[#This Row],[Data and information management]])","v":0},{"$f":"IF(HAZARD=USER_HAZ_COMP[[#This Row],[Threat/Hazard]], IF(RESULTS!$K$26=\"Yes\", 14, 0),HAZ_COMP[[#This Row],[Staffing]])","v":0},{"$f":"IF(HAZARD=USER_HAZ_COMP[[#This Row],[Threat/Hazard]], IF(RESULTS!$K$27=\"Yes\", 14, \"No\"),HAZ_COMP[[#This Row],[Medical gases]])","v":0},{"$f":"IF(HAZARD=USER_HAZ_COMP[[#This Row],[Threat/Hazard]], IF(RESULTS!$J$43=\"Yes\", 14,0),HAZ_COMP[[#This Row],[Critical Supplies]])","v":0},{"$f":"IF(HAZARD=USER_HAZ_COMP[[#This Row],[Threat/Hazard]], RESULTS!$K$43, HAZ_COMP[[#This Row],[Regional/Internal]])","v":"Local"}]
[65,"Radiological Exposure, Internal",{"$f":"IF(HAZARD=USER_HAZ_COMP[[#This Row],[Threat/Hazard]], IF(RESULTS!$K$23=\"Yes\", 14, \"0\"), HAZ_COMP[[#This Row],[Power]])","v":0},{"$f":"IF(HAZARD=USER_HAZ_COMP[[#This Row],[Threat/Hazard]], IF(RESULTS!$K$24=\"Yes\", 14, 0),HAZ_COMP[[#This Row],[Water]])","v":0},{"$f":"IF(HAZARD=USER_HAZ_COMP[[#This Row],[Threat/Hazard]], IF(RESULTS!$K$25=\"Yes\", 14, 0),HAZ_COMP[[#This Row],[Data and information management]])","v":0},{"$f":"IF(HAZARD=USER_HAZ_COMP[[#This Row],[Threat/Hazard]], IF(RESULTS!$K$26=\"Yes\", 14, 0),HAZ_COMP[[#This Row],[Staffing]])","v":48},{"$f":"IF(HAZARD=USER_HAZ_COMP[[#This Row],[Threat/Hazard]], IF(RESULTS!$K$27=\"Yes\", 14, \"No\"),HAZ_COMP[[#This Row],[Medical gases]])","v":0},{"$f":"IF(HAZARD=USER_HAZ_COMP[[#This Row],[Threat/Hazard]], IF(RESULTS!$J$43=\"Yes\", 14,0),HAZ_COMP[[#This Row],[Critical Supplies]])","v":0},{"$f":"IF(HAZARD=USER_HAZ_COMP[[#This Row],[Threat/Hazard]], RESULTS!$K$43, HAZ_COMP[[#This Row],[Regional/Internal]])","v":"Local"}]
[66,"Biological Exposure, Internal",{"$f":"IF(HAZARD=USER_HAZ_COMP[[#This Row],[Threat/Hazard]], IF(RESULTS!$K$23=\"Yes\", 14, \"0\"), HAZ_COMP[[#This Row],[Power]])","v":0},{"$f":"IF(HAZARD=USER_HAZ_COMP[[#This Row],[Threat/Hazard]], IF(RESULTS!$K$24=\"Yes\", 14, 0),HAZ_COMP[[#This Row],[Water]])","v":0},{"$f":"IF(HAZARD=USER_HAZ_COMP[[#This Row],[Threat/Hazard]], IF(RESULTS!$K$25=\"Yes\", 14, 0),HAZ_COMP[[#This Row],[Data and information management]])","v":0},{"$f":"IF(HAZARD=USER_HAZ_COMP[[#This Row],[Threat/Hazard]], IF(RESULTS!$K$26=\"Yes\", 14, 0),HAZ_COMP[[#This Row],[Staffing]])","v":48},{"$f":"IF(HAZARD=USER_HAZ_COMP[[#This Row],[Threat/Hazard]], IF(RESULTS!$K$27=\"Yes\", 14, \"No\"),HAZ_COMP[[#This Row],[Medical gases]])","v":0},{"$f":"IF(HAZARD=USER_HAZ_COMP[[#This Row],[Threat/Hazard]], IF(RESULTS!$J$43=\"Yes\", 14,0),HAZ_COMP[[#This Row],[Critical Supplies]])","v":0},{"$f":"IF(HAZARD=USER_HAZ_COMP[[#This Row],[Threat/Hazard]], RESULTS!$K$43, HAZ_COMP[[#This Row],[Regional/Internal]])","v":"Local"}]

{"sheet":"Property Components","index":18,"n_rows":68,"n_cols":3,"rows_kept":68,"cut":false,"hidden":true,"merged":[]}
[]
["Threat/Hazard","Cost to Replace Facility","Cost for Temp Facility"]
["Information Theft",0,"No"]
["Terrorism",1,"Yes"]
["Active shooter",0,"No"]
["Cyber",0,"No"]
["Violent Crime",0,"No"]
["Property Crime",0.01,"No"]
["Earthquake",1,"Yes"]
["Tsunami",1,"Yes"]
["Landslide",1,"Yes"]
["Subsidence (Sinkhole)",1,"Yes"]
["Volcano",1,"Yes"]
["Damaging Winds",0,"No"]
["Drought",0,"No"]
["Flash Flood",0.1,"No"]
["Flood",0.1,"No"]
["Hail",0.1,"No"]
["Ice Storm",0.1,"No"]
["Snow Fall/Blizzard",0.1,"No"]
["Storm Surge",1,"Yes"]
["Tornado",1,"Yes"]
["Wildfire",1,"Yes"]
["Extreme Heat",0,"No"]
["Extreme Cold",0,"No"]
["Hurricane and Tropical Storm",1,"Yes"]
["Space Weather",0,"No"]
["Thunderstorm (Lightning)",0,"No"]
["Annual Influenza Epidemic",0,"No"]
["Aircraft Crash at Facility/Asset",1,"Yes"]
["External Chemical HAZMAT Exposure, Facilities",0,"No"]
["External Chemical HAZMAT Exposure, Highway",0,"No"]
["External Chemical HAZMAT Exposure, Maritime",0,"No"]
["External Chemical HAZMAT Exposure, Railway",0,"No"]
["External Chemical HAZMAT Exposure, Pipeline",0,"No"]
["Radiologic Exposure, External",0,"Yes"]
["Electrical Failure",0,"No"]
["Generator Failure ",0,"No"]
["Transportation Failure",0,"No"]
["Fuel Shortage",0,"No"]
["Natural Gas Failure",0,"No"]
["Water Failure",0,"No"]
["Sewer Failure",0,"No"]
["Steam Failure",0,"No"]
["Fire Alarm Failure",0,"No"]
["Communications Failure",0,"No"]
["Medical Gas Failure",0,"No"]
["Medical Vacuum Failure",0,"No"]
["HVAC Failure",0,"No"]
["Information Systems Failure",0,"No"]
["Fire, Internal",0.1,"No"]
["Flood, Internal",0.1,"No"]
["Supply Shortage",0,"No"]
["Structural Damage",0.1,"No"]
["Heliport Accident",0.1,"No"]
["Dam Inundation",1,"Yes"]
["VIP Situation",0,"No"]
["Infant Abduction",0,"No"]
["Hostage Situation",0,"No"]
["Civil Disturbance",0.01,"No"]
["Labor Action",0,"No"]
["Forensic Admission",0,"No"]
["Bomb threat",0,"No"]
["Violent Patient",0,"No"]
["Hazardous Chemical Theft ",0,"No"]
["Chemical HAZMAT Exposure, Internal",0,"No"]
["Radiological Exposure, Internal",0,"No"]
["Biological Exposure, Internal",0,"No"]

{"sheet":"Business Costs","index":19,"n_rows":14,"n_cols":17,"rows_kept":14,"cut":false,"hidden":true,"merged":[[13,12,13,14],[7,12,7,14],[8,12,8,14],[9,12,9,14],[10,12,10,14],[11,12,11,14]]}
["Threat/Hazard","Regional/Internal"]
[{"$f":"HAZARD","v":0},{"$f":"INDEX(USER_HAZ_COMP[],MATCH(HAZARD,USER_HAZ_COMP[Threat/Hazard],0),9)","v":{"$error":"#N/A"}}]
[]
[null,null,null,{"$f":"#REF!","v":{"$error":"#REF!"}},{"$f":"SUM(#REF!)","v":{"$error":"#REF!"}},null,{"$f":"IF(D4=\"Yes\", MAX(#REF!,$F4), $F4)","v":{"$error":"#REF!"}},{"$f":"#REF!","v":{"$error":"#REF!"}},null,null,null,{"$f":"MIN(SUM($E4,$I4),$G4)","v":{"$error":"#REF!"}},null,null,null,{"$f":"SUM(N4:O4)","v":0}]
[{"$f":"#REF!","v":{"$error":"#REF!"}},{"$f":"#REF!","v":{"$error":"#REF!"}},null,{"$f":"#REF!","v":{"$error":"#REF!"}},{"$f":"SUM(#REF!)","v":{"$error":"#REF!"}},{"$f":"MAX(0,INDEX(HAZ_COMP[],MATCH($A$2,HAZ_COMP[Threat/Hazard],0),MATCH($A5,HAZ_COMP[#Headers],0))-E5)","v":{"$error":"#N/A"}},{"$f":"IF(D5=\"Yes\", MAX(#REF!,$F5), $F5)","v":{"$error":"#REF!"}},{"$f":"#REF!","v":{"$error":"#REF!"}},{"$f":"#REF!","v":{"$error":"#REF!"}},{"$f":"#REF!","v":{"$error":"#REF!"}},{"$f":"#REF!","v":{"$error":"#REF!"}},{"$error":"#REF!"},null,null,null,0,{"$f":"#REF!","v":{"$error":"#REF!"}}]
[]
[]
["Critical System","Affected","Costs",null,null,null,null,null,null,null,null,null,"Hazard Effect Duration",null,null,{"$f":"RESULTS!J40","v":{"$error":"#N/A"}}]
["Critical Supplies",{"$f":"INDEX(USER_HAZ_COMP[],MATCH($A$2,USER_HAZ_COMP[Threat/Hazard],0),MATCH($A9,USER_HAZ_COMP[#Headers],0))","v":{"$error":"#N/A"}},{"$f":"IF(B9>0, IF($B$2=\"Regional\", Scoring!$M$40+Scoring!$M$41,Scoring!$M$41), 0)","v":{"$error":"#N/A"}},null,null,null,null,null,null,null,null,null,"Lost Profits from Hazard Duration",null,null,{"$f":"Scoring!M36*'Business Costs'!P8","v":{"$error":"#N/A"}}]
["Staffing",{"$f":"INDEX(USER_HAZ_COMP[],MATCH($A$2,USER_HAZ_COMP[Threat/Hazard],0),MATCH($A10,USER_HAZ_COMP[#Headers],0))","v":{"$error":"#N/A"}},{"$f":"IF(B10>0, Scoring!M42*'Business Costs'!P8,0)","v":{"$error":"#N/A"}},null,null,null,null,null,null,null,null,null,"Contract Fines",null,null,{"$f":"IF($P$8>0, Scoring!M37, 0)","v":{"$error":"#N/A"}}]
[null,"Staffing and Supplies Cost",{"$f":"SUM(C9:C10)","v":{"$error":"#N/A"}},null,null,null,null,null,null,null,null,null,"Lost Contract Business",null,null,{"$f":"IF($P$8>0, Scoring!M38, 0)","v":{"$error":"#N/A"}}]
[null,null,null,null,null,null,null,null,null,null,null,null,"Regulatory Fines",null,null,{"$f":"IF($P$8>0, Scoring!M39, 0)","v":{"$error":"#N/A"}}]
[null,null,null,null,null,null,null,null,null,null,null,null,null,null,"Staffing and Supply Costs",{"$f":"C11","v":{"$error":"#N/A"}}]
[null,null,null,null,null,null,null,null,null,null,null,null,"Total Business Impact Cost",null,null,{"$f":"SUM(P9:P13)","v":{"$error":"#N/A"}}]

{"sheet":"Property Costs","index":20,"n_rows":21,"n_cols":3,"rows_kept":21,"cut":false,"hidden":true,"merged":[]}
["Threat/Hazard","Facility Replacement Cost","Temporary Facility Cost"]
[{"$f":"HAZARD","v":0},{"$f":"RESULTS!K32","v":{"$error":"#N/A"}},{"$f":"RESULTS!K35","v":{"$error":"#N/A"}}]
[]
[null,null,"Cost to Restore"]
[{"$f":"#REF!","v":{"$error":"#REF!"}},null,{"$f":"INDEX(PROPERTY[],MATCH($A$2,PROPERTY[Threat/Hazard],0),MATCH($A5,PROPERTY[#Headers],0))","v":{"$error":"#N/A"}}]
[]
[{"$f":"#REF!","v":{"$error":"#REF!"}},null,{"$f":"INDEX(PROPERTY[],MATCH($A$2,PROPERTY[Threat/Hazard],0),MATCH($A7,PROPERTY[#Headers],0))","v":{"$error":"#N/A"}}]
[]
[]
["Data and information management",null,{"$f":"INDEX(PROPERTY[],MATCH($A$2,PROPERTY[Threat/Hazard],0),MATCH($A10,PROPERTY[#Headers],0))","v":{"$error":"#N/A"}}]
[]
[{"$f":"#REF!","v":{"$error":"#REF!"}},null,0]
[]
[]
[{"$f":"#REF!","v":{"$error":"#REF!"}},null,{"$f":"INDEX(PROPERTY[],MATCH($A$2,PROPERTY[Threat/Hazard],0),MATCH($A15,PROPERTY[#Headers],0))","v":{"$error":"#N/A"}}]
[]
[{"$f":"#REF!","v":{"$error":"#REF!"}},null,0]
[null,"Subtotal Replacement Cost",0]
[null,"Facility Replacement cost",{"$f":"Scoring!M45*'Property Costs'!B2","v":{"$error":"#N/A"}}]
[null,"Temporary Facility Set Up Cost",{"$f":"IF(C2=\"Yes\", Scoring!M46,0)","v":{"$error":"#N/A"}}]
[null,"Total Property Impact Cost",{"$f":"SUM(C18:C20)","v":{"$error":"#N/A"}}]

{"sheet":"Human Hazards","index":21,"n_rows":83,"n_cols":17,"rows_kept":83,"cut":false,"hidden":true,"merged":[]}
["Threat/Hazard","Facility Type"]
[{"$f":"HAZARD","v":0},{"$f":"SUBSECTOR","v":0}]
[]
["Hazard Effect Types:","Description"]
["N/A"]
["Total Destruction","- Total facility population is killed"]
["Direct Lives Lost","- Active shooter only"]
["Staffing Loss"]
["Water Loss"]
["Cyber Loss"]
["Med Gas Loss"]
["Power Loss","- Direct Patient Care only\n- If duration of power outage is <=1 day, \n  count acute power-dependent patients\n- If duration of power outage is >1 day, \n  count acute and chronic power-dependent patients"]
[]
["Total Hazard-Specific Deaths"]
[{"$f":"MAX(0,INDEX(HUMAN2[],MATCH($A$2,HUMAN2[Threat/Hazard],0),MATCH($B2,HUMAN2[#Headers],0)))","v":{"$error":"#N/A"}}]
[]
["Threat/Hazard","Power","Water","Cyber","Medical Gases","Staffing","Evacuation","Direct Patient Care","Laboratories","Blood","Pharmaceuticals","Medical Materials","Health Information Technology (IT)","Health Plans and Payers","Mass Fatality Management","Public Health","Federal Response and Program Offices"]
["Information Theft",{"$f":"INDEX(USER_HAZ_COMP[Power],MATCH(HUMAN2[[#This Row],[Threat/Hazard]],USER_HAZ_COMP[Threat/Hazard],0))","v":0},{"$f":"INDEX(USER_HAZ_COMP[Water],MATCH(HUMAN2[[#This Row],[Threat/Hazard]],USER_HAZ_COMP[Threat/Hazard],0))","v":0},{"$f":"INDEX(USER_HAZ_COMP[Data and information management],MATCH(HUMAN2[[#This Row],[Threat/Hazard]],USER_HAZ_COMP[Threat/Hazard],0))","v":48},{"$f":"INDEX(USER_HAZ_COMP[Medical gases],MATCH(HUMAN2[[#This Row],[Threat/Hazard]],USER_HAZ_COMP[Threat/Hazard],0))","v":0},{"$f":"INDEX(USER_HAZ_COMP[Staffing],MATCH(HUMAN2[[#This Row],[Threat/Hazard]],USER_HAZ_COMP[Threat/Hazard],0))","v":0},{"$f":"IF(HUMAN2[[#This Row],[Power]]>0, IF(HUMAN2[[#This Row],[Water]]>0, \"Yes\", \"No\"), \"No\")","v":"No"},{"$f":"IF(HUMAN2[[#This Row],[Threat/Hazard]]=\"Active Shooter\", 7, IF(AND(HUMAN2[[#This Row],[Power]]>0,HUMAN2[[#This Row],[Water]]>0)=TRUE, Scoring!$M$49, IF(HUMAN2[[#This Row],[Staffing]]>0, Scoring!$M$56, MAX(IF(HUMAN2[[#This Row],[Power]]>0,Scoring!$M$52,0),IF(HUMAN2[[#This Row],[Water]]>0,Scoring!$M$53,0),IF(HUMAN2[[#This Row],[Cyber]]>0,Scoring!$M$54,0),IF(HUMAN2[[#This Row],[Medical Gases]]>0,Scoring!$M$55,0)))))","v":0},{"$f":"IF(HUMAN2[[#This Row],[Threat/Hazard]]=\"Active Shooter\", 7, IF(HUMAN2[[#This Row],[Evacuation]]=\"Yes\",Scoring!$M$49,0))","v":0},{"$f":"IF(HUMAN2[[#This Row],[Threat/Hazard]]=\"Active Shooter\", 7, IF(HUMAN2[[#This Row],[Evacuation]]=\"Yes\", Scoring!$M$49,0))","v":0},{"$f":"IF(HUMAN2[[#This Row],[Threat/Hazard]]=\"Active Shooter\", 7, IF(HUMAN2[[#This Row],[Evacuation]]=\"Yes\",Scoring!$M$49,0))","v":0},{"$f":"IF(HUMAN2[[#This Row],[Threat/Hazard]]=\"Active Shooter\", 7, IF(HUMAN2[[#This Row],[Evacuation]]=\"Yes\",Scoring!$M$49,0))","v":0},{"$f":"IF(HUMAN2[[#This Row],[Threat/Hazard]]=\"Active Shooter\", 7, IF(HUMAN2[[#This Row],[Evacuation]]=\"Yes\",Scoring!$M$49,0))","v":0},{"$f":"IF(HUMAN2[[#This Row],[Threat/Hazard]]=\"Active Shooter\", 7, IF(HUMAN2[[#This Row],[Evacuation]]=\"Yes\",Scoring!$M$49,0))","v":0},{"$f":"IF(HUMAN2[[#This Row],[Threat/Hazard]]=\"Active Shooter\", 7, IF(HUMAN2[[#This Row],[Evacuation]]=\"Yes\",Scoring!$M$49,0))","v":0},{"$f":"IF(HUMAN2[[#This Row],[Threat/Hazard]]=\"Active Shooter\", 7, IF(HUMAN2[[#This Row],[Evacuation]]=\"Yes\",Scoring!$M$49,0))","v":0},{"$f":"IF(HUMAN2[[#This Row],[Threat/Hazard]]=\"Active Shooter\", 7, IF(HUMAN2[[#This Row],[Evacuation]]=\"Yes\",Scoring!$M$49,0))","v":0}]
["Terrorism",{"$f":"INDEX(USER_HAZ_COMP[Power],MATCH(HUMAN2[[#This Row],[Threat/Hazard]],USER_HAZ_COMP[Threat/Hazard],0))","v":48},{"$f":"INDEX(USER_HAZ_COMP[Water],MATCH(HUMAN2[[#This Row],[Threat/Hazard]],USER_HAZ_COMP[Threat/Hazard],0))","v":48},{"$f":"INDEX(USER_HAZ_COMP[Data and information management],MATCH(HUMAN2[[#This Row],[Threat/Hazard]],USER_HAZ_COMP[Threat/Hazard],0))","v":48},{"$f":"INDEX(USER_HAZ_COMP[Medical gases],MATCH(HUMAN2[[#This Row],[Threat/Hazard]],USER_HAZ_COMP[Threat/Hazard],0))","v":48},{"$f":"INDEX(USER_HAZ_COMP[Staffing],MATCH(HUMAN2[[#This Row],[Threat/Hazard]],USER_HAZ_COMP[Threat/Hazard],0))","v":48},{"$f":"IF(HUMAN2[[#This Row],[Power]]>0, IF(HUMAN2[[#This Row],[Water]]>0, \"Yes\", \"No\"), \"No\")","v":"Yes"},{"$f":"IF(HUMAN2[[#This Row],[Threat/Hazard]]=\"Active Shooter\", 7, IF(AND(HUMAN2[[#This Row],[Power]]>0,HUMAN2[[#This Row],[Water]]>0)=TRUE, Scoring!$M$49, IF(HUMAN2[[#This Row],[Staffing]]>0, Scoring!$M$56, MAX(IF(HUMAN2[[#This Row],[Power]]>0,Scoring!$M$52,0),IF(HUMAN2[[#This Row],[Water]]>0,Scoring!$M$53,0),IF(HUMAN2[[#This Row],[Cyber]]>0,Scoring!$M$54,0),IF(HUMAN2[[#This Row],[Medical Gases]]>0,Scoring!$M$55,0)))))","v":0},{"$f":"IF(HUMAN2[[#This Row],[Threat/Hazard]]=\"Active Shooter\", 7, IF(HUMAN2[[#This Row],[Evacuation]]=\"Yes\",Scoring!$M$49,0))","v":0},{"$f":"IF(HUMAN2[[#This Row],[Threat/Hazard]]=\"Active Shooter\", 7, IF(HUMAN2[[#This Row],[Evacuation]]=\"Yes\", Scoring!$M$49,0))","v":0},{"$f":"IF(HUMAN2[[#This Row],[Threat/Hazard]]=\"Active Shooter\", 7, IF(HUMAN2[[#This Row],[Evacuation]]=\"Yes\",Scoring!$M$49,0))","v":0},{"$f":"IF(HUMAN2[[#This Row],[Threat/Hazard]]=\"Active Shooter\", 7, IF(HUMAN2[[#This Row],[Evacuation]]=\"Yes\",Scoring!$M$49,0))","v":0},{"$f":"IF(HUMAN2[[#This Row],[Threat/Hazard]]=\"Active Shooter\", 7, IF(HUMAN2[[#This Row],[Evacuation]]=\"Yes\",Scoring!$M$49,0))","v":0},{"$f":"IF(HUMAN2[[#This Row],[Threat/Hazard]]=\"Active Shooter\", 7, IF(HUMAN2[[#This Row],[Evacuation]]=\"Yes\",Scoring!$M$49,0))","v":0},{"$f":"IF(HUMAN2[[#This Row],[Threat/Hazard]]=\"Active Shooter\", 7, IF(HUMAN2[[#This Row],[Evacuation]]=\"Yes\",Scoring!$M$49,0))","v":0},{"$f":"IF(HUMAN2[[#This Row],[Threat/Hazard]]=\"Active Shooter\", 7, IF(HUMAN2[[#This Row],[Evacuation]]=\"Yes\",Scoring!$M$49,0))","v":0},{"$f":"IF(HUMAN2[[#This Row],[Threat/Hazard]]=\"Active Shooter\", 7, IF(HUMAN2[[#This Row],[Evacuation]]=\"Yes\",Scoring!$M$49,0))","v":0}]
["Active shooter",{"$f":"INDEX(USER_HAZ_COMP[Power],MATCH(HUMAN2[[#This Row],[Threat/Hazard]],USER_HAZ_COMP[Threat/Hazard],0))","v":0},{"$f":"INDEX(USER_HAZ_COMP[Water],MATCH(HUMAN2[[#This Row],[Threat/Hazard]],USER_HAZ_COMP[Threat/Hazard],0))","v":0},{"$f":"INDEX(USER_HAZ_COMP[Data and information management],MATCH(HUMAN2[[#This Row],[Threat/Hazard]],USER_HAZ_COMP[Threat/Hazard],0))","v":0},{"$f":"INDEX(USER_HAZ_COMP[Medical gases],MATCH(HUMAN2[[#This Row],[Threat/Hazard]],USER_HAZ_COMP[Threat/Hazard],0))","v":0},{"$f":"INDEX(USER_HAZ_COMP[Staffing],MATCH(HUMAN2[[#This Row],[Threat/Hazard]],USER_HAZ_COMP[Threat/Hazard],0))","v":48},{"$f":"IF(HUMAN2[[#This Row],[Power]]>0, IF(HUMAN2[[#This Row],[Water]]>0, \"Yes\", \"No\"), \"No\")","v":"No"},{"$f":"IF(HUMAN2[[#This Row],[Threat/Hazard]]=\"Active Shooter\", 7, IF(AND(HUMAN2[[#This Row],[Power]]>0,HUMAN2[[#This Row],[Water]]>0)=TRUE, Scoring!$M$49, IF(HUMAN2[[#This Row],[Staffing]]>0, Scoring!$M$56, MAX(IF(HUMAN2[[#This Row],[Power]]>0,Scoring!$M$52,0),IF(HUMAN2[[#This Row],[Water]]>0,Scoring!$M$53,0),IF(HUMAN2[[#This Row],[Cyber]]>0,Scoring!$M$54,0),IF(HUMAN2[[#This Row],[Medical Gases]]>0,Scoring!$M$55,0)))))","v":7},{"$f":"IF(HUMAN2[[#This Row],[Threat/Hazard]]=\"Active Shooter\", 7, IF(HUMAN2[[#This Row],[Evacuation]]=\"Yes\",Scoring!$M$49,0))","v":7},{"$f":"IF(HUMAN2[[#This Row],[Threat/Hazard]]=\"Active Shooter\", 7, IF(HUMAN2[[#This Row],[Evacuation]]=\"Yes\", Scoring!$M$49,0))","v":7},{"$f":"IF(HUMAN2[[#This Row],[Threat/Hazard]]=\"Active Shooter\", 7, IF(HUMAN2[[#This Row],[Evacuation]]=\"Yes\",Scoring!$M$49,0))","v":7},{"$f":"IF(HUMAN2[[#This Row],[Threat/Hazard]]=\"Active Shooter\", 7, IF(HUMAN2[[#This Row],[Evacuation]]=\"Yes\",Scoring!$M$49,0))","v":7},{"$f":"IF(HUMAN2[[#This Row],[Threat/Hazard]]=\"Active Shooter\", 7, IF(HUMAN2[[#This Row],[Evacuation]]=\"Yes\",Scoring!$M$49,0))","v":7},{"$f":"IF(HUMAN2[[#This Row],[Threat/Hazard]]=\"Active Shooter\", 7, IF(HUMAN2[[#This Row],[Evacuation]]=\"Yes\",Scoring!$M$49,0))","v":7},{"$f":"IF(HUMAN2[[#This Row],[Threat/Hazard]]=\"Active Shooter\", 7, IF(HUMAN2[[#This Row],[Evacuation]]=\"Yes\",Scoring!$M$49,0))","v":7},{"$f":"IF(HUMAN2[[#This Row],[Threat/Hazard]]=\"Active Shooter\", 7, IF(HUMAN2[[#This Row],[Evacuation]]=\"Yes\",Scoring!$M$49,0))","v":7},{"$f":"IF(HUMAN2[[#This Row],[Threat/Hazard]]=\"Active Shooter\", 7, IF(HUMAN2[[#This Row],[Evacuation]]=\"Yes\",Scoring!$M$49,0))","v":7}]
["Cyber",{"$f":"INDEX(USER_HAZ_COMP[Power],MATCH(HUMAN2[[#This Row],[Threat/Hazard]],USER_HAZ_COMP[Threat/Hazard],0))","v":0},{"$f":"INDEX(USER_HAZ_COMP[Water],MATCH(HUMAN2[[#This Row],[Threat/Hazard]],USER_HAZ_COMP[Threat/Hazard],0))","v":0},{"$f":"INDEX(USER_HAZ_COMP[Data and information management],MATCH(HUMAN2[[#This Row],[Threat/Hazard]],USER_HAZ_COMP[Threat/Hazard],0))","v":48},{"$f":"INDEX(USER_HAZ_COMP[Medical gases],MATCH(HUMAN2[[#This Row],[Threat/Hazard]],USER_HAZ_COMP[Threat/Hazard],0))","v":0},{"$f":"INDEX(USER_HAZ_COMP[Staffing],MATCH(HUMAN2[[#This Row],[Threat/Hazard]],USER_HAZ_COMP[Threat/Hazard],0))","v":0},{"$f":"IF(HUMAN2[[#This Row],[Power]]>0, IF(HUMAN2[[#This Row],[Water]]>0, \"Yes\", \"No\"), \"No\")","v":"No"},{"$f":"IF(HUMAN2[[#This Row],[Threat/Hazard]]=\"Active Shooter\", 7, IF(AND(HUMAN2[[#This Row],[Power]]>0,HUMAN2[[#This Row],[Water]]>0)=TRUE, Scoring!$M$49, IF(HUMAN2[[#This Row],[Staffing]]>0, Scoring!$M$56, MAX(IF(HUMAN2[[#This Row],[Power]]>0,Scoring!$M$52,0),IF(HUMAN2[[#This Row],[Water]]>0,Scoring!$M$53,0),IF(HUMAN2[[#This Row],[Cyber]]>0,Scoring!$M$54,0),IF(HUMAN2[[#This Row],[Medical Gases]]>0,Scoring!$M$55,0)))))","v":0},{"$f":"IF(HUMAN2[[#This Row],[Threat/Hazard]]=\"Active Shooter\", 7, IF(HUMAN2[[#This Row],[Evacuation]]=\"Yes\",Scoring!$M$49,0))","v":0},{"$f":"IF(HUMAN2[[#This Row],[Threat/Hazard]]=\"Active Shooter\", 7, IF(HUMAN2[[#This Row],[Evacuation]]=\"Yes\", Scoring!$M$49,0))","v":0},{"$f":"IF(HUMAN2[[#This Row],[Threat/Hazard]]=\"Active Shooter\", 7, IF(HUMAN2[[#This Row],[Evacuation]]=\"Yes\",Scoring!$M$49,0))","v":0},{"$f":"IF(HUMAN2[[#This Row],[Threat/Hazard]]=\"Active Shooter\", 7, IF(HUMAN2[[#This Row],[Evacuation]]=\"Yes\",Scoring!$M$49,0))","v":0},{"$f":"IF(HUMAN2[[#This Row],[Threat/Hazard]]=\"Active Shooter\", 7, IF(HUMAN2[[#This Row],[Evacuation]]=\"Yes\",Scoring!$M$49,0))","v":0},{"$f":"IF(HUMAN2[[#This Row],[Threat/Hazard]]=\"Active Shooter\", 7, IF(HUMAN2[[#This Row],[Evacuation]]=\"Yes\",Scoring!$M$49,0))","v":0},{"$f":"IF(HUMAN2[[#This Row],[Threat/Hazard]]=\"Active Shooter\", 7, IF(HUMAN2[[#This Row],[Evacuation]]=\"Yes\",Scoring!$M$49,0))","v":0},{"$f":"IF(HUMAN2[[#This Row],[Threat/Hazard]]=\"Active Shooter\", 7, IF(HUMAN2[[#This Row],[Evacuation]]=\"Yes\",Scoring!$M$49,0))","v":0},{"$f":"IF(HUMAN2[[#This Row],[Threat/Hazard]]=\"Active Shooter\", 7, IF(HUMAN2[[#This Row],[Evacuation]]=\"Yes\",Scoring!$M$49,0))","v":0}]
["Violent Crime",{"$f":"INDEX(USER_HAZ_COMP[Power],MATCH(HUMAN2[[#This Row],[Threat/Hazard]],USER_HAZ_COMP[Threat/Hazard],0))","v":0},{"$f":"INDEX(USER_HAZ_COMP[Water],MATCH(HUMAN2[[#This Row],[Threat/Hazard]],USER_HAZ_COMP[Threat/Hazard],0))","v":0},{"$f":"INDEX(USER_HAZ_COMP[Data and information management],MATCH(HUMAN2[[#This Row],[Threat/Hazard]],USER_HAZ_COMP[Threat/Hazard],0))","v":0},{"$f":"INDEX(USER_HAZ_COMP[Medical gases],MATCH(HUMAN2[[#This Row],[Threat/Hazard]],USER_HAZ_COMP[Threat/Hazard],0))","v":0},{"$f":"INDEX(USER_HAZ_COMP[Staffing],MATCH(HUMAN2[[#This Row],[Threat/Hazard]],USER_HAZ_COMP[Threat/Hazard],0))","v":48},{"$f":"IF(HUMAN2[[#This Row],[Power]]>0, IF(HUMAN2[[#This Row],[Water]]>0, \"Yes\", \"No\"), \"No\")","v":"No"},{"$f":"IF(HUMAN2[[#This Row],[Threat/Hazard]]=\"Active Shooter\", 7, IF(AND(HUMAN2[[#This Row],[Power]]>0,HUMAN2[[#This Row],[Water]]>0)=TRUE, Scoring!$M$49, IF(HUMAN2[[#This Row],[Staffing]]>0, Scoring!$M$56, MAX(IF(HUMAN2[[#This Row],[Power]]>0,Scoring!$M$52,0),IF(HUMAN2[[#This Row],[Water]]>0,Scoring!$M$53,0),IF(HUMAN2[[#This Row],[Cyber]]>0,Scoring!$M$54,0),IF(HUMAN2[[#This Row],[Medical Gases]]>0,Scoring!$M$55,0)))))","v":0},{"$f":"IF(HUMAN2[[#This Row],[Threat/Hazard]]=\"Active Shooter\", 7, IF(HUMAN2[[#This Row],[Evacuation]]=\"Yes\",Scoring!$M$49,0))","v":0},{"$f":"IF(HUMAN2[[#This Row],[Threat/Hazard]]=\"Active Shooter\", 7, IF(HUMAN2[[#This Row],[Evacuation]]=\"Yes\", Scoring!$M$49,0))","v":0},{"$f":"IF(HUMAN2[[#This Row],[Threat/Hazard]]=\"Active Shooter\", 7, IF(HUMAN2[[#This Row],[Evacuation]]=\"Yes\",Scoring!$M$49,0))","v":0},{"$f":"IF(HUMAN2[[#This Row],[Threat/Hazard]]=\"Active Shooter\", 7, IF(HUMAN2[[#This Row],[Evacuation]]=\"Yes\",Scoring!$M$49,0))","v":0},{"$f":"IF(HUMAN2[[#This Row],[Threat/Hazard]]=\"Active Shooter\", 7, IF(HUMAN2[[#This Row],[Evacuation]]=\"Yes\",Scoring!$M$49,0))","v":0},{"$f":"IF(HUMAN2[[#This Row],[Threat/Hazard]]=\"Active Shooter\", 7, IF(HUMAN2[[#This Row],[Evacuation]]=\"Yes\",Scoring!$M$49,0))","v":0},{"$f":"IF(HUMAN2[[#This Row],[Threat/Hazard]]=\"Active Shooter\", 7, IF(HUMAN2[[#This Row],[Evacuation]]=\"Yes\",Scoring!$M$49,0))","v":0},{"$f":"IF(HUMAN2[[#This Row],[Threat/Hazard]]=\"Active Shooter\", 7, IF(HUMAN2[[#This Row],[Evacuation]]=\"Yes\",Scoring!$M$49,0))","v":0},{"$f":"IF(HUMAN2[[#This Row],[Threat/Hazard]]=\"Active Shooter\", 7, IF(HUMAN2[[#This Row],[Evacuation]]=\"Yes\",Scoring!$M$49,0))","v":0}]
["Property Crime",{"$f":"INDEX(USER_HAZ_COMP[Power],MATCH(HUMAN2[[#This Row],[Threat/Hazard]],USER_HAZ_COMP[Threat/Hazard],0))","v":0},{"$f":"INDEX(USER_HAZ_COMP[Water],MATCH(HUMAN2[[#This Row],[Threat/Hazard]],USER_HAZ_COMP[Threat/Hazard],0))","v":0},{"$f":"INDEX(USER_HAZ_COMP[Data and information management],MATCH(HUMAN2[[#This Row],[Threat/Hazard]],USER_HAZ_COMP[Threat/Hazard],0))","v":0},{"$f":"INDEX(USER_HAZ_COMP[Medical gases],MATCH(HUMAN2[[#This Row],[Threat/Hazard]],USER_HAZ_COMP[Threat/Hazard],0))","v":0},{"$f":"INDEX(USER_HAZ_COMP[Staffing],MATCH(HUMAN2[[#This Row],[Threat/Hazard]],USER_HAZ_COMP[Threat/Hazard],0))","v":48},{"$f":"IF(HUMAN2[[#This Row],[Power]]>0, IF(HUMAN2[[#This Row],[Water]]>0, \"Yes\", \"No\"), \"No\")","v":"No"},{"$f":"IF(HUMAN2[[#This Row],[Threat/Hazard]]=\"Active Shooter\", 7, IF(AND(HUMAN2[[#This Row],[Power]]>0,HUMAN2[[#This Row],[Water]]>0)=TRUE, Scoring!$M$49, IF(HUMAN2[[#This Row],[Staffing]]>0, Scoring!$M$56, MAX(IF(HUMAN2[[#This Row],[Power]]>0,Scoring!$M$52,0),IF(HUMAN2[[#This Row],[Water]]>0,Scoring!$M$53,0),IF(HUMAN2[[#This Row],[Cyber]]>0,Scoring!$M$54,0),IF(HUMAN2[[#This Row],[Medical Gases]]>0,Scoring!$M$55,0)))))","v":0},{"$f":"IF(HUMAN2[[#This Row],[Threat/Hazard]]=\"Active Shooter\", 7, IF(HUMAN2[[#This Row],[Evacuation]]=\"Yes\",Scoring!$M$49,0))","v":0},{"$f":"IF(HUMAN2[[#This Row],[Threat/Hazard]]=\"Active Shooter\", 7, IF(HUMAN2[[#This Row],[Evacuation]]=\"Yes\", Scoring!$M$49,0))","v":0},{"$f":"IF(HUMAN2[[#This Row],[Threat/Hazard]]=\"Active Shooter\", 7, IF(HUMAN2[[#This Row],[Evacuation]]=\"Yes\",Scoring!$M$49,0))","v":0},{"$f":"IF(HUMAN2[[#This Row],[Threat/Hazard]]=\"Active Shooter\", 7, IF(HUMAN2[[#This Row],[Evacuation]]=\"Yes\",Scoring!$M$49,0))","v":0},{"$f":"IF(HUMAN2[[#This Row],[Threat/Hazard]]=\"Active Shooter\", 7, IF(HUMAN2[[#This Row],[Evacuation]]=\"Yes\",Scoring!$M$49,0))","v":0},{"$f":"IF(HUMAN2[[#This Row],[Threat/Hazard]]=\"Active Shooter\", 7, IF(HUMAN2[[#This Row],[Evacuation]]=\"Yes\",Scoring!$M$49,0))","v":0},{"$f":"IF(HUMAN2[[#This Row],[Threat/Hazard]]=\"Active Shooter\", 7, IF(HUMAN2[[#This Row],[Evacuation]]=\"Yes\",Scoring!$M$49,0))","v":0},{"$f":"IF(HUMAN2[[#This Row],[Threat/Hazard]]=\"Active Shooter\", 7, IF(HUMAN2[[#This Row],[Evacuation]]=\"Yes\",Scoring!$M$49,0))","v":0},{"$f":"IF(HUMAN2[[#This Row],[Threat/Hazard]]=\"Active Shooter\", 7, IF(HUMAN2[[#This Row],[Evacuation]]=\"Yes\",Scoring!$M$49,0))","v":0}]
["Earthquake",{"$f":"INDEX(USER_HAZ_COMP[Power],MATCH(HUMAN2[[#This Row],[Threat/Hazard]],USER_HAZ_COMP[Threat/Hazard],0))","v":48},{"$f":"INDEX(USER_HAZ_COMP[Water],MATCH(HUMAN2[[#This Row],[Threat/Hazard]],USER_HAZ_COMP[Threat/Hazard],0))","v":48},{"$f":"INDEX(USER_HAZ_COMP[Data and information management],MATCH(HUMAN2[[#This Row],[Threat/Hazard]],USER_HAZ_COMP[Threat/Hazard],0))","v":0},{"$f":"INDEX(USER_HAZ_COMP[Medical gases],MATCH(HUMAN2[[#This Row],[Threat/Hazard]],USER_HAZ_COMP[Threat/Hazard],0))","v":0},{"$f":"INDEX(USER_HAZ_COMP[Staffing],MATCH(HUMAN2[[#This Row],[Threat/Hazard]],USER_HAZ_COMP[Threat/Hazard],0))","v":48},{"$f":"IF(HUMAN2[[#This Row],[Power]]>0, IF(HUMAN2[[#This Row],[Water]]>0, \"Yes\", \"No\"), \"No\")","v":"Yes"},{"$f":"IF(HUMAN2[[#This Row],[Threat/Hazard]]=\"Active Shooter\", 7, IF(AND(HUMAN2[[#This Row],[Power]]>0,HUMAN2[[#This Row],[Water]]>0)=TRUE, Scoring!$M$49, IF(HUMAN2[[#This Row],[Staffing]]>0, Scoring!$M$56, MAX(IF(HUMAN2[[#This Row],[Power]]>0,Scoring!$M$52,0),IF(HUMAN2[[#This Row],[Water]]>0,Scoring!$M$53,0),IF(HUMAN2[[#This Row],[Cyber]]>0,Scoring!$M$54,0),IF(HUMAN2[[#This Row],[Medical Gases]]>0,Scoring!$M$55,0)))))","v":0},{"$f":"IF(HUMAN2[[#This Row],[Threat/Hazard]]=\"Active Shooter\", 7, IF(HUMAN2[[#This Row],[Evacuation]]=\"Yes\",Scoring!$M$49,0))","v":0},{"$f":"IF(HUMAN2[[#This Row],[Threat/Hazard]]=\"Active Shooter\", 7, IF(HUMAN2[[#This Row],[Evacuation]]=\"Yes\", Scoring!$M$49,0))","v":0},{"$f":"IF(HUMAN2[[#This Row],[Threat/Hazard]]=\"Active Shooter\", 7, IF(HUMAN2[[#This Row],[Evacuation]]=\"Yes\",Scoring!$M$49,0))","v":0},{"$f":"IF(HUMAN2[[#This Row],[Threat/Hazard]]=\"Active Shooter\", 7, IF(HUMAN2[[#This Row],[Evacuation]]=\"Yes\",Scoring!$M$49,0))","v":0},{"$f":"IF(HUMAN2[[#This Row],[Threat/Hazard]]=\"Active Shooter\", 7, IF(HUMAN2[[#This Row],[Evacuation]]=\"Yes\",Scoring!$M$49,0))","v":0},{"$f":"IF(HUMAN2[[#This Row],[Threat/Hazard]]=\"Active Shooter\", 7, IF(HUMAN2[[#This Row],[Evacuation]]=\"Yes\",Scoring!$M$49,0))","v":0},{"$f":"IF(HUMAN2[[#This Row],[Threat/Hazard]]=\"Active Shooter\", 7, IF(HUMAN2[[#This Row],[Evacuation]]=\"Yes\",Scoring!$M$49,0))","v":0},{"$f":"IF(HUMAN2[[#This Row],[Threat/Hazard]]=\"Active Shooter\", 7, IF(HUMAN2[[#This Row],[Evacuation]]=\"Yes\",Scoring!$M$49,0))","v":0},{"$f":"IF(HUMAN2[[#This Row],[Threat/Hazard]]=\"Active Shooter\", 7, IF(HUMAN2[[#This Row],[Evacuation]]=\"Yes\",Scoring!$M$49,0))","v":0}]
["Tsunami",{"$f":"INDEX(USER_HAZ_COMP[Power],MATCH(HUMAN2[[#This Row],[Threat/Hazard]],USER_HAZ_COMP[Threat/Hazard],0))","v":48},{"$f":"INDEX(USER_HAZ_COMP[Water],MATCH(HUMAN2[[#This Row],[Threat/Hazard]],USER_HAZ_COMP[Threat/Hazard],0))","v":48},{"$f":"INDEX(USER_HAZ_COMP[Data and information management],MATCH(HUMAN2[[#This Row],[Threat/Hazard]],USER_HAZ_COMP[Threat/Hazard],0))","v":0},{"$f":"INDEX(USER_HAZ_COMP[Medical gases],MATCH(HUMAN2[[#This Row],[Threat/Hazard]],USER_HAZ_COMP[Threat/Hazard],0))","v":0},{"$f":"INDEX(USER_HAZ_COMP[Staffing],MATCH(HUMAN2[[#This Row],[Threat/Hazard]],USER_HAZ_COMP[Threat/Hazard],0))","v":48},{"$f":"IF(HUMAN2[[#This Row],[Power]]>0, IF(HUMAN2[[#This Row],[Water]]>0, \"Yes\", \"No\"), \"No\")","v":"Yes"},{"$f":"IF(HUMAN2[[#This Row],[Threat/Hazard]]=\"Active Shooter\", 7, IF(AND(HUMAN2[[#This Row],[Power]]>0,HUMAN2[[#This Row],[Water]]>0)=TRUE, Scoring!$M$49, IF(HUMAN2[[#This Row],[Staffing]]>0, Scoring!$M$56, MAX(IF(HUMAN2[[#This Row],[Power]]>0,Scoring!$M$52,0),IF(HUMAN2[[#This Row],[Water]]>0,Scoring!$M$53,0),IF(HUMAN2[[#This Row],[Cyber]]>0,Scoring!$M$54,0),IF(HUMAN2[[#This Row],[Medical Gases]]>0,Scoring!$M$55,0)))))","v":0},{"$f":"IF(HUMAN2[[#This Row],[Threat/Hazard]]=\"Active Shooter\", 7, IF(HUMAN2[[#This Row],[Evacuation]]=\"Yes\",Scoring!$M$49,0))","v":0},{"$f":"IF(HUMAN2[[#This Row],[Threat/Hazard]]=\"Active Shooter\", 7, IF(HUMAN2[[#This Row],[Evacuation]]=\"Yes\", Scoring!$M$49,0))","v":0},{"$f":"IF(HUMAN2[[#This Row],[Threat/Hazard]]=\"Active Shooter\", 7, IF(HUMAN2[[#This Row],[Evacuation]]=\"Yes\",Scoring!$M$49,0))","v":0},{"$f":"IF(HUMAN2[[#This Row],[Threat/Hazard]]=\"Active Shooter\", 7, IF(HUMAN2[[#This Row],[Evacuation]]=\"Yes\",Scoring!$M$49,0))","v":0},{"$f":"IF(HUMAN2[[#This Row],[Threat/Hazard]]=\"Active Shooter\", 7, IF(HUMAN2[[#This Row],[Evacuation]]=\"Yes\",Scoring!$M$49,0))","v":0},{"$f":"IF(HUMAN2[[#This Row],[Threat/Hazard]]=\"Active Shooter\", 7, IF(HUMAN2[[#This Row],[Evacuation]]=\"Yes\",Scoring!$M$49,0))","v":0},{"$f":"IF(HUMAN2[[#This Row],[Threat/Hazard]]=\"Active Shooter\", 7, IF(HUMAN2[[#This Row],[Evacuation]]=\"Yes\",Scoring!$M$49,0))","v":0},{"$f":"IF(HUMAN2[[#This Row],[Threat/Hazard]]=\"Active Shooter\", 7, IF(HUMAN2[[#This Row],[Evacuation]]=\"Yes\",Scoring!$M$49,0))","v":0},{"$f":"IF(HUMAN2[[#This Row],[Threat/Hazard]]=\"Active Shooter\", 7, IF(HUMAN2[[#This Row],[Evacuation]]=\"Yes\",Scoring!$M$49,0))","v":0}]
["Landslide",{"$f":"INDEX(USER_HAZ_COMP[Power],MATCH(HUMAN2[[#This Row],[Threat/Hazard]],USER_HAZ_COMP[Threat/Hazard],0))","v":48},{"$f":"INDEX(USER_HAZ_COMP[Water],MATCH(HUMAN2[[#This Row],[Threat/Hazard]],USER_HAZ_COMP[Threat/Hazard],0))","v":48},{"$f":"INDEX(USER_HAZ_COMP[Data and information management],MATCH(HUMAN2[[#This Row],[Threat/Hazard]],USER_HAZ_COMP[Threat/Hazard],0))","v":0},{"$f":"INDEX(USER_HAZ_COMP[Medical gases],MATCH(HUMAN2[[#This Row],[Threat/Hazard]],USER_HAZ_COMP[Threat/Hazard],0))","v":0},{"$f":"INDEX(USER_HAZ_COMP[Staffing],MATCH(HUMAN2[[#This Row],[Threat/Hazard]],USER_HAZ_COMP[Threat/Hazard],0))","v":48},{"$f":"IF(HUMAN2[[#This Row],[Power]]>0, IF(HUMAN2[[#This Row],[Water]]>0, \"Yes\", \"No\"), \"No\")","v":"Yes"},{"$f":"IF(HUMAN2[[#This Row],[Threat/Hazard]]=\"Active Shooter\", 7, IF(AND(HUMAN2[[#This Row],[Power]]>0,HUMAN2[[#This Row],[Water]]>0)=TRUE, Scoring!$M$49, IF(HUMAN2[[#This Row],[Staffing]]>0, Scoring!$M$56, MAX(IF(HUMAN2[[#This Row],[Power]]>0,Scoring!$M$52,0),IF(HUMAN2[[#This Row],[Water]]>0,Scoring!$M$53,0),IF(HUMAN2[[#This Row],[Cyber]]>0,Scoring!$M$54,0),IF(HUMAN2[[#This Row],[Medical Gases]]>0,Scoring!$M$55,0)))))","v":0},{"$f":"IF(HUMAN2[[#This Row],[Threat/Hazard]]=\"Active Shooter\", 7, IF(HUMAN2[[#This Row],[Evacuation]]=\"Yes\",Scoring!$M$49,0))","v":0},{"$f":"IF(HUMAN2[[#This Row],[Threat/Hazard]]=\"Active Shooter\", 7, IF(HUMAN2[[#This Row],[Evacuation]]=\"Yes\", Scoring!$M$49,0))","v":0},{"$f":"IF(HUMAN2[[#This Row],[Threat/Hazard]]=\"Active Shooter\", 7, IF(HUMAN2[[#This Row],[Evacuation]]=\"Yes\",Scoring!$M$49,0))","v":0},{"$f":"IF(HUMAN2[[#This Row],[Threat/Hazard]]=\"Active Shooter\", 7, IF(HUMAN2[[#This Row],[Evacuation]]=\"Yes\",Scoring!$M$49,0))","v":0},{"$f":"IF(HUMAN2[[#This Row],[Threat/Hazard]]=\"Active Shooter\", 7, IF(HUMAN2[[#This Row],[Evacuation]]=\"Yes\",Scoring!$M$49,0))","v":0},{"$f":"IF(HUMAN2[[#This Row],[Threat/Hazard]]=\"Active Shooter\", 7, IF(HUMAN2[[#This Row],[Evacuation]]=\"Yes\",Scoring!$M$49,0))","v":0},{"$f":"IF(HUMAN2[[#This Row],[Threat/Hazard]]=\"Active Shooter\", 7, IF(HUMAN2[[#This Row],[Evacuation]]=\"Yes\",Scoring!$M$49,0))","v":0},{"$f":"IF(HUMAN2[[#This Row],[Threat/Hazard]]=\"Active Shooter\", 7, IF(HUMAN2[[#This Row],[Evacuation]]=\"Yes\",Scoring!$M$49,0))","v":0},{"$f":"IF(HUMAN2[[#This Row],[Threat/Hazard]]=\"Active Shooter\", 7, IF(HUMAN2[[#This Row],[Evacuation]]=\"Yes\",Scoring!$M$49,0))","v":0}]
["Subsidence (Sinkhole)",{"$f":"INDEX(USER_HAZ_COMP[Power],MATCH(HUMAN2[[#This Row],[Threat/Hazard]],USER_HAZ_COMP[Threat/Hazard],0))","v":48},{"$f":"INDEX(USER_HAZ_COMP[Water],MATCH(HUMAN2[[#This Row],[Threat/Hazard]],USER_HAZ_COMP[Threat/Hazard],0))","v":48},{"$f":"INDEX(USER_HAZ_COMP[Data and information management],MATCH(HUMAN2[[#This Row],[Threat/Hazard]],USER_HAZ_COMP[Threat/Hazard],0))","v":0},{"$f":"INDEX(USER_HAZ_COMP[Medical gases],MATCH(HUMAN2[[#This Row],[Threat/Hazard]],USER_HAZ_COMP[Threat/Hazard],0))","v":0},{"$f":"INDEX(USER_HAZ_COMP[Staffing],MATCH(HUMAN2[[#This Row],[Threat/Hazard]],USER_HAZ_COMP[Threat/Hazard],0))","v":48},{"$f":"IF(HUMAN2[[#This Row],[Power]]>0, IF(HUMAN2[[#This Row],[Water]]>0, \"Yes\", \"No\"), \"No\")","v":"Yes"},{"$f":"IF(HUMAN2[[#This Row],[Threat/Hazard]]=\"Active Shooter\", 7, IF(AND(HUMAN2[[#This Row],[Power]]>0,HUMAN2[[#This Row],[Water]]>0)=TRUE, Scoring!$M$49, IF(HUMAN2[[#This Row],[Staffing]]>0, Scoring!$M$56, MAX(IF(HUMAN2[[#This Row],[Power]]>0,Scoring!$M$52,0),IF(HUMAN2[[#This Row],[Water]]>0,Scoring!$M$53,0),IF(HUMAN2[[#This Row],[Cyber]]>0,Scoring!$M$54,0),IF(HUMAN2[[#This Row],[Medical Gases]]>0,Scoring!$M$55,0)))))","v":0},{"$f":"IF(HUMAN2[[#This Row],[Threat/Hazard]]=\"Active Shooter\", 7, IF(HUMAN2[[#This Row],[Evacuation]]=\"Yes\",Scoring!$M$49,0))","v":0},{"$f":"IF(HUMAN2[[#This Row],[Threat/Hazard]]=\"Active Shooter\", 7, IF(HUMAN2[[#This Row],[Evacuation]]=\"Yes\", Scoring!$M$49,0))","v":0},{"$f":"IF(HUMAN2[[#This Row],[Threat/Hazard]]=\"Active Shooter\", 7, IF(HUMAN2[[#This Row],[Evacuation]]=\"Yes\",Scoring!$M$49,0))","v":0},{"$f":"IF(HUMAN2[[#This Row],[Threat/Hazard]]=\"Active Shooter\", 7, IF(HUMAN2[[#This Row],[Evacuation]]=\"Yes\",Scoring!$M$49,0))","v":0},{"$f":"IF(HUMAN2[[#This Row],[Threat/Hazard]]=\"Active Shooter\", 7, IF(HUMAN2[[#This Row],[Evacuation]]=\"Yes\",Scoring!$M$49,0))","v":0},{"$f":"IF(HUMAN2[[#This Row],[Threat/Hazard]]=\"Active Shooter\", 7, IF(HUMAN2[[#This Row],[Evacuation]]=\"Yes\",Scoring!$M$49,0))","v":0},{"$f":"IF(HUMAN2[[#This Row],[Threat/Hazard]]=\"Active Shooter\", 7, IF(HUMAN2[[#This Row],[Evacuation]]=\"Yes\",Scoring!$M$49,0))","v":0},{"$f":"IF(HUMAN2[[#This Row],[Threat/Hazard]]=\"Active Shooter\", 7, IF(HUMAN2[[#This Row],[Evacuation]]=\"Yes\",Scoring!$M$49,0))","v":0},{"$f":"IF(HUMAN2[[#This Row],[Threat/Hazard]]=\"Active Shooter\", 7, IF(HUMAN2[[#This Row],[Evacuation]]=\"Yes\",Scoring!$M$49,0))","v":0}]
["Volcano",{"$f":"INDEX(USER_HAZ_COMP[Power],MATCH(HUMAN2[[#This Row],[Threat/Hazard]],USER_HAZ_COMP[Threat/Hazard],0))","v":48},{"$f":"INDEX(USER_HAZ_COMP[Water],MATCH(HUMAN2[[#This Row],[Threat/Hazard]],USER_HAZ_COMP[Threat/Hazard],0))","v":48},{"$f":"INDEX(USER_HAZ_COMP[Data and information management],MATCH(HUMAN2[[#This Row],[Threat/Hazard]],USER_HAZ_COMP[Threat/Hazard],0))","v":0},{"$f":"INDEX(USER_HAZ_COMP[Medical gases],MATCH(HUMAN2[[#This Row],[Threat/Hazard]],USER_HAZ_COMP[Threat/Hazard],0))","v":0},{"$f":"INDEX(USER_HAZ_COMP[Staffing],MATCH(HUMAN2[[#This Row],[Threat/Hazard]],USER_HAZ_COMP[Threat/Hazard],0))","v":48},{"$f":"IF(HUMAN2[[#This Row],[Power]]>0, IF(HUMAN2[[#This Row],[Water]]>0, \"Yes\", \"No\"), \"No\")","v":"Yes"},{"$f":"IF(HUMAN2[[#This Row],[Threat/Hazard]]=\"Active Shooter\", 7, IF(AND(HUMAN2[[#This Row],[Power]]>0,HUMAN2[[#This Row],[Water]]>0)=TRUE, Scoring!$M$49, IF(HUMAN2[[#This Row],[Staffing]]>0, Scoring!$M$56, MAX(IF(HUMAN2[[#This Row],[Power]]>0,Scoring!$M$52,0),IF(HUMAN2[[#This Row],[Water]]>0,Scoring!$M$53,0),IF(HUMAN2[[#This Row],[Cyber]]>0,Scoring!$M$54,0),IF(HUMAN2[[#This Row],[Medical Gases]]>0,Scoring!$M$55,0)))))","v":0},{"$f":"IF(HUMAN2[[#This Row],[Threat/Hazard]]=\"Active Shooter\", 7, IF(HUMAN2[[#This Row],[Evacuation]]=\"Yes\",Scoring!$M$49,0))","v":0},{"$f":"IF(HUMAN2[[#This Row],[Threat/Hazard]]=\"Active Shooter\", 7, IF(HUMAN2[[#This Row],[Evacuation]]=\"Yes\", Scoring!$M$49,0))","v":0},{"$f":"IF(HUMAN2[[#This Row],[Threat/Hazard]]=\"Active Shooter\", 7, IF(HUMAN2[[#This Row],[Evacuation]]=\"Yes\",Scoring!$M$49,0))","v":0},{"$f":"IF(HUMAN2[[#This Row],[Threat/Hazard]]=\"Active Shooter\", 7, IF(HUMAN2[[#This Row],[Evacuation]]=\"Yes\",Scoring!$M$49,0))","v":0},{"$f":"IF(HUMAN2[[#This Row],[Threat/Hazard]]=\"Active Shooter\", 7, IF(HUMAN2[[#This Row],[Evacuation]]=\"Yes\",Scoring!$M$49,0))","v":0},{"$f":"IF(HUMAN2[[#This Row],[Threat/Hazard]]=\"Active Shooter\", 7, IF(HUMAN2[[#This Row],[Evacuation]]=\"Yes\",Scoring!$M$49,0))","v":0},{"$f":"IF(HUMAN2[[#This Row],[Threat/Hazard]]=\"Active Shooter\", 7, IF(HUMAN2[[#This Row],[Evacuation]]=\"Yes\",Scoring!$M$49,0))","v":0},{"$f":"IF(HUMAN2[[#This Row],[Threat/Hazard]]=\"Active Shooter\", 7, IF(HUMAN2[[#This Row],[Evacuation]]=\"Yes\",Scoring!$M$49,0))","v":0},{"$f":"IF(HUMAN2[[#This Row],[Threat/Hazard]]=\"Active Shooter\", 7, IF(HUMAN2[[#This Row],[Evacuation]]=\"Yes\",Scoring!$M$49,0))","v":0}]
["Damaging Winds",{"$f":"INDEX(USER_HAZ_COMP[Power],MATCH(HUMAN2[[#This Row],[Threat/Hazard]],USER_HAZ_COMP[Threat/Hazard],0))","v":48},{"$f":"INDEX(USER_HAZ_COMP[Water],MATCH(HUMAN2[[#This Row],[Threat/Hazard]],USER_HAZ_COMP[Threat/Hazard],0))","v":0},{"$f":"INDEX(USER_HAZ_COMP[Data and information management],MATCH(HUMAN2[[#This Row],[Threat/Hazard]],USER_HAZ_COMP[Threat/Hazard],0))","v":48},{"$f":"INDEX(USER_HAZ_COMP[Medical gases],MATCH(HUMAN2[[#This Row],[Threat/Hazard]],USER_HAZ_COMP[Threat/Hazard],0))","v":0},{"$f":"INDEX(USER_HAZ_COMP[Staffing],MATCH(HUMAN2[[#This Row],[Threat/Hazard]],USER_HAZ_COMP[Threat/Hazard],0))","v":48},{"$f":"IF(HUMAN2[[#This Row],[Power]]>0, IF(HUMAN2[[#This Row],[Water]]>0, \"Yes\", \"No\"), \"No\")","v":"No"},{"$f":"IF(HUMAN2[[#This Row],[Threat/Hazard]]=\"Active Shooter\", 7, IF(AND(HUMAN2[[#This Row],[Power]]>0,HUMAN2[[#This Row],[Water]]>0)=TRUE, Scoring!$M$49, IF(HUMAN2[[#This Row],[Staffing]]>0, Scoring!$M$56, MAX(IF(HUMAN2[[#This Row],[Power]]>0,Scoring!$M$52,0),IF(HUMAN2[[#This Row],[Water]]>0,Scoring!$M$53,0),IF(HUMAN2[[#This Row],[Cyber]]>0,Scoring!$M$54,0),IF(HUMAN2[[#This Row],[Medical Gases]]>0,Scoring!$M$55,0)))))","v":0},{"$f":"IF(HUMAN2[[#This Row],[Threat/Hazard]]=\"Active Shooter\", 7, IF(HUMAN2[[#This Row],[Evacuation]]=\"Yes\",Scoring!$M$49,0))","v":0},{"$f":"IF(HUMAN2[[#This Row],[Threat/Hazard]]=\"Active Shooter\", 7, IF(HUMAN2[[#This Row],[Evacuation]]=\"Yes\", Scoring!$M$49,0))","v":0},{"$f":"IF(HUMAN2[[#This Row],[Threat/Hazard]]=\"Active Shooter\", 7, IF(HUMAN2[[#This Row],[Evacuation]]=\"Yes\",Scoring!$M$49,0))","v":0},{"$f":"IF(HUMAN2[[#This Row],[Threat/Hazard]]=\"Active Shooter\", 7, IF(HUMAN2[[#This Row],[Evacuation]]=\"Yes\",Scoring!$M$49,0))","v":0},{"$f":"IF(HUMAN2[[#This Row],[Threat/Hazard]]=\"Active Shooter\", 7, IF(HUMAN2[[#This Row],[Evacuation]]=\"Yes\",Scoring!$M$49,0))","v":0},{"$f":"IF(HUMAN2[[#This Row],[Threat/Hazard]]=\"Active Shooter\", 7, IF(HUMAN2[[#This Row],[Evacuation]]=\"Yes\",Scoring!$M$49,0))","v":0},{"$f":"IF(HUMAN2[[#This Row],[Threat/Hazard]]=\"Active Shooter\", 7, IF(HUMAN2[[#This Row],[Evacuation]]=\"Yes\",Scoring!$M$49,0))","v":0},{"$f":"IF(HUMAN2[[#This Row],[Threat/Hazard]]=\"Active Shooter\", 7, IF(HUMAN2[[#This Row],[Evacuation]]=\"Yes\",Scoring!$M$49,0))","v":0},{"$f":"IF(HUMAN2[[#This Row],[Threat/Hazard]]=\"Active Shooter\", 7, IF(HUMAN2[[#This Row],[Evacuation]]=\"Yes\",Scoring!$M$49,0))","v":0}]
["Drought",{"$f":"INDEX(USER_HAZ_COMP[Power],MATCH(HUMAN2[[#This Row],[Threat/Hazard]],USER_HAZ_COMP[Threat/Hazard],0))","v":0},{"$f":"INDEX(USER_HAZ_COMP[Water],MATCH(HUMAN2[[#This Row],[Threat/Hazard]],USER_HAZ_COMP[Threat/Hazard],0))","v":48},{"$f":"INDEX(USER_HAZ_COMP[Data and information management],MATCH(HUMAN2[[#This Row],[Threat/Hazard]],USER_HAZ_COMP[Threat/Hazard],0))","v":0},{"$f":"INDEX(USER_HAZ_COMP[Medical gases],MATCH(HUMAN2[[#This Row],[Threat/Hazard]],USER_HAZ_COMP[Threat/Hazard],0))","v":48},{"$f":"INDEX(USER_HAZ_COMP[Staffing],MATCH(HUMAN2[[#This Row],[Threat/Hazard]],USER_HAZ_COMP[Threat/Hazard],0))","v":48},{"$f":"IF(HUMAN2[[#This Row],[Power]]>0, IF(HUMAN2[[#This Row],[Water]]>0, \"Yes\", \"No\"), \"No\")","v":"No"},{"$f":"IF(HUMAN2[[#This Row],[Threat/Hazard]]=\"Active Shooter\", 7, IF(AND(HUMAN2[[#This Row],[Power]]>0,HUMAN2[[#This Row],[Water]]>0)=TRUE, Scoring!$M$49, IF(HUMAN2[[#This Row],[Staffing]]>0, Scoring!$M$56, MAX(IF(HUMAN2[[#This Row],[Power]]>0,Scoring!$M$52,0),IF(HUMAN2[[#This Row],[Water]]>0,Scoring!$M$53,0),IF(HUMAN2[[#This Row],[Cyber]]>0,Scoring!$M$54,0),IF(HUMAN2[[#This Row],[Medical Gases]]>0,Scoring!$M$55,0)))))","v":0},{"$f":"IF(HUMAN2[[#This Row],[Threat/Hazard]]=\"Active Shooter\", 7, IF(HUMAN2[[#This Row],[Evacuation]]=\"Yes\",Scoring!$M$49,0))","v":0},{"$f":"IF(HUMAN2[[#This Row],[Threat/Hazard]]=\"Active Shooter\", 7, IF(HUMAN2[[#This Row],[Evacuation]]=\"Yes\", Scoring!$M$49,0))","v":0},{"$f":"IF(HUMAN2[[#This Row],[Threat/Hazard]]=\"Active Shooter\", 7, IF(HUMAN2[[#This Row],[Evacuation]]=\"Yes\",Scoring!$M$49,0))","v":0},{"$f":"IF(HUMAN2[[#This Row],[Threat/Hazard]]=\"Active Shooter\", 7, IF(HUMAN2[[#This Row],[Evacuation]]=\"Yes\",Scoring!$M$49,0))","v":0},{"$f":"IF(HUMAN2[[#This Row],[Threat/Hazard]]=\"Active Shooter\", 7, IF(HUMAN2[[#This Row],[Evacuation]]=\"Yes\",Scoring!$M$49,0))","v":0},{"$f":"IF(HUMAN2[[#This Row],[Threat/Hazard]]=\"Active Shooter\", 7, IF(HUMAN2[[#This Row],[Evacuation]]=\"Yes\",Scoring!$M$49,0))","v":0},{"$f":"IF(HUMAN2[[#This Row],[Threat/Hazard]]=\"Active Shooter\", 7, IF(HUMAN2[[#This Row],[Evacuation]]=\"Yes\",Scoring!$M$49,0))","v":0},{"$f":"IF(HUMAN2[[#This Row],[Threat/Hazard]]=\"Active Shooter\", 7, IF(HUMAN2[[#This Row],[Evacuation]]=\"Yes\",Scoring!$M$49,0))","v":0},{"$f":"IF(HUMAN2[[#This Row],[Threat/Hazard]]=\"Active Shooter\", 7, IF(HUMAN2[[#This Row],[Evacuation]]=\"Yes\",Scoring!$M$49,0))","v":0}]
["Flash Flood",{"$f":"INDEX(USER_HAZ_COMP[Power],MATCH(HUMAN2[[#This Row],[Threat/Hazard]],USER_HAZ_COMP[Threat/Hazard],0))","v":48},{"$f":"INDEX(USER_HAZ_COMP[Water],MATCH(HUMAN2[[#This Row],[Threat/Hazard]],USER_HAZ_COMP[Threat/Hazard],0))","v":48},{"$f":"INDEX(USER_HAZ_COMP[Data and information management],MATCH(HUMAN2[[#This Row],[Threat/Hazard]],USER_HAZ_COMP[Threat/Hazard],0))","v":0},{"$f":"INDEX(USER_HAZ_COMP[Medical gases],MATCH(HUMAN2[[#This Row],[Threat/Hazard]],USER_HAZ_COMP[Threat/Hazard],0))","v":0},{"$f":"INDEX(USER_HAZ_COMP[Staffing],MATCH(HUMAN2[[#This Row],[Threat/Hazard]],USER_HAZ_COMP[Threat/Hazard],0))","v":48},{"$f":"IF(HUMAN2[[#This Row],[Power]]>0, IF(HUMAN2[[#This Row],[Water]]>0, \"Yes\", \"No\"), \"No\")","v":"Yes"},{"$f":"IF(HUMAN2[[#This Row],[Threat/Hazard]]=\"Active Shooter\", 7, IF(AND(HUMAN2[[#This Row],[Power]]>0,HUMAN2[[#This Row],[Water]]>0)=TRUE, Scoring!$M$49, IF(HUMAN2[[#This Row],[Staffing]]>0, Scoring!$M$56, MAX(IF(HUMAN2[[#This Row],[Power]]>0,Scoring!$M$52,0),IF(HUMAN2[[#This Row],[Water]]>0,Scoring!$M$53,0),IF(HUMAN2[[#This Row],[Cyber]]>0,Scoring!$M$54,0),IF(HUMAN2[[#This Row],[Medical Gases]]>0,Scoring!$M$55,0)))))","v":0},{"$f":"IF(HUMAN2[[#This Row],[Threat/Hazard]]=\"Active Shooter\", 7, IF(HUMAN2[[#This Row],[Evacuation]]=\"Yes\",Scoring!$M$49,0))","v":0},{"$f":"IF(HUMAN2[[#This Row],[Threat/Hazard]]=\"Active Shooter\", 7, IF(HUMAN2[[#This Row],[Evacuation]]=\"Yes\", Scoring!$M$49,0))","v":0},{"$f":"IF(HUMAN2[[#This Row],[Threat/Hazard]]=\"Active Shooter\", 7, IF(HUMAN2[[#This Row],[Evacuation]]=\"Yes\",Scoring!$M$49,0))","v":0},{"$f":"IF(HUMAN2[[#This Row],[Threat/Hazard]]=\"Active Shooter\", 7, IF(HUMAN2[[#This Row],[Evacuation]]=\"Yes\",Scoring!$M$49,0))","v":0},{"$f":"IF(HUMAN2[[#This Row],[Threat/Hazard]]=\"Active Shooter\", 7, IF(HUMAN2[[#This Row],[Evacuation]]=\"Yes\",Scoring!$M$49,0))","v":0},{"$f":"IF(HUMAN2[[#This Row],[Threat/Hazard]]=\"Active Shooter\", 7, IF(HUMAN2[[#This Row],[Evacuation]]=\"Yes\",Scoring!$M$49,0))","v":0},{"$f":"IF(HUMAN2[[#This Row],[Threat/Hazard]]=\"Active Shooter\", 7, IF(HUMAN2[[#This Row],[Evacuation]]=\"Yes\",Scoring!$M$49,0))","v":0},{"$f":"IF(HUMAN2[[#This Row],[Threat/Hazard]]=\"Active Shooter\", 7, IF(HUMAN2[[#This Row],[Evacuation]]=\"Yes\",Scoring!$M$49,0))","v":0},{"$f":"IF(HUMAN2[[#This Row],[Threat/Hazard]]=\"Active Shooter\", 7, IF(HUMAN2[[#This Row],[Evacuation]]=\"Yes\",Scoring!$M$49,0))","v":0}]
["Flood",{"$f":"INDEX(USER_HAZ_COMP[Power],MATCH(HUMAN2[[#This Row],[Threat/Hazard]],USER_HAZ_COMP[Threat/Hazard],0))","v":48},{"$f":"INDEX(USER_HAZ_COMP[Water],MATCH(HUMAN2[[#This Row],[Threat/Hazard]],USER_HAZ_COMP[Threat/Hazard],0))","v":48},{"$f":"INDEX(USER_HAZ_COMP[Data and information management],MATCH(HUMAN2[[#This Row],[Threat/Hazard]],USER_HAZ_COMP[Threat/Hazard],0))","v":0},{"$f":"INDEX(USER_HAZ_COMP[Medical gases],MATCH(HUMAN2[[#This Row],[Threat/Hazard]],USER_HAZ_COMP[Threat/Hazard],0))","v":0},{"$f":"INDEX(USER_HAZ_COMP[Staffing],MATCH(HUMAN2[[#This Row],[Threat/Hazard]],USER_HAZ_COMP[Threat/Hazard],0))","v":48},{"$f":"IF(HUMAN2[[#This Row],[Power]]>0, IF(HUMAN2[[#This Row],[Water]]>0, \"Yes\", \"No\"), \"No\")","v":"Yes"},{"$f":"IF(HUMAN2[[#This Row],[Threat/Hazard]]=\"Active Shooter\", 7, IF(AND(HUMAN2[[#This Row],[Power]]>0,HUMAN2[[#This Row],[Water]]>0)=TRUE, Scoring!$M$49, IF(HUMAN2[[#This Row],[Staffing]]>0, Scoring!$M$56, MAX(IF(HUMAN2[[#This Row],[Power]]>0,Scoring!$M$52,0),IF(HUMAN2[[#This Row],[Water]]>0,Scoring!$M$53,0),IF(HUMAN2[[#This Row],[Cyber]]>0,Scoring!$M$54,0),IF(HUMAN2[[#This Row],[Medical Gases]]>0,Scoring!$M$55,0)))))","v":0},{"$f":"IF(HUMAN2[[#This Row],[Threat/Hazard]]=\"Active Shooter\", 7, IF(HUMAN2[[#This Row],[Evacuation]]=\"Yes\",Scoring!$M$49,0))","v":0},{"$f":"IF(HUMAN2[[#This Row],[Threat/Hazard]]=\"Active Shooter\", 7, IF(HUMAN2[[#This Row],[Evacuation]]=\"Yes\", Scoring!$M$49,0))","v":0},{"$f":"IF(HUMAN2[[#This Row],[Threat/Hazard]]=\"Active Shooter\", 7, IF(HUMAN2[[#This Row],[Evacuation]]=\"Yes\",Scoring!$M$49,0))","v":0},{"$f":"IF(HUMAN2[[#This Row],[Threat/Hazard]]=\"Active Shooter\", 7, IF(HUMAN2[[#This Row],[Evacuation]]=\"Yes\",Scoring!$M$49,0))","v":0},{"$f":"IF(HUMAN2[[#This Row],[Threat/Hazard]]=\"Active Shooter\", 7, IF(HUMAN2[[#This Row],[Evacuation]]=\"Yes\",Scoring!$M$49,0))","v":0},{"$f":"IF(HUMAN2[[#This Row],[Threat/Hazard]]=\"Active Shooter\", 7, IF(HUMAN2[[#This Row],[Evacuation]]=\"Yes\",Scoring!$M$49,0))","v":0},{"$f":"IF(HUMAN2[[#This Row],[Threat/Hazard]]=\"Active Shooter\", 7, IF(HUMAN2[[#This Row],[Evacuation]]=\"Yes\",Scoring!$M$49,0))","v":0},{"$f":"IF(HUMAN2[[#This Row],[Threat/Hazard]]=\"Active Shooter\", 7, IF(HUMAN2[[#This Row],[Evacuation]]=\"Yes\",Scoring!$M$49,0))","v":0},{"$f":"IF(HUMAN2[[#This Row],[Threat/Hazard]]=\"Active Shooter\", 7, IF(HUMAN2[[#This Row],[Evacuation]]=\"Yes\",Scoring!$M$49,0))","v":0}]
["Hail",{"$f":"INDEX(USER_HAZ_COMP[Power],MATCH(HUMAN2[[#This Row],[Threat/Hazard]],USER_HAZ_COMP[Threat/Hazard],0))","v":48},{"$f":"INDEX(USER_HAZ_COMP[Water],MATCH(HUMAN2[[#This Row],[Threat/Hazard]],USER_HAZ_COMP[Threat/Hazard],0))","v":0},{"$f":"INDEX(USER_HAZ_COMP[Data and information management],MATCH(HUMAN2[[#This Row],[Threat/Hazard]],USER_HAZ_COMP[Threat/Hazard],0))","v":0},{"$f":"INDEX(USER_HAZ_COMP[Medical gases],MATCH(HUMAN2[[#This Row],[Threat/Hazard]],USER_HAZ_COMP[Threat/Hazard],0))","v":0},{"$f":"INDEX(USER_HAZ_COMP[Staffing],MATCH(HUMAN2[[#This Row],[Threat/Hazard]],USER_HAZ_COMP[Threat/Hazard],0))","v":48},{"$f":"IF(HUMAN2[[#This Row],[Power]]>0, IF(HUMAN2[[#This Row],[Water]]>0, \"Yes\", \"No\"), \"No\")","v":"No"},{"$f":"IF(HUMAN2[[#This Row],[Threat/Hazard]]=\"Active Shooter\", 7, IF(AND(HUMAN2[[#This Row],[Power]]>0,HUMAN2[[#This Row],[Water]]>0)=TRUE, Scoring!$M$49, IF(HUMAN2[[#This Row],[Staffing]]>0, Scoring!$M$56, MAX(IF(HUMAN2[[#This Row],[Power]]>0,Scoring!$M$52,0),IF(HUMAN2[[#This Row],[Water]]>0,Scoring!$M$53,0),IF(HUMAN2[[#This Row],[Cyber]]>0,Scoring!$M$54,0),IF(HUMAN2[[#This Row],[Medical Gases]]>0,Scoring!$M$55,0)))))","v":0},{"$f":"IF(HUMAN2[[#This Row],[Threat/Hazard]]=\"Active Shooter\", 7, IF(HUMAN2[[#This Row],[Evacuation]]=\"Yes\",Scoring!$M$49,0))","v":0},{"$f":"IF(HUMAN2[[#This Row],[Threat/Hazard]]=\"Active Shooter\", 7, IF(HUMAN2[[#This Row],[Evacuation]]=\"Yes\", Scoring!$M$49,0))","v":0},{"$f":"IF(HUMAN2[[#This Row],[Threat/Hazard]]=\"Active Shooter\", 7, IF(HUMAN2[[#This Row],[Evacuation]]=\"Yes\",Scoring!$M$49,0))","v":0},{"$f":"IF(HUMAN2[[#This Row],[Threat/Hazard]]=\"Active Shooter\", 7, IF(HUMAN2[[#This Row],[Evacuation]]=\"Yes\",Scoring!$M$49,0))","v":0},{"$f":"IF(HUMAN2[[#This Row],[Threat/Hazard]]=\"Active Shooter\", 7, IF(HUMAN2[[#This Row],[Evacuation]]=\"Yes\",Scoring!$M$49,0))","v":0},{"$f":"IF(HUMAN2[[#This Row],[Threat/Hazard]]=\"Active Shooter\", 7, IF(HUMAN2[[#This Row],[Evacuation]]=\"Yes\",Scoring!$M$49,0))","v":0},{"$f":"IF(HUMAN2[[#This Row],[Threat/Hazard]]=\"Active Shooter\", 7, IF(HUMAN2[[#This Row],[Evacuation]]=\"Yes\",Scoring!$M$49,0))","v":0},{"$f":"IF(HUMAN2[[#This Row],[Threat/Hazard]]=\"Active Shooter\", 7, IF(HUMAN2[[#This Row],[Evacuation]]=\"Yes\",Scoring!$M$49,0))","v":0},{"$f":"IF(HUMAN2[[#This Row],[Threat/Hazard]]=\"Active Shooter\", 7, IF(HUMAN2[[#This Row],[Evacuation]]=\"Yes\",Scoring!$M$49,0))","v":0}]
["Ice Storm",{"$f":"INDEX(USER_HAZ_COMP[Power],MATCH(HUMAN2[[#This Row],[Threat/Hazard]],USER_HAZ_COMP[Threat/Hazard],0))","v":48},{"$f":"INDEX(USER_HAZ_COMP[Water],MATCH(HUMAN2[[#This Row],[Threat/Hazard]],USER_HAZ_COMP[Threat/Hazard],0))","v":48},{"$f":"INDEX(USER_HAZ_COMP[Data and information management],MATCH(HUMAN2[[#This Row],[Threat/Hazard]],USER_HAZ_COMP[Threat/Hazard],0))","v":48},{"$f":"INDEX(USER_HAZ_COMP[Medical gases],MATCH(HUMAN2[[#This Row],[Threat/Hazard]],USER_HAZ_COMP[Threat/Hazard],0))","v":0},{"$f":"INDEX(USER_HAZ_COMP[Staffing],MATCH(HUMAN2[[#This Row],[Threat/Hazard]],USER_HAZ_COMP[Threat/Hazard],0))","v":48},{"$f":"IF(HUMAN2[[#This Row],[Power]]>0, IF(HUMAN2[[#This Row],[Water]]>0, \"Yes\", \"No\"), \"No\")","v":"Yes"},{"$f":"IF(HUMAN2[[#This Row],[Threat/Hazard]]=\"Active Shooter\", 7, IF(AND(HUMAN2[[#This Row],[Power]]>0,HUMAN2[[#This Row],[Water]]>0)=TRUE, Scoring!$M$49, IF(HUMAN2[[#This Row],[Staffing]]>0, Scoring!$M$56, MAX(IF(HUMAN2[[#This Row],[Power]]>0,Scoring!$M$52,0),IF(HUMAN2[[#This Row],[Water]]>0,Scoring!$M$53,0),IF(HUMAN2[[#This Row],[Cyber]]>0,Scoring!$M$54,0),IF(HUMAN2[[#This Row],[Medical Gases]]>0,Scoring!$M$55,0)))))","v":0},{"$f":"IF(HUMAN2[[#This Row],[Threat/Hazard]]=\"Active Shooter\", 7, IF(HUMAN2[[#This Row],[Evacuation]]=\"Yes\",Scoring!$M$49,0))","v":0},{"$f":"IF(HUMAN2[[#This Row],[Threat/Hazard]]=\"Active Shooter\", 7, IF(HUMAN2[[#This Row],[Evacuation]]=\"Yes\", Scoring!$M$49,0))","v":0},{"$f":"IF(HUMAN2[[#This Row],[Threat/Hazard]]=\"Active Shooter\", 7, IF(HUMAN2[[#This Row],[Evacuation]]=\"Yes\",Scoring!$M$49,0))","v":0},{"$f":"IF(HUMAN2[[#This Row],[Threat/Hazard]]=\"Active Shooter\", 7, IF(HUMAN2[[#This Row],[Evacuation]]=\"Yes\",Scoring!$M$49,0))","v":0},{"$f":"IF(HUMAN2[[#This Row],[Threat/Hazard]]=\"Active Shooter\", 7, IF(HUMAN2[[#This Row],[Evacuation]]=\"Yes\",Scoring!$M$49,0))","v":0},{"$f":"IF(HUMAN2[[#This Row],[Threat/Hazard]]=\"Active Shooter\", 7, IF(HUMAN2[[#This Row],[Evacuation]]=\"Yes\",Scoring!$M$49,0))","v":0},{"$f":"IF(HUMAN2[[#This Row],[Threat/Hazard]]=\"Active Shooter\", 7, IF(HUMAN2[[#This Row],[Evacuation]]=\"Yes\",Scoring!$M$49,0))","v":0},{"$f":"IF(HUMAN2[[#This Row],[Threat/Hazard]]=\"Active Shooter\", 7, IF(HUMAN2[[#This Row],[Evacuation]]=\"Yes\",Scoring!$M$49,0))","v":0},{"$f":"IF(HUMAN2[[#This Row],[Threat/Hazard]]=\"Active Shooter\", 7, IF(HUMAN2[[#This Row],[Evacuation]]=\"Yes\",Scoring!$M$49,0))","v":0}]
["Snow Fall/Blizzard",{"$f":"INDEX(USER_HAZ_COMP[Power],MATCH(HUMAN2[[#This Row],[Threat/Hazard]],USER_HAZ_COMP[Threat/Hazard],0))","v":48},{"$f":"INDEX(USER_HAZ_COMP[Water],MATCH(HUMAN2[[#This Row],[Threat/Hazard]],USER_HAZ_COMP[Threat/Hazard],0))","v":48},{"$f":"INDEX(USER_HAZ_COMP[Data and information management],MATCH(HUMAN2[[#This Row],[Threat/Hazard]],USER_HAZ_COMP[Threat/Hazard],0))","v":48},{"$f":"INDEX(USER_HAZ_COMP[Medical gases],MATCH(HUMAN2[[#This Row],[Threat/Hazard]],USER_HAZ_COMP[Threat/Hazard],0))","v":0},{"$f":"INDEX(USER_HAZ_COMP[Staffing],MATCH(HUMAN2[[#This Row],[Threat/Hazard]],USER_HAZ_COMP[Threat/Hazard],0))","v":48},{"$f":"IF(HUMAN2[[#This Row],[Power]]>0, IF(HUMAN2[[#This Row],[Water]]>0, \"Yes\", \"No\"), \"No\")","v":"Yes"},{"$f":"IF(HUMAN2[[#This Row],[Threat/Hazard]]=\"Active Shooter\", 7, IF(AND(HUMAN2[[#This Row],[Power]]>0,HUMAN2[[#This Row],[Water]]>0)=TRUE, Scoring!$M$49, IF(HUMAN2[[#This Row],[Staffing]]>0, Scoring!$M$56, MAX(IF(HUMAN2[[#This Row],[Power]]>0,Scoring!$M$52,0),IF(HUMAN2[[#This Row],[Water]]>0,Scoring!$M$53,0),IF(HUMAN2[[#This Row],[Cyber]]>0,Scoring!$M$54,0),IF(HUMAN2[[#This Row],[Medical Gases]]>0,Scoring!$M$55,0)))))","v":0},{"$f":"IF(HUMAN2[[#This Row],[Threat/Hazard]]=\"Active Shooter\", 7, IF(HUMAN2[[#This Row],[Evacuation]]=\"Yes\",Scoring!$M$49,0))","v":0},{"$f":"IF(HUMAN2[[#This Row],[Threat/Hazard]]=\"Active Shooter\", 7, IF(HUMAN2[[#This Row],[Evacuation]]=\"Yes\", Scoring!$M$49,0))","v":0},{"$f":"IF(HUMAN2[[#This Row],[Threat/Hazard]]=\"Active Shooter\", 7, IF(HUMAN2[[#This Row],[Evacuation]]=\"Yes\",Scoring!$M$49,0))","v":0},{"$f":"IF(HUMAN2[[#This Row],[Threat/Hazard]]=\"Active Shooter\", 7, IF(HUMAN2[[#This Row],[Evacuation]]=\"Yes\",Scoring!$M$49,0))","v":0},{"$f":"IF(HUMAN2[[#This Row],[Threat/Hazard]]=\"Active Shooter\", 7, IF(HUMAN2[[#This Row],[Evacuation]]=\"Yes\",Scoring!$M$49,0))","v":0},{"$f":"IF(HUMAN2[[#This Row],[Threat/Hazard]]=\"Active Shooter\", 7, IF(HUMAN2[[#This Row],[Evacuation]]=\"Yes\",Scoring!$M$49,0))","v":0},{"$f":"IF(HUMAN2[[#This Row],[Threat/Hazard]]=\"Active Shooter\", 7, IF(HUMAN2[[#This Row],[Evacuation]]=\"Yes\",Scoring!$M$49,0))","v":0},{"$f":"IF(HUMAN2[[#This Row],[Threat/Hazard]]=\"Active Shooter\", 7, IF(HUMAN2[[#This Row],[Evacuation]]=\"Yes\",Scoring!$M$49,0))","v":0},{"$f":"IF(HUMAN2[[#This Row],[Threat/Hazard]]=\"Active Shooter\", 7, IF(HUMAN2[[#This Row],[Evacuation]]=\"Yes\",Scoring!$M$49,0))","v":0}]
["Storm Surge",{"$f":"INDEX(USER_HAZ_COMP[Power],MATCH(HUMAN2[[#This Row],[Threat/Hazard]],USER_HAZ_COMP[Threat/Hazard],0))","v":48},{"$f":"INDEX(USER_HAZ_COMP[Water],MATCH(HUMAN2[[#This Row],[Threat/Hazard]],USER_HAZ_COMP[Threat/Hazard],0))","v":48},{"$f":"INDEX(USER_HAZ_COMP[Data and information management],MATCH(HUMAN2[[#This Row],[Threat/Hazard]],USER_HAZ_COMP[Threat/Hazard],0))","v":0},{"$f":"INDEX(USER_HAZ_COMP[Medical gases],MATCH(HUMAN2[[#This Row],[Threat/Hazard]],USER_HAZ_COMP[Threat/Hazard],0))","v":0},{"$f":"INDEX(USER_HAZ_COMP[Staffing],MATCH(HUMAN2[[#This Row],[Threat/Hazard]],USER_HAZ_COMP[Threat/Hazard],0))","v":48},{"$f":"IF(HUMAN2[[#This Row],[Power]]>0, IF(HUMAN2[[#This Row],[Water]]>0, \"Yes\", \"No\"), \"No\")","v":"Yes"},{"$f":"IF(HUMAN2[[#This Row],[Threat/Hazard]]=\"Active Shooter\", 7, IF(AND(HUMAN2[[#This Row],[Power]]>0,HUMAN2[[#This Row],[Water]]>0)=TRUE, Scoring!$M$49, IF(HUMAN2[[#This Row],[Staffing]]>0, Scoring!$M$56, MAX(IF(HUMAN2[[#This Row],[Power]]>0,Scoring!$M$52,0),IF(HUMAN2[[#This Row],[Water]]>0,Scoring!$M$53,0),IF(HUMAN2[[#This Row],[Cyber]]>0,Scoring!$M$54,0),IF(HUMAN2[[#This Row],[Medical Gases]]>0,Scoring!$M$55,0)))))","v":0},{"$f":"IF(HUMAN2[[#This Row],[Threat/Hazard]]=\"Active Shooter\", 7, IF(HUMAN2[[#This Row],[Evacuation]]=\"Yes\",Scoring!$M$49,0))","v":0},{"$f":"IF(HUMAN2[[#This Row],[Threat/Hazard]]=\"Active Shooter\", 7, IF(HUMAN2[[#This Row],[Evacuation]]=\"Yes\", Scoring!$M$49,0))","v":0},{"$f":"IF(HUMAN2[[#This Row],[Threat/Hazard]]=\"Active Shooter\", 7, IF(HUMAN2[[#This Row],[Evacuation]]=\"Yes\",Scoring!$M$49,0))","v":0},{"$f":"IF(HUMAN2[[#This Row],[Threat/Hazard]]=\"Active Shooter\", 7, IF(HUMAN2[[#This Row],[Evacuation]]=\"Yes\",Scoring!$M$49,0))","v":0},{"$f":"IF(HUMAN2[[#This Row],[Threat/Hazard]]=\"Active Shooter\", 7, IF(HUMAN2[[#This Row],[Evacuation]]=\"Yes\",Scoring!$M$49,0))","v":0},{"$f":"IF(HUMAN2[[#This Row],[Threat/Hazard]]=\"Active Shooter\", 7, IF(HUMAN2[[#This Row],[Evacuation]]=\"Yes\",Scoring!$M$49,0))","v":0},{"$f":"IF(HUMAN2[[#This Row],[Threat/Hazard]]=\"Active Shooter\", 7, IF(HUMAN2[[#This Row],[Evacuation]]=\"Yes\",Scoring!$M$49,0))","v":0},{"$f":"IF(HUMAN2[[#This Row],[Threat/Hazard]]=\"Active Shooter\", 7, IF(HUMAN2[[#This Row],[Evacuation]]=\"Yes\",Scoring!$M$49,0))","v":0},{"$f":"IF(HUMAN2[[#This Row],[Threat/Hazard]]=\"Active Shooter\", 7, IF(HUMAN2[[#This Row],[Evacuation]]=\"Yes\",Scoring!$M$49,0))","v":0}]
["Tornado",{"$f":"INDEX(USER_HAZ_COMP[Power],MATCH(HUMAN2[[#This Row],[Threat/Hazard]],USER_HAZ_COMP[Threat/Hazard],0))","v":48},{"$f":"INDEX(USER_HAZ_COMP[Water],MATCH(HUMAN2[[#This Row],[Threat/Hazard]],USER_HAZ_COMP[Threat/Hazard],0))","v":48},{"$f":"INDEX(USER_HAZ_COMP[Data and information management],MATCH(HUMAN2[[#This Row],[Threat/Hazard]],USER_HAZ_COMP[Threat/Hazard],0))","v":48},{"$f":"INDEX(USER_HAZ_COMP[Medical gases],MATCH(HUMAN2[[#This Row],[Threat/Hazard]],USER_HAZ_COMP[Threat/Hazard],0))","v":0},{"$f":"INDEX(USER_HAZ_COMP[Staffing],MATCH(HUMAN2[[#This Row],[Threat/Hazard]],USER_HAZ_COMP[Threat/Hazard],0))","v":48},{"$f":"IF(HUMAN2[[#This Row],[Power]]>0, IF(HUMAN2[[#This Row],[Water]]>0, \"Yes\", \"No\"), \"No\")","v":"Yes"},{"$f":"IF(HUMAN2[[#This Row],[Threat/Hazard]]=\"Active Shooter\", 7, IF(AND(HUMAN2[[#This Row],[Power]]>0,HUMAN2[[#This Row],[Water]]>0)=TRUE, Scoring!$M$49, IF(HUMAN2[[#This Row],[Staffing]]>0, Scoring!$M$56, MAX(IF(HUMAN2[[#This Row],[Power]]>0,Scoring!$M$52,0),IF(HUMAN2[[#This Row],[Water]]>0,Scoring!$M$53,0),IF(HUMAN2[[#This Row],[Cyber]]>0,Scoring!$M$54,0),IF(HUMAN2[[#This Row],[Medical Gases]]>0,Scoring!$M$55,0)))))","v":0},{"$f":"IF(HUMAN2[[#This Row],[Threat/Hazard]]=\"Active Shooter\", 7, IF(HUMAN2[[#This Row],[Evacuation]]=\"Yes\",Scoring!$M$49,0))","v":0},{"$f":"IF(HUMAN2[[#This Row],[Threat/Hazard]]=\"Active Shooter\", 7, IF(HUMAN2[[#This Row],[Evacuation]]=\"Yes\", Scoring!$M$49,0))","v":0},{"$f":"IF(HUMAN2[[#This Row],[Threat/Hazard]]=\"Active Shooter\", 7, IF(HUMAN2[[#This Row],[Evacuation]]=\"Yes\",Scoring!$M$49,0))","v":0},{"$f":"IF(HUMAN2[[#This Row],[Threat/Hazard]]=\"Active Shooter\", 7, IF(HUMAN2[[#This Row],[Evacuation]]=\"Yes\",Scoring!$M$49,0))","v":0},{"$f":"IF(HUMAN2[[#This Row],[Threat/Hazard]]=\"Active Shooter\", 7, IF(HUMAN2[[#This Row],[Evacuation]]=\"Yes\",Scoring!$M$49,0))","v":0},{"$f":"IF(HUMAN2[[#This Row],[Threat/Hazard]]=\"Active Shooter\", 7, IF(HUMAN2[[#This Row],[Evacuation]]=\"Yes\",Scoring!$M$49,0))","v":0},{"$f":"IF(HUMAN2[[#This Row],[Threat/Hazard]]=\"Active Shooter\", 7, IF(HUMAN2[[#This Row],[Evacuation]]=\"Yes\",Scoring!$M$49,0))","v":0},{"$f":"IF(HUMAN2[[#This Row],[Threat/Hazard]]=\"Active Shooter\", 7, IF(HUMAN2[[#This Row],[Evacuation]]=\"Yes\",Scoring!$M$49,0))","v":0},{"$f":"IF(HUMAN2[[#This Row],[Threat/Hazard]]=\"Active Shooter\", 7, IF(HUMAN2[[#This Row],[Evacuation]]=\"Yes\",Scoring!$M$49,0))","v":0}]
["Wildfire",{"$f":"INDEX(USER_HAZ_COMP[Power],MATCH(HUMAN2[[#This Row],[Threat/Hazard]],USER_HAZ_COMP[Threat/Hazard],0))","v":48},{"$f":"INDEX(USER_HAZ_COMP[Water],MATCH(HUMAN2[[#This Row],[Threat/Hazard]],USER_HAZ_COMP[Threat/Hazard],0))","v":48},{"$f":"INDEX(USER_HAZ_COMP[Data and information management],MATCH(HUMAN2[[#This Row],[Threat/Hazard]],USER_HAZ_COMP[Threat/Hazard],0))","v":0},{"$f":"INDEX(USER_HAZ_COMP[Medical gases],MATCH(HUMAN2[[#This Row],[Threat/Hazard]],USER_HAZ_COMP[Threat/Hazard],0))","v":0},{"$f":"INDEX(USER_HAZ_COMP[Staffing],MATCH(HUMAN2[[#This Row],[Threat/Hazard]],USER_HAZ_COMP[Threat/Hazard],0))","v":48},{"$f":"IF(HUMAN2[[#This Row],[Power]]>0, IF(HUMAN2[[#This Row],[Water]]>0, \"Yes\", \"No\"), \"No\")","v":"Yes"},{"$f":"IF(HUMAN2[[#This Row],[Threat/Hazard]]=\"Active Shooter\", 7, IF(AND(HUMAN2[[#This Row],[Power]]>0,HUMAN2[[#This Row],[Water]]>0)=TRUE, Scoring!$M$49, IF(HUMAN2[[#This Row],[Staffing]]>0, Scoring!$M$56, MAX(IF(HUMAN2[[#This Row],[Power]]>0,Scoring!$M$52,0),IF(HUMAN2[[#This Row],[Water]]>0,Scoring!$M$53,0),IF(HUMAN2[[#This Row],[Cyber]]>0,Scoring!$M$54,0),IF(HUMAN2[[#This Row],[Medical Gases]]>0,Scoring!$M$55,0)))))","v":0},{"$f":"IF(HUMAN2[[#This Row],[Threat/Hazard]]=\"Active Shooter\", 7, IF(HUMAN2[[#This Row],[Evacuation]]=\"Yes\",Scoring!$M$49,0))","v":0},{"$f":"IF(HUMAN2[[#This Row],[Threat/Hazard]]=\"Active Shooter\", 7, IF(HUMAN2[[#This Row],[Evacuation]]=\"Yes\", Scoring!$M$49,0))","v":0},{"$f":"IF(HUMAN2[[#This Row],[Threat/Hazard]]=\"Active Shooter\", 7, IF(HUMAN2[[#This Row],[Evacuation]]=\"Yes\",Scoring!$M$49,0))","v":0},{"$f":"IF(HUMAN2[[#This Row],[Threat/Hazard]]=\"Active Shooter\", 7, IF(HUMAN2[[#This Row],[Evacuation]]=\"Yes\",Scoring!$M$49,0))","v":0},{"$f":"IF(HUMAN2[[#This Row],[Threat/Hazard]]=\"Active Shooter\", 7, IF(HUMAN2[[#This Row],[Evacuation]]=\"Yes\",Scoring!$M$49,0))","v":0},{"$f":"IF(HUMAN2[[#This Row],[Threat/Hazard]]=\"Active Shooter\", 7, IF(HUMAN2[[#This Row],[Evacuation]]=\"Yes\",Scoring!$M$49,0))","v":0},{"$f":"IF(HUMAN2[[#This Row],[Threat/Hazard]]=\"Active Shooter\", 7, IF(HUMAN2[[#This Row],[Evacuation]]=\"Yes\",Scoring!$M$49,0))","v":0},{"$f":"IF(HUMAN2[[#This Row],[Threat/Hazard]]=\"Active Shooter\", 7, IF(HUMAN2[[#This Row],[Evacuation]]=\"Yes\",Scoring!$M$49,0))","v":0},{"$f":"IF(HUMAN2[[#This Row],[Threat/Hazard]]=\"Active Shooter\", 7, IF(HUMAN2[[#This Row],[Evacuation]]=\"Yes\",Scoring!$M$49,0))","v":0}]
["Extreme Heat",{"$f":"INDEX(USER_HAZ_COMP[Power],MATCH(HUMAN2[[#This Row],[Threat/Hazard]],USER_HAZ_COMP[Threat/Hazard],0))","v":48},{"$f":"INDEX(USER_HAZ_COMP[Water],MATCH(HUMAN2[[#This Row],[Threat/Hazard]],USER_HAZ_COMP[Threat/Hazard],0))","v":48},{"$f":"INDEX(USER_HAZ_COMP[Data and information management],MATCH(HUMAN2[[#This Row],[Threat/Hazard]],USER_HAZ_COMP[Threat/Hazard],0))","v":0},{"$f":"INDEX(USER_HAZ_COMP[Medical gases],MATCH(HUMAN2[[#This Row],[Threat/Hazard]],USER_HAZ_COMP[Threat/Hazard],0))","v":0},{"$f":"INDEX(USER_HAZ_COMP[Staffing],MATCH(HUMAN2[[#This Row],[Threat/Hazard]],USER_HAZ_COMP[Threat/Hazard],0))","v":0},{"$f":"IF(HUMAN2[[#This Row],[Power]]>0, IF(HUMAN2[[#This Row],[Water]]>0, \"Yes\", \"No\"), \"No\")","v":"Yes"},{"$f":"IF(HUMAN2[[#This Row],[Threat/Hazard]]=\"Active Shooter\", 7, IF(AND(HUMAN2[[#This Row],[Power]]>0,HUMAN2[[#This Row],[Water]]>0)=TRUE, Scoring!$M$49, IF(HUMAN2[[#This Row],[Staffing]]>0, Scoring!$M$56, MAX(IF(HUMAN2[[#This Row],[Power]]>0,Scoring!$M$52,0),IF(HUMAN2[[#This Row],[Water]]>0,Scoring!$M$53,0),IF(HUMAN2[[#This Row],[Cyber]]>0,Scoring!$M$54,0),IF(HUMAN2[[#This Row],[Medical Gases]]>0,Scoring!$M$55,0)))))","v":0},{"$f":"IF(HUMAN2[[#This Row],[Threat/Hazard]]=\"Active Shooter\", 7, IF(HUMAN2[[#This Row],[Evacuation]]=\"Yes\",Scoring!$M$49,0))","v":0},{"$f":"IF(HUMAN2[[#This Row],[Threat/Hazard]]=\"Active Shooter\", 7, IF(HUMAN2[[#This Row],[Evacuation]]=\"Yes\", Scoring!$M$49,0))","v":0},{"$f":"IF(HUMAN2[[#This Row],[Threat/Hazard]]=\"Active Shooter\", 7, IF(HUMAN2[[#This Row],[Evacuation]]=\"Yes\",Scoring!$M$49,0))","v":0},{"$f":"IF(HUMAN2[[#This Row],[Threat/Hazard]]=\"Active Shooter\", 7, IF(HUMAN2[[#This Row],[Evacuation]]=\"Yes\",Scoring!$M$49,0))","v":0},{"$f":"IF(HUMAN2[[#This Row],[Threat/Hazard]]=\"Active Shooter\", 7, IF(HUMAN2[[#This Row],[Evacuation]]=\"Yes\",Scoring!$M$49,0))","v":0},{"$f":"IF(HUMAN2[[#This Row],[Threat/Hazard]]=\"Active Shooter\", 7, IF(HUMAN2[[#This Row],[Evacuation]]=\"Yes\",Scoring!$M$49,0))","v":0},{"$f":"IF(HUMAN2[[#This Row],[Threat/Hazard]]=\"Active Shooter\", 7, IF(HUMAN2[[#This Row],[Evacuation]]=\"Yes\",Scoring!$M$49,0))","v":0},{"$f":"IF(HUMAN2[[#This Row],[Threat/Hazard]]=\"Active Shooter\", 7, IF(HUMAN2[[#This Row],[Evacuation]]=\"Yes\",Scoring!$M$49,0))","v":0},{"$f":"IF(HUMAN2[[#This Row],[Threat/Hazard]]=\"Active Shooter\", 7, IF(HUMAN2[[#This Row],[Evacuation]]=\"Yes\",Scoring!$M$49,0))","v":0}]
["Extreme Cold",{"$f":"INDEX(USER_HAZ_COMP[Power],MATCH(HUMAN2[[#This Row],[Threat/Hazard]],USER_HAZ_COMP[Threat/Hazard],0))","v":48},{"$f":"INDEX(USER_HAZ_COMP[Water],MATCH(HUMAN2[[#This Row],[Threat/Hazard]],USER_HAZ_COMP[Threat/Hazard],0))","v":48},{"$f":"INDEX(USER_HAZ_COMP[Data and information management],MATCH(HUMAN2[[#This Row],[Threat/Hazard]],USER_HAZ_COMP[Threat/Hazard],0))","v":0},{"$f":"INDEX(USER_HAZ_COMP[Medical gases],MATCH(HUMAN2[[#This Row],[Threat/Hazard]],USER_HAZ_COMP[Threat/Hazard],0))","v":0},{"$f":"INDEX(USER_HAZ_COMP[Staffing],MATCH(HUMAN2[[#This Row],[Threat/Hazard]],USER_HAZ_COMP[Threat/Hazard],0))","v":0},{"$f":"IF(HUMAN2[[#This Row],[Power]]>0, IF(HUMAN2[[#This Row],[Water]]>0, \"Yes\", \"No\"), \"No\")","v":"Yes"},{"$f":"IF(HUMAN2[[#This Row],[Threat/Hazard]]=\"Active Shooter\", 7, IF(AND(HUMAN2[[#This Row],[Power]]>0,HUMAN2[[#This Row],[Water]]>0)=TRUE, Scoring!$M$49, IF(HUMAN2[[#This Row],[Staffing]]>0, Scoring!$M$56, MAX(IF(HUMAN2[[#This Row],[Power]]>0,Scoring!$M$52,0),IF(HUMAN2[[#This Row],[Water]]>0,Scoring!$M$53,0),IF(HUMAN2[[#This Row],[Cyber]]>0,Scoring!$M$54,0),IF(HUMAN2[[#This Row],[Medical Gases]]>0,Scoring!$M$55,0)))))","v":0},{"$f":"IF(HUMAN2[[#This Row],[Threat/Hazard]]=\"Active Shooter\", 7, IF(HUMAN2[[#This Row],[Evacuation]]=\"Yes\",Scoring!$M$49,0))","v":0},{"$f":"IF(HUMAN2[[#This Row],[Threat/Hazard]]=\"Active Shooter\", 7, IF(HUMAN2[[#This Row],[Evacuation]]=\"Yes\", Scoring!$M$49,0))","v":0},{"$f":"IF(HUMAN2[[#This Row],[Threat/Hazard]]=\"Active Shooter\", 7, IF(HUMAN2[[#This Row],[Evacuation]]=\"Yes\",Scoring!$M$49,0))","v":0},{"$f":"IF(HUMAN2[[#This Row],[Threat/Hazard]]=\"Active Shooter\", 7, IF(HUMAN2[[#This Row],[Evacuation]]=\"Yes\",Scoring!$M$49,0))","v":0},{"$f":"IF(HUMAN2[[#This Row],[Threat/Hazard]]=\"Active Shooter\", 7, IF(HUMAN2[[#This Row],[Evacuation]]=\"Yes\",Scoring!$M$49,0))","v":0},{"$f":"IF(HUMAN2[[#This Row],[Threat/Hazard]]=\"Active Shooter\", 7, IF(HUMAN2[[#This Row],[Evacuation]]=\"Yes\",Scoring!$M$49,0))","v":0},{"$f":"IF(HUMAN2[[#This Row],[Threat/Hazard]]=\"Active Shooter\", 7, IF(HUMAN2[[#This Row],[Evacuation]]=\"Yes\",Scoring!$M$49,0))","v":0},{"$f":"IF(HUMAN2[[#This Row],[Threat/Hazard]]=\"Active Shooter\", 7, IF(HUMAN2[[#This Row],[Evacuation]]=\"Yes\",Scoring!$M$49,0))","v":0},{"$f":"IF(HUMAN2[[#This Row],[Threat/Hazard]]=\"Active Shooter\", 7, IF(HUMAN2[[#This Row],[Evacuation]]=\"Yes\",Scoring!$M$49,0))","v":0}]
["Hurricane and Tropical Storm",{"$f":"INDEX(USER_HAZ_COMP[Power],MATCH(HUMAN2[[#This Row],[Threat/Hazard]],USER_HAZ_COMP[Threat/Hazard],0))","v":48},{"$f":"INDEX(USER_HAZ_COMP[Water],MATCH(HUMAN2[[#This Row],[Threat/Hazard]],USER_HAZ_COMP[Threat/Hazard],0))","v":48},{"$f":"INDEX(USER_HAZ_COMP[Data and information management],MATCH(HUMAN2[[#This Row],[Threat/Hazard]],USER_HAZ_COMP[Threat/Hazard],0))","v":48},{"$f":"INDEX(USER_HAZ_COMP[Medical gases],MATCH(HUMAN2[[#This Row],[Threat/Hazard]],USER_HAZ_COMP[Threat/Hazard],0))","v":0},{"$f":"INDEX(USER_HAZ_COMP[Staffing],MATCH(HUMAN2[[#This Row],[Threat/Hazard]],USER_HAZ_COMP[Threat/Hazard],0))","v":48},{"$f":"IF(HUMAN2[[#This Row],[Power]]>0, IF(HUMAN2[[#This Row],[Water]]>0, \"Yes\", \"No\"), \"No\")","v":"Yes"},{"$f":"IF(HUMAN2[[#This Row],[Threat/Hazard]]=\"Active Shooter\", 7, IF(AND(HUMAN2[[#This Row],[Power]]>0,HUMAN2[[#This Row],[Water]]>0)=TRUE, Scoring!$M$49, IF(HUMAN2[[#This Row],[Staffing]]>0, Scoring!$M$56, MAX(IF(HUMAN2[[#This Row],[Power]]>0,Scoring!$M$52,0),IF(HUMAN2[[#This Row],[Water]]>0,Scoring!$M$53,0),IF(HUMAN2[[#This Row],[Cyber]]>0,Scoring!$M$54,0),IF(HUMAN2[[#This Row],[Medical Gases]]>0,Scoring!$M$55,0)))))","v":0},{"$f":"IF(HUMAN2[[#This Row],[Threat/Hazard]]=\"Active Shooter\", 7, IF(HUMAN2[[#This Row],[Evacuation]]=\"Yes\",Scoring!$M$49,0))","v":0},{"$f":"IF(HUMAN2[[#This Row],[Threat/Hazard]]=\"Active Shooter\", 7, IF(HUMAN2[[#This Row],[Evacuation]]=\"Yes\", Scoring!$M$49,0))","v":0},{"$f":"IF(HUMAN2[[#This Row],[Threat/Hazard]]=\"Active Shooter\", 7, IF(HUMAN2[[#This Row],[Evacuation]]=\"Yes\",Scoring!$M$49,0))","v":0},{"$f":"IF(HUMAN2[[#This Row],[Threat/Hazard]]=\"Active Shooter\", 7, IF(HUMAN2[[#This Row],[Evacuation]]=\"Yes\",Scoring!$M$49,0))","v":0},{"$f":"IF(HUMAN2[[#This Row],[Threat/Hazard]]=\"Active Shooter\", 7, IF(HUMAN2[[#This Row],[Evacuation]]=\"Yes\",Scoring!$M$49,0))","v":0},{"$f":"IF(HUMAN2[[#This Row],[Threat/Hazard]]=\"Active Shooter\", 7, IF(HUMAN2[[#This Row],[Evacuation]]=\"Yes\",Scoring!$M$49,0))","v":0},{"$f":"IF(HUMAN2[[#This Row],[Threat/Hazard]]=\"Active Shooter\", 7, IF(HUMAN2[[#This Row],[Evacuation]]=\"Yes\",Scoring!$M$49,0))","v":0},{"$f":"IF(HUMAN2[[#This Row],[Threat/Hazard]]=\"Active Shooter\", 7, IF(HUMAN2[[#This Row],[Evacuation]]=\"Yes\",Scoring!$M$49,0))","v":0},{"$f":"IF(HUMAN2[[#This Row],[Threat/Hazard]]=\"Active Shooter\", 7, IF(HUMAN2[[#This Row],[Evacuation]]=\"Yes\",Scoring!$M$49,0))","v":0}]
["Space Weather",{"$f":"INDEX(USER_HAZ_COMP[Power],MATCH(HUMAN2[[#This Row],[Threat/Hazard]],USER_HAZ_COMP[Threat/Hazard],0))","v":48},{"$f":"INDEX(USER_HAZ_COMP[Water],MATCH(HUMAN2[[#This Row],[Threat/Hazard]],USER_HAZ_COMP[Threat/Hazard],0))","v":0},{"$f":"INDEX(USER_HAZ_COMP[Data and information management],MATCH(HUMAN2[[#This Row],[Threat/Hazard]],USER_HAZ_COMP[Threat/Hazard],0))","v":48},{"$f":"INDEX(USER_HAZ_COMP[Medical gases],MATCH(HUMAN2[[#This Row],[Threat/Hazard]],USER_HAZ_COMP[Threat/Hazard],0))","v":0},{"$f":"INDEX(USER_HAZ_COMP[Staffing],MATCH(HUMAN2[[#This Row],[Threat/Hazard]],USER_HAZ_COMP[Threat/Hazard],0))","v":0},{"$f":"IF(HUMAN2[[#This Row],[Power]]>0, IF(HUMAN2[[#This Row],[Water]]>0, \"Yes\", \"No\"), \"No\")","v":"No"},{"$f":"IF(HUMAN2[[#This Row],[Threat/Hazard]]=\"Active Shooter\", 7, IF(AND(HUMAN2[[#This Row],[Power]]>0,HUMAN2[[#This Row],[Water]]>0)=TRUE, Scoring!$M$49, IF(HUMAN2[[#This Row],[Staffing]]>0, Scoring!$M$56, MAX(IF(HUMAN2[[#This Row],[Power]]>0,Scoring!$M$52,0),IF(HUMAN2[[#This Row],[Water]]>0,Scoring!$M$53,0),IF(HUMAN2[[#This Row],[Cyber]]>0,Scoring!$M$54,0),IF(HUMAN2[[#This Row],[Medical Gases]]>0,Scoring!$M$55,0)))))","v":0},{"$f":"IF(HUMAN2[[#This Row],[Threat/Hazard]]=\"Active Shooter\", 7, IF(HUMAN2[[#This Row],[Evacuation]]=\"Yes\",Scoring!$M$49,0))","v":0},{"$f":"IF(HUMAN2[[#This Row],[Threat/Hazard]]=\"Active Shooter\", 7, IF(HUMAN2[[#This Row],[Evacuation]]=\"Yes\", Scoring!$M$49,0))","v":0},{"$f":"IF(HUMAN2[[#This Row],[Threat/Hazard]]=\"Active Shooter\", 7, IF(HUMAN2[[#This Row],[Evacuation]]=\"Yes\",Scoring!$M$49,0))","v":0},{"$f":"IF(HUMAN2[[#This Row],[Threat/Hazard]]=\"Active Shooter\", 7, IF(HUMAN2[[#This Row],[Evacuation]]=\"Yes\",Scoring!$M$49,0))","v":0},{"$f":"IF(HUMAN2[[#This Row],[Threat/Hazard]]=\"Active Shooter\", 7, IF(HUMAN2[[#This Row],[Evacuation]]=\"Yes\",Scoring!$M$49,0))","v":0},{"$f":"IF(HUMAN2[[#This Row],[Threat/Hazard]]=\"Active Shooter\", 7, IF(HUMAN2[[#This Row],[Evacuation]]=\"Yes\",Scoring!$M$49,0))","v":0},{"$f":"IF(HUMAN2[[#This Row],[Threat/Hazard]]=\"Active Shooter\", 7, IF(HUMAN2[[#This Row],[Evacuation]]=\"Yes\",Scoring!$M$49,0))","v":0},{"$f":"IF(HUMAN2[[#This Row],[Threat/Hazard]]=\"Active Shooter\", 7, IF(HUMAN2[[#This Row],[Evacuation]]=\"Yes\",Scoring!$M$49,0))","v":0},{"$f":"IF(HUMAN2[[#This Row],[Threat/Hazard]]=\"Active Shooter\", 7, IF(HUMAN2[[#This Row],[Evacuation]]=\"Yes\",Scoring!$M$49,0))","v":0}]
["Thunderstorm (Lightning)",{"$f":"INDEX(USER_HAZ_COMP[Power],MATCH(HUMAN2[[#This Row],[Threat/Hazard]],USER_HAZ_COMP[Threat/Hazard],0))","v":48},{"$f":"INDEX(USER_HAZ_COMP[Water],MATCH(HUMAN2[[#This Row],[Threat/Hazard]],USER_HAZ_COMP[Threat/Hazard],0))","v":0},{"$f":"INDEX(USER_HAZ_COMP[Data and information management],MATCH(HUMAN2[[#This Row],[Threat/Hazard]],USER_HAZ_COMP[Threat/Hazard],0))","v":48},{"$f":"INDEX(USER_HAZ_COMP[Medical gases],MATCH(HUMAN2[[#This Row],[Threat/Hazard]],USER_HAZ_COMP[Threat/Hazard],0))","v":0},{"$f":"INDEX(USER_HAZ_COMP[Staffing],MATCH(HUMAN2[[#This Row],[Threat/Hazard]],USER_HAZ_COMP[Threat/Hazard],0))","v":0},{"$f":"IF(HUMAN2[[#This Row],[Power]]>0, IF(HUMAN2[[#This Row],[Water]]>0, \"Yes\", \"No\"), \"No\")","v":"No"},{"$f":"IF(HUMAN2[[#This Row],[Threat/Hazard]]=\"Active Shooter\", 7, IF(AND(HUMAN2[[#This Row],[Power]]>0,HUMAN2[[#This Row],[Water]]>0)=TRUE, Scoring!$M$49, IF(HUMAN2[[#This Row],[Staffing]]>0, Scoring!$M$56, MAX(IF(HUMAN2[[#This Row],[Power]]>0,Scoring!$M$52,0),IF(HUMAN2[[#This Row],[Water]]>0,Scoring!$M$53,0),IF(HUMAN2[[#This Row],[Cyber]]>0,Scoring!$M$54,0),IF(HUMAN2[[#This Row],[Medical Gases]]>0,Scoring!$M$55,0)))))","v":0},{"$f":"IF(HUMAN2[[#This Row],[Threat/Hazard]]=\"Active Shooter\", 7, IF(HUMAN2[[#This Row],[Evacuation]]=\"Yes\",Scoring!$M$49,0))","v":0},{"$f":"IF(HUMAN2[[#This Row],[Threat/Hazard]]=\"Active Shooter\", 7, IF(HUMAN2[[#This Row],[Evacuation]]=\"Yes\", Scoring!$M$49,0))","v":0},{"$f":"IF(HUMAN2[[#This Row],[Threat/Hazard]]=\"Active Shooter\", 7, IF(HUMAN2[[#This Row],[Evacuation]]=\"Yes\",Scoring!$M$49,0))","v":0},{"$f":"IF(HUMAN2[[#This Row],[Threat/Hazard]]=\"Active Shooter\", 7, IF(HUMAN2[[#This Row],[Evacuation]]=\"Yes\",Scoring!$M$49,0))","v":0},{"$f":"IF(HUMAN2[[#This Row],[Threat/Hazard]]=\"Active Shooter\", 7, IF(HUMAN2[[#This Row],[Evacuation]]=\"Yes\",Scoring!$M$49,0))","v":0},{"$f":"IF(HUMAN2[[#This Row],[Threat/Hazard]]=\"Active Shooter\", 7, IF(HUMAN2[[#This Row],[Evacuation]]=\"Yes\",Scoring!$M$49,0))","v":0},{"$f":"IF(HUMAN2[[#This Row],[Threat/Hazard]]=\"Active Shooter\", 7, IF(HUMAN2[[#This Row],[Evacuation]]=\"Yes\",Scoring!$M$49,0))","v":0},{"$f":"IF(HUMAN2[[#This Row],[Threat/Hazard]]=\"Active Shooter\", 7, IF(HUMAN2[[#This Row],[Evacuation]]=\"Yes\",Scoring!$M$49,0))","v":0},{"$f":"IF(HUMAN2[[#This Row],[Threat/Hazard]]=\"Active Shooter\", 7, IF(HUMAN2[[#This Row],[Evacuation]]=\"Yes\",Scoring!$M$49,0))","v":0}]
["Annual Influenza Epidemic",{"$f":"INDEX(USER_HAZ_COMP[Power],MATCH(HUMAN2[[#This Row],[Threat/Hazard]],USER_HAZ_COMP[Threat/Hazard],0))","v":0},{"$f":"INDEX(USER_HAZ_COMP[Water],MATCH(HUMAN2[[#This Row],[Threat/Hazard]],USER_HAZ_COMP[Threat/Hazard],0))","v":0},{"$f":"INDEX(USER_HAZ_COMP[Data and information management],MATCH(HUMAN2[[#This Row],[Threat/Hazard]],USER_HAZ_COMP[Threat/Hazard],0))","v":0},{"$f":"INDEX(USER_HAZ_COMP[Medical gases],MATCH(HUMAN2[[#This Row],[Threat/Hazard]],USER_HAZ_COMP[Threat/Hazard],0))","v":0},{"$f":"INDEX(USER_HAZ_COMP[Staffing],MATCH(HUMAN2[[#This Row],[Threat/Hazard]],USER_HAZ_COMP[Threat/Hazard],0))","v":48},{"$f":"IF(HUMAN2[[#This Row],[Power]]>0, IF(HUMAN2[[#This Row],[Water]]>0, \"Yes\", \"No\"), \"No\")","v":"No"},{"$f":"IF(HUMAN2[[#This Row],[Threat/Hazard]]=\"Active Shooter\", 7, IF(AND(HUMAN2[[#This Row],[Power]]>0,HUMAN2[[#This Row],[Water]]>0)=TRUE, Scoring!$M$49, IF(HUMAN2[[#This Row],[Staffing]]>0, Scoring!$M$56, MAX(IF(HUMAN2[[#This Row],[Power]]>0,Scoring!$M$52,0),IF(HUMAN2[[#This Row],[Water]]>0,Scoring!$M$53,0),IF(HUMAN2[[#This Row],[Cyber]]>0,Scoring!$M$54,0),IF(HUMAN2[[#This Row],[Medical Gases]]>0,Scoring!$M$55,0)))))","v":0},{"$f":"IF(HUMAN2[[#This Row],[Threat/Hazard]]=\"Active Shooter\", 7, IF(HUMAN2[[#This Row],[Evacuation]]=\"Yes\",Scoring!$M$49,0))","v":0},{"$f":"IF(HUMAN2[[#This Row],[Threat/Hazard]]=\"Active Shooter\", 7, IF(HUMAN2[[#This Row],[Evacuation]]=\"Yes\", Scoring!$M$49,0))","v":0},{"$f":"IF(HUMAN2[[#This Row],[Threat/Hazard]]=\"Active Shooter\", 7, IF(HUMAN2[[#This Row],[Evacuation]]=\"Yes\",Scoring!$M$49,0))","v":0},{"$f":"IF(HUMAN2[[#This Row],[Threat/Hazard]]=\"Active Shooter\", 7, IF(HUMAN2[[#This Row],[Evacuation]]=\"Yes\",Scoring!$M$49,0))","v":0},{"$f":"IF(HUMAN2[[#This Row],[Threat/Hazard]]=\"Active Shooter\", 7, IF(HUMAN2[[#This Row],[Evacuation]]=\"Yes\",Scoring!$M$49,0))","v":0},{"$f":"IF(HUMAN2[[#This Row],[Threat/Hazard]]=\"Active Shooter\", 7, IF(HUMAN2[[#This Row],[Evacuation]]=\"Yes\",Scoring!$M$49,0))","v":0},{"$f":"IF(HUMAN2[[#This Row],[Threat/Hazard]]=\"Active Shooter\", 7, IF(HUMAN2[[#This Row],[Evacuation]]=\"Yes\",Scoring!$M$49,0))","v":0},{"$f":"IF(HUMAN2[[#This Row],[Threat/Hazard]]=\"Active Shooter\", 7, IF(HUMAN2[[#This Row],[Evacuation]]=\"Yes\",Scoring!$M$49,0))","v":0},{"$f":"IF(HUMAN2[[#This Row],[Threat/Hazard]]=\"Active Shooter\", 7, IF(HUMAN2[[#This Row],[Evacuation]]=\"Yes\",Scoring!$M$49,0))","v":0}]
["Aircraft Crash at Facility/Asset",{"$f":"INDEX(USER_HAZ_COMP[Power],MATCH(HUMAN2[[#This Row],[Threat/Hazard]],USER_HAZ_COMP[Threat/Hazard],0))","v":48},{"$f":"INDEX(USER_HAZ_COMP[Water],MATCH(HUMAN2[[#This Row],[Threat/Hazard]],USER_HAZ_COMP[Threat/Hazard],0))","v":48},{"$f":"INDEX(USER_HAZ_COMP[Data and information management],MATCH(HUMAN2[[#This Row],[Threat/Hazard]],USER_HAZ_COMP[Threat/Hazard],0))","v":0},{"$f":"INDEX(USER_HAZ_COMP[Medical gases],MATCH(HUMAN2[[#This Row],[Threat/Hazard]],USER_HAZ_COMP[Threat/Hazard],0))","v":0},{"$f":"INDEX(USER_HAZ_COMP[Staffing],MATCH(HUMAN2[[#This Row],[Threat/Hazard]],USER_HAZ_COMP[Threat/Hazard],0))","v":48},{"$f":"IF(HUMAN2[[#This Row],[Power]]>0, IF(HUMAN2[[#This Row],[Water]]>0, \"Yes\", \"No\"), \"No\")","v":"Yes"},{"$f":"IF(HUMAN2[[#This Row],[Threat/Hazard]]=\"Active Shooter\", 7, IF(AND(HUMAN2[[#This Row],[Power]]>0,HUMAN2[[#This Row],[Water]]>0)=TRUE, Scoring!$M$49, IF(HUMAN2[[#This Row],[Staffing]]>0, Scoring!$M$56, MAX(IF(HUMAN2[[#This Row],[Power]]>0,Scoring!$M$52,0),IF(HUMAN2[[#This Row],[Water]]>0,Scoring!$M$53,0),IF(HUMAN2[[#This Row],[Cyber]]>0,Scoring!$M$54,0),IF(HUMAN2[[#This Row],[Medical Gases]]>0,Scoring!$M$55,0)))))","v":0},{"$f":"IF(HUMAN2[[#This Row],[Threat/Hazard]]=\"Active Shooter\", 7, IF(HUMAN2[[#This Row],[Evacuation]]=\"Yes\",Scoring!$M$49,0))","v":0},{"$f":"IF(HUMAN2[[#This Row],[Threat/Hazard]]=\"Active Shooter\", 7, IF(HUMAN2[[#This Row],[Evacuation]]=\"Yes\", Scoring!$M$49,0))","v":0},{"$f":"IF(HUMAN2[[#This Row],[Threat/Hazard]]=\"Active Shooter\", 7, IF(HUMAN2[[#This Row],[Evacuation]]=\"Yes\",Scoring!$M$49,0))","v":0},{"$f":"IF(HUMAN2[[#This Row],[Threat/Hazard]]=\"Active Shooter\", 7, IF(HUMAN2[[#This Row],[Evacuation]]=\"Yes\",Scoring!$M$49,0))","v":0},{"$f":"IF(HUMAN2[[#This Row],[Threat/Hazard]]=\"Active Shooter\", 7, IF(HUMAN2[[#This Row],[Evacuation]]=\"Yes\",Scoring!$M$49,0))","v":0},{"$f":"IF(HUMAN2[[#This Row],[Threat/Hazard]]=\"Active Shooter\", 7, IF(HUMAN2[[#This Row],[Evacuation]]=\"Yes\",Scoring!$M$49,0))","v":0},{"$f":"IF(HUMAN2[[#This Row],[Threat/Hazard]]=\"Active Shooter\", 7, IF(HUMAN2[[#This Row],[Evacuation]]=\"Yes\",Scoring!$M$49,0))","v":0},{"$f":"IF(HUMAN2[[#This Row],[Threat/Hazard]]=\"Active Shooter\", 7, IF(HUMAN2[[#This Row],[Evacuation]]=\"Yes\",Scoring!$M$49,0))","v":0},{"$f":"IF(HUMAN2[[#This Row],[Threat/Hazard]]=\"Active Shooter\", 7, IF(HUMAN2[[#This Row],[Evacuation]]=\"Yes\",Scoring!$M$49,0))","v":0}]
["External Chemical HAZMAT Exposure, Facilities",{"$f":"INDEX(USER_HAZ_COMP[Power],MATCH(HUMAN2[[#This Row],[Threat/Hazard]],USER_HAZ_COMP[Threat/Hazard],0))","v":0},{"$f":"INDEX(USER_HAZ_COMP[Water],MATCH(HUMAN2[[#This Row],[Threat/Hazard]],USER_HAZ_COMP[Threat/Hazard],0))","v":48},{"$f":"INDEX(USER_HAZ_COMP[Data and information management],MATCH(HUMAN2[[#This Row],[Threat/Hazard]],USER_HAZ_COMP[Threat/Hazard],0))","v":0},{"$f":"INDEX(USER_HAZ_COMP[Medical gases],MATCH(HUMAN2[[#This Row],[Threat/Hazard]],USER_HAZ_COMP[Threat/Hazard],0))","v":0},{"$f":"INDEX(USER_HAZ_COMP[Staffing],MATCH(HUMAN2[[#This Row],[Threat/Hazard]],USER_HAZ_COMP[Threat/Hazard],0))","v":48},{"$f":"IF(HUMAN2[[#This Row],[Power]]>0, IF(HUMAN2[[#This Row],[Water]]>0, \"Yes\", \"No\"), \"No\")","v":"No"},{"$f":"IF(HUMAN2[[#This Row],[Threat/Hazard]]=\"Active Shooter\", 7, IF(AND(HUMAN2[[#This Row],[Power]]>0,HUMAN2[[#This Row],[Water]]>0)=TRUE, Scoring!$M$49, IF(HUMAN2[[#This Row],[Staffing]]>0, Scoring!$M$56, MAX(IF(HUMAN2[[#This Row],[Power]]>0,Scoring!$M$52,0),IF(HUMAN2[[#This Row],[Water]]>0,Scoring!$M$53,0),IF(HUMAN2[[#This Row],[Cyber]]>0,Scoring!$M$54,0),IF(HUMAN2[[#This Row],[Medical Gases]]>0,Scoring!$M$55,0)))))","v":0},{"$f":"IF(HUMAN2[[#This Row],[Threat/Hazard]]=\"Active Shooter\", 7, IF(HUMAN2[[#This Row],[Evacuation]]=\"Yes\",Scoring!$M$49,0))","v":0},{"$f":"IF(HUMAN2[[#This Row],[Threat/Hazard]]=\"Active Shooter\", 7, IF(HUMAN2[[#This Row],[Evacuation]]=\"Yes\", Scoring!$M$49,0))","v":0},{"$f":"IF(HUMAN2[[#This Row],[Threat/Hazard]]=\"Active Shooter\", 7, IF(HUMAN2[[#This Row],[Evacuation]]=\"Yes\",Scoring!$M$49,0))","v":0},{"$f":"IF(HUMAN2[[#This Row],[Threat/Hazard]]=\"Active Shooter\", 7, IF(HUMAN2[[#This Row],[Evacuation]]=\"Yes\",Scoring!$M$49,0))","v":0},{"$f":"IF(HUMAN2[[#This Row],[Threat/Hazard]]=\"Active Shooter\", 7, IF(HUMAN2[[#This Row],[Evacuation]]=\"Yes\",Scoring!$M$49,0))","v":0},{"$f":"IF(HUMAN2[[#This Row],[Threat/Hazard]]=\"Active Shooter\", 7, IF(HUMAN2[[#This Row],[Evacuation]]=\"Yes\",Scoring!$M$49,0))","v":0},{"$f":"IF(HUMAN2[[#This Row],[Threat/Hazard]]=\"Active Shooter\", 7, IF(HUMAN2[[#This Row],[Evacuation]]=\"Yes\",Scoring!$M$49,0))","v":0},{"$f":"IF(HUMAN2[[#This Row],[Threat/Hazard]]=\"Active Shooter\", 7, IF(HUMAN2[[#This Row],[Evacuation]]=\"Yes\",Scoring!$M$49,0))","v":0},{"$f":"IF(HUMAN2[[#This Row],[Threat/Hazard]]=\"Active Shooter\", 7, IF(HUMAN2[[#This Row],[Evacuation]]=\"Yes\",Scoring!$M$49,0))","v":0}]
["External Chemical HAZMAT Exposure, Highway",{"$f":"INDEX(USER_HAZ_COMP[Power],MATCH(HUMAN2[[#This Row],[Threat/Hazard]],USER_HAZ_COMP[Threat/Hazard],0))","v":0},{"$f":"INDEX(USER_HAZ_COMP[Water],MATCH(HUMAN2[[#This Row],[Threat/Hazard]],USER_HAZ_COMP[Threat/Hazard],0))","v":48},{"$f":"INDEX(USER_HAZ_COMP[Data and information management],MATCH(HUMAN2[[#This Row],[Threat/Hazard]],USER_HAZ_COMP[Threat/Hazard],0))","v":0},{"$f":"INDEX(USER_HAZ_COMP[Medical gases],MATCH(HUMAN2[[#This Row],[Threat/Hazard]],USER_HAZ_COMP[Threat/Hazard],0))","v":0},{"$f":"INDEX(USER_HAZ_COMP[Staffing],MATCH(HUMAN2[[#This Row],[Threat/Hazard]],USER_HAZ_COMP[Threat/Hazard],0))","v":48},{"$f":"IF(HUMAN2[[#This Row],[Power]]>0, IF(HUMAN2[[#This Row],[Water]]>0, \"Yes\", \"No\"), \"No\")","v":"No"},{"$f":"IF(HUMAN2[[#This Row],[Threat/Hazard]]=\"Active Shooter\", 7, IF(AND(HUMAN2[[#This Row],[Power]]>0,HUMAN2[[#This Row],[Water]]>0)=TRUE, Scoring!$M$49, IF(HUMAN2[[#This Row],[Staffing]]>0, Scoring!$M$56, MAX(IF(HUMAN2[[#This Row],[Power]]>0,Scoring!$M$52,0),IF(HUMAN2[[#This Row],[Water]]>0,Scoring!$M$53,0),IF(HUMAN2[[#This Row],[Cyber]]>0,Scoring!$M$54,0),IF(HUMAN2[[#This Row],[Medical Gases]]>0,Scoring!$M$55,0)))))","v":0},{"$f":"IF(HUMAN2[[#This Row],[Threat/Hazard]]=\"Active Shooter\", 7, IF(HUMAN2[[#This Row],[Evacuation]]=\"Yes\",Scoring!$M$49,0))","v":0},{"$f":"IF(HUMAN2[[#This Row],[Threat/Hazard]]=\"Active Shooter\", 7, IF(HUMAN2[[#This Row],[Evacuation]]=\"Yes\", Scoring!$M$49,0))","v":0},{"$f":"IF(HUMAN2[[#This Row],[Threat/Hazard]]=\"Active Shooter\", 7, IF(HUMAN2[[#This Row],[Evacuation]]=\"Yes\",Scoring!$M$49,0))","v":0},{"$f":"IF(HUMAN2[[#This Row],[Threat/Hazard]]=\"Active Shooter\", 7, IF(HUMAN2[[#This Row],[Evacuation]]=\"Yes\",Scoring!$M$49,0))","v":0},{"$f":"IF(HUMAN2[[#This Row],[Threat/Hazard]]=\"Active Shooter\", 7, IF(HUMAN2[[#This Row],[Evacuation]]=\"Yes\",Scoring!$M$49,0))","v":0},{"$f":"IF(HUMAN2[[#This Row],[Threat/Hazard]]=\"Active Shooter\", 7, IF(HUMAN2[[#This Row],[Evacuation]]=\"Yes\",Scoring!$M$49,0))","v":0},{"$f":"IF(HUMAN2[[#This Row],[Threat/Hazard]]=\"Active Shooter\", 7, IF(HUMAN2[[#This Row],[Evacuation]]=\"Yes\",Scoring!$M$49,0))","v":0},{"$f":"IF(HUMAN2[[#This Row],[Threat/Hazard]]=\"Active Shooter\", 7, IF(HUMAN2[[#This Row],[Evacuation]]=\"Yes\",Scoring!$M$49,0))","v":0},{"$f":"IF(HUMAN2[[#This Row],[Threat/Hazard]]=\"Active Shooter\", 7, IF(HUMAN2[[#This Row],[Evacuation]]=\"Yes\",Scoring!$M$49,0))","v":0}]
["External Chemical HAZMAT Exposure, Maritime",{"$f":"INDEX(USER_HAZ_COMP[Power],MATCH(HUMAN2[[#This Row],[Threat/Hazard]],USER_HAZ_COMP[Threat/Hazard],0))","v":0},{"$f":"INDEX(USER_HAZ_COMP[Water],MATCH(HUMAN2[[#This Row],[Threat/Hazard]],USER_HAZ_COMP[Threat/Hazard],0))","v":48},{"$f":"INDEX(USER_HAZ_COMP[Data and information management],MATCH(HUMAN2[[#This Row],[Threat/Hazard]],USER_HAZ_COMP[Threat/Hazard],0))","v":0},{"$f":"INDEX(USER_HAZ_COMP[Medical gases],MATCH(HUMAN2[[#This Row],[Threat/Hazard]],USER_HAZ_COMP[Threat/Hazard],0))","v":0},{"$f":"INDEX(USER_HAZ_COMP[Staffing],MATCH(HUMAN2[[#This Row],[Threat/Hazard]],USER_HAZ_COMP[Threat/Hazard],0))","v":48},{"$f":"IF(HUMAN2[[#This Row],[Power]]>0, IF(HUMAN2[[#This Row],[Water]]>0, \"Yes\", \"No\"), \"No\")","v":"No"},{"$f":"IF(HUMAN2[[#This Row],[Threat/Hazard]]=\"Active Shooter\", 7, IF(AND(HUMAN2[[#This Row],[Power]]>0,HUMAN2[[#This Row],[Water]]>0)=TRUE, Scoring!$M$49, IF(HUMAN2[[#This Row],[Staffing]]>0, Scoring!$M$56, MAX(IF(HUMAN2[[#This Row],[Power]]>0,Scoring!$M$52,0),IF(HUMAN2[[#This Row],[Water]]>0,Scoring!$M$53,0),IF(HUMAN2[[#This Row],[Cyber]]>0,Scoring!$M$54,0),IF(HUMAN2[[#This Row],[Medical Gases]]>0,Scoring!$M$55,0)))))","v":0},{"$f":"IF(HUMAN2[[#This Row],[Threat/Hazard]]=\"Active Shooter\", 7, IF(HUMAN2[[#This Row],[Evacuation]]=\"Yes\",Scoring!$M$49,0))","v":0},{"$f":"IF(HUMAN2[[#This Row],[Threat/Hazard]]=\"Active Shooter\", 7, IF(HUMAN2[[#This Row],[Evacuation]]=\"Yes\", Scoring!$M$49,0))","v":0},{"$f":"IF(HUMAN2[[#This Row],[Threat/Hazard]]=\"Active Shooter\", 7, IF(HUMAN2[[#This Row],[Evacuation]]=\"Yes\",Scoring!$M$49,0))","v":0},{"$f":"IF(HUMAN2[[#This Row],[Threat/Hazard]]=\"Active Shooter\", 7, IF(HUMAN2[[#This Row],[Evacuation]]=\"Yes\",Scoring!$M$49,0))","v":0},{"$f":"IF(HUMAN2[[#This Row],[Threat/Hazard]]=\"Active Shooter\", 7, IF(HUMAN2[[#This Row],[Evacuation]]=\"Yes\",Scoring!$M$49,0))","v":0},{"$f":"IF(HUMAN2[[#This Row],[Threat/Hazard]]=\"Active Shooter\", 7, IF(HUMAN2[[#This Row],[Evacuation]]=\"Yes\",Scoring!$M$49,0))","v":0},{"$f":"IF(HUMAN2[[#This Row],[Threat/Hazard]]=\"Active Shooter\", 7, IF(HUMAN2[[#This Row],[Evacuation]]=\"Yes\",Scoring!$M$49,0))","v":0},{"$f":"IF(HUMAN2[[#This Row],[Threat/Hazard]]=\"Active Shooter\", 7, IF(HUMAN2[[#This Row],[Evacuation]]=\"Yes\",Scoring!$M$49,0))","v":0},{"$f":"IF(HUMAN2[[#This Row],[Threat/Hazard]]=\"Active Shooter\", 7, IF(HUMAN2[[#This Row],[Evacuation]]=\"Yes\",Scoring!$M$49,0))","v":0}]
["External Chemical HAZMAT Exposure, Railway",{"$f":"INDEX(USER_HAZ_COMP[Power],MATCH(HUMAN2[[#This Row],[Threat/Hazard]],USER_HAZ_COMP[Threat/Hazard],0))","v":0},{"$f":"INDEX(USER_HAZ_COMP[Water],MATCH(HUMAN2[[#This Row],[Threat/Hazard]],USER_HAZ_COMP[Threat/Hazard],0))","v":48},{"$f":"INDEX(USER_HAZ_COMP[Data and information management],MATCH(HUMAN2[[#This Row],[Threat/Hazard]],USER_HAZ_COMP[Threat/Hazard],0))","v":0},{"$f":"INDEX(USER_HAZ_COMP[Medical gases],MATCH(HUMAN2[[#This Row],[Threat/Hazard]],USER_HAZ_COMP[Threat/Hazard],0))","v":0},{"$f":"INDEX(USER_HAZ_COMP[Staffing],MATCH(HUMAN2[[#This Row],[Threat/Hazard]],USER_HAZ_COMP[Threat/Hazard],0))","v":0},{"$f":"IF(HUMAN2[[#This Row],[Power]]>0, IF(HUMAN2[[#This Row],[Water]]>0, \"Yes\", \"No\"), \"No\")","v":"No"},{"$f":"IF(HUMAN2[[#This Row],[Threat/Hazard]]=\"Active Shooter\", 7, IF(AND(HUMAN2[[#This Row],[Power]]>0,HUMAN2[[#This Row],[Water]]>0)=TRUE, Scoring!$M$49, IF(HUMAN2[[#This Row],[Staffing]]>0, Scoring!$M$56, MAX(IF(HUMAN2[[#This Row],[Power]]>0,Scoring!$M$52,0),IF(HUMAN2[[#This Row],[Water]]>0,Scoring!$M$53,0),IF(HUMAN2[[#This Row],[Cyber]]>0,Scoring!$M$54,0),IF(HUMAN2[[#This Row],[Medical Gases]]>0,Scoring!$M$55,0)))))","v":0},{"$f":"IF(HUMAN2[[#This Row],[Threat/Hazard]]=\"Active Shooter\", 7, IF(HUMAN2[[#This Row],[Evacuation]]=\"Yes\",Scoring!$M$49,0))","v":0},{"$f":"IF(HUMAN2[[#This Row],[Threat/Hazard]]=\"Active Shooter\", 7, IF(HUMAN2[[#This Row],[Evacuation]]=\"Yes\", Scoring!$M$49,0))","v":0},{"$f":"IF(HUMAN2[[#This Row],[Threat/Hazard]]=\"Active Shooter\", 7, IF(HUMAN2[[#This Row],[Evacuation]]=\"Yes\",Scoring!$M$49,0))","v":0},{"$f":"IF(HUMAN2[[#This Row],[Threat/Hazard]]=\"Active Shooter\", 7, IF(HUMAN2[[#This Row],[Evacuation]]=\"Yes\",Scoring!$M$49,0))","v":0},{"$f":"IF(HUMAN2[[#This Row],[Threat/Hazard]]=\"Active Shooter\", 7, IF(HUMAN2[[#This Row],[Evacuation]]=\"Yes\",Scoring!$M$49,0))","v":0},{"$f":"IF(HUMAN2[[#This Row],[Threat/Hazard]]=\"Active Shooter\", 7, IF(HUMAN2[[#This Row],[Evacuation]]=\"Yes\",Scoring!$M$49,0))","v":0},{"$f":"IF(HUMAN2[[#This Row],[Threat/Hazard]]=\"Active Shooter\", 7, IF(HUMAN2[[#This Row],[Evacuation]]=\"Yes\",Scoring!$M$49,0))","v":0},{"$f":"IF(HUMAN2[[#This Row],[Threat/Hazard]]=\"Active Shooter\", 7, IF(HUMAN2[[#This Row],[Evacuation]]=\"Yes\",Scoring!$M$49,0))","v":0},{"$f":"IF(HUMAN2[[#This Row],[Threat/Hazard]]=\"Active Shooter\", 7, IF(HUMAN2[[#This Row],[Evacuation]]=\"Yes\",Scoring!$M$49,0))","v":0}]
["External Chemical HAZMAT Exposure, Pipeline",{"$f":"INDEX(USER_HAZ_COMP[Power],MATCH(HUMAN2[[#This Row],[Threat/Hazard]],USER_HAZ_COMP[Threat/Hazard],0))","v":0},{"$f":"INDEX(USER_HAZ_COMP[Water],MATCH(HUMAN2[[#This Row],[Threat/Hazard]],USER_HAZ_COMP[Threat/Hazard],0))","v":48},{"$f":"INDEX(USER_HAZ_COMP[Data and information management],MATCH(HUMAN2[[#This Row],[Threat/Hazard]],USER_HAZ_COMP[Threat/Hazard],0))","v":0},{"$f":"INDEX(USER_HAZ_COMP[Medical gases],MATCH(HUMAN2[[#This Row],[Threat/Hazard]],USER_HAZ_COMP[Threat/Hazard],0))","v":0},{"$f":"INDEX(USER_HAZ_COMP[Staffing],MATCH(HUMAN2[[#This Row],[Threat/Hazard]],USER_HAZ_COMP[Threat/Hazard],0))","v":48},{"$f":"IF(HUMAN2[[#This Row],[Power]]>0, IF(HUMAN2[[#This Row],[Water]]>0, \"Yes\", \"No\"), \"No\")","v":"No"},{"$f":"IF(HUMAN2[[#This Row],[Threat/Hazard]]=\"Active Shooter\", 7, IF(AND(HUMAN2[[#This Row],[Power]]>0,HUMAN2[[#This Row],[Water]]>0)=TRUE, Scoring!$M$49, IF(HUMAN2[[#This Row],[Staffing]]>0, Scoring!$M$56, MAX(IF(HUMAN2[[#This Row],[Power]]>0,Scoring!$M$52,0),IF(HUMAN2[[#This Row],[Water]]>0,Scoring!$M$53,0),IF(HUMAN2[[#This Row],[Cyber]]>0,Scoring!$M$54,0),IF(HUMAN2[[#This Row],[Medical Gases]]>0,Scoring!$M$55,0)))))","v":0},{"$f":"IF(HUMAN2[[#This Row],[Threat/Hazard]]=\"Active Shooter\", 7, IF(HUMAN2[[#This Row],[Evacuation]]=\"Yes\",Scoring!$M$49,0))","v":0},{"$f":"IF(HUMAN2[[#This Row],[Threat/Hazard]]=\"Active Shooter\", 7, IF(HUMAN2[[#This Row],[Evacuation]]=\"Yes\", Scoring!$M$49,0))","v":0},{"$f":"IF(HUMAN2[[#This Row],[Threat/Hazard]]=\"Active Shooter\", 7, IF(HUMAN2[[#This Row],[Evacuation]]=\"Yes\",Scoring!$M$49,0))","v":0},{"$f":"IF(HUMAN2[[#This Row],[Threat/Hazard]]=\"Active Shooter\", 7, IF(HUMAN2[[#This Row],[Evacuation]]=\"Yes\",Scoring!$M$49,0))","v":0},{"$f":"IF(HUMAN2[[#This Row],[Threat/Hazard]]=\"Active Shooter\", 7, IF(HUMAN2[[#This Row],[Evacuation]]=\"Yes\",Scoring!$M$49,0))","v":0},{"$f":"IF(HUMAN2[[#This Row],[Threat/Hazard]]=\"Active Shooter\", 7, IF(HUMAN2[[#This Row],[Evacuation]]=\"Yes\",Scoring!$M$49,0))","v":0},{"$f":"IF(HUMAN2[[#This Row],[Threat/Hazard]]=\"Active Shooter\", 7, IF(HUMAN2[[#This Row],[Evacuation]]=\"Yes\",Scoring!$M$49,0))","v":0},{"$f":"IF(HUMAN2[[#This Row],[Threat/Hazard]]=\"Active Shooter\", 7, IF(HUMAN2[[#This Row],[Evacuation]]=\"Yes\",Scoring!$M$49,0))","v":0},{"$f":"IF(HUMAN2[[#This Row],[Threat/Hazard]]=\"Active Shooter\", 7, IF(HUMAN2[[#This Row],[Evacuation]]=\"Yes\",Scoring!$M$49,0))","v":0}]
["Radiologic Exposure, External",{"$f":"INDEX(USER_HAZ_COMP[Power],MATCH(HUMAN2[[#This Row],[Threat/Hazard]],USER_HAZ_COMP[Threat/Hazard],0))","v":0},{"$f":"INDEX(USER_HAZ_COMP[Water],MATCH(HUMAN2[[#This Row],[Threat/Hazard]],USER_HAZ_COMP[Threat/Hazard],0))","v":48},{"$f":"INDEX(USER_HAZ_COMP[Data and information management],MATCH(HUMAN2[[#This Row],[Threat/Hazard]],USER_HAZ_COMP[Threat/Hazard],0))","v":0},{"$f":"INDEX(USER_HAZ_COMP[Medical gases],MATCH(HUMAN2[[#This Row],[Threat/Hazard]],USER_HAZ_COMP[Threat/Hazard],0))","v":0},{"$f":"INDEX(USER_HAZ_COMP[Staffing],MATCH(HUMAN2[[#This Row],[Threat/Hazard]],USER_HAZ_COMP[Threat/Hazard],0))","v":48},{"$f":"IF(HUMAN2[[#This Row],[Power]]>0, IF(HUMAN2[[#This Row],[Water]]>0, \"Yes\", \"No\"), \"No\")","v":"No"},{"$f":"IF(HUMAN2[[#This Row],[Threat/Hazard]]=\"Active Shooter\", 7, IF(AND(HUMAN2[[#This Row],[Power]]>0,HUMAN2[[#This Row],[Water]]>0)=TRUE, Scoring!$M$49, IF(HUMAN2[[#This Row],[Staffing]]>0, Scoring!$M$56, MAX(IF(HUMAN2[[#This Row],[Power]]>0,Scoring!$M$52,0),IF(HUMAN2[[#This Row],[Water]]>0,Scoring!$M$53,0),IF(HUMAN2[[#This Row],[Cyber]]>0,Scoring!$M$54,0),IF(HUMAN2[[#This Row],[Medical Gases]]>0,Scoring!$M$55,0)))))","v":0},{"$f":"IF(HUMAN2[[#This Row],[Threat/Hazard]]=\"Active Shooter\", 7, IF(HUMAN2[[#This Row],[Evacuation]]=\"Yes\",Scoring!$M$49,0))","v":0},{"$f":"IF(HUMAN2[[#This Row],[Threat/Hazard]]=\"Active Shooter\", 7, IF(HUMAN2[[#This Row],[Evacuation]]=\"Yes\", Scoring!$M$49,0))","v":0},{"$f":"IF(HUMAN2[[#This Row],[Threat/Hazard]]=\"Active Shooter\", 7, IF(HUMAN2[[#This Row],[Evacuation]]=\"Yes\",Scoring!$M$49,0))","v":0},{"$f":"IF(HUMAN2[[#This Row],[Threat/Hazard]]=\"Active Shooter\", 7, IF(HUMAN2[[#This Row],[Evacuation]]=\"Yes\",Scoring!$M$49,0))","v":0},{"$f":"IF(HUMAN2[[#This Row],[Threat/Hazard]]=\"Active Shooter\", 7, IF(HUMAN2[[#This Row],[Evacuation]]=\"Yes\",Scoring!$M$49,0))","v":0},{"$f":"IF(HUMAN2[[#This Row],[Threat/Hazard]]=\"Active Shooter\", 7, IF(HUMAN2[[#This Row],[Evacuation]]=\"Yes\",Scoring!$M$49,0))","v":0},{"$f":"IF(HUMAN2[[#This Row],[Threat/Hazard]]=\"Active Shooter\", 7, IF(HUMAN2[[#This Row],[Evacuation]]=\"Yes\",Scoring!$M$49,0))","v":0},{"$f":"IF(HUMAN2[[#This Row],[Threat/Hazard]]=\"Active Shooter\", 7, IF(HUMAN2[[#This Row],[Evacuation]]=\"Yes\",Scoring!$M$49,0))","v":0},{"$f":"IF(HUMAN2[[#This Row],[Threat/Hazard]]=\"Active Shooter\", 7, IF(HUMAN2[[#This Row],[Evacuation]]=\"Yes\",Scoring!$M$49,0))","v":0}]
["Electrical Failure",{"$f":"INDEX(USER_HAZ_COMP[Power],MATCH(HUMAN2[[#This Row],[Threat/Hazard]],USER_HAZ_COMP[Threat/Hazard],0))","v":48},{"$f":"INDEX(USER_HAZ_COMP[Water],MATCH(HUMAN2[[#This Row],[Threat/Hazard]],USER_HAZ_COMP[Threat/Hazard],0))","v":0},{"$f":"INDEX(USER_HAZ_COMP[Data and information management],MATCH(HUMAN2[[#This Row],[Threat/Hazard]],USER_HAZ_COMP[Threat/Hazard],0))","v":0},{"$f":"INDEX(USER_HAZ_COMP[Medical gases],MATCH(HUMAN2[[#This Row],[Threat/Hazard]],USER_HAZ_COMP[Threat/Hazard],0))","v":0},{"$f":"INDEX(USER_HAZ_COMP[Staffing],MATCH(HUMAN2[[#This Row],[Threat/Hazard]],USER_HAZ_COMP[Threat/Hazard],0))","v":0},{"$f":"IF(HUMAN2[[#This Row],[Power]]>0, IF(HUMAN2[[#This Row],[Water]]>0, \"Yes\", \"No\"), \"No\")","v":"No"},{"$f":"IF(HUMAN2[[#This Row],[Threat/Hazard]]=\"Active Shooter\", 7, IF(AND(HUMAN2[[#This Row],[Power]]>0,HUMAN2[[#This Row],[Water]]>0)=TRUE, Scoring!$M$49, IF(HUMAN2[[#This Row],[Staffing]]>0, Scoring!$M$56, MAX(IF(HUMAN2[[#This Row],[Power]]>0,Scoring!$M$52,0),IF(HUMAN2[[#This Row],[Water]]>0,Scoring!$M$53,0),IF(HUMAN2[[#This Row],[Cyber]]>0,Scoring!$M$54,0),IF(HUMAN2[[#This Row],[Medical Gases]]>0,Scoring!$M$55,0)))))","v":0},{"$f":"IF(HUMAN2[[#This Row],[Threat/Hazard]]=\"Active Shooter\", 7, IF(HUMAN2[[#This Row],[Evacuation]]=\"Yes\",Scoring!$M$49,0))","v":0},{"$f":"IF(HUMAN2[[#This Row],[Threat/Hazard]]=\"Active Shooter\", 7, IF(HUMAN2[[#This Row],[Evacuation]]=\"Yes\", Scoring!$M$49,0))","v":0},{"$f":"IF(HUMAN2[[#This Row],[Threat/Hazard]]=\"Active Shooter\", 7, IF(HUMAN2[[#This Row],[Evacuation]]=\"Yes\",Scoring!$M$49,0))","v":0},{"$f":"IF(HUMAN2[[#This Row],[Threat/Hazard]]=\"Active Shooter\", 7, IF(HUMAN2[[#This Row],[Evacuation]]=\"Yes\",Scoring!$M$49,0))","v":0},{"$f":"IF(HUMAN2[[#This Row],[Threat/Hazard]]=\"Active Shooter\", 7, IF(HUMAN2[[#This Row],[Evacuation]]=\"Yes\",Scoring!$M$49,0))","v":0},{"$f":"IF(HUMAN2[[#This Row],[Threat/Hazard]]=\"Active Shooter\", 7, IF(HUMAN2[[#This Row],[Evacuation]]=\"Yes\",Scoring!$M$49,0))","v":0},{"$f":"IF(HUMAN2[[#This Row],[Threat/Hazard]]=\"Active Shooter\", 7, IF(HUMAN2[[#This Row],[Evacuation]]=\"Yes\",Scoring!$M$49,0))","v":0},{"$f":"IF(HUMAN2[[#This Row],[Threat/Hazard]]=\"Active Shooter\", 7, IF(HUMAN2[[#This Row],[Evacuation]]=\"Yes\",Scoring!$M$49,0))","v":0},{"$f":"IF(HUMAN2[[#This Row],[Threat/Hazard]]=\"Active Shooter\", 7, IF(HUMAN2[[#This Row],[Evacuation]]=\"Yes\",Scoring!$M$49,0))","v":0}]
["Generator Failure ",{"$f":"INDEX(USER_HAZ_COMP[Power],MATCH(HUMAN2[[#This Row],[Threat/Hazard]],USER_HAZ_COMP[Threat/Hazard],0))","v":48},{"$f":"INDEX(USER_HAZ_COMP[Water],MATCH(HUMAN2[[#This Row],[Threat/Hazard]],USER_HAZ_COMP[Threat/Hazard],0))","v":0},{"$f":"INDEX(USER_HAZ_COMP[Data and information management],MATCH(HUMAN2[[#This Row],[Threat/Hazard]],USER_HAZ_COMP[Threat/Hazard],0))","v":0},{"$f":"INDEX(USER_HAZ_COMP[Medical gases],MATCH(HUMAN2[[#This Row],[Threat/Hazard]],USER_HAZ_COMP[Threat/Hazard],0))","v":0},{"$f":"INDEX(USER_HAZ_COMP[Staffing],MATCH(HUMAN2[[#This Row],[Threat/Hazard]],USER_HAZ_COMP[Threat/Hazard],0))","v":0},{"$f":"IF(HUMAN2[[#This Row],[Power]]>0, IF(HUMAN2[[#This Row],[Water]]>0, \"Yes\", \"No\"), \"No\")","v":"No"},{"$f":"IF(HUMAN2[[#This Row],[Threat/Hazard]]=\"Active Shooter\", 7, IF(AND(HUMAN2[[#This Row],[Power]]>0,HUMAN2[[#This Row],[Water]]>0)=TRUE, Scoring!$M$49, IF(HUMAN2[[#This Row],[Staffing]]>0, Scoring!$M$56, MAX(IF(HUMAN2[[#This Row],[Power]]>0,Scoring!$M$52,0),IF(HUMAN2[[#This Row],[Water]]>0,Scoring!$M$53,0),IF(HUMAN2[[#This Row],[Cyber]]>0,Scoring!$M$54,0),IF(HUMAN2[[#This Row],[Medical Gases]]>0,Scoring!$M$55,0)))))","v":0},{"$f":"IF(HUMAN2[[#This Row],[Threat/Hazard]]=\"Active Shooter\", 7, IF(HUMAN2[[#This Row],[Evacuation]]=\"Yes\",Scoring!$M$49,0))","v":0},{"$f":"IF(HUMAN2[[#This Row],[Threat/Hazard]]=\"Active Shooter\", 7, IF(HUMAN2[[#This Row],[Evacuation]]=\"Yes\", Scoring!$M$49,0))","v":0},{"$f":"IF(HUMAN2[[#This Row],[Threat/Hazard]]=\"Active Shooter\", 7, IF(HUMAN2[[#This Row],[Evacuation]]=\"Yes\",Scoring!$M$49,0))","v":0},{"$f":"IF(HUMAN2[[#This Row],[Threat/Hazard]]=\"Active Shooter\", 7, IF(HUMAN2[[#This Row],[Evacuation]]=\"Yes\",Scoring!$M$49,0))","v":0},{"$f":"IF(HUMAN2[[#This Row],[Threat/Hazard]]=\"Active Shooter\", 7, IF(HUMAN2[[#This Row],[Evacuation]]=\"Yes\",Scoring!$M$49,0))","v":0},{"$f":"IF(HUMAN2[[#This Row],[Threat/Hazard]]=\"Active Shooter\", 7, IF(HUMAN2[[#This Row],[Evacuation]]=\"Yes\",Scoring!$M$49,0))","v":0},{"$f":"IF(HUMAN2[[#This Row],[Threat/Hazard]]=\"Active Shooter\", 7, IF(HUMAN2[[#This Row],[Evacuation]]=\"Yes\",Scoring!$M$49,0))","v":0},{"$f":"IF(HUMAN2[[#This Row],[Threat/Hazard]]=\"Active Shooter\", 7, IF(HUMAN2[[#This Row],[Evacuation]]=\"Yes\",Scoring!$M$49,0))","v":0},{"$f":"IF(HUMAN2[[#This Row],[Threat/Hazard]]=\"Active Shooter\", 7, IF(HUMAN2[[#This Row],[Evacuation]]=\"Yes\",Scoring!$M$49,0))","v":0}]
["Transportation Failure",{"$f":"INDEX(USER_HAZ_COMP[Power],MATCH(HUMAN2[[#This Row],[Threat/Hazard]],USER_HAZ_COMP[Threat/Hazard],0))","v":0},{"$f":"INDEX(USER_HAZ_COMP[Water],MATCH(HUMAN2[[#This Row],[Threat/Hazard]],USER_HAZ_COMP[Threat/Hazard],0))","v":0},{"$f":"INDEX(USER_HAZ_COMP[Data and information management],MATCH(HUMAN2[[#This Row],[Threat/Hazard]],USER_HAZ_COMP[Threat/Hazard],0))","v":0},{"$f":"INDEX(USER_HAZ_COMP[Medical gases],MATCH(HUMAN2[[#This Row],[Threat/Hazard]],USER_HAZ_COMP[Threat/Hazard],0))","v":0},{"$f":"INDEX(USER_HAZ_COMP[Staffing],MATCH(HUMAN2[[#This Row],[Threat/Hazard]],USER_HAZ_COMP[Threat/Hazard],0))","v":48},{"$f":"IF(HUMAN2[[#This Row],[Power]]>0, IF(HUMAN2[[#This Row],[Water]]>0, \"Yes\", \"No\"), \"No\")","v":"No"},{"$f":"IF(HUMAN2[[#This Row],[Threat/Hazard]]=\"Active Shooter\", 7, IF(AND(HUMAN2[[#This Row],[Power]]>0,HUMAN2[[#This Row],[Water]]>0)=TRUE, Scoring!$M$49, IF(HUMAN2[[#This Row],[Staffing]]>0, Scoring!$M$56, MAX(IF(HUMAN2[[#This Row],[Power]]>0,Scoring!$M$52,0),IF(HUMAN2[[#This Row],[Water]]>0,Scoring!$M$53,0),IF(HUMAN2[[#This Row],[Cyber]]>0,Scoring!$M$54,0),IF(HUMAN2[[#This Row],[Medical Gases]]>0,Scoring!$M$55,0)))))","v":0},{"$f":"IF(HUMAN2[[#This Row],[Threat/Hazard]]=\"Active Shooter\", 7, IF(HUMAN2[[#This Row],[Evacuation]]=\"Yes\",Scoring!$M$49,0))","v":0},{"$f":"IF(HUMAN2[[#This Row],[Threat/Hazard]]=\"Active Shooter\", 7, IF(HUMAN2[[#This Row],[Evacuation]]=\"Yes\", Scoring!$M$49,0))","v":0},{"$f":"IF(HUMAN2[[#This Row],[Threat/Hazard]]=\"Active Shooter\", 7, IF(HUMAN2[[#This Row],[Evacuation]]=\"Yes\",Scoring!$M$49,0))","v":0},{"$f":"IF(HUMAN2[[#This Row],[Threat/Hazard]]=\"Active Shooter\", 7, IF(HUMAN2[[#This Row],[Evacuation]]=\"Yes\",Scoring!$M$49,0))","v":0},{"$f":"IF(HUMAN2[[#This Row],[Threat/Hazard]]=\"Active Shooter\", 7, IF(HUMAN2[[#This Row],[Evacuation]]=\"Yes\",Scoring!$M$49,0))","v":0},{"$f":"IF(HUMAN2[[#This Row],[Threat/Hazard]]=\"Active Shooter\", 7, IF(HUMAN2[[#This Row],[Evacuation]]=\"Yes\",Scoring!$M$49,0))","v":0},{"$f":"IF(HUMAN2[[#This Row],[Threat/Hazard]]=\"Active Shooter\", 7, IF(HUMAN2[[#This Row],[Evacuation]]=\"Yes\",Scoring!$M$49,0))","v":0},{"$f":"IF(HUMAN2[[#This Row],[Threat/Hazard]]=\"Active Shooter\", 7, IF(HUMAN2[[#This Row],[Evacuation]]=\"Yes\",Scoring!$M$49,0))","v":0},{"$f":"IF(HUMAN2[[#This Row],[Threat/Hazard]]=\"Active Shooter\", 7, IF(HUMAN2[[#This Row],[Evacuation]]=\"Yes\",Scoring!$M$49,0))","v":0}]
["Fuel Shortage",{"$f":"INDEX(USER_HAZ_COMP[Power],MATCH(HUMAN2[[#This Row],[Threat/Hazard]],USER_HAZ_COMP[Threat/Hazard],0))","v":48},{"$f":"INDEX(USER_HAZ_COMP[Water],MATCH(HUMAN2[[#This Row],[Threat/Hazard]],USER_HAZ_COMP[Threat/Hazard],0))","v":0},{"$f":"INDEX(USER_HAZ_COMP[Data and information management],MATCH(HUMAN2[[#This Row],[Threat/Hazard]],USER_HAZ_COMP[Threat/Hazard],0))","v":0},{"$f":"INDEX(USER_HAZ_COMP[Medical gases],MATCH(HUMAN2[[#This Row],[Threat/Hazard]],USER_HAZ_COMP[Threat/Hazard],0))","v":48},{"$f":"INDEX(USER_HAZ_COMP[Staffing],MATCH(HUMAN2[[#This Row],[Threat/Hazard]],USER_HAZ_COMP[Threat/Hazard],0))","v":0},{"$f":"IF(HUMAN2[[#This Row],[Power]]>0, IF(HUMAN2[[#This Row],[Water]]>0, \"Yes\", \"No\"), \"No\")","v":"No"},{"$f":"IF(HUMAN2[[#This Row],[Threat/Hazard]]=\"Active Shooter\", 7, IF(AND(HUMAN2[[#This Row],[Power]]>0,HUMAN2[[#This Row],[Water]]>0)=TRUE, Scoring!$M$49, IF(HUMAN2[[#This Row],[Staffing]]>0, Scoring!$M$56, MAX(IF(HUMAN2[[#This Row],[Power]]>0,Scoring!$M$52,0),IF(HUMAN2[[#This Row],[Water]]>0,Scoring!$M$53,0),IF(HUMAN2[[#This Row],[Cyber]]>0,Scoring!$M$54,0),IF(HUMAN2[[#This Row],[Medical Gases]]>0,Scoring!$M$55,0)))))","v":0},{"$f":"IF(HUMAN2[[#This Row],[Threat/Hazard]]=\"Active Shooter\", 7, IF(HUMAN2[[#This Row],[Evacuation]]=\"Yes\",Scoring!$M$49,0))","v":0},{"$f":"IF(HUMAN2[[#This Row],[Threat/Hazard]]=\"Active Shooter\", 7, IF(HUMAN2[[#This Row],[Evacuation]]=\"Yes\", Scoring!$M$49,0))","v":0},{"$f":"IF(HUMAN2[[#This Row],[Threat/Hazard]]=\"Active Shooter\", 7, IF(HUMAN2[[#This Row],[Evacuation]]=\"Yes\",Scoring!$M$49,0))","v":0},{"$f":"IF(HUMAN2[[#This Row],[Threat/Hazard]]=\"Active Shooter\", 7, IF(HUMAN2[[#This Row],[Evacuation]]=\"Yes\",Scoring!$M$49,0))","v":0},{"$f":"IF(HUMAN2[[#This Row],[Threat/Hazard]]=\"Active Shooter\", 7, IF(HUMAN2[[#This Row],[Evacuation]]=\"Yes\",Scoring!$M$49,0))","v":0},{"$f":"IF(HUMAN2[[#This Row],[Threat/Hazard]]=\"Active Shooter\", 7, IF(HUMAN2[[#This Row],[Evacuation]]=\"Yes\",Scoring!$M$49,0))","v":0},{"$f":"IF(HUMAN2[[#This Row],[Threat/Hazard]]=\"Active Shooter\", 7, IF(HUMAN2[[#This Row],[Evacuation]]=\"Yes\",Scoring!$M$49,0))","v":0},{"$f":"IF(HUMAN2[[#This Row],[Threat/Hazard]]=\"Active Shooter\", 7, IF(HUMAN2[[#This Row],[Evacuation]]=\"Yes\",Scoring!$M$49,0))","v":0},{"$f":"IF(HUMAN2[[#This Row],[Threat/Hazard]]=\"Active Shooter\", 7, IF(HUMAN2[[#This Row],[Evacuation]]=\"Yes\",Scoring!$M$49,0))","v":0}]
["Natural Gas Failure",{"$f":"INDEX(USER_HAZ_COMP[Power],MATCH(HUMAN2[[#This Row],[Threat/Hazard]],USER_HAZ_COMP[Threat/Hazard],0))","v":0},{"$f":"INDEX(USER_HAZ_COMP[Water],MATCH(HUMAN2[[#This Row],[Threat/Hazard]],USER_HAZ_COMP[Threat/Hazard],0))","v":0},{"$f":"INDEX(USER_HAZ_COMP[Data and information management],MATCH(HUMAN2[[#This Row],[Threat/Hazard]],USER_HAZ_COMP[Threat/Hazard],0))","v":0},{"$f":"INDEX(USER_HAZ_COMP[Medical gases],MATCH(HUMAN2[[#This Row],[Threat/Hazard]],USER_HAZ_COMP[Threat/Hazard],0))","v":48},{"$f":"INDEX(USER_HAZ_COMP[Staffing],MATCH(HUMAN2[[#This Row],[Threat/Hazard]],USER_HAZ_COMP[Threat/Hazard],0))","v":0},{"$f":"IF(HUMAN2[[#This Row],[Power]]>0, IF(HUMAN2[[#This Row],[Water]]>0, \"Yes\", \"No\"), \"No\")","v":"No"},{"$f":"IF(HUMAN2[[#This Row],[Threat/Hazard]]=\"Active Shooter\", 7, IF(AND(HUMAN2[[#This Row],[Power]]>0,HUMAN2[[#This Row],[Water]]>0)=TRUE, Scoring!$M$49, IF(HUMAN2[[#This Row],[Staffing]]>0, Scoring!$M$56, MAX(IF(HUMAN2[[#This Row],[Power]]>0,Scoring!$M$52,0),IF(HUMAN2[[#This Row],[Water]]>0,Scoring!$M$53,0),IF(HUMAN2[[#This Row],[Cyber]]>0,Scoring!$M$54,0),IF(HUMAN2[[#This Row],[Medical Gases]]>0,Scoring!$M$55,0)))))","v":0},{"$f":"IF(HUMAN2[[#This Row],[Threat/Hazard]]=\"Active Shooter\", 7, IF(HUMAN2[[#This Row],[Evacuation]]=\"Yes\",Scoring!$M$49,0))","v":0},{"$f":"IF(HUMAN2[[#This Row],[Threat/Hazard]]=\"Active Shooter\", 7, IF(HUMAN2[[#This Row],[Evacuation]]=\"Yes\", Scoring!$M$49,0))","v":0},{"$f":"IF(HUMAN2[[#This Row],[Threat/Hazard]]=\"Active Shooter\", 7, IF(HUMAN2[[#This Row],[Evacuation]]=\"Yes\",Scoring!$M$49,0))","v":0},{"$f":"IF(HUMAN2[[#This Row],[Threat/Hazard]]=\"Active Shooter\", 7, IF(HUMAN2[[#This Row],[Evacuation]]=\"Yes\",Scoring!$M$49,0))","v":0},{"$f":"IF(HUMAN2[[#This Row],[Threat/Hazard]]=\"Active Shooter\", 7, IF(HUMAN2[[#This Row],[Evacuation]]=\"Yes\",Scoring!$M$49,0))","v":0},{"$f":"IF(HUMAN2[[#This Row],[Threat/Hazard]]=\"Active Shooter\", 7, IF(HUMAN2[[#This Row],[Evacuation]]=\"Yes\",Scoring!$M$49,0))","v":0},{"$f":"IF(HUMAN2[[#This Row],[Threat/Hazard]]=\"Active Shooter\", 7, IF(HUMAN2[[#This Row],[Evacuation]]=\"Yes\",Scoring!$M$49,0))","v":0},{"$f":"IF(HUMAN2[[#This Row],[Threat/Hazard]]=\"Active Shooter\", 7, IF(HUMAN2[[#This Row],[Evacuation]]=\"Yes\",Scoring!$M$49,0))","v":0},{"$f":"IF(HUMAN2[[#This Row],[Threat/Hazard]]=\"Active Shooter\", 7, IF(HUMAN2[[#This Row],[Evacuation]]=\"Yes\",Scoring!$M$49,0))","v":0}]
["Water Failure",{"$f":"INDEX(USER_HAZ_COMP[Power],MATCH(HUMAN2[[#This Row],[Threat/Hazard]],USER_HAZ_COMP[Threat/Hazard],0))","v":0},{"$f":"INDEX(USER_HAZ_COMP[Water],MATCH(HUMAN2[[#This Row],[Threat/Hazard]],USER_HAZ_COMP[Threat/Hazard],0))","v":48},{"$f":"INDEX(USER_HAZ_COMP[Data and information management],MATCH(HUMAN2[[#This Row],[Threat/Hazard]],USER_HAZ_COMP[Threat/Hazard],0))","v":0},{"$f":"INDEX(USER_HAZ_COMP[Medical gases],MATCH(HUMAN2[[#This Row],[Threat/Hazard]],USER_HAZ_COMP[Threat/Hazard],0))","v":0},{"$f":"INDEX(USER_HAZ_COMP[Staffing],MATCH(HUMAN2[[#This Row],[Threat/Hazard]],USER_HAZ_COMP[Threat/Hazard],0))","v":0},{"$f":"IF(HUMAN2[[#This Row],[Power]]>0, IF(HUMAN2[[#This Row],[Water]]>0, \"Yes\", \"No\"), \"No\")","v":"No"},{"$f":"IF(HUMAN2[[#This Row],[Threat/Hazard]]=\"Active Shooter\", 7, IF(AND(HUMAN2[[#This Row],[Power]]>0,HUMAN2[[#This Row],[Water]]>0)=TRUE, Scoring!$M$49, IF(HUMAN2[[#This Row],[Staffing]]>0, Scoring!$M$56, MAX(IF(HUMAN2[[#This Row],[Power]]>0,Scoring!$M$52,0),IF(HUMAN2[[#This Row],[Water]]>0,Scoring!$M$53,0),IF(HUMAN2[[#This Row],[Cyber]]>0,Scoring!$M$54,0),IF(HUMAN2[[#This Row],[Medical Gases]]>0,Scoring!$M$55,0)))))","v":0},{"$f":"IF(HUMAN2[[#This Row],[Threat/Hazard]]=\"Active Shooter\", 7, IF(HUMAN2[[#This Row],[Evacuation]]=\"Yes\",Scoring!$M$49,0))","v":0},{"$f":"IF(HUMAN2[[#This Row],[Threat/Hazard]]=\"Active Shooter\", 7, IF(HUMAN2[[#This Row],[Evacuation]]=\"Yes\", Scoring!$M$49,0))","v":0},{"$f":"IF(HUMAN2[[#This Row],[Threat/Hazard]]=\"Active Shooter\", 7, IF(HUMAN2[[#This Row],[Evacuation]]=\"Yes\",Scoring!$M$49,0))","v":0},{"$f":"IF(HUMAN2[[#This Row],[Threat/Hazard]]=\"Active Shooter\", 7, IF(HUMAN2[[#This Row],[Evacuation]]=\"Yes\",Scoring!$M$49,0))","v":0},{"$f":"IF(HUMAN2[[#This Row],[Threat/Hazard]]=\"Active Shooter\", 7, IF(HUMAN2[[#This Row],[Evacuation]]=\"Yes\",Scoring!$M$49,0))","v":0},{"$f":"IF(HUMAN2[[#This Row],[Threat/Hazard]]=\"Active Shooter\", 7, IF(HUMAN2[[#This Row],[Evacuation]]=\"Yes\",Scoring!$M$49,0))","v":0},{"$f":"IF(HUMAN2[[#This Row],[Threat/Hazard]]=\"Active Shooter\", 7, IF(HUMAN2[[#This Row],[Evacuation]]=\"Yes\",Scoring!$M$49,0))","v":0},{"$f":"IF(HUMAN2[[#This Row],[Threat/Hazard]]=\"Active Shooter\", 7, IF(HUMAN2[[#This Row],[Evacuation]]=\"Yes\",Scoring!$M$49,0))","v":0},{"$f":"IF(HUMAN2[[#This Row],[Threat/Hazard]]=\"Active Shooter\", 7, IF(HUMAN2[[#This Row],[Evacuation]]=\"Yes\",Scoring!$M$49,0))","v":0}]
["Sewer Failure",{"$f":"INDEX(USER_HAZ_COMP[Power],MATCH(HUMAN2[[#This Row],[Threat/Hazard]],USER_HAZ_COMP[Threat/Hazard],0))","v":0},{"$f":"INDEX(USER_HAZ_COMP[Water],MATCH(HUMAN2[[#This Row],[Threat/Hazard]],USER_HAZ_COMP[Threat/Hazard],0))","v":0},{"$f":"INDEX(USER_HAZ_COMP[Data and information management],MATCH(HUMAN2[[#This Row],[Threat/Hazard]],USER_HAZ_COMP[Threat/Hazard],0))","v":0},{"$f":"INDEX(USER_HAZ_COMP[Medical gases],MATCH(HUMAN2[[#This Row],[Threat/Hazard]],USER_HAZ_COMP[Threat/Hazard],0))","v":0},{"$f":"INDEX(USER_HAZ_COMP[Staffing],MATCH(HUMAN2[[#This Row],[Threat/Hazard]],USER_HAZ_COMP[Threat/Hazard],0))","v":0},{"$f":"IF(HUMAN2[[#This Row],[Power]]>0, IF(HUMAN2[[#This Row],[Water]]>0, \"Yes\", \"No\"), \"No\")","v":"No"},{"$f":"IF(HUMAN2[[#This Row],[Threat/Hazard]]=\"Active Shooter\", 7, IF(AND(HUMAN2[[#This Row],[Power]]>0,HUMAN2[[#This Row],[Water]]>0)=TRUE, Scoring!$M$49, IF(HUMAN2[[#This Row],[Staffing]]>0, Scoring!$M$56, MAX(IF(HUMAN2[[#This Row],[Power]]>0,Scoring!$M$52,0),IF(HUMAN2[[#This Row],[Water]]>0,Scoring!$M$53,0),IF(HUMAN2[[#This Row],[Cyber]]>0,Scoring!$M$54,0),IF(HUMAN2[[#This Row],[Medical Gases]]>0,Scoring!$M$55,0)))))","v":0},{"$f":"IF(HUMAN2[[#This Row],[Threat/Hazard]]=\"Active Shooter\", 7, IF(HUMAN2[[#This Row],[Evacuation]]=\"Yes\",Scoring!$M$49,0))","v":0},{"$f":"IF(HUMAN2[[#This Row],[Threat/Hazard]]=\"Active Shooter\", 7, IF(HUMAN2[[#This Row],[Evacuation]]=\"Yes\", Scoring!$M$49,0))","v":0},{"$f":"IF(HUMAN2[[#This Row],[Threat/Hazard]]=\"Active Shooter\", 7, IF(HUMAN2[[#This Row],[Evacuation]]=\"Yes\",Scoring!$M$49,0))","v":0},{"$f":"IF(HUMAN2[[#This Row],[Threat/Hazard]]=\"Active Shooter\", 7, IF(HUMAN2[[#This Row],[Evacuation]]=\"Yes\",Scoring!$M$49,0))","v":0},{"$f":"IF(HUMAN2[[#This Row],[Threat/Hazard]]=\"Active Shooter\", 7, IF(HUMAN2[[#This Row],[Evacuation]]=\"Yes\",Scoring!$M$49,0))","v":0},{"$f":"IF(HUMAN2[[#This Row],[Threat/Hazard]]=\"Active Shooter\", 7, IF(HUMAN2[[#This Row],[Evacuation]]=\"Yes\",Scoring!$M$49,0))","v":0},{"$f":"IF(HUMAN2[[#This Row],[Threat/Hazard]]=\"Active Shooter\", 7, IF(HUMAN2[[#This Row],[Evacuation]]=\"Yes\",Scoring!$M$49,0))","v":0},{"$f":"IF(HUMAN2[[#This Row],[Threat/Hazard]]=\"Active Shooter\", 7, IF(HUMAN2[[#This Row],[Evacuation]]=\"Yes\",Scoring!$M$49,0))","v":0},{"$f":"IF(HUMAN2[[#This Row],[Threat/Hazard]]=\"Active Shooter\", 7, IF(HUMAN2[[#This Row],[Evacuation]]=\"Yes\",Scoring!$M$49,0))","v":0}]
["Steam Failure",{"$f":"INDEX(USER_HAZ_COMP[Power],MATCH(HUMAN2[[#This Row],[Threat/Hazard]],USER_HAZ_COMP[Threat/Hazard],0))","v":0},{"$f":"INDEX(USER_HAZ_COMP[Water],MATCH(HUMAN2[[#This Row],[Threat/Hazard]],USER_HAZ_COMP[Threat/Hazard],0))","v":0},{"$f":"INDEX(USER_HAZ_COMP[Data and information management],MATCH(HUMAN2[[#This Row],[Threat/Hazard]],USER_HAZ_COMP[Threat/Hazard],0))","v":0},{"$f":"INDEX(USER_HAZ_COMP[Medical gases],MATCH(HUMAN2[[#This Row],[Threat/Hazard]],USER_HAZ_COMP[Threat/Hazard],0))","v":48},{"$f":"INDEX(USER_HAZ_COMP[Staffing],MATCH(HUMAN2[[#This Row],[Threat/Hazard]],USER_HAZ_COMP[Threat/Hazard],0))","v":0},{"$f":"IF(HUMAN2[[#This Row],[Power]]>0, IF(HUMAN2[[#This Row],[Water]]>0, \"Yes\", \"No\"), \"No\")","v":"No"},{"$f":"IF(HUMAN2[[#This Row],[Threat/Hazard]]=\"Active Shooter\", 7, IF(AND(HUMAN2[[#This Row],[Power]]>0,HUMAN2[[#This Row],[Water]]>0)=TRUE, Scoring!$M$49, IF(HUMAN2[[#This Row],[Staffing]]>0, Scoring!$M$56, MAX(IF(HUMAN2[[#This Row],[Power]]>0,Scoring!$M$52,0),IF(HUMAN2[[#This Row],[Water]]>0,Scoring!$M$53,0),IF(HUMAN2[[#This Row],[Cyber]]>0,Scoring!$M$54,0),IF(HUMAN2[[#This Row],[Medical Gases]]>0,Scoring!$M$55,0)))))","v":0},{"$f":"IF(HUMAN2[[#This Row],[Threat/Hazard]]=\"Active Shooter\", 7, IF(HUMAN2[[#This Row],[Evacuation]]=\"Yes\",Scoring!$M$49,0))","v":0},{"$f":"IF(HUMAN2[[#This Row],[Threat/Hazard]]=\"Active Shooter\", 7, IF(HUMAN2[[#This Row],[Evacuation]]=\"Yes\", Scoring!$M$49,0))","v":0},{"$f":"IF(HUMAN2[[#This Row],[Threat/Hazard]]=\"Active Shooter\", 7, IF(HUMAN2[[#This Row],[Evacuation]]=\"Yes\",Scoring!$M$49,0))","v":0},{"$f":"IF(HUMAN2[[#This Row],[Threat/Hazard]]=\"Active Shooter\", 7, IF(HUMAN2[[#This Row],[Evacuation]]=\"Yes\",Scoring!$M$49,0))","v":0},{"$f":"IF(HUMAN2[[#This Row],[Threat/Hazard]]=\"Active Shooter\", 7, IF(HUMAN2[[#This Row],[Evacuation]]=\"Yes\",Scoring!$M$49,0))","v":0},{"$f":"IF(HUMAN2[[#This Row],[Threat/Hazard]]=\"Active Shooter\", 7, IF(HUMAN2[[#This Row],[Evacuation]]=\"Yes\",Scoring!$M$49,0))","v":0},{"$f":"IF(HUMAN2[[#This Row],[Threat/Hazard]]=\"Active Shooter\", 7, IF(HUMAN2[[#This Row],[Evacuation]]=\"Yes\",Scoring!$M$49,0))","v":0},{"$f":"IF(HUMAN2[[#This Row],[Threat/Hazard]]=\"Active Shooter\", 7, IF(HUMAN2[[#This Row],[Evacuation]]=\"Yes\",Scoring!$M$49,0))","v":0},{"$f":"IF(HUMAN2[[#This Row],[Threat/Hazard]]=\"Active Shooter\", 7, IF(HUMAN2[[#This Row],[Evacuation]]=\"Yes\",Scoring!$M$49,0))","v":0}]
["Fire Alarm Failure",{"$f":"INDEX(USER_HAZ_COMP[Power],MATCH(HUMAN2[[#This Row],[Threat/Hazard]],USER_HAZ_COMP[Threat/Hazard],0))","v":0},{"$f":"INDEX(USER_HAZ_COMP[Water],MATCH(HUMAN2[[#This Row],[Threat/Hazard]],USER_HAZ_COMP[Threat/Hazard],0))","v":0},{"$f":"INDEX(USER_HAZ_COMP[Data and information management],MATCH(HUMAN2[[#This Row],[Threat/Hazard]],USER_HAZ_COMP[Threat/Hazard],0))","v":0},{"$f":"INDEX(USER_HAZ_COMP[Medical gases],MATCH(HUMAN2[[#This Row],[Threat/Hazard]],USER_HAZ_COMP[Threat/Hazard],0))","v":0},{"$f":"INDEX(USER_HAZ_COMP[Staffing],MATCH(HUMAN2[[#This Row],[Threat/Hazard]],USER_HAZ_COMP[Threat/Hazard],0))","v":0},{"$f":"IF(HUMAN2[[#This Row],[Power]]>0, IF(HUMAN2[[#This Row],[Water]]>0, \"Yes\", \"No\"), \"No\")","v":"No"},{"$f":"IF(HUMAN2[[#This Row],[Threat/Hazard]]=\"Active Shooter\", 7, IF(AND(HUMAN2[[#This Row],[Power]]>0,HUMAN2[[#This Row],[Water]]>0)=TRUE, Scoring!$M$49, IF(HUMAN2[[#This Row],[Staffing]]>0, Scoring!$M$56, MAX(IF(HUMAN2[[#This Row],[Power]]>0,Scoring!$M$52,0),IF(HUMAN2[[#This Row],[Water]]>0,Scoring!$M$53,0),IF(HUMAN2[[#This Row],[Cyber]]>0,Scoring!$M$54,0),IF(HUMAN2[[#This Row],[Medical Gases]]>0,Scoring!$M$55,0)))))","v":0},{"$f":"IF(HUMAN2[[#This Row],[Threat/Hazard]]=\"Active Shooter\", 7, IF(HUMAN2[[#This Row],[Evacuation]]=\"Yes\",Scoring!$M$49,0))","v":0},{"$f":"IF(HUMAN2[[#This Row],[Threat/Hazard]]=\"Active Shooter\", 7, IF(HUMAN2[[#This Row],[Evacuation]]=\"Yes\", Scoring!$M$49,0))","v":0},{"$f":"IF(HUMAN2[[#This Row],[Threat/Hazard]]=\"Active Shooter\", 7, IF(HUMAN2[[#This Row],[Evacuation]]=\"Yes\",Scoring!$M$49,0))","v":0},{"$f":"IF(HUMAN2[[#This Row],[Threat/Hazard]]=\"Active Shooter\", 7, IF(HUMAN2[[#This Row],[Evacuation]]=\"Yes\",Scoring!$M$49,0))","v":0},{"$f":"IF(HUMAN2[[#This Row],[Threat/Hazard]]=\"Active Shooter\", 7, IF(HUMAN2[[#This Row],[Evacuation]]=\"Yes\",Scoring!$M$49,0))","v":0},{"$f":"IF(HUMAN2[[#This Row],[Threat/Hazard]]=\"Active Shooter\", 7, IF(HUMAN2[[#This Row],[Evacuation]]=\"Yes\",Scoring!$M$49,0))","v":0},{"$f":"IF(HUMAN2[[#This Row],[Threat/Hazard]]=\"Active Shooter\", 7, IF(HUMAN2[[#This Row],[Evacuation]]=\"Yes\",Scoring!$M$49,0))","v":0},{"$f":"IF(HUMAN2[[#This Row],[Threat/Hazard]]=\"Active Shooter\", 7, IF(HUMAN2[[#This Row],[Evacuation]]=\"Yes\",Scoring!$M$49,0))","v":0},{"$f":"IF(HUMAN2[[#This Row],[Threat/Hazard]]=\"Active Shooter\", 7, IF(HUMAN2[[#This Row],[Evacuation]]=\"Yes\",Scoring!$M$49,0))","v":0}]
["Communications Failure",{"$f":"INDEX(USER_HAZ_COMP[Power],MATCH(HUMAN2[[#This Row],[Threat/Hazard]],USER_HAZ_COMP[Threat/Hazard],0))","v":0},{"$f":"INDEX(USER_HAZ_COMP[Water],MATCH(HUMAN2[[#This Row],[Threat/Hazard]],USER_HAZ_COMP[Threat/Hazard],0))","v":0},{"$f":"INDEX(USER_HAZ_COMP[Data and information management],MATCH(HUMAN2[[#This Row],[Threat/Hazard]],USER_HAZ_COMP[Threat/Hazard],0))","v":0},{"$f":"INDEX(USER_HAZ_COMP[Medical gases],MATCH(HUMAN2[[#This Row],[Threat/Hazard]],USER_HAZ_COMP[Threat/Hazard],0))","v":0},{"$f":"INDEX(USER_HAZ_COMP[Staffing],MATCH(HUMAN2[[#This Row],[Threat/Hazard]],USER_HAZ_COMP[Threat/Hazard],0))","v":0},{"$f":"IF(HUMAN2[[#This Row],[Power]]>0, IF(HUMAN2[[#This Row],[Water]]>0, \"Yes\", \"No\"), \"No\")","v":"No"},{"$f":"IF(HUMAN2[[#This Row],[Threat/Hazard]]=\"Active Shooter\", 7, IF(AND(HUMAN2[[#This Row],[Power]]>0,HUMAN2[[#This Row],[Water]]>0)=TRUE, Scoring!$M$49, IF(HUMAN2[[#This Row],[Staffing]]>0, Scoring!$M$56, MAX(IF(HUMAN2[[#This Row],[Power]]>0,Scoring!$M$52,0),IF(HUMAN2[[#This Row],[Water]]>0,Scoring!$M$53,0),IF(HUMAN2[[#This Row],[Cyber]]>0,Scoring!$M$54,0),IF(HUMAN2[[#This Row],[Medical Gases]]>0,Scoring!$M$55,0)))))","v":0},{"$f":"IF(HUMAN2[[#This Row],[Threat/Hazard]]=\"Active Shooter\", 7, IF(HUMAN2[[#This Row],[Evacuation]]=\"Yes\",Scoring!$M$49,0))","v":0},{"$f":"IF(HUMAN2[[#This Row],[Threat/Hazard]]=\"Active Shooter\", 7, IF(HUMAN2[[#This Row],[Evacuation]]=\"Yes\", Scoring!$M$49,0))","v":0},{"$f":"IF(HUMAN2[[#This Row],[Threat/Hazard]]=\"Active Shooter\", 7, IF(HUMAN2[[#This Row],[Evacuation]]=\"Yes\",Scoring!$M$49,0))","v":0},{"$f":"IF(HUMAN2[[#This Row],[Threat/Hazard]]=\"Active Shooter\", 7, IF(HUMAN2[[#This Row],[Evacuation]]=\"Yes\",Scoring!$M$49,0))","v":0},{"$f":"IF(HUMAN2[[#This Row],[Threat/Hazard]]=\"Active Shooter\", 7, IF(HUMAN2[[#This Row],[Evacuation]]=\"Yes\",Scoring!$M$49,0))","v":0},{"$f":"IF(HUMAN2[[#This Row],[Threat/Hazard]]=\"Active Shooter\", 7, IF(HUMAN2[[#This Row],[Evacuation]]=\"Yes\",Scoring!$M$49,0))","v":0},{"$f":"IF(HUMAN2[[#This Row],[Threat/Hazard]]=\"Active Shooter\", 7, IF(HUMAN2[[#This Row],[Evacuation]]=\"Yes\",Scoring!$M$49,0))","v":0},{"$f":"IF(HUMAN2[[#This Row],[Threat/Hazard]]=\"Active Shooter\", 7, IF(HUMAN2[[#This Row],[Evacuation]]=\"Yes\",Scoring!$M$49,0))","v":0},{"$f":"IF(HUMAN2[[#This Row],[Threat/Hazard]]=\"Active Shooter\", 7, IF(HUMAN2[[#This Row],[Evacuation]]=\"Yes\",Scoring!$M$49,0))","v":0}]
["Medical Gas Failure",{"$f":"INDEX(USER_HAZ_COMP[Power],MATCH(HUMAN2[[#This Row],[Threat/Hazard]],USER_HAZ_COMP[Threat/Hazard],0))","v":0},{"$f":"INDEX(USER_HAZ_COMP[Water],MATCH(HUMAN2[[#This Row],[Threat/Hazard]],USER_HAZ_COMP[Threat/Hazard],0))","v":0},{"$f":"INDEX(USER_HAZ_COMP[Data and information management],MATCH(HUMAN2[[#This Row],[Threat/Hazard]],USER_HAZ_COMP[Threat/Hazard],0))","v":0},{"$f":"INDEX(USER_HAZ_COMP[Medical gases],MATCH(HUMAN2[[#This Row],[Threat/Hazard]],USER_HAZ_COMP[Threat/Hazard],0))","v":0},{"$f":"INDEX(USER_HAZ_COMP[Staffing],MATCH(HUMAN2[[#This Row],[Threat/Hazard]],USER_HAZ_COMP[Threat/Hazard],0))","v":0},{"$f":"IF(HUMAN2[[#This Row],[Power]]>0, IF(HUMAN2[[#This Row],[Water]]>0, \"Yes\", \"No\"), \"No\")","v":"No"},{"$f":"IF(HUMAN2[[#This Row],[Threat/Hazard]]=\"Active Shooter\", 7, IF(AND(HUMAN2[[#This Row],[Power]]>0,HUMAN2[[#This Row],[Water]]>0)=TRUE, Scoring!$M$49, IF(HUMAN2[[#This Row],[Staffing]]>0, Scoring!$M$56, MAX(IF(HUMAN2[[#This Row],[Power]]>0,Scoring!$M$52,0),IF(HUMAN2[[#This Row],[Water]]>0,Scoring!$M$53,0),IF(HUMAN2[[#This Row],[Cyber]]>0,Scoring!$M$54,0),IF(HUMAN2[[#This Row],[Medical Gases]]>0,Scoring!$M$55,0)))))","v":0},{"$f":"IF(HUMAN2[[#This Row],[Threat/Hazard]]=\"Active Shooter\", 7, IF(HUMAN2[[#This Row],[Evacuation]]=\"Yes\",Scoring!$M$49,0))","v":0},{"$f":"IF(HUMAN2[[#This Row],[Threat/Hazard]]=\"Active Shooter\", 7, IF(HUMAN2[[#This Row],[Evacuation]]=\"Yes\", Scoring!$M$49,0))","v":0},{"$f":"IF(HUMAN2[[#This Row],[Threat/Hazard]]=\"Active Shooter\", 7, IF(HUMAN2[[#This Row],[Evacuation]]=\"Yes\",Scoring!$M$49,0))","v":0},{"$f":"IF(HUMAN2[[#This Row],[Threat/Hazard]]=\"Active Shooter\", 7, IF(HUMAN2[[#This Row],[Evacuation]]=\"Yes\",Scoring!$M$49,0))","v":0},{"$f":"IF(HUMAN2[[#This Row],[Threat/Hazard]]=\"Active Shooter\", 7, IF(HUMAN2[[#This Row],[Evacuation]]=\"Yes\",Scoring!$M$49,0))","v":0},{"$f":"IF(HUMAN2[[#This Row],[Threat/Hazard]]=\"Active Shooter\", 7, IF(HUMAN2[[#This Row],[Evacuation]]=\"Yes\",Scoring!$M$49,0))","v":0},{"$f":"IF(HUMAN2[[#This Row],[Threat/Hazard]]=\"Active Shooter\", 7, IF(HUMAN2[[#This Row],[Evacuation]]=\"Yes\",Scoring!$M$49,0))","v":0},{"$f":"IF(HUMAN2[[#This Row],[Threat/Hazard]]=\"Active Shooter\", 7, IF(HUMAN2[[#This Row],[Evacuation]]=\"Yes\",Scoring!$M$49,0))","v":0},{"$f":"IF(HUMAN2[[#This Row],[Threat/Hazard]]=\"Active Shooter\", 7, IF(HUMAN2[[#This Row],[Evacuation]]=\"Yes\",Scoring!$M$49,0))","v":0}]
["Medical Vacuum Failure",{"$f":"INDEX(USER_HAZ_COMP[Power],MATCH(HUMAN2[[#This Row],[Threat/Hazard]],USER_HAZ_COMP[Threat/Hazard],0))","v":0},{"$f":"INDEX(USER_HAZ_COMP[Water],MATCH(HUMAN2[[#This Row],[Threat/Hazard]],USER_HAZ_COMP[Threat/Hazard],0))","v":0},{"$f":"INDEX(USER_HAZ_COMP[Data and information management],MATCH(HUMAN2[[#This Row],[Threat/Hazard]],USER_HAZ_COMP[Threat/Hazard],0))","v":0},{"$f":"INDEX(USER_HAZ_COMP[Medical gases],MATCH(HUMAN2[[#This Row],[Threat/Hazard]],USER_HAZ_COMP[Threat/Hazard],0))","v":0},{"$f":"INDEX(USER_HAZ_COMP[Staffing],MATCH(HUMAN2[[#This Row],[Threat/Hazard]],USER_HAZ_COMP[Threat/Hazard],0))","v":0},{"$f":"IF(HUMAN2[[#This Row],[Power]]>0, IF(HUMAN2[[#This Row],[Water]]>0, \"Yes\", \"No\"), \"No\")","v":"No"},{"$f":"IF(HUMAN2[[#This Row],[Threat/Hazard]]=\"Active Shooter\", 7, IF(AND(HUMAN2[[#This Row],[Power]]>0,HUMAN2[[#This Row],[Water]]>0)=TRUE, Scoring!$M$49, IF(HUMAN2[[#This Row],[Staffing]]>0, Scoring!$M$56, MAX(IF(HUMAN2[[#This Row],[Power]]>0,Scoring!$M$52,0),IF(HUMAN2[[#This Row],[Water]]>0,Scoring!$M$53,0),IF(HUMAN2[[#This Row],[Cyber]]>0,Scoring!$M$54,0),IF(HUMAN2[[#This Row],[Medical Gases]]>0,Scoring!$M$55,0)))))","v":0},{"$f":"IF(HUMAN2[[#This Row],[Threat/Hazard]]=\"Active Shooter\", 7, IF(HUMAN2[[#This Row],[Evacuation]]=\"Yes\",Scoring!$M$49,0))","v":0},{"$f":"IF(HUMAN2[[#This Row],[Threat/Hazard]]=\"Active Shooter\", 7, IF(HUMAN2[[#This Row],[Evacuation]]=\"Yes\", Scoring!$M$49,0))","v":0},{"$f":"IF(HUMAN2[[#This Row],[Threat/Hazard]]=\"Active Shooter\", 7, IF(HUMAN2[[#This Row],[Evacuation]]=\"Yes\",Scoring!$M$49,0))","v":0},{"$f":"IF(HUMAN2[[#This Row],[Threat/Hazard]]=\"Active Shooter\", 7, IF(HUMAN2[[#This Row],[Evacuation]]=\"Yes\",Scoring!$M$49,0))","v":0},{"$f":"IF(HUMAN2[[#This Row],[Threat/Hazard]]=\"Active Shooter\", 7, IF(HUMAN2[[#This Row],[Evacuation]]=\"Yes\",Scoring!$M$49,0))","v":0},{"$f":"IF(HUMAN2[[#This Row],[Threat/Hazard]]=\"Active Shooter\", 7, IF(HUMAN2[[#This Row],[Evacuation]]=\"Yes\",Scoring!$M$49,0))","v":0},{"$f":"IF(HUMAN2[[#This Row],[Threat/Hazard]]=\"Active Shooter\", 7, IF(HUMAN2[[#This Row],[Evacuation]]=\"Yes\",Scoring!$M$49,0))","v":0},{"$f":"IF(HUMAN2[[#This Row],[Threat/Hazard]]=\"Active Shooter\", 7, IF(HUMAN2[[#This Row],[Evacuation]]=\"Yes\",Scoring!$M$49,0))","v":0},{"$f":"IF(HUMAN2[[#This Row],[Threat/Hazard]]=\"Active Shooter\", 7, IF(HUMAN2[[#This Row],[Evacuation]]=\"Yes\",Scoring!$M$49,0))","v":0}]
["HVAC Failure",{"$f":"INDEX(USER_HAZ_COMP[Power],MATCH(HUMAN2[[#This Row],[Threat/Hazard]],USER_HAZ_COMP[Threat/Hazard],0))","v":0},{"$f":"INDEX(USER_HAZ_COMP[Water],MATCH(HUMAN2[[#This Row],[Threat/Hazard]],USER_HAZ_COMP[Threat/Hazard],0))","v":0},{"$f":"INDEX(USER_HAZ_COMP[Data and information management],MATCH(HUMAN2[[#This Row],[Threat/Hazard]],USER_HAZ_COMP[Threat/Hazard],0))","v":0},{"$f":"INDEX(USER_HAZ_COMP[Medical gases],MATCH(HUMAN2[[#This Row],[Threat/Hazard]],USER_HAZ_COMP[Threat/Hazard],0))","v":0},{"$f":"INDEX(USER_HAZ_COMP[Staffing],MATCH(HUMAN2[[#This Row],[Threat/Hazard]],USER_HAZ_COMP[Threat/Hazard],0))","v":0},{"$f":"IF(HUMAN2[[#This Row],[Power]]>0, IF(HUMAN2[[#This Row],[Water]]>0, \"Yes\", \"No\"), \"No\")","v":"No"},{"$f":"IF(HUMAN2[[#This Row],[Threat/Hazard]]=\"Active Shooter\", 7, IF(AND(HUMAN2[[#This Row],[Power]]>0,HUMAN2[[#This Row],[Water]]>0)=TRUE, Scoring!$M$49, IF(HUMAN2[[#This Row],[Staffing]]>0, Scoring!$M$56, MAX(IF(HUMAN2[[#This Row],[Power]]>0,Scoring!$M$52,0),IF(HUMAN2[[#This Row],[Water]]>0,Scoring!$M$53,0),IF(HUMAN2[[#This Row],[Cyber]]>0,Scoring!$M$54,0),IF(HUMAN2[[#This Row],[Medical Gases]]>0,Scoring!$M$55,0)))))","v":0},{"$f":"IF(HUMAN2[[#This Row],[Threat/Hazard]]=\"Active Shooter\", 7, IF(HUMAN2[[#This Row],[Evacuation]]=\"Yes\",Scoring!$M$49,0))","v":0},{"$f":"IF(HUMAN2[[#This Row],[Threat/Hazard]]=\"Active Shooter\", 7, IF(HUMAN2[[#This Row],[Evacuation]]=\"Yes\", Scoring!$M$49,0))","v":0},{"$f":"IF(HUMAN2[[#This Row],[Threat/Hazard]]=\"Active Shooter\", 7, IF(HUMAN2[[#This Row],[Evacuation]]=\"Yes\",Scoring!$M$49,0))","v":0},{"$f":"IF(HUMAN2[[#This Row],[Threat/Hazard]]=\"Active Shooter\", 7, IF(HUMAN2[[#This Row],[Evacuation]]=\"Yes\",Scoring!$M$49,0))","v":0},{"$f":"IF(HUMAN2[[#This Row],[Threat/Hazard]]=\"Active Shooter\", 7, IF(HUMAN2[[#This Row],[Evacuation]]=\"Yes\",Scoring!$M$49,0))","v":0},{"$f":"IF(HUMAN2[[#This Row],[Threat/Hazard]]=\"Active Shooter\", 7, IF(HUMAN2[[#This Row],[Evacuation]]=\"Yes\",Scoring!$M$49,0))","v":0},{"$f":"IF(HUMAN2[[#This Row],[Threat/Hazard]]=\"Active Shooter\", 7, IF(HUMAN2[[#This Row],[Evacuation]]=\"Yes\",Scoring!$M$49,0))","v":0},{"$f":"IF(HUMAN2[[#This Row],[Threat/Hazard]]=\"Active Shooter\", 7, IF(HUMAN2[[#This Row],[Evacuation]]=\"Yes\",Scoring!$M$49,0))","v":0},{"$f":"IF(HUMAN2[[#This Row],[Threat/Hazard]]=\"Active Shooter\", 7, IF(HUMAN2[[#This Row],[Evacuation]]=\"Yes\",Scoring!$M$49,0))","v":0}]
["Information Systems Failure",{"$f":"INDEX(USER_HAZ_COMP[Power],MATCH(HUMAN2[[#This Row],[Threat/Hazard]],USER_HAZ_COMP[Threat/Hazard],0))","v":0},{"$f":"INDEX(USER_HAZ_COMP[Water],MATCH(HUMAN2[[#This Row],[Threat/Hazard]],USER_HAZ_COMP[Threat/Hazard],0))","v":0},{"$f":"INDEX(USER_HAZ_COMP[Data and information management],MATCH(HUMAN2[[#This Row],[Threat/Hazard]],USER_HAZ_COMP[Threat/Hazard],0))","v":48},{"$f":"INDEX(USER_HAZ_COMP[Medical gases],MATCH(HUMAN2[[#This Row],[Threat/Hazard]],USER_HAZ_COMP[Threat/Hazard],0))","v":0},{"$f":"INDEX(USER_HAZ_COMP[Staffing],MATCH(HUMAN2[[#This Row],[Threat/Hazard]],USER_HAZ_COMP[Threat/Hazard],0))","v":0},{"$f":"IF(HUMAN2[[#This Row],[Power]]>0, IF(HUMAN2[[#This Row],[Water]]>0, \"Yes\", \"No\"), \"No\")","v":"No"},{"$f":"IF(HUMAN2[[#This Row],[Threat/Hazard]]=\"Active Shooter\", 7, IF(AND(HUMAN2[[#This Row],[Power]]>0,HUMAN2[[#This Row],[Water]]>0)=TRUE, Scoring!$M$49, IF(HUMAN2[[#This Row],[Staffing]]>0, Scoring!$M$56, MAX(IF(HUMAN2[[#This Row],[Power]]>0,Scoring!$M$52,0),IF(HUMAN2[[#This Row],[Water]]>0,Scoring!$M$53,0),IF(HUMAN2[[#This Row],[Cyber]]>0,Scoring!$M$54,0),IF(HUMAN2[[#This Row],[Medical Gases]]>0,Scoring!$M$55,0)))))","v":0},{"$f":"IF(HUMAN2[[#This Row],[Threat/Hazard]]=\"Active Shooter\", 7, IF(HUMAN2[[#This Row],[Evacuation]]=\"Yes\",Scoring!$M$49,0))","v":0},{"$f":"IF(HUMAN2[[#This Row],[Threat/Hazard]]=\"Active Shooter\", 7, IF(HUMAN2[[#This Row],[Evacuation]]=\"Yes\", Scoring!$M$49,0))","v":0},{"$f":"IF(HUMAN2[[#This Row],[Threat/Hazard]]=\"Active Shooter\", 7, IF(HUMAN2[[#This Row],[Evacuation]]=\"Yes\",Scoring!$M$49,0))","v":0},{"$f":"IF(HUMAN2[[#This Row],[Threat/Hazard]]=\"Active Shooter\", 7, IF(HUMAN2[[#This Row],[Evacuation]]=\"Yes\",Scoring!$M$49,0))","v":0},{"$f":"IF(HUMAN2[[#This Row],[Threat/Hazard]]=\"Active Shooter\", 7, IF(HUMAN2[[#This Row],[Evacuation]]=\"Yes\",Scoring!$M$49,0))","v":0},{"$f":"IF(HUMAN2[[#This Row],[Threat/Hazard]]=\"Active Shooter\", 7, IF(HUMAN2[[#This Row],[Evacuation]]=\"Yes\",Scoring!$M$49,0))","v":0},{"$f":"IF(HUMAN2[[#This Row],[Threat/Hazard]]=\"Active Shooter\", 7, IF(HUMAN2[[#This Row],[Evacuation]]=\"Yes\",Scoring!$M$49,0))","v":0},{"$f":"IF(HUMAN2[[#This Row],[Threat/Hazard]]=\"Active Shooter\", 7, IF(HUMAN2[[#This Row],[Evacuation]]=\"Yes\",Scoring!$M$49,0))","v":0},{"$f":"IF(HUMAN2[[#This Row],[Threat/Hazard]]=\"Active Shooter\", 7, IF(HUMAN2[[#This Row],[Evacuation]]=\"Yes\",Scoring!$M$49,0))","v":0}]
["Fire, Internal",{"$f":"INDEX(USER_HAZ_COMP[Power],MATCH(HUMAN2[[#This Row],[Threat/Hazard]],USER_HAZ_COMP[Threat/Hazard],0))","v":48},{"$f":"INDEX(USER_HAZ_COMP[Water],MATCH(HUMAN2[[#This Row],[Threat/Hazard]],USER_HAZ_COMP[Threat/Hazard],0))","v":0},{"$f":"INDEX(USER_HAZ_COMP[Data and information management],MATCH(HUMAN2[[#This Row],[Threat/Hazard]],USER_HAZ_COMP[Threat/Hazard],0))","v":48},{"$f":"INDEX(USER_HAZ_COMP[Medical gases],MATCH(HUMAN2[[#This Row],[Threat/Hazard]],USER_HAZ_COMP[Threat/Hazard],0))","v":0},{"$f":"INDEX(USER_HAZ_COMP[Staffing],MATCH(HUMAN2[[#This Row],[Threat/Hazard]],USER_HAZ_COMP[Threat/Hazard],0))","v":0},{"$f":"IF(HUMAN2[[#This Row],[Power]]>0, IF(HUMAN2[[#This Row],[Water]]>0, \"Yes\", \"No\"), \"No\")","v":"No"},{"$f":"IF(HUMAN2[[#This Row],[Threat/Hazard]]=\"Active Shooter\", 7, IF(AND(HUMAN2[[#This Row],[Power]]>0,HUMAN2[[#This Row],[Water]]>0)=TRUE, Scoring!$M$49, IF(HUMAN2[[#This Row],[Staffing]]>0, Scoring!$M$56, MAX(IF(HUMAN2[[#This Row],[Power]]>0,Scoring!$M$52,0),IF(HUMAN2[[#This Row],[Water]]>0,Scoring!$M$53,0),IF(HUMAN2[[#This Row],[Cyber]]>0,Scoring!$M$54,0),IF(HUMAN2[[#This Row],[Medical Gases]]>0,Scoring!$M$55,0)))))","v":0},{"$f":"IF(HUMAN2[[#This Row],[Threat/Hazard]]=\"Active Shooter\", 7, IF(HUMAN2[[#This Row],[Evacuation]]=\"Yes\",Scoring!$M$49,0))","v":0},{"$f":"IF(HUMAN2[[#This Row],[Threat/Hazard]]=\"Active Shooter\", 7, IF(HUMAN2[[#This Row],[Evacuation]]=\"Yes\", Scoring!$M$49,0))","v":0},{"$f":"IF(HUMAN2[[#This Row],[Threat/Hazard]]=\"Active Shooter\", 7, IF(HUMAN2[[#This Row],[Evacuation]]=\"Yes\",Scoring!$M$49,0))","v":0},{"$f":"IF(HUMAN2[[#This Row],[Threat/Hazard]]=\"Active Shooter\", 7, IF(HUMAN2[[#This Row],[Evacuation]]=\"Yes\",Scoring!$M$49,0))","v":0},{"$f":"IF(HUMAN2[[#This Row],[Threat/Hazard]]=\"Active Shooter\", 7, IF(HUMAN2[[#This Row],[Evacuation]]=\"Yes\",Scoring!$M$49,0))","v":0},{"$f":"IF(HUMAN2[[#This Row],[Threat/Hazard]]=\"Active Shooter\", 7, IF(HUMAN2[[#This Row],[Evacuation]]=\"Yes\",Scoring!$M$49,0))","v":0},{"$f":"IF(HUMAN2[[#This Row],[Threat/Hazard]]=\"Active Shooter\", 7, IF(HUMAN2[[#This Row],[Evacuation]]=\"Yes\",Scoring!$M$49,0))","v":0},{"$f":"IF(HUMAN2[[#This Row],[Threat/Hazard]]=\"Active Shooter\", 7, IF(HUMAN2[[#This Row],[Evacuation]]=\"Yes\",Scoring!$M$49,0))","v":0},{"$f":"IF(HUMAN2[[#This Row],[Threat/Hazard]]=\"Active Shooter\", 7, IF(HUMAN2[[#This Row],[Evacuation]]=\"Yes\",Scoring!$M$49,0))","v":0}]
["Flood, Internal",{"$f":"INDEX(USER_HAZ_COMP[Power],MATCH(HUMAN2[[#This Row],[Threat/Hazard]],USER_HAZ_COMP[Threat/Hazard],0))","v":0},{"$f":"INDEX(USER_HAZ_COMP[Water],MATCH(HUMAN2[[#This Row],[Threat/Hazard]],USER_HAZ_COMP[Threat/Hazard],0))","v":0},{"$f":"INDEX(USER_HAZ_COMP[Data and information management],MATCH(HUMAN2[[#This Row],[Threat/Hazard]],USER_HAZ_COMP[Threat/Hazard],0))","v":0},{"$f":"INDEX(USER_HAZ_COMP[Medical gases],MATCH(HUMAN2[[#This Row],[Threat/Hazard]],USER_HAZ_COMP[Threat/Hazard],0))","v":0},{"$f":"INDEX(USER_HAZ_COMP[Staffing],MATCH(HUMAN2[[#This Row],[Threat/Hazard]],USER_HAZ_COMP[Threat/Hazard],0))","v":0},{"$f":"IF(HUMAN2[[#This Row],[Power]]>0, IF(HUMAN2[[#This Row],[Water]]>0, \"Yes\", \"No\"), \"No\")","v":"No"},{"$f":"IF(HUMAN2[[#This Row],[Threat/Hazard]]=\"Active Shooter\", 7, IF(AND(HUMAN2[[#This Row],[Power]]>0,HUMAN2[[#This Row],[Water]]>0)=TRUE, Scoring!$M$49, IF(HUMAN2[[#This Row],[Staffing]]>0, Scoring!$M$56, MAX(IF(HUMAN2[[#This Row],[Power]]>0,Scoring!$M$52,0),IF(HUMAN2[[#This Row],[Water]]>0,Scoring!$M$53,0),IF(HUMAN2[[#This Row],[Cyber]]>0,Scoring!$M$54,0),IF(HUMAN2[[#This Row],[Medical Gases]]>0,Scoring!$M$55,0)))))","v":0},{"$f":"IF(HUMAN2[[#This Row],[Threat/Hazard]]=\"Active Shooter\", 7, IF(HUMAN2[[#This Row],[Evacuation]]=\"Yes\",Scoring!$M$49,0))","v":0},{"$f":"IF(HUMAN2[[#This Row],[Threat/Hazard]]=\"Active Shooter\", 7, IF(HUMAN2[[#This Row],[Evacuation]]=\"Yes\", Scoring!$M$49,0))","v":0},{"$f":"IF(HUMAN2[[#This Row],[Threat/Hazard]]=\"Active Shooter\", 7, IF(HUMAN2[[#This Row],[Evacuation]]=\"Yes\",Scoring!$M$49,0))","v":0},{"$f":"IF(HUMAN2[[#This Row],[Threat/Hazard]]=\"Active Shooter\", 7, IF(HUMAN2[[#This Row],[Evacuation]]=\"Yes\",Scoring!$M$49,0))","v":0},{"$f":"IF(HUMAN2[[#This Row],[Threat/Hazard]]=\"Active Shooter\", 7, IF(HUMAN2[[#This Row],[Evacuation]]=\"Yes\",Scoring!$M$49,0))","v":0},{"$f":"IF(HUMAN2[[#This Row],[Threat/Hazard]]=\"Active Shooter\", 7, IF(HUMAN2[[#This Row],[Evacuation]]=\"Yes\",Scoring!$M$49,0))","v":0},{"$f":"IF(HUMAN2[[#This Row],[Threat/Hazard]]=\"Active Shooter\", 7, IF(HUMAN2[[#This Row],[Evacuation]]=\"Yes\",Scoring!$M$49,0))","v":0},{"$f":"IF(HUMAN2[[#This Row],[Threat/Hazard]]=\"Active Shooter\", 7, IF(HUMAN2[[#This Row],[Evacuation]]=\"Yes\",Scoring!$M$49,0))","v":0},{"$f":"IF(HUMAN2[[#This Row],[Threat/Hazard]]=\"Active Shooter\", 7, IF(HUMAN2[[#This Row],[Evacuation]]=\"Yes\",Scoring!$M$49,0))","v":0}]
["Supply Shortage",{"$f":"INDEX(USER_HAZ_COMP[Power],MATCH(HUMAN2[[#This Row],[Threat/Hazard]],USER_HAZ_COMP[Threat/Hazard],0))","v":0},{"$f":"INDEX(USER_HAZ_COMP[Water],MATCH(HUMAN2[[#This Row],[Threat/Hazard]],USER_HAZ_COMP[Threat/Hazard],0))","v":0},{"$f":"INDEX(USER_HAZ_COMP[Data and information management],MATCH(HUMAN2[[#This Row],[Threat/Hazard]],USER_HAZ_COMP[Threat/Hazard],0))","v":0},{"$f":"INDEX(USER_HAZ_COMP[Medical gases],MATCH(HUMAN2[[#This Row],[Threat/Hazard]],USER_HAZ_COMP[Threat/Hazard],0))","v":0},{"$f":"INDEX(USER_HAZ_COMP[Staffing],MATCH(HUMAN2[[#This Row],[Threat/Hazard]],USER_HAZ_COMP[Threat/Hazard],0))","v":0},{"$f":"IF(HUMAN2[[#This Row],[Power]]>0, IF(HUMAN2[[#This Row],[Water]]>0, \"Yes\", \"No\"), \"No\")","v":"No"},{"$f":"IF(HUMAN2[[#This Row],[Threat/Hazard]]=\"Active Shooter\", 7, IF(AND(HUMAN2[[#This Row],[Power]]>0,HUMAN2[[#This Row],[Water]]>0)=TRUE, Scoring!$M$49, IF(HUMAN2[[#This Row],[Staffing]]>0, Scoring!$M$56, MAX(IF(HUMAN2[[#This Row],[Power]]>0,Scoring!$M$52,0),IF(HUMAN2[[#This Row],[Water]]>0,Scoring!$M$53,0),IF(HUMAN2[[#This Row],[Cyber]]>0,Scoring!$M$54,0),IF(HUMAN2[[#This Row],[Medical Gases]]>0,Scoring!$M$55,0)))))","v":0},{"$f":"IF(HUMAN2[[#This Row],[Threat/Hazard]]=\"Active Shooter\", 7, IF(HUMAN2[[#This Row],[Evacuation]]=\"Yes\",Scoring!$M$49,0))","v":0},{"$f":"IF(HUMAN2[[#This Row],[Threat/Hazard]]=\"Active Shooter\", 7, IF(HUMAN2[[#This Row],[Evacuation]]=\"Yes\", Scoring!$M$49,0))","v":0},{"$f":"IF(HUMAN2[[#This Row],[Threat/Hazard]]=\"Active Shooter\", 7, IF(HUMAN2[[#This Row],[Evacuation]]=\"Yes\",Scoring!$M$49,0))","v":0},{"$f":"IF(HUMAN2[[#This Row],[Threat/Hazard]]=\"Active Shooter\", 7, IF(HUMAN2[[#This Row],[Evacuation]]=\"Yes\",Scoring!$M$49,0))","v":0},{"$f":"IF(HUMAN2[[#This Row],[Threat/Hazard]]=\"Active Shooter\", 7, IF(HUMAN2[[#This Row],[Evacuation]]=\"Yes\",Scoring!$M$49,0))","v":0},{"$f":"IF(HUMAN2[[#This Row],[Threat/Hazard]]=\"Active Shooter\", 7, IF(HUMAN2[[#This Row],[Evacuation]]=\"Yes\",Scoring!$M$49,0))","v":0},{"$f":"IF(HUMAN2[[#This Row],[Threat/Hazard]]=\"Active Shooter\", 7, IF(HUMAN2[[#This Row],[Evacuation]]=\"Yes\",Scoring!$M$49,0))","v":0},{"$f":"IF(HUMAN2[[#This Row],[Threat/Hazard]]=\"Active Shooter\", 7, IF(HUMAN2[[#This Row],[Evacuation]]=\"Yes\",Scoring!$M$49,0))","v":0},{"$f":"IF(HUMAN2[[#This Row],[Threat/Hazard]]=\"Active Shooter\", 7, IF(HUMAN2[[#This Row],[Evacuation]]=\"Yes\",Scoring!$M$49,0))","v":0}]
["Structural Damage",{"$f":"INDEX(USER_HAZ_COMP[Power],MATCH(HUMAN2[[#This Row],[Threat/Hazard]],USER_HAZ_COMP[Threat/Hazard],0))","v":48},{"$f":"INDEX(USER_HAZ_COMP[Water],MATCH(HUMAN2[[#This Row],[Threat/Hazard]],USER_HAZ_COMP[Threat/Hazard],0))","v":48},{"$f":"INDEX(USER_HAZ_COMP[Data and information management],MATCH(HUMAN2[[#This Row],[Threat/Hazard]],USER_HAZ_COMP[Threat/Hazard],0))","v":48},{"$f":"INDEX(USER_HAZ_COMP[Medical gases],MATCH(HUMAN2[[#This Row],[Threat/Hazard]],USER_HAZ_COMP[Threat/Hazard],0))","v":48},{"$f":"INDEX(USER_HAZ_COMP[Staffing],MATCH(HUMAN2[[#This Row],[Threat/Hazard]],USER_HAZ_COMP[Threat/Hazard],0))","v":0},{"$f":"IF(HUMAN2[[#This Row],[Power]]>0, IF(HUMAN2[[#This Row],[Water]]>0, \"Yes\", \"No\"), \"No\")","v":"Yes"},{"$f":"IF(HUMAN2[[#This Row],[Threat/Hazard]]=\"Active Shooter\", 7, IF(AND(HUMAN2[[#This Row],[Power]]>0,HUMAN2[[#This Row],[Water]]>0)=TRUE, Scoring!$M$49, IF(HUMAN2[[#This Row],[Staffing]]>0, Scoring!$M$56, MAX(IF(HUMAN2[[#This Row],[Power]]>0,Scoring!$M$52,0),IF(HUMAN2[[#This Row],[Water]]>0,Scoring!$M$53,0),IF(HUMAN2[[#This Row],[Cyber]]>0,Scoring!$M$54,0),IF(HUMAN2[[#This Row],[Medical Gases]]>0,Scoring!$M$55,0)))))","v":0},{"$f":"IF(HUMAN2[[#This Row],[Threat/Hazard]]=\"Active Shooter\", 7, IF(HUMAN2[[#This Row],[Evacuation]]=\"Yes\",Scoring!$M$49,0))","v":0},{"$f":"IF(HUMAN2[[#This Row],[Threat/Hazard]]=\"Active Shooter\", 7, IF(HUMAN2[[#This Row],[Evacuation]]=\"Yes\", Scoring!$M$49,0))","v":0},{"$f":"IF(HUMAN2[[#This Row],[Threat/Hazard]]=\"Active Shooter\", 7, IF(HUMAN2[[#This Row],[Evacuation]]=\"Yes\",Scoring!$M$49,0))","v":0},{"$f":"IF(HUMAN2[[#This Row],[Threat/Hazard]]=\"Active Shooter\", 7, IF(HUMAN2[[#This Row],[Evacuation]]=\"Yes\",Scoring!$M$49,0))","v":0},{"$f":"IF(HUMAN2[[#This Row],[Threat/Hazard]]=\"Active Shooter\", 7, IF(HUMAN2[[#This Row],[Evacuation]]=\"Yes\",Scoring!$M$49,0))","v":0},{"$f":"IF(HUMAN2[[#This Row],[Threat/Hazard]]=\"Active Shooter\", 7, IF(HUMAN2[[#This Row],[Evacuation]]=\"Yes\",Scoring!$M$49,0))","v":0},{"$f":"IF(HUMAN2[[#This Row],[Threat/Hazard]]=\"Active Shooter\", 7, IF(HUMAN2[[#This Row],[Evacuation]]=\"Yes\",Scoring!$M$49,0))","v":0},{"$f":"IF(HUMAN2[[#This Row],[Threat/Hazard]]=\"Active Shooter\", 7, IF(HUMAN2[[#This Row],[Evacuation]]=\"Yes\",Scoring!$M$49,0))","v":0},{"$f":"IF(HUMAN2[[#This Row],[Threat/Hazard]]=\"Active Shooter\", 7, IF(HUMAN2[[#This Row],[Evacuation]]=\"Yes\",Scoring!$M$49,0))","v":0}]
["Heliport Accident",{"$f":"INDEX(USER_HAZ_COMP[Power],MATCH(HUMAN2[[#This Row],[Threat/Hazard]],USER_HAZ_COMP[Threat/Hazard],0))","v":0},{"$f":"INDEX(USER_HAZ_COMP[Water],MATCH(HUMAN2[[#This Row],[Threat/Hazard]],USER_HAZ_COMP[Threat/Hazard],0))","v":0},{"$f":"INDEX(USER_HAZ_COMP[Data and information management],MATCH(HUMAN2[[#This Row],[Threat/Hazard]],USER_HAZ_COMP[Threat/Hazard],0))","v":0},{"$f":"INDEX(USER_HAZ_COMP[Medical gases],MATCH(HUMAN2[[#This Row],[Threat/Hazard]],USER_HAZ_COMP[Threat/Hazard],0))","v":0},{"$f":"INDEX(USER_HAZ_COMP[Staffing],MATCH(HUMAN2[[#This Row],[Threat/Hazard]],USER_HAZ_COMP[Threat/Hazard],0))","v":0},{"$f":"IF(HUMAN2[[#This Row],[Power]]>0, IF(HUMAN2[[#This Row],[Water]]>0, \"Yes\", \"No\"), \"No\")","v":"No"},{"$f":"IF(HUMAN2[[#This Row],[Threat/Hazard]]=\"Active Shooter\", 7, IF(AND(HUMAN2[[#This Row],[Power]]>0,HUMAN2[[#This Row],[Water]]>0)=TRUE, Scoring!$M$49, IF(HUMAN2[[#This Row],[Staffing]]>0, Scoring!$M$56, MAX(IF(HUMAN2[[#This Row],[Power]]>0,Scoring!$M$52,0),IF(HUMAN2[[#This Row],[Water]]>0,Scoring!$M$53,0),IF(HUMAN2[[#This Row],[Cyber]]>0,Scoring!$M$54,0),IF(HUMAN2[[#This Row],[Medical Gases]]>0,Scoring!$M$55,0)))))","v":0},{"$f":"IF(HUMAN2[[#This Row],[Threat/Hazard]]=\"Active Shooter\", 7, IF(HUMAN2[[#This Row],[Evacuation]]=\"Yes\",Scoring!$M$49,0))","v":0},{"$f":"IF(HUMAN2[[#This Row],[Threat/Hazard]]=\"Active Shooter\", 7, IF(HUMAN2[[#This Row],[Evacuation]]=\"Yes\", Scoring!$M$49,0))","v":0},{"$f":"IF(HUMAN2[[#This Row],[Threat/Hazard]]=\"Active Shooter\", 7, IF(HUMAN2[[#This Row],[Evacuation]]=\"Yes\",Scoring!$M$49,0))","v":0},{"$f":"IF(HUMAN2[[#This Row],[Threat/Hazard]]=\"Active Shooter\", 7, IF(HUMAN2[[#This Row],[Evacuation]]=\"Yes\",Scoring!$M$49,0))","v":0},{"$f":"IF(HUMAN2[[#This Row],[Threat/Hazard]]=\"Active Shooter\", 7, IF(HUMAN2[[#This Row],[Evacuation]]=\"Yes\",Scoring!$M$49,0))","v":0},{"$f":"IF(HUMAN2[[#This Row],[Threat/Hazard]]=\"Active Shooter\", 7, IF(HUMAN2[[#This Row],[Evacuation]]=\"Yes\",Scoring!$M$49,0))","v":0},{"$f":"IF(HUMAN2[[#This Row],[Threat/Hazard]]=\"Active Shooter\", 7, IF(HUMAN2[[#This Row],[Evacuation]]=\"Yes\",Scoring!$M$49,0))","v":0},{"$f":"IF(HUMAN2[[#This Row],[Threat/Hazard]]=\"Active Shooter\", 7, IF(HUMAN2[[#This Row],[Evacuation]]=\"Yes\",Scoring!$M$49,0))","v":0},{"$f":"IF(HUMAN2[[#This Row],[Threat/Hazard]]=\"Active Shooter\", 7, IF(HUMAN2[[#This Row],[Evacuation]]=\"Yes\",Scoring!$M$49,0))","v":0}]
["Dam Inundation",{"$f":"INDEX(USER_HAZ_COMP[Power],MATCH(HUMAN2[[#This Row],[Threat/Hazard]],USER_HAZ_COMP[Threat/Hazard],0))","v":48},{"$f":"INDEX(USER_HAZ_COMP[Water],MATCH(HUMAN2[[#This Row],[Threat/Hazard]],USER_HAZ_COMP[Threat/Hazard],0))","v":48},{"$f":"INDEX(USER_HAZ_COMP[Data and information management],MATCH(HUMAN2[[#This Row],[Threat/Hazard]],USER_HAZ_COMP[Threat/Hazard],0))","v":0},{"$f":"INDEX(USER_HAZ_COMP[Medical gases],MATCH(HUMAN2[[#This Row],[Threat/Hazard]],USER_HAZ_COMP[Threat/Hazard],0))","v":0},{"$f":"INDEX(USER_HAZ_COMP[Staffing],MATCH(HUMAN2[[#This Row],[Threat/Hazard]],USER_HAZ_COMP[Threat/Hazard],0))","v":48},{"$f":"IF(HUMAN2[[#This Row],[Power]]>0, IF(HUMAN2[[#This Row],[Water]]>0, \"Yes\", \"No\"), \"No\")","v":"Yes"},{"$f":"IF(HUMAN2[[#This Row],[Threat/Hazard]]=\"Active Shooter\", 7, IF(AND(HUMAN2[[#This Row],[Power]]>0,HUMAN2[[#This Row],[Water]]>0)=TRUE, Scoring!$M$49, IF(HUMAN2[[#This Row],[Staffing]]>0, Scoring!$M$56, MAX(IF(HUMAN2[[#This Row],[Power]]>0,Scoring!$M$52,0),IF(HUMAN2[[#This Row],[Water]]>0,Scoring!$M$53,0),IF(HUMAN2[[#This Row],[Cyber]]>0,Scoring!$M$54,0),IF(HUMAN2[[#This Row],[Medical Gases]]>0,Scoring!$M$55,0)))))","v":0},{"$f":"IF(HUMAN2[[#This Row],[Threat/Hazard]]=\"Active Shooter\", 7, IF(HUMAN2[[#This Row],[Evacuation]]=\"Yes\",Scoring!$M$49,0))","v":0},{"$f":"IF(HUMAN2[[#This Row],[Threat/Hazard]]=\"Active Shooter\", 7, IF(HUMAN2[[#This Row],[Evacuation]]=\"Yes\", Scoring!$M$49,0))","v":0},{"$f":"IF(HUMAN2[[#This Row],[Threat/Hazard]]=\"Active Shooter\", 7, IF(HUMAN2[[#This Row],[Evacuation]]=\"Yes\",Scoring!$M$49,0))","v":0},{"$f":"IF(HUMAN2[[#This Row],[Threat/Hazard]]=\"Active Shooter\", 7, IF(HUMAN2[[#This Row],[Evacuation]]=\"Yes\",Scoring!$M$49,0))","v":0},{"$f":"IF(HUMAN2[[#This Row],[Threat/Hazard]]=\"Active Shooter\", 7, IF(HUMAN2[[#This Row],[Evacuation]]=\"Yes\",Scoring!$M$49,0))","v":0},{"$f":"IF(HUMAN2[[#This Row],[Threat/Hazard]]=\"Active Shooter\", 7, IF(HUMAN2[[#This Row],[Evacuation]]=\"Yes\",Scoring!$M$49,0))","v":0},{"$f":"IF(HUMAN2[[#This Row],[Threat/Hazard]]=\"Active Shooter\", 7, IF(HUMAN2[[#This Row],[Evacuation]]=\"Yes\",Scoring!$M$49,0))","v":0},{"$f":"IF(HUMAN2[[#This Row],[Threat/Hazard]]=\"Active Shooter\", 7, IF(HUMAN2[[#This Row],[Evacuation]]=\"Yes\",Scoring!$M$49,0))","v":0},{"$f":"IF(HUMAN2[[#This Row],[Threat/Hazard]]=\"Active Shooter\", 7, IF(HUMAN2[[#This Row],[Evacuation]]=\"Yes\",Scoring!$M$49,0))","v":0}]
["VIP Situation",{"$f":"INDEX(USER_HAZ_COMP[Power],MATCH(HUMAN2[[#This Row],[Threat/Hazard]],USER_HAZ_COMP[Threat/Hazard],0))","v":0},{"$f":"INDEX(USER_HAZ_COMP[Water],MATCH(HUMAN2[[#This Row],[Threat/Hazard]],USER_HAZ_COMP[Threat/Hazard],0))","v":0},{"$f":"INDEX(USER_HAZ_COMP[Data and information management],MATCH(HUMAN2[[#This Row],[Threat/Hazard]],USER_HAZ_COMP[Threat/Hazard],0))","v":0},{"$f":"INDEX(USER_HAZ_COMP[Medical gases],MATCH(HUMAN2[[#This Row],[Threat/Hazard]],USER_HAZ_COMP[Threat/Hazard],0))","v":0},{"$f":"INDEX(USER_HAZ_COMP[Staffing],MATCH(HUMAN2[[#This Row],[Threat/Hazard]],USER_HAZ_COMP[Threat/Hazard],0))","v":0},{"$f":"IF(HUMAN2[[#This Row],[Power]]>0, IF(HUMAN2[[#This Row],[Water]]>0, \"Yes\", \"No\"), \"No\")","v":"No"},{"$f":"IF(HUMAN2[[#This Row],[Threat/Hazard]]=\"Active Shooter\", 7, IF(AND(HUMAN2[[#This Row],[Power]]>0,HUMAN2[[#This Row],[Water]]>0)=TRUE, Scoring!$M$49, IF(HUMAN2[[#This Row],[Staffing]]>0, Scoring!$M$56, MAX(IF(HUMAN2[[#This Row],[Power]]>0,Scoring!$M$52,0),IF(HUMAN2[[#This Row],[Water]]>0,Scoring!$M$53,0),IF(HUMAN2[[#This Row],[Cyber]]>0,Scoring!$M$54,0),IF(HUMAN2[[#This Row],[Medical Gases]]>0,Scoring!$M$55,0)))))","v":0},{"$f":"IF(HUMAN2[[#This Row],[Threat/Hazard]]=\"Active Shooter\", 7, IF(HUMAN2[[#This Row],[Evacuation]]=\"Yes\",Scoring!$M$49,0))","v":0},{"$f":"IF(HUMAN2[[#This Row],[Threat/Hazard]]=\"Active Shooter\", 7, IF(HUMAN2[[#This Row],[Evacuation]]=\"Yes\", Scoring!$M$49,0))","v":0},{"$f":"IF(HUMAN2[[#This Row],[Threat/Hazard]]=\"Active Shooter\", 7, IF(HUMAN2[[#This Row],[Evacuation]]=\"Yes\",Scoring!$M$49,0))","v":0},{"$f":"IF(HUMAN2[[#This Row],[Threat/Hazard]]=\"Active Shooter\", 7, IF(HUMAN2[[#This Row],[Evacuation]]=\"Yes\",Scoring!$M$49,0))","v":0},{"$f":"IF(HUMAN2[[#This Row],[Threat/Hazard]]=\"Active Shooter\", 7, IF(HUMAN2[[#This Row],[Evacuation]]=\"Yes\",Scoring!$M$49,0))","v":0},{"$f":"IF(HUMAN2[[#This Row],[Threat/Hazard]]=\"Active Shooter\", 7, IF(HUMAN2[[#This Row],[Evacuation]]=\"Yes\",Scoring!$M$49,0))","v":0},{"$f":"IF(HUMAN2[[#This Row],[Threat/Hazard]]=\"Active Shooter\", 7, IF(HUMAN2[[#This Row],[Evacuation]]=\"Yes\",Scoring!$M$49,0))","v":0},{"$f":"IF(HUMAN2[[#This Row],[Threat/Hazard]]=\"Active Shooter\", 7, IF(HUMAN2[[#This Row],[Evacuation]]=\"Yes\",Scoring!$M$49,0))","v":0},{"$f":"IF(HUMAN2[[#This Row],[Threat/Hazard]]=\"Active Shooter\", 7, IF(HUMAN2[[#This Row],[Evacuation]]=\"Yes\",Scoring!$M$49,0))","v":0}]
["Infant Abduction",{"$f":"INDEX(USER_HAZ_COMP[Power],MATCH(HUMAN2[[#This Row],[Threat/Hazard]],USER_HAZ_COMP[Threat/Hazard],0))","v":0},{"$f":"INDEX(USER_HAZ_COMP[Water],MATCH(HUMAN2[[#This Row],[Threat/Hazard]],USER_HAZ_COMP[Threat/Hazard],0))","v":0},{"$f":"INDEX(USER_HAZ_COMP[Data and information management],MATCH(HUMAN2[[#This Row],[Threat/Hazard]],USER_HAZ_COMP[Threat/Hazard],0))","v":0},{"$f":"INDEX(USER_HAZ_COMP[Medical gases],MATCH(HUMAN2[[#This Row],[Threat/Hazard]],USER_HAZ_COMP[Threat/Hazard],0))","v":0},{"$f":"INDEX(USER_HAZ_COMP[Staffing],MATCH(HUMAN2[[#This Row],[Threat/Hazard]],USER_HAZ_COMP[Threat/Hazard],0))","v":0},{"$f":"IF(HUMAN2[[#This Row],[Power]]>0, IF(HUMAN2[[#This Row],[Water]]>0, \"Yes\", \"No\"), \"No\")","v":"No"},{"$f":"IF(HUMAN2[[#This Row],[Threat/Hazard]]=\"Active Shooter\", 7, IF(AND(HUMAN2[[#This Row],[Power]]>0,HUMAN2[[#This Row],[Water]]>0)=TRUE, Scoring!$M$49, IF(HUMAN2[[#This Row],[Staffing]]>0, Scoring!$M$56, MAX(IF(HUMAN2[[#This Row],[Power]]>0,Scoring!$M$52,0),IF(HUMAN2[[#This Row],[Water]]>0,Scoring!$M$53,0),IF(HUMAN2[[#This Row],[Cyber]]>0,Scoring!$M$54,0),IF(HUMAN2[[#This Row],[Medical Gases]]>0,Scoring!$M$55,0)))))","v":0},{"$f":"IF(HUMAN2[[#This Row],[Threat/Hazard]]=\"Active Shooter\", 7, IF(HUMAN2[[#This Row],[Evacuation]]=\"Yes\",Scoring!$M$49,0))","v":0},{"$f":"IF(HUMAN2[[#This Row],[Threat/Hazard]]=\"Active Shooter\", 7, IF(HUMAN2[[#This Row],[Evacuation]]=\"Yes\", Scoring!$M$49,0))","v":0},{"$f":"IF(HUMAN2[[#This Row],[Threat/Hazard]]=\"Active Shooter\", 7, IF(HUMAN2[[#This Row],[Evacuation]]=\"Yes\",Scoring!$M$49,0))","v":0},{"$f":"IF(HUMAN2[[#This Row],[Threat/Hazard]]=\"Active Shooter\", 7, IF(HUMAN2[[#This Row],[Evacuation]]=\"Yes\",Scoring!$M$49,0))","v":0},{"$f":"IF(HUMAN2[[#This Row],[Threat/Hazard]]=\"Active Shooter\", 7, IF(HUMAN2[[#This Row],[Evacuation]]=\"Yes\",Scoring!$M$49,0))","v":0},{"$f":"IF(HUMAN2[[#This Row],[Threat/Hazard]]=\"Active Shooter\", 7, IF(HUMAN2[[#This Row],[Evacuation]]=\"Yes\",Scoring!$M$49,0))","v":0},{"$f":"IF(HUMAN2[[#This Row],[Threat/Hazard]]=\"Active Shooter\", 7, IF(HUMAN2[[#This Row],[Evacuation]]=\"Yes\",Scoring!$M$49,0))","v":0},{"$f":"IF(HUMAN2[[#This Row],[Threat/Hazard]]=\"Active Shooter\", 7, IF(HUMAN2[[#This Row],[Evacuation]]=\"Yes\",Scoring!$M$49,0))","v":0},{"$f":"IF(HUMAN2[[#This Row],[Threat/Hazard]]=\"Active Shooter\", 7, IF(HUMAN2[[#This Row],[Evacuation]]=\"Yes\",Scoring!$M$49,0))","v":0}]
["Hostage Situation",{"$f":"INDEX(USER_HAZ_COMP[Power],MATCH(HUMAN2[[#This Row],[Threat/Hazard]],USER_HAZ_COMP[Threat/Hazard],0))","v":0},{"$f":"INDEX(USER_HAZ_COMP[Water],MATCH(HUMAN2[[#This Row],[Threat/Hazard]],USER_HAZ_COMP[Threat/Hazard],0))","v":0},{"$f":"INDEX(USER_HAZ_COMP[Data and information management],MATCH(HUMAN2[[#This Row],[Threat/Hazard]],USER_HAZ_COMP[Threat/Hazard],0))","v":0},{"$f":"INDEX(USER_HAZ_COMP[Medical gases],MATCH(HUMAN2[[#This Row],[Threat/Hazard]],USER_HAZ_COMP[Threat/Hazard],0))","v":0},{"$f":"INDEX(USER_HAZ_COMP[Staffing],MATCH(HUMAN2[[#This Row],[Threat/Hazard]],USER_HAZ_COMP[Threat/Hazard],0))","v":0},{"$f":"IF(HUMAN2[[#This Row],[Power]]>0, IF(HUMAN2[[#This Row],[Water]]>0, \"Yes\", \"No\"), \"No\")","v":"No"},{"$f":"IF(HUMAN2[[#This Row],[Threat/Hazard]]=\"Active Shooter\", 7, IF(AND(HUMAN2[[#This Row],[Power]]>0,HUMAN2[[#This Row],[Water]]>0)=TRUE, Scoring!$M$49, IF(HUMAN2[[#This Row],[Staffing]]>0, Scoring!$M$56, MAX(IF(HUMAN2[[#This Row],[Power]]>0,Scoring!$M$52,0),IF(HUMAN2[[#This Row],[Water]]>0,Scoring!$M$53,0),IF(HUMAN2[[#This Row],[Cyber]]>0,Scoring!$M$54,0),IF(HUMAN2[[#This Row],[Medical Gases]]>0,Scoring!$M$55,0)))))","v":0},{"$f":"IF(HUMAN2[[#This Row],[Threat/Hazard]]=\"Active Shooter\", 7, IF(HUMAN2[[#This Row],[Evacuation]]=\"Yes\",Scoring!$M$49,0))","v":0},{"$f":"IF(HUMAN2[[#This Row],[Threat/Hazard]]=\"Active Shooter\", 7, IF(HUMAN2[[#This Row],[Evacuation]]=\"Yes\", Scoring!$M$49,0))","v":0},{"$f":"IF(HUMAN2[[#This Row],[Threat/Hazard]]=\"Active Shooter\", 7, IF(HUMAN2[[#This Row],[Evacuation]]=\"Yes\",Scoring!$M$49,0))","v":0},{"$f":"IF(HUMAN2[[#This Row],[Threat/Hazard]]=\"Active Shooter\", 7, IF(HUMAN2[[#This Row],[Evacuation]]=\"Yes\",Scoring!$M$49,0))","v":0},{"$f":"IF(HUMAN2[[#This Row],[Threat/Hazard]]=\"Active Shooter\", 7, IF(HUMAN2[[#This Row],[Evacuation]]=\"Yes\",Scoring!$M$49,0))","v":0},{"$f":"IF(HUMAN2[[#This Row],[Threat/Hazard]]=\"Active Shooter\", 7, IF(HUMAN2[[#This Row],[Evacuation]]=\"Yes\",Scoring!$M$49,0))","v":0},{"$f":"IF(HUMAN2[[#This Row],[Threat/Hazard]]=\"Active Shooter\", 7, IF(HUMAN2[[#This Row],[Evacuation]]=\"Yes\",Scoring!$M$49,0))","v":0},{"$f":"IF(HUMAN2[[#This Row],[Threat/Hazard]]=\"Active Shooter\", 7, IF(HUMAN2[[#This Row],[Evacuation]]=\"Yes\",Scoring!$M$49,0))","v":0},{"$f":"IF(HUMAN2[[#This Row],[Threat/Hazard]]=\"Active Shooter\", 7, IF(HUMAN2[[#This Row],[Evacuation]]=\"Yes\",Scoring!$M$49,0))","v":0}]
["Civil Disturbance",{"$f":"INDEX(USER_HAZ_COMP[Power],MATCH(HUMAN2[[#This Row],[Threat/Hazard]],USER_HAZ_COMP[Threat/Hazard],0))","v":0},{"$f":"INDEX(USER_HAZ_COMP[Water],MATCH(HUMAN2[[#This Row],[Threat/Hazard]],USER_HAZ_COMP[Threat/Hazard],0))","v":0},{"$f":"INDEX(USER_HAZ_COMP[Data and information management],MATCH(HUMAN2[[#This Row],[Threat/Hazard]],USER_HAZ_COMP[Threat/Hazard],0))","v":0},{"$f":"INDEX(USER_HAZ_COMP[Medical gases],MATCH(HUMAN2[[#This Row],[Threat/Hazard]],USER_HAZ_COMP[Threat/Hazard],0))","v":0},{"$f":"INDEX(USER_HAZ_COMP[Staffing],MATCH(HUMAN2[[#This Row],[Threat/Hazard]],USER_HAZ_COMP[Threat/Hazard],0))","v":48},{"$f":"IF(HUMAN2[[#This Row],[Power]]>0, IF(HUMAN2[[#This Row],[Water]]>0, \"Yes\", \"No\"), \"No\")","v":"No"},{"$f":"IF(HUMAN2[[#This Row],[Threat/Hazard]]=\"Active Shooter\", 7, IF(AND(HUMAN2[[#This Row],[Power]]>0,HUMAN2[[#This Row],[Water]]>0)=TRUE, Scoring!$M$49, IF(HUMAN2[[#This Row],[Staffing]]>0, Scoring!$M$56, MAX(IF(HUMAN2[[#This Row],[Power]]>0,Scoring!$M$52,0),IF(HUMAN2[[#This Row],[Water]]>0,Scoring!$M$53,0),IF(HUMAN2[[#This Row],[Cyber]]>0,Scoring!$M$54,0),IF(HUMAN2[[#This Row],[Medical Gases]]>0,Scoring!$M$55,0)))))","v":0},{"$f":"IF(HUMAN2[[#This Row],[Threat/Hazard]]=\"Active Shooter\", 7, IF(HUMAN2[[#This Row],[Evacuation]]=\"Yes\",Scoring!$M$49,0))","v":0},{"$f":"IF(HUMAN2[[#This Row],[Threat/Hazard]]=\"Active Shooter\", 7, IF(HUMAN2[[#This Row],[Evacuation]]=\"Yes\", Scoring!$M$49,0))","v":0},{"$f":"IF(HUMAN2[[#This Row],[Threat/Hazard]]=\"Active Shooter\", 7, IF(HUMAN2[[#This Row],[Evacuation]]=\"Yes\",Scoring!$M$49,0))","v":0},{"$f":"IF(HUMAN2[[#This Row],[Threat/Hazard]]=\"Active Shooter\", 7, IF(HUMAN2[[#This Row],[Evacuation]]=\"Yes\",Scoring!$M$49,0))","v":0},{"$f":"IF(HUMAN2[[#This Row],[Threat/Hazard]]=\"Active Shooter\", 7, IF(HUMAN2[[#This Row],[Evacuation]]=\"Yes\",Scoring!$M$49,0))","v":0},{"$f":"IF(HUMAN2[[#This Row],[Threat/Hazard]]=\"Active Shooter\", 7, IF(HUMAN2[[#This Row],[Evacuation]]=\"Yes\",Scoring!$M$49,0))","v":0},{"$f":"IF(HUMAN2[[#This Row],[Threat/Hazard]]=\"Active Shooter\", 7, IF(HUMAN2[[#This Row],[Evacuation]]=\"Yes\",Scoring!$M$49,0))","v":0},{"$f":"IF(HUMAN2[[#This Row],[Threat/Hazard]]=\"Active Shooter\", 7, IF(HUMAN2[[#This Row],[Evacuation]]=\"Yes\",Scoring!$M$49,0))","v":0},{"$f":"IF(HUMAN2[[#This Row],[Threat/Hazard]]=\"Active Shooter\", 7, IF(HUMAN2[[#This Row],[Evacuation]]=\"Yes\",Scoring!$M$49,0))","v":0}]
["Labor Action",{"$f":"INDEX(USER_HAZ_COMP[Power],MATCH(HUMAN2[[#This Row],[Threat/Hazard]],USER_HAZ_COMP[Threat/Hazard],0))","v":0},{"$f":"INDEX(USER_HAZ_COMP[Water],MATCH(HUMAN2[[#This Row],[Threat/Hazard]],USER_HAZ_COMP[Threat/Hazard],0))","v":0},{"$f":"INDEX(USER_HAZ_COMP[Data and information management],MATCH(HUMAN2[[#This Row],[Threat/Hazard]],USER_HAZ_COMP[Threat/Hazard],0))","v":0},{"$f":"INDEX(USER_HAZ_COMP[Medical gases],MATCH(HUMAN2[[#This Row],[Threat/Hazard]],USER_HAZ_COMP[Threat/Hazard],0))","v":0},{"$f":"INDEX(USER_HAZ_COMP[Staffing],MATCH(HUMAN2[[#This Row],[Threat/Hazard]],USER_HAZ_COMP[Threat/Hazard],0))","v":48},{"$f":"IF(HUMAN2[[#This Row],[Power]]>0, IF(HUMAN2[[#This Row],[Water]]>0, \"Yes\", \"No\"), \"No\")","v":"No"},{"$f":"IF(HUMAN2[[#This Row],[Threat/Hazard]]=\"Active Shooter\", 7, IF(AND(HUMAN2[[#This Row],[Power]]>0,HUMAN2[[#This Row],[Water]]>0)=TRUE, Scoring!$M$49, IF(HUMAN2[[#This Row],[Staffing]]>0, Scoring!$M$56, MAX(IF(HUMAN2[[#This Row],[Power]]>0,Scoring!$M$52,0),IF(HUMAN2[[#This Row],[Water]]>0,Scoring!$M$53,0),IF(HUMAN2[[#This Row],[Cyber]]>0,Scoring!$M$54,0),IF(HUMAN2[[#This Row],[Medical Gases]]>0,Scoring!$M$55,0)))))","v":0},{"$f":"IF(HUMAN2[[#This Row],[Threat/Hazard]]=\"Active Shooter\", 7, IF(HUMAN2[[#This Row],[Evacuation]]=\"Yes\",Scoring!$M$49,0))","v":0},{"$f":"IF(HUMAN2[[#This Row],[Threat/Hazard]]=\"Active Shooter\", 7, IF(HUMAN2[[#This Row],[Evacuation]]=\"Yes\", Scoring!$M$49,0))","v":0},{"$f":"IF(HUMAN2[[#This Row],[Threat/Hazard]]=\"Active Shooter\", 7, IF(HUMAN2[[#This Row],[Evacuation]]=\"Yes\",Scoring!$M$49,0))","v":0},{"$f":"IF(HUMAN2[[#This Row],[Threat/Hazard]]=\"Active Shooter\", 7, IF(HUMAN2[[#This Row],[Evacuation]]=\"Yes\",Scoring!$M$49,0))","v":0},{"$f":"IF(HUMAN2[[#This Row],[Threat/Hazard]]=\"Active Shooter\", 7, IF(HUMAN2[[#This Row],[Evacuation]]=\"Yes\",Scoring!$M$49,0))","v":0},{"$f":"IF(HUMAN2[[#This Row],[Threat/Hazard]]=\"Active Shooter\", 7, IF(HUMAN2[[#This Row],[Evacuation]]=\"Yes\",Scoring!$M$49,0))","v":0},{"$f":"IF(HUMAN2[[#This Row],[Threat/Hazard]]=\"Active Shooter\", 7, IF(HUMAN2[[#This Row],[Evacuation]]=\"Yes\",Scoring!$M$49,0))","v":0},{"$f":"IF(HUMAN2[[#This Row],[Threat/Hazard]]=\"Active Shooter\", 7, IF(HUMAN2[[#This Row],[Evacuation]]=\"Yes\",Scoring!$M$49,0))","v":0},{"$f":"IF(HUMAN2[[#This Row],[Threat/Hazard]]=\"Active Shooter\", 7, IF(HUMAN2[[#This Row],[Evacuation]]=\"Yes\",Scoring!$M$49,0))","v":0}]
["Forensic Admission",{"$f":"INDEX(USER_HAZ_COMP[Power],MATCH(HUMAN2[[#This Row],[Threat/Hazard]],USER_HAZ_COMP[Threat/Hazard],0))","v":0},{"$f":"INDEX(USER_HAZ_COMP[Water],MATCH(HUMAN2[[#This Row],[Threat/Hazard]],USER_HAZ_COMP[Threat/Hazard],0))","v":0},{"$f":"INDEX(USER_HAZ_COMP[Data and information management],MATCH(HUMAN2[[#This Row],[Threat/Hazard]],USER_HAZ_COMP[Threat/Hazard],0))","v":0},{"$f":"INDEX(USER_HAZ_COMP[Medical gases],MATCH(HUMAN2[[#This Row],[Threat/Hazard]],USER_HAZ_COMP[Threat/Hazard],0))","v":0},{"$f":"INDEX(USER_HAZ_COMP[Staffing],MATCH(HUMAN2[[#This Row],[Threat/Hazard]],USER_HAZ_COMP[Threat/Hazard],0))","v":0},{"$f":"IF(HUMAN2[[#This Row],[Power]]>0, IF(HUMAN2[[#This Row],[Water]]>0, \"Yes\", \"No\"), \"No\")","v":"No"},{"$f":"IF(HUMAN2[[#This Row],[Threat/Hazard]]=\"Active Shooter\", 7, IF(AND(HUMAN2[[#This Row],[Power]]>0,HUMAN2[[#This Row],[Water]]>0)=TRUE, Scoring!$M$49, IF(HUMAN2[[#This Row],[Staffing]]>0, Scoring!$M$56, MAX(IF(HUMAN2[[#This Row],[Power]]>0,Scoring!$M$52,0),IF(HUMAN2[[#This Row],[Water]]>0,Scoring!$M$53,0),IF(HUMAN2[[#This Row],[Cyber]]>0,Scoring!$M$54,0),IF(HUMAN2[[#This Row],[Medical Gases]]>0,Scoring!$M$55,0)))))","v":0},{"$f":"IF(HUMAN2[[#This Row],[Threat/Hazard]]=\"Active Shooter\", 7, IF(HUMAN2[[#This Row],[Evacuation]]=\"Yes\",Scoring!$M$49,0))","v":0},{"$f":"IF(HUMAN2[[#This Row],[Threat/Hazard]]=\"Active Shooter\", 7, IF(HUMAN2[[#This Row],[Evacuation]]=\"Yes\", Scoring!$M$49,0))","v":0},{"$f":"IF(HUMAN2[[#This Row],[Threat/Hazard]]=\"Active Shooter\", 7, IF(HUMAN2[[#This Row],[Evacuation]]=\"Yes\",Scoring!$M$49,0))","v":0},{"$f":"IF(HUMAN2[[#This Row],[Threat/Hazard]]=\"Active Shooter\", 7, IF(HUMAN2[[#This Row],[Evacuation]]=\"Yes\",Scoring!$M$49,0))","v":0},{"$f":"IF(HUMAN2[[#This Row],[Threat/Hazard]]=\"Active Shooter\", 7, IF(HUMAN2[[#This Row],[Evacuation]]=\"Yes\",Scoring!$M$49,0))","v":0},{"$f":"IF(HUMAN2[[#This Row],[Threat/Hazard]]=\"Active Shooter\", 7, IF(HUMAN2[[#This Row],[Evacuation]]=\"Yes\",Scoring!$M$49,0))","v":0},{"$f":"IF(HUMAN2[[#This Row],[Threat/Hazard]]=\"Active Shooter\", 7, IF(HUMAN2[[#This Row],[Evacuation]]=\"Yes\",Scoring!$M$49,0))","v":0},{"$f":"IF(HUMAN2[[#This Row],[Threat/Hazard]]=\"Active Shooter\", 7, IF(HUMAN2[[#This Row],[Evacuation]]=\"Yes\",Scoring!$M$49,0))","v":0},{"$f":"IF(HUMAN2[[#This Row],[Threat/Hazard]]=\"Active Shooter\", 7, IF(HUMAN2[[#This Row],[Evacuation]]=\"Yes\",Scoring!$M$49,0))","v":0}]
["Bomb threat",{"$f":"INDEX(USER_HAZ_COMP[Power],MATCH(HUMAN2[[#This Row],[Threat/Hazard]],USER_HAZ_COMP[Threat/Hazard],0))","v":0},{"$f":"INDEX(USER_HAZ_COMP[Water],MATCH(HUMAN2[[#This Row],[Threat/Hazard]],USER_HAZ_COMP[Threat/Hazard],0))","v":0},{"$f":"INDEX(USER_HAZ_COMP[Data and information management],MATCH(HUMAN2[[#This Row],[Threat/Hazard]],USER_HAZ_COMP[Threat/Hazard],0))","v":0},{"$f":"INDEX(USER_HAZ_COMP[Medical gases],MATCH(HUMAN2[[#This Row],[Threat/Hazard]],USER_HAZ_COMP[Threat/Hazard],0))","v":0},{"$f":"INDEX(USER_HAZ_COMP[Staffing],MATCH(HUMAN2[[#This Row],[Threat/Hazard]],USER_HAZ_COMP[Threat/Hazard],0))","v":48},{"$f":"IF(HUMAN2[[#This Row],[Power]]>0, IF(HUMAN2[[#This Row],[Water]]>0, \"Yes\", \"No\"), \"No\")","v":"No"},{"$f":"IF(HUMAN2[[#This Row],[Threat/Hazard]]=\"Active Shooter\", 7, IF(AND(HUMAN2[[#This Row],[Power]]>0,HUMAN2[[#This Row],[Water]]>0)=TRUE, Scoring!$M$49, IF(HUMAN2[[#This Row],[Staffing]]>0, Scoring!$M$56, MAX(IF(HUMAN2[[#This Row],[Power]]>0,Scoring!$M$52,0),IF(HUMAN2[[#This Row],[Water]]>0,Scoring!$M$53,0),IF(HUMAN2[[#This Row],[Cyber]]>0,Scoring!$M$54,0),IF(HUMAN2[[#This Row],[Medical Gases]]>0,Scoring!$M$55,0)))))","v":0},{"$f":"IF(HUMAN2[[#This Row],[Threat/Hazard]]=\"Active Shooter\", 7, IF(HUMAN2[[#This Row],[Evacuation]]=\"Yes\",Scoring!$M$49,0))","v":0},{"$f":"IF(HUMAN2[[#This Row],[Threat/Hazard]]=\"Active Shooter\", 7, IF(HUMAN2[[#This Row],[Evacuation]]=\"Yes\", Scoring!$M$49,0))","v":0},{"$f":"IF(HUMAN2[[#This Row],[Threat/Hazard]]=\"Active Shooter\", 7, IF(HUMAN2[[#This Row],[Evacuation]]=\"Yes\",Scoring!$M$49,0))","v":0},{"$f":"IF(HUMAN2[[#This Row],[Threat/Hazard]]=\"Active Shooter\", 7, IF(HUMAN2[[#This Row],[Evacuation]]=\"Yes\",Scoring!$M$49,0))","v":0},{"$f":"IF(HUMAN2[[#This Row],[Threat/Hazard]]=\"Active Shooter\", 7, IF(HUMAN2[[#This Row],[Evacuation]]=\"Yes\",Scoring!$M$49,0))","v":0},{"$f":"IF(HUMAN2[[#This Row],[Threat/Hazard]]=\"Active Shooter\", 7, IF(HUMAN2[[#This Row],[Evacuation]]=\"Yes\",Scoring!$M$49,0))","v":0},{"$f":"IF(HUMAN2[[#This Row],[Threat/Hazard]]=\"Active Shooter\", 7, IF(HUMAN2[[#This Row],[Evacuation]]=\"Yes\",Scoring!$M$49,0))","v":0},{"$f":"IF(HUMAN2[[#This Row],[Threat/Hazard]]=\"Active Shooter\", 7, IF(HUMAN2[[#This Row],[Evacuation]]=\"Yes\",Scoring!$M$49,0))","v":0},{"$f":"IF(HUMAN2[[#This Row],[Threat/Hazard]]=\"Active Shooter\", 7, IF(HUMAN2[[#This Row],[Evacuation]]=\"Yes\",Scoring!$M$49,0))","v":0}]
["Violent Patient",{"$f":"INDEX(USER_HAZ_COMP[Power],MATCH(HUMAN2[[#This Row],[Threat/Hazard]],USER_HAZ_COMP[Threat/Hazard],0))","v":0},{"$f":"INDEX(USER_HAZ_COMP[Water],MATCH(HUMAN2[[#This Row],[Threat/Hazard]],USER_HAZ_COMP[Threat/Hazard],0))","v":0},{"$f":"INDEX(USER_HAZ_COMP[Data and information management],MATCH(HUMAN2[[#This Row],[Threat/Hazard]],USER_HAZ_COMP[Threat/Hazard],0))","v":0},{"$f":"INDEX(USER_HAZ_COMP[Medical gases],MATCH(HUMAN2[[#This Row],[Threat/Hazard]],USER_HAZ_COMP[Threat/Hazard],0))","v":0},{"$f":"INDEX(USER_HAZ_COMP[Staffing],MATCH(HUMAN2[[#This Row],[Threat/Hazard]],USER_HAZ_COMP[Threat/Hazard],0))","v":0},{"$f":"IF(HUMAN2[[#This Row],[Power]]>0, IF(HUMAN2[[#This Row],[Water]]>0, \"Yes\", \"No\"), \"No\")","v":"No"},{"$f":"IF(HUMAN2[[#This Row],[Threat/Hazard]]=\"Active Shooter\", 7, IF(AND(HUMAN2[[#This Row],[Power]]>0,HUMAN2[[#This Row],[Water]]>0)=TRUE, Scoring!$M$49, IF(HUMAN2[[#This Row],[Staffing]]>0, Scoring!$M$56, MAX(IF(HUMAN2[[#This Row],[Power]]>0,Scoring!$M$52,0),IF(HUMAN2[[#This Row],[Water]]>0,Scoring!$M$53,0),IF(HUMAN2[[#This Row],[Cyber]]>0,Scoring!$M$54,0),IF(HUMAN2[[#This Row],[Medical Gases]]>0,Scoring!$M$55,0)))))","v":0},{"$f":"IF(HUMAN2[[#This Row],[Threat/Hazard]]=\"Active Shooter\", 7, IF(HUMAN2[[#This Row],[Evacuation]]=\"Yes\",Scoring!$M$49,0))","v":0},{"$f":"IF(HUMAN2[[#This Row],[Threat/Hazard]]=\"Active Shooter\", 7, IF(HUMAN2[[#This Row],[Evacuation]]=\"Yes\", Scoring!$M$49,0))","v":0},{"$f":"IF(HUMAN2[[#This Row],[Threat/Hazard]]=\"Active Shooter\", 7, IF(HUMAN2[[#This Row],[Evacuation]]=\"Yes\",Scoring!$M$49,0))","v":0},{"$f":"IF(HUMAN2[[#This Row],[Threat/Hazard]]=\"Active Shooter\", 7, IF(HUMAN2[[#This Row],[Evacuation]]=\"Yes\",Scoring!$M$49,0))","v":0},{"$f":"IF(HUMAN2[[#This Row],[Threat/Hazard]]=\"Active Shooter\", 7, IF(HUMAN2[[#This Row],[Evacuation]]=\"Yes\",Scoring!$M$49,0))","v":0},{"$f":"IF(HUMAN2[[#This Row],[Threat/Hazard]]=\"Active Shooter\", 7, IF(HUMAN2[[#This Row],[Evacuation]]=\"Yes\",Scoring!$M$49,0))","v":0},{"$f":"IF(HUMAN2[[#This Row],[Threat/Hazard]]=\"Active Shooter\", 7, IF(HUMAN2[[#This Row],[Evacuation]]=\"Yes\",Scoring!$M$49,0))","v":0},{"$f":"IF(HUMAN2[[#This Row],[Threat/Hazard]]=\"Active Shooter\", 7, IF(HUMAN2[[#This Row],[Evacuation]]=\"Yes\",Scoring!$M$49,0))","v":0},{"$f":"IF(HUMAN2[[#This Row],[Threat/Hazard]]=\"Active Shooter\", 7, IF(HUMAN2[[#This Row],[Evacuation]]=\"Yes\",Scoring!$M$49,0))","v":0}]
["Hazardous Chemical Theft ",{"$f":"INDEX(USER_HAZ_COMP[Power],MATCH(HUMAN2[[#This Row],[Threat/Hazard]],USER_HAZ_COMP[Threat/Hazard],0))","v":0},{"$f":"INDEX(USER_HAZ_COMP[Water],MATCH(HUMAN2[[#This Row],[Threat/Hazard]],USER_HAZ_COMP[Threat/Hazard],0))","v":0},{"$f":"INDEX(USER_HAZ_COMP[Data and information management],MATCH(HUMAN2[[#This Row],[Threat/Hazard]],USER_HAZ_COMP[Threat/Hazard],0))","v":0},{"$f":"INDEX(USER_HAZ_COMP[Medical gases],MATCH(HUMAN2[[#This Row],[Threat/Hazard]],USER_HAZ_COMP[Threat/Hazard],0))","v":0},{"$f":"INDEX(USER_HAZ_COMP[Staffing],MATCH(HUMAN2[[#This Row],[Threat/Hazard]],USER_HAZ_COMP[Threat/Hazard],0))","v":0},{"$f":"IF(HUMAN2[[#This Row],[Power]]>0, IF(HUMAN2[[#This Row],[Water]]>0, \"Yes\", \"No\"), \"No\")","v":"No"},{"$f":"IF(HUMAN2[[#This Row],[Threat/Hazard]]=\"Active Shooter\", 7, IF(AND(HUMAN2[[#This Row],[Power]]>0,HUMAN2[[#This Row],[Water]]>0)=TRUE, Scoring!$M$49, IF(HUMAN2[[#This Row],[Staffing]]>0, Scoring!$M$56, MAX(IF(HUMAN2[[#This Row],[Power]]>0,Scoring!$M$52,0),IF(HUMAN2[[#This Row],[Water]]>0,Scoring!$M$53,0),IF(HUMAN2[[#This Row],[Cyber]]>0,Scoring!$M$54,0),IF(HUMAN2[[#This Row],[Medical Gases]]>0,Scoring!$M$55,0)))))","v":0},{"$f":"IF(HUMAN2[[#This Row],[Threat/Hazard]]=\"Active Shooter\", 7, IF(HUMAN2[[#This Row],[Evacuation]]=\"Yes\",Scoring!$M$49,0))","v":0},{"$f":"IF(HUMAN2[[#This Row],[Threat/Hazard]]=\"Active Shooter\", 7, IF(HUMAN2[[#This Row],[Evacuation]]=\"Yes\", Scoring!$M$49,0))","v":0},{"$f":"IF(HUMAN2[[#This Row],[Threat/Hazard]]=\"Active Shooter\", 7, IF(HUMAN2[[#This Row],[Evacuation]]=\"Yes\",Scoring!$M$49,0))","v":0},{"$f":"IF(HUMAN2[[#This Row],[Threat/Hazard]]=\"Active Shooter\", 7, IF(HUMAN2[[#This Row],[Evacuation]]=\"Yes\",Scoring!$M$49,0))","v":0},{"$f":"IF(HUMAN2[[#This Row],[Threat/Hazard]]=\"Active Shooter\", 7, IF(HUMAN2[[#This Row],[Evacuation]]=\"Yes\",Scoring!$M$49,0))","v":0},{"$f":"IF(HUMAN2[[#This Row],[Threat/Hazard]]=\"Active Shooter\", 7, IF(HUMAN2[[#This Row],[Evacuation]]=\"Yes\",Scoring!$M$49,0))","v":0},{"$f":"IF(HUMAN2[[#This Row],[Threat/Hazard]]=\"Active Shooter\", 7, IF(HUMAN2[[#This Row],[Evacuation]]=\"Yes\",Scoring!$M$49,0))","v":0},{"$f":"IF(HUMAN2[[#This Row],[Threat/Hazard]]=\"Active Shooter\", 7, IF(HUMAN2[[#This Row],[Evacuation]]=\"Yes\",Scoring!$M$49,0))","v":0},{"$f":"IF(HUMAN2[[#This Row],[Threat/Hazard]]=\"Active Shooter\", 7, IF(HUMAN2[[#This Row],[Evacuation]]=\"Yes\",Scoring!$M$49,0))","v":0}]
["Chemical HAZMAT Exposure, Internal",{"$f":"INDEX(USER_HAZ_COMP[Power],MATCH(HUMAN2[[#This Row],[Threat/Hazard]],USER_HAZ_COMP[Threat/Hazard],0))","v":0},{"$f":"INDEX(USER_HAZ_COMP[Water],MATCH(HUMAN2[[#This Row],[Threat/Hazard]],USER_HAZ_COMP[Threat/Hazard],0))","v":0},{"$f":"INDEX(USER_HAZ_COMP[Data and information management],MATCH(HUMAN2[[#This Row],[Threat/Hazard]],USER_HAZ_COMP[Threat/Hazard],0))","v":0},{"$f":"INDEX(USER_HAZ_COMP[Medical gases],MATCH(HUMAN2[[#This Row],[Threat/Hazard]],USER_HAZ_COMP[Threat/Hazard],0))","v":0},{"$f":"INDEX(USER_HAZ_COMP[Staffing],MATCH(HUMAN2[[#This Row],[Threat/Hazard]],USER_HAZ_COMP[Threat/Hazard],0))","v":0},{"$f":"IF(HUMAN2[[#This Row],[Power]]>0, IF(HUMAN2[[#This Row],[Water]]>0, \"Yes\", \"No\"), \"No\")","v":"No"},{"$f":"IF(HUMAN2[[#This Row],[Threat/Hazard]]=\"Active Shooter\", 7, IF(AND(HUMAN2[[#This Row],[Power]]>0,HUMAN2[[#This Row],[Water]]>0)=TRUE, Scoring!$M$49, IF(HUMAN2[[#This Row],[Staffing]]>0, Scoring!$M$56, MAX(IF(HUMAN2[[#This Row],[Power]]>0,Scoring!$M$52,0),IF(HUMAN2[[#This Row],[Water]]>0,Scoring!$M$53,0),IF(HUMAN2[[#This Row],[Cyber]]>0,Scoring!$M$54,0),IF(HUMAN2[[#This Row],[Medical Gases]]>0,Scoring!$M$55,0)))))","v":0},{"$f":"IF(HUMAN2[[#This Row],[Threat/Hazard]]=\"Active Shooter\", 7, IF(HUMAN2[[#This Row],[Evacuation]]=\"Yes\",Scoring!$M$49,0))","v":0},{"$f":"IF(HUMAN2[[#This Row],[Threat/Hazard]]=\"Active Shooter\", 7, IF(HUMAN2[[#This Row],[Evacuation]]=\"Yes\", Scoring!$M$49,0))","v":0},{"$f":"IF(HUMAN2[[#This Row],[Threat/Hazard]]=\"Active Shooter\", 7, IF(HUMAN2[[#This Row],[Evacuation]]=\"Yes\",Scoring!$M$49,0))","v":0},{"$f":"IF(HUMAN2[[#This Row],[Threat/Hazard]]=\"Active Shooter\", 7, IF(HUMAN2[[#This Row],[Evacuation]]=\"Yes\",Scoring!$M$49,0))","v":0},{"$f":"IF(HUMAN2[[#This Row],[Threat/Hazard]]=\"Active Shooter\", 7, IF(HUMAN2[[#This Row],[Evacuation]]=\"Yes\",Scoring!$M$49,0))","v":0},{"$f":"IF(HUMAN2[[#This Row],[Threat/Hazard]]=\"Active Shooter\", 7, IF(HUMAN2[[#This Row],[Evacuation]]=\"Yes\",Scoring!$M$49,0))","v":0},{"$f":"IF(HUMAN2[[#This Row],[Threat/Hazard]]=\"Active Shooter\", 7, IF(HUMAN2[[#This Row],[Evacuation]]=\"Yes\",Scoring!$M$49,0))","v":0},{"$f":"IF(HUMAN2[[#This Row],[Threat/Hazard]]=\"Active Shooter\", 7, IF(HUMAN2[[#This Row],[Evacuation]]=\"Yes\",Scoring!$M$49,0))","v":0},{"$f":"IF(HUMAN2[[#This Row],[Threat/Hazard]]=\"Active Shooter\", 7, IF(HUMAN2[[#This Row],[Evacuation]]=\"Yes\",Scoring!$M$49,0))","v":0}]
["Radiological Exposure, Internal",{"$f":"INDEX(USER_HAZ_COMP[Power],MATCH(HUMAN2[[#This Row],[Threat/Hazard]],USER_HAZ_COMP[Threat/Hazard],0))","v":0},{"$f":"INDEX(USER_HAZ_COMP[Water],MATCH(HUMAN2[[#This Row],[Threat/Hazard]],USER_HAZ_COMP[Threat/Hazard],0))","v":0},{"$f":"INDEX(USER_HAZ_COMP[Data and information management],MATCH(HUMAN2[[#This Row],[Threat/Hazard]],USER_HAZ_COMP[Threat/Hazard],0))","v":0},{"$f":"INDEX(USER_HAZ_COMP[Medical gases],MATCH(HUMAN2[[#This Row],[Threat/Hazard]],USER_HAZ_COMP[Threat/Hazard],0))","v":0},{"$f":"INDEX(USER_HAZ_COMP[Staffing],MATCH(HUMAN2[[#This Row],[Threat/Hazard]],USER_HAZ_COMP[Threat/Hazard],0))","v":48},{"$f":"IF(HUMAN2[[#This Row],[Power]]>0, IF(HUMAN2[[#This Row],[Water]]>0, \"Yes\", \"No\"), \"No\")","v":"No"},{"$f":"IF(HUMAN2[[#This Row],[Threat/Hazard]]=\"Active Shooter\", 7, IF(AND(HUMAN2[[#This Row],[Power]]>0,HUMAN2[[#This Row],[Water]]>0)=TRUE, Scoring!$M$49, IF(HUMAN2[[#This Row],[Staffing]]>0, Scoring!$M$56, MAX(IF(HUMAN2[[#This Row],[Power]]>0,Scoring!$M$52,0),IF(HUMAN2[[#This Row],[Water]]>0,Scoring!$M$53,0),IF(HUMAN2[[#This Row],[Cyber]]>0,Scoring!$M$54,0),IF(HUMAN2[[#This Row],[Medical Gases]]>0,Scoring!$M$55,0)))))","v":0},{"$f":"IF(HUMAN2[[#This Row],[Threat/Hazard]]=\"Active Shooter\", 7, IF(HUMAN2[[#This Row],[Evacuation]]=\"Yes\",Scoring!$M$49,0))","v":0},{"$f":"IF(HUMAN2[[#This Row],[Threat/Hazard]]=\"Active Shooter\", 7, IF(HUMAN2[[#This Row],[Evacuation]]=\"Yes\", Scoring!$M$49,0))","v":0},{"$f":"IF(HUMAN2[[#This Row],[Threat/Hazard]]=\"Active Shooter\", 7, IF(HUMAN2[[#This Row],[Evacuation]]=\"Yes\",Scoring!$M$49,0))","v":0},{"$f":"IF(HUMAN2[[#This Row],[Threat/Hazard]]=\"Active Shooter\", 7, IF(HUMAN2[[#This Row],[Evacuation]]=\"Yes\",Scoring!$M$49,0))","v":0},{"$f":"IF(HUMAN2[[#This Row],[Threat/Hazard]]=\"Active Shooter\", 7, IF(HUMAN2[[#This Row],[Evacuation]]=\"Yes\",Scoring!$M$49,0))","v":0},{"$f":"IF(HUMAN2[[#This Row],[Threat/Hazard]]=\"Active Shooter\", 7, IF(HUMAN2[[#This Row],[Evacuation]]=\"Yes\",Scoring!$M$49,0))","v":0},{"$f":"IF(HUMAN2[[#This Row],[Threat/Hazard]]=\"Active Shooter\", 7, IF(HUMAN2[[#This Row],[Evacuation]]=\"Yes\",Scoring!$M$49,0))","v":0},{"$f":"IF(HUMAN2[[#This Row],[Threat/Hazard]]=\"Active Shooter\", 7, IF(HUMAN2[[#This Row],[Evacuation]]=\"Yes\",Scoring!$M$49,0))","v":0},{"$f":"IF(HUMAN2[[#This Row],[Threat/Hazard]]=\"Active Shooter\", 7, IF(HUMAN2[[#This Row],[Evacuation]]=\"Yes\",Scoring!$M$49,0))","v":0}]
["Biological Exposure, Internal",{"$f":"INDEX(USER_HAZ_COMP[Power],MATCH(HUMAN2[[#This Row],[Threat/Hazard]],USER_HAZ_COMP[Threat/Hazard],0))","v":0},{"$f":"INDEX(USER_HAZ_COMP[Water],MATCH(HUMAN2[[#This Row],[Threat/Hazard]],USER_HAZ_COMP[Threat/Hazard],0))","v":0},{"$f":"INDEX(USER_HAZ_COMP[Data and information management],MATCH(HUMAN2[[#This Row],[Threat/Hazard]],USER_HAZ_COMP[Threat/Hazard],0))","v":0},{"$f":"INDEX(USER_HAZ_COMP[Medical gases],MATCH(HUMAN2[[#This Row],[Threat/Hazard]],USER_HAZ_COMP[Threat/Hazard],0))","v":0},{"$f":"INDEX(USER_HAZ_COMP[Staffing],MATCH(HUMAN2[[#This Row],[Threat/Hazard]],USER_HAZ_COMP[Threat/Hazard],0))","v":48},{"$f":"IF(HUMAN2[[#This Row],[Power]]>0, IF(HUMAN2[[#This Row],[Water]]>0, \"Yes\", \"No\"), \"No\")","v":"No"},{"$f":"IF(HUMAN2[[#This Row],[Threat/Hazard]]=\"Active Shooter\", 7, IF(AND(HUMAN2[[#This Row],[Power]]>0,HUMAN2[[#This Row],[Water]]>0)=TRUE, Scoring!$M$49, IF(HUMAN2[[#This Row],[Staffing]]>0, Scoring!$M$56, MAX(IF(HUMAN2[[#This Row],[Power]]>0,Scoring!$M$52,0),IF(HUMAN2[[#This Row],[Water]]>0,Scoring!$M$53,0),IF(HUMAN2[[#This Row],[Cyber]]>0,Scoring!$M$54,0),IF(HUMAN2[[#This Row],[Medical Gases]]>0,Scoring!$M$55,0)))))","v":0},{"$f":"IF(HUMAN2[[#This Row],[Threat/Hazard]]=\"Active Shooter\", 7, IF(HUMAN2[[#This Row],[Evacuation]]=\"Yes\",Scoring!$M$49,0))","v":0},{"$f":"IF(HUMAN2[[#This Row],[Threat/Hazard]]=\"Active Shooter\", 7, IF(HUMAN2[[#This Row],[Evacuation]]=\"Yes\", Scoring!$M$49,0))","v":0},{"$f":"IF(HUMAN2[[#This Row],[Threat/Hazard]]=\"Active Shooter\", 7, IF(HUMAN2[[#This Row],[Evacuation]]=\"Yes\",Scoring!$M$49,0))","v":0},{"$f":"IF(HUMAN2[[#This Row],[Threat/Hazard]]=\"Active Shooter\", 7, IF(HUMAN2[[#This Row],[Evacuation]]=\"Yes\",Scoring!$M$49,0))","v":0},{"$f":"IF(HUMAN2[[#This Row],[Threat/Hazard]]=\"Active Shooter\", 7, IF(HUMAN2[[#This Row],[Evacuation]]=\"Yes\",Scoring!$M$49,0))","v":0},{"$f":"IF(HUMAN2[[#This Row],[Threat/Hazard]]=\"Active Shooter\", 7, IF(HUMAN2[[#This Row],[Evacuation]]=\"Yes\",Scoring!$M$49,0))","v":0},{"$f":"IF(HUMAN2[[#This Row],[Threat/Hazard]]=\"Active Shooter\", 7, IF(HUMAN2[[#This Row],[Evacuation]]=\"Yes\",Scoring!$M$49,0))","v":0},{"$f":"IF(HUMAN2[[#This Row],[Threat/Hazard]]=\"Active Shooter\", 7, IF(HUMAN2[[#This Row],[Evacuation]]=\"Yes\",Scoring!$M$49,0))","v":0},{"$f":"IF(HUMAN2[[#This Row],[Threat/Hazard]]=\"Active Shooter\", 7, IF(HUMAN2[[#This Row],[Evacuation]]=\"Yes\",Scoring!$M$49,0))","v":0}]

{"sheet":"ResetValues","index":22,"n_rows":32,"n_cols":9,"rows_kept":32,"cut":false,"hidden":true,"merged":[[21,3,21,6],[22,3,22,6],[26,3,26,6],[23,3,23,6],[24,3,24,6],[25,3,25,6]]}
[]
[]
[]
[]
[]
[]
[]
[]
[]
[]
[]
[]
[]
[]
[]
[]
[]
[]
[]
[]
[]
[null,null,null,"Power",null,null,null,{"$f":"IF(INDEX(HAZ_COMP[],MATCH(HAZARD,HAZ_COMP[Threat/Hazard],0),MATCH(RESULTS!H23,HAZ_COMP[#Headers],0))>0, \"Yes\", \"No\")","v":{"$error":"#N/A"}},{"$f":"IF(RESULTS!K23=\"Yes\",INDEX(HAZ_COMP[],MATCH(HAZARD,HAZ_COMP[Threat/Hazard],0),MATCH(RESULTS!H23,HAZ_COMP[#Headers],0)),0)","v":{"$error":"#N/A"}}]
[null,null,null,"Water",null,null,null,{"$f":"IF(INDEX(HAZ_COMP[],MATCH(HAZARD,HAZ_COMP[Threat/Hazard],0),MATCH(RESULTS!H24,HAZ_COMP[#Headers],0))>0, \"Yes\", \"No\")","v":{"$error":"#N/A"}},{"$f":"IF(RESULTS!K24=\"Yes\",INDEX(HAZ_COMP[],MATCH(HAZARD,HAZ_COMP[Threat/Hazard],0),MATCH(RESULTS!H24,HAZ_COMP[#Headers],0)),0)","v":{"$error":"#N/A"}}]
[null,null,null,"Data and information management",null,null,null,{"$f":"IF(INDEX(HAZ_COMP[],MATCH(HAZARD,HAZ_COMP[Threat/Hazard],0),MATCH(RESULTS!H25,HAZ_COMP[#Headers],0))>0, \"Yes\", \"No\")","v":{"$error":"#N/A"}},{"$f":"IF(RESULTS!K25=\"Yes\",INDEX(HAZ_COMP[],MATCH(HAZARD,HAZ_COMP[Threat/Hazard],0),MATCH(RESULTS!H25,HAZ_COMP[#Headers],0)),0)","v":{"$error":"#N/A"}}]
[null,null,null,"Staffing",null,null,null,{"$f":"IF(INDEX(HAZ_COMP[],MATCH(HAZARD,HAZ_COMP[Threat/Hazard],0),MATCH(RESULTS!H26,HAZ_COMP[#Headers],0))>0, \"Yes\", \"No\")","v":{"$error":"#N/A"}},{"$f":"IF(RESULTS!K26=\"Yes\",INDEX(HAZ_COMP[],MATCH(HAZARD,HAZ_COMP[Threat/Hazard],0),MATCH(RESULTS!H26,HAZ_COMP[#Headers],0)),0)","v":{"$error":"#N/A"}}]
[null,null,null,"Medical gases",null,null,null,{"$f":"IF(INDEX(HAZ_COMP[],MATCH(HAZARD,HAZ_COMP[Threat/Hazard],0),MATCH(RESULTS!H27,HAZ_COMP[#Headers],0))>0, \"Yes\", \"No\")","v":{"$error":"#N/A"}},{"$f":"IF(RESULTS!K27=\"Yes\",INDEX(HAZ_COMP[],MATCH(HAZARD,HAZ_COMP[Threat/Hazard],0),MATCH(RESULTS!H27,HAZ_COMP[#Headers],0)),0)","v":{"$error":"#N/A"}}]
[null,null,null,"Critical Supplies",null,null,null,{"$f":"IF(INDEX(HAZ_COMP[],MATCH(HAZARD,HAZ_COMP[Threat/Hazard],0),MATCH(ResetValues!D27,HAZ_COMP[#Headers],0))>0, \"Yes\", \"No\")","v":{"$error":"#N/A"}},{"$f":"IF(RESULTS!J43=\"Yes\",INDEX(HAZ_COMP[],MATCH(HAZARD,HAZ_COMP[Threat/Hazard],0),MATCH(ResetValues!D27,HAZ_COMP[#Headers],0)),0)","v":{"$error":"#N/A"}}]
[]
[null,null,null,"% Facility Damage",null,{"$f":"INDEX(PROPERTY[],MATCH(HAZARD,PROPERTY[Threat/Hazard],0),MATCH(\"Cost to Replace Facility\",PROPERTY[#Headers],0))","v":{"$error":"#N/A"}}]
[null,null,null,"Temp Facility",null,{"$f":"INDEX(PROPERTY[],MATCH(HAZARD,PROPERTY[Threat/Hazard],0),MATCH(\"Cost for Temp Facility\",PROPERTY[#Headers],0))","v":{"$error":"#N/A"}}]
[null,null,null,"Event Duration",null,{"$f":"MAX(ResetValues!I22:I26)/24","v":{"$error":"#N/A"}}]
[null,null,null,"Regional/Local",null,{"$f":"IF(RESULTS!J43=\"No\", \"N/A\", INDEX(HAZ_COMP[],MATCH(HAZARD,HAZ_COMP[Threat/Hazard],0),14))","v":{"$error":"#N/A"}}]